Workbook

Sheet Competencias
A1: Datos de deportista | K1: Categoría SL | Q1: Categoría GS | AB1: Categoría SG
A2: Fecha | B2: Rut | C2: Nombre | D2: Apellido | E2: Sexo | F2: Club | G2: Disc. | H2: Cat. | I2: Activo | J2: Año | K2: COPA VOLCANES 10-08-2025 | L2: Avianca Weekend - UC 10-08-2025 | M2: Copa Chilexpress 17-08-2025 | N2: COPA COLUN 2025 29-08-2025 | O2: COPA PUYEHUE 2025 29-08-2025 | P2: Copa Araucarias 29-08-2025 | Q2: COPA VOLCANES 09-08-2025 | R2: COPA COLUN 2025 28-08-2025 | S2: COPA PUYEHUE-2 28-08-2025 | T2: COPA PUYEHUE 2025 28-08-2025 | U2: Copa Araucarias 31-08-2025 | V2: Copa Portillo 06-09-2025 | W2: Copa Portillo-GS2 06-09-2025 | X2: Copa CAN 07-09-2025 | Y2: Copa CAN - GS 2 07-09-2025 | Z2: Copa CSLP-2 14-09-2025 | AA2: Copa CSLP 14-09-2025 | AB2: COPA VOLCANES 08-08-2025 | AC2: Copa La Leñera 12-09-2025 | AD2: Copa La Leñera-2 12-09-2025 | AE2: Injury
A3: 2010-02-19 | B3: 131926880 | C3: ENZO | D3: CASAGRANDE BERTOLDI | E3: M | F3: CVN | G3: AS | H3: U16 | I3: SI | J3: 2 | K3: 999.99 | L3: 999.99 | M3: 999.99 | N3: 999.99 | O3: 999.99 | P3: 999.99 | Q3: 999.99 | R3: 999.99 | S3: 999.99 | T3: 999.99 | U3: 999.99 | V3: 999.99 | W3: 999.99 | X3: 999.99 | Y3: 999.99 | Z3: 999.99 | AA3: 999.99 | AB3: 999.99 | AC3: 287.94 | AD3: 999.99
A4: 2013-06-21 | B4: 16707724 | C4: RUFINO | D4: CRESPO RODRÍGUEZ | E4: M | F4: CLP | G4: AS | H4: U14 | I4: SI | J4: 1 | K4: 999.99 | L4: 319.4 | M4: 243.92 | N4: 999.99 | O4: 999.99 | P4: 999.99 | Q4: 999.99 | R4: 999.99 | S4: 999.99 | T4: 999.99 | U4: 999.99 | V4: 999.99 | W4: 999.99 | X4: 999.99 | Y4: 999.99 | Z4: 999.99 | AA4: 999.99 | AB4: 999.99 | AC4: 999.99 | AD4: 999.99
A5: 2012-01-07 | B5: 22EA72258 | C5: JUAN | D5: LE BAULT DE LA MORINIERE | E5: M | F5: CLP | G5: AS | H5: U14 | I5: SI | J5: 2 | K5: 999.99 | L5: 999.99 | M5: 999.99 | N5: 999.99 | O5: 999.99 | P5: 999.99 | Q5: 999.99 | R5: 999.99 | S5: 999.99 | T5: 999.99 | U5: 999.99 | V5: 999.99 | W5: 999.99 | X5: 999.99 | Y5: 999.99 | Z5: 999.99 | AA5: 999.99 | AB5: 999.99 | AC5: 999.99 | AD5: 999.99
A6: 2010-01-03 | B6: 23215800K | C6: ANTONIA | D6: ESTEVE SECO | E6: F | F6: CAR | G6: AS | H6: U16 | I6: SI | J6: 2 | K6: 999.99 | L6: 999.99 | M6: 999.99 | N6: 999.99 | O6: 999.99 | P6: 999.99 | Q6: 999.99 | R6: 999.99 | S6: 999.99 | T6: 999.99 | U6: 999.99 | V6: 999.99 | W6: 999.99 | X6: 999.99 | Y6: 999.99 | Z6: 999.99 | AA6: 999.99 | AB6: 999.99 | AC6: 999.99 | AD6: 999.99
A7: 2010-01-19 | B7: 23227283K | C7: JOSEFINA | D7: PEREZ OLMOS | E7: F | F7: LV | G7: AS | H7: U16 | I7: SI | J7: 2 | K7: 999.99 | L7: 999.99 | M7: 999.99 | N7: 999.99 | O7: 999.99 | P7: 228.74 | Q7: 203.5 | R7: 999.99 | S7: 999.99 | T7: 999.99 | U7: 214.75 | V7: 999.99 | W7: 999.99 | X7: 999.99 | Y7: 999.99 | Z7: 999.99 | AA7: 999.99 | AB7: 208.81 | AC7: 999.99 | AD7: 999.99
A8: 2010-01-17 | B8: 232274360 | C8: SILKE | D8: OPITZ SEIDL | E8: F | F8: CAO | G8: AS | H8: U16 | I8: SI | J8: 2 | K8: 147.59 | L8: 999.99 | M8: 999.99 | N8: 140.92 | O8: 124.06 | P8: 999.99 | Q8: 207.47 | R8: 999.99 | S8: 999.99 | T8: 165.93 | U8: 999.99 | V8: 999.99 | W8: 999.99 | X8: 999.99 | Y8: 999.99 | Z8: 999.99 | AA8: 999.99 | AB8: 999.99 | AC8: 999.99 | AD8: 999.99
A9: 2010-01-20 | B9: 232291966 | C9: ALEGRA | D9: REYES SBARAGLINI | E9: F | F9: CEC | G9: AS | H9: U16 | I9: SI | J9: 2 | K9: 999.99 | L9: 999.99 | M9: 999.99 | N9: 999.99 | O9: 999.99 | P9: 999.99 | Q9: 999.99 | R9: 999.99 | S9: 999.99 | T9: 999.99 | U9: 999.99 | V9: 999.99 | W9: 999.99 | X9: 999.99 | Y9: 999.99 | Z9: 999.99 | AA9: 999.99 | AB9: 999.99 | AC9: 999.99 | AD9: 999.99
A10: 2010-01-26 | B10: 232325704 | C10: AMALIA | D10: BARRIENTOS MARTINEZ | E10: F | F10: CAO | G10: AS | H10: U16 | I10: SI | J10: 2 | K10: 999.99 | L10: 999.99 | M10: 999.99 | N10: 134.85 | O10: 139.7 | P10: 999.99 | Q10: 164.77 | R10: 999.99 | S10: 999.99 | T10: 185.08 | U10: 999.99 | V10: 999.99 | W10: 999.99 | X10: 999.99 | Y10: 999.99 | Z10: 999.99 | AA10: 221.07 | AB10: 151.18 | AC10: 193.11 | AD10: 187.74
A11: 2010-01-23 | B11: 232336994 | C11: FERNANDA JOSEFA | D11: VASQUEZ VERGARA | E11: F | F11: CAN | G11: AS | H11: U16 | I11: SI | J11: 2 | K11: 999.99 | L11: 169.89 | M11: 153.52 | N11: 999.99 | O11: 999.99 | P11: 999.99 | Q11: 999.99 | R11: 999.99 | S11: 999.99 | T11: 999.99 | U11: 999.99 | V11: 999.99 | W11: 999.99 | X11: 999.99 | Y11: 999.99 | Z11: 999.99 | AA11: 999.99 | AB11: 999.99 | AC11: 999.99 | AD11: 999.99
A12: 2010-01-23 | B12: 232341041 | C12: FLORENCIA | D12: PINCHEIRA BRAVO | E12: F | F12: CAR | G12: AS | H12: U16 | I12: SI | J12: 2 | K12: 167.42 | L12: 999.99 | M12: 999.99 | N12: 999.99 | O12: 999.99 | P12: 242.55 | Q12: 205.07 | R12: 999.99 | S12: 999.99 | T12: 999.99 | U12: 213.57 | V12: 999.99 | W12: 999.99 | X12: 999.99 | Y12: 999.99 | Z12: 999.99 | AA12: 999.99 | AB12: 327.76 | AC12: 999.99 | AD12: 999.99
A13: 2010-01-25 | B13: 23234394K | C13: MARIA | D13: MULLER CORREA | E13: F | F13: CLP | G13: AS | H13: U16 | I13: SI | J13: 2 | K13: 999.99 | L13: 999.99 | M13: 999.99 | N13: 999.99 | O13: 999.99 | P13: 999.99 | Q13: 999.99 | R13: 999.99 | S13: 999.99 | T13: 999.99 | U13: 999.99 | V13: 460.17 | W13: 999.99 | X13: 281.01 | Y13: 999.99 | Z13: 999.99 | AA13: 999.99 | AB13: 999.99 | AC13: 242.56 | AD13: 211.55
A14: 2010-01-30 | B14: 232362693 | C14: MARTIN | D14: CRESPO IBAÑEZ | E14: M | F14: CLP | G14: AS | H14: U16 | I14: SI | J14: 2 | K14: 999.99 | L14: 999.99 | M14: 105.46 | N14: 999.99 | O14: 999.99 | P14: 999.99 | Q14: 999.99 | R14: 999.99 | S14: 999.99 | T14: 999.99 | U14: 999.99 | V14: 163.44 | W14: 999.99 | X14: 124.38 | Y14: 999.99 | Z14: 999.99 | AA14: 141.21 | AB14: 999.99 | AC14: 171.21 | AD14: 999.99
A15: 2010-01-28 | B15: 232389168 | C15: JADE | D15: REBOLLEDO HERNANDEZ | E15: F | F15: CAPA | G15: AS | H15: U16 | I15: SI | J15: 2 | K15: 999.99 | L15: 999.99 | M15: 999.99 | N15: 999.99 | O15: 999.99 | P15: 209.59 | Q15: 999.99 | R15: 999.99 | S15: 999.99 | T15: 999.99 | U15: 208.44 | V15: 999.99 | W15: 999.99 | X15: 999.99 | Y15: 999.99 | Z15: 999.99 | AA15: 999.99 | AB15: 999.99 | AC15: 999.99 | AD15: 999.99
A16: 2010-02-15 | B16: 232504285 | C16: CRISTIÁN | D16: CUMSILLE SCHULBACH | E16: M | F16: CVN | G16: AS | H16: U16 | I16: SI | J16: 2 | K16: 999.99 | L16: 999.99 | M16: 999.99 | N16: 999.99 | O16: 999.99 | P16: 999.99 | Q16: 999.99 | R16: 999.99 | S16: 999.99 | T16: 999.99 | U16: 999.99 | V16: 999.99 | W16: 999.99 | X16: 640.42 | Y16: 999.99 | Z16: 999.99 | AA16: 999.99 | AB16: 999.99 | AC16: 219.6 | AD16: 999.99
A17: 2010-03-10 | B17: 232699809 | C17: FLORENCIA | D17: ROJAS FARIAS | E17: F | F17: UC | G17: AS | H17: U16 | I17: SI | J17: 2 | K17: 999.99 | L17: 186.28 | M17: 152.88 | N17: 999.99 | O17: 999.99 | P17: 999.99 | Q17: 999.99 | R17: 999.99 | S17: 999.99 | T17: 999.99 | U17: 999.99 | V17: 999.99 | W17: 999.99 | X17: 170.18 | Y17: 999.99 | Z17: 999.99 | AA17: 196.84 | AB17: 999.99 | AC17: 249.79 | AD17: 257.02
A18: 2010-03-15 | B18: 232700335 | C18: CLARA | D18: BASAURI GARDILCIC | E18: F | F18: CORR | G18: AS | H18: U16 | I18: SI | J18: 2 | K18: 999.99 | L18: 999.99 | M18: 999.99 | N18: 999.99 | O18: 999.99 | P18: 999.99 | Q18: 999.99 | R18: 999.99 | S18: 999.99 | T18: 999.99 | U18: 999.99 | V18: 999.99 | W18: 999.99 | X18: 999.99 | Y18: 999.99 | Z18: 999.99 | AA18: 999.99 | AB18: 999.99 | AC18: 999.99 | AD18: 999.99
A19: 2010-03-15 | B19: 232706651 | C19: OLIVIA | D19: RODRIGUEZ CASTRO | E19: F | F19: CVN | G19: AS | H19: U16 | I19: SI | J19: 2 | K19: 999.99 | L19: 407.66 | M19: 999.99 | N19: 999.99 | O19: 999.99 | P19: 999.99 | Q19: 999.99 | R19: 999.99 | S19: 999.99 | T19: 999.99 | U19: 999.99 | V19: 999.99 | W19: 999.99 | X19: 999.99 | Y19: 999.99 | Z19: 999.99 | AA19: 406.91 | AB19: 999.99 | AC19: 999.99 | AD19: 999.99
A20: 2010-03-22 | B20: 232776323 | C20: ANTONIO | D20: KUBICK LESSER | E20: M | F20: CLP | G20: AS | H20: U16 | I20: SI | J20: 2 | K20: 999.99 | L20: 157.59 | M20: 999.99 | N20: 999.99 | O20: 999.99 | P20: 999.99 | Q20: 999.99 | R20: 999.99 | S20: 999.99 | T20: 999.99 | U20: 999.99 | V20: 999.99 | W20: 999.99 | X20: 999.99 | Y20: 999.99 | Z20: 999.99 | AA20: 267.95 | AB20: 999.99 | AC20: 999.99 | AD20: 999.99
A21: 2010-04-05 | B21: 232893249 | C21: FACUNDO | D21: GALILEA FUENTEALBA | E21: M | F21: CAEC | G21: AS | H21: U16 | I21: SI | J21: 2 | K21: 999.99 | L21: 999.99 | M21: 999.99 | N21: 999.99 | O21: 999.99 | P21: 999.99 | Q21: 999.99 | R21: 999.99 | S21: 999.99 | T21: 999.99 | U21: 999.99 | V21: 999.99 | W21: 999.99 | X21: 192.92 | Y21: 999.99 | Z21: 999.99 | AA21: 999.99 | AB21: 999.99 | AC21: 259.77 | AD21: 226.01
A22: 2010-04-08 | B22: 232926155 | C22: PATRICIO | D22: BANNURA DECEBAL-CUZA | E22: M | F22: UC | G22: AS | H22: U16 | I22: SI | J22: 2 | K22: 999.99 | L22: 999.99 | M22: 999.99 | N22: 999.99 | O22: 999.99 | P22: 999.99 | Q22: 999.99 | R22: 999.99 | S22: 999.99 | T22: 999.99 | U22: 999.99 | V22: 999.99 | W22: 999.99 | X22: 999.99 | Y22: 999.99 | Z22: 999.99 | AA22: 127.47 | AB22: 999.99 | AC22: 209.13 | AD22: 161.83
A23: 2010-04-19 | B23: 233009822 | C23: CARMENCITA | D23: PINILLA MORENO | E23: F | F23: CLP | G23: AS | H23: U16 | I23: SI | J23: 2 | K23: 999.99 | L23: 97.87 | M23: 94.19 | N23: 999.99 | O23: 999.99 | P23: 999.99 | Q23: 999.99 | R23: 999.99 | S23: 999.99 | T23: 999.99 | U23: 999.99 | V23: 440 | W23: 999.99 | X23: 999.99 | Y23: 999.99 | Z23: 999.99 | AA23: 111.43 | AB23: 999.99 | AC23: 132.33 | AD23: 112.97
A24: 2010-04-22 | B24: 233032808 | C24: LEONOR | D24: MUÑOZ QUINTANA | E24: F | F24: CORR | G24: AS | H24: U16 | I24: SI | J24: 2 | K24: 999.99 | L24: 999.99 | M24: 999.99 | N24: 999.99 | O24: 999.99 | P24: 127.97 | Q24: 140.84 | R24: 999.99 | S24: 999.99 | T24: 999.99 | U24: 130.11 | V24: 999.99 | W24: 999.99 | X24: 999.99 | Y24: 999.99 | Z24: 999.99 | AA24: 999.99 | AB24: 177.48 | AC24: 999.99 | AD24: 999.99
A25: 2010-04-19 | B25: 233059706 | C25: ISABEL | D25: CLARO IRARRAZAVAL | E25: F | F25: UC | G25: AS | H25: U16 | I25: SI | J25: 2 | K25: 999.99 | L25: 999.99 | M25: 122.53 | N25: 999.99 | O25: 999.99 | P25: 999.99 | Q25: 999.99 | R25: 999.99 | S25: 999.99 | T25: 999.99 | U25: 999.99 | V25: 999.99 | W25: 999.99 | X25: 108.27 | Y25: 999.99 | Z25: 999.99 | AA25: 141.72 | AB25: 999.99 | AC25: 999.99 | AD25: 999.99
A26: 2010-04-27 | B26: 233074896 | C26: SANTIAGO | D26: CAPO CORNEJO | E26: M | F26: UC | G26: AS | H26: U16 | I26: SI | J26: 2 | K26: 999.99 | L26: 999.99 | M26: 202.93 | N26: 999.99 | O26: 999.99 | P26: 999.99 | Q26: 999.99 | R26: 999.99 | S26: 999.99 | T26: 999.99 | U26: 999.99 | V26: 999.99 | W26: 999.99 | X26: 234.54 | Y26: 999.99 | Z26: 999.99 | AA26: 221.98 | AB26: 999.99 | AC26: 253.57 | AD26: 226.5
A27: 2010-04-01 | B27: 233243736 | C27: NINA | D27: DUPUY ALLEN | E27: F | F27: CVN | G27: AS | H27: U16 | I27: SI | J27: 2 | K27: 999.99 | L27: 142.64 | M27: 999.99 | N27: 999.99 | O27: 999.99 | P27: 999.99 | Q27: 999.99 | R27: 999.99 | S27: 999.99 | T27: 999.99 | U27: 999.99 | V27: 999.99 | W27: 999.99 | X27: 999.99 | Y27: 999.99 | Z27: 999.99 | AA27: 999.99 | AB27: 999.99 | AC27: 999.99 | AD27: 999.99
A28: 2010-07-02 | B28: 233245771 | C28: CLARA | D28: TELLO MOLINARE | E28: F | F28: CAO | G28: AS | H28: U16 | I28: SI | J28: 2 | K28: 170.38 | L28: 999.99 | M28: 999.99 | N28: 999.99 | O28: 999.99 | P28: 999.99 | Q28: 999.99 | R28: 999.99 | S28: 999.99 | T28: 999.99 | U28: 999.99 | V28: 999.99 | W28: 999.99 | X28: 999.99 | Y28: 999.99 | Z28: 999.99 | AA28: 999.99 | AB28: 297.97 | AC28: 999.99 | AD28: 999.99
A29: 2010-05-28 | B29: 23338349K | C29: JEAN CLAUDIO | D29: CARDENAS MANSILLA | E29: M | F29: PAT | G29: AS | H29: U16 | I29: SI | J29: 2 | K29: 999.99 | L29: 999.99 | M29: 999.99 | N29: 999.99 | O29: 999.99 | P29: 999.99 | Q29: 999.99 | R29: 291.64 | S29: 999.99 | T29: 999.99 | U29: 999.99 | V29: 999.99 | W29: 999.99 | X29: 999.99 | Y29: 999.99 | Z29: 999.99 | AA29: 999.99 | AB29: 999.99 | AC29: 999.99 | AD29: 999.99
A30: 2010-06-05 | B30: 233456179 | C30: EMILIA | D30: GROB ANGERMEYER | E30: F | F30: CAN | G30: AS | H30: U16 | I30: SI | J30: 2 | K30: 999.99 | L30: 141.21 | M30: 116.59 | N30: 999.99 | O30: 999.99 | P30: 999.99 | Q30: 999.99 | R30: 999.99 | S30: 999.99 | T30: 999.99 | U30: 999.99 | V30: 999.99 | W30: 999.99 | X30: 106.88 | Y30: 999.99 | Z30: 999.99 | AA30: 126.94 | AB30: 999.99 | AC30: 122.93 | AD30: 109.89
A31: 2010-05-30 | B31: 233464090 | C31: KARL | D31: PAULMANN PARSONS | E31: M | F31: CAN | G31: AS | H31: U16 | I31: SI | J31: 2 | K31: 999.99 | L31: 377.97 | M31: 999.99 | N31: 999.99 | O31: 999.99 | P31: 999.99 | Q31: 999.99 | R31: 999.99 | S31: 999.99 | T31: 999.99 | U31: 999.99 | V31: 999.99 | W31: 999.99 | X31: 437.21 | Y31: 999.99 | Z31: 999.99 | AA31: 999.99 | AB31: 999.99 | AC31: 999.99 | AD31: 999.99
A32: 2010-11-06 | B32: 233465003 | C32: ELOISA | D32: COSTA BERNALES | E32: F | F32: CVN | G32: AS | H32: U16 | I32: SI | J32: 2 | K32: 999.99 | L32: 206.87 | M32: 163.85 | N32: 999.99 | O32: 999.99 | P32: 999.99 | Q32: 999.99 | R32: 999.99 | S32: 999.99 | T32: 999.99 | U32: 999.99 | V32: 999.99 | W32: 999.99 | X32: 146.99 | Y32: 999.99 | Z32: 999.99 | AA32: 159.4 | AB32: 999.99 | AC32: 168.03 | AD32: 169.4
A33: 2010-11-06 | B33: 233465100 | C33: MATEO | D33: COSTA BERNALES | E33: M | F33: CVN | G33: AS | H33: U16 | I33: SI | J33: 2 | K33: 999.99 | L33: 999.99 | M33: 179.32 | N33: 999.99 | O33: 999.99 | P33: 999.99 | Q33: 999.99 | R33: 999.99 | S33: 999.99 | T33: 999.99 | U33: 999.99 | V33: 999.99 | W33: 999.99 | X33: 999.99 | Y33: 999.99 | Z33: 999.99 | AA33: 999.99 | AB33: 999.99 | AC33: 208.63 | AD33: 209.29
A34: 2010-11-06 | B34: 233465259 | C34: LOURDES | D34: COSTA BERNALES | E34: F | F34: CVN | G34: AS | H34: U16 | I34: SI | J34: 2 | K34: 999.99 | L34: 999.99 | M34: 147.94 | N34: 999.99 | O34: 999.99 | P34: 999.99 | Q34: 999.99 | R34: 999.99 | S34: 999.99 | T34: 999.99 | U34: 999.99 | V34: 999.99 | W34: 999.99 | X34: 223.39 | Y34: 999.99 | Z34: 999.99 | AA34: 999.99 | AB34: 999.99 | AC34: 999.99 | AD34: 216.78
A35: 2010-06-09 | B35: 233466352 | C35: AMY | D35: CASTILLO ALVAREZ | E35: F | F35: UC | G35: AS | H35: U16 | I35: SI | J35: 2 | K35: 999.99 | L35: 273.25 | M35: 229.75 | N35: 999.99 | O35: 999.99 | P35: 999.99 | Q35: 999.99 | R35: 999.99 | S35: 999.99 | T35: 999.99 | U35: 999.99 | V35: 999.99 | W35: 999.99 | X35: 238.58 | Y35: 999.99 | Z35: 999.99 | AA35: 283.46 | AB35: 999.99 | AC35: 359.77 | AD35: 370.12
A36: 2010-11-06 | B36: 233480916 | C36: JUAN | D36: GARDILCIC SANTA CRUZ | E36: M | F36: CVN | G36: AS | H36: U16 | I36: SI | J36: 2 | K36: 999.99 | L36: 999.99 | M36: 999.99 | N36: 999.99 | O36: 999.99 | P36: 999.99 | Q36: 999.99 | R36: 999.99 | S36: 999.99 | T36: 999.99 | U36: 999.99 | V36: 999.99 | W36: 999.99 | X36: 999.99 | Y36: 999.99 | Z36: 999.99 | AA36: 999.99 | AB36: 999.99 | AC36: 999.99 | AD36: 999.99
A37: 2010-06-14 | B37: 233491136 | C37: DANIEL IGNACIO | D37: GONZÁLEZ LOPEZ | E37: M | F37: CEC | G37: AS | H37: U16 | I37: SI | J37: 2 | K37: 123.63 | L37: 999.99 | M37: 999.99 | N37: 999.99 | O37: 999.99 | P37: 999.99 | Q37: 177.26 | R37: 999.99 | S37: 999.99 | T37: 999.99 | U37: 999.99 | V37: 999.99 | W37: 999.99 | X37: 999.99 | Y37: 999.99 | Z37: 999.99 | AA37: 999.99 | AB37: 223.62 | AC37: 999.99 | AD37: 999.99
A38: 2010-06-22 | B38: 233557250 | C38: TOMAS | D38: OPAZO DIAZ | E38: M | F38: CLP | G38: AS | H38: U16 | I38: SI | J38: 2 | K38: 999.99 | L38: 999.99 | M38: 999.99 | N38: 999.99 | O38: 999.99 | P38: 999.99 | Q38: 999.99 | R38: 999.99 | S38: 999.99 | T38: 999.99 | U38: 999.99 | V38: 999.99 | W38: 999.99 | X38: 999.99 | Y38: 999.99 | Z38: 999.99 | AA38: 999.99 | AB38: 999.99 | AC38: 999.99 | AD38: 999.99
A39: 2010-06-21 | B39: 233561312 | C39: MATEO | D39: CURKOVIC FRANCO | E39: M | F39: UC | G39: AS | H39: U16 | I39: SI | J39: 2 | K39: 999.99 | L39: 58.34 | M39: 78.42 | N39: 999.99 | O39: 999.99 | P39: 999.99 | Q39: 999.99 | R39: 999.99 | S39: 999.99 | T39: 999.99 | U39: 999.99 | V39: 999.99 | W39: 999.99 | X39: 107.55 | Y39: 999.99 | Z39: 999.99 | AA39: 999.99 | AB39: 999.99 | AC39: 91.91 | AD39: 98.88
A40: 2010-07-06 | B40: 233659525 | C40: JOAQUIN | D40: BARRIENTOS ENGLER | E40: M | F40: CAO | G40: AS | H40: U16 | I40: SI | J40: 2 | K40: 211.04 | L40: 999.99 | M40: 999.99 | N40: 229.16 | O40: 999.99 | P40: 999.99 | Q40: 999.99 | R40: 213.25 | S40: 999.99 | T40: 999.99 | U40: 999.99 | V40: 999.99 | W40: 999.99 | X40: 999.99 | Y40: 999.99 | Z40: 999.99 | AA40: 999.99 | AB40: 243.86 | AC40: 999.99 | AD40: 999.99
A41: 2010-05-07 | B41: 233662801 | C41: SOPHIE | D41: HAMEAU GAETE | E41: F | F41: CLP | G41: AS | H41: U16 | I41: SI | J41: 2 | K41: 999.99 | L41: 237.91 | M41: 999.99 | N41: 999.99 | O41: 999.99 | P41: 999.99 | Q41: 999.99 | R41: 999.99 | S41: 999.99 | T41: 999.99 | U41: 999.99 | V41: 999.99 | W41: 999.99 | X41: 999.99 | Y41: 999.99 | Z41: 999.99 | AA41: 999.99 | AB41: 999.99 | AC41: 318.95 | AD41: 999.99
A42: 2010-06-11 | B42: 233711799 | C42: VICENTE | D42: JUNEMANN ARANCIBIA | E42: M | F42: CAN | G42: AS | H42: U16 | I42: SI | J42: 2 | K42: 999.99 | L42: 999.99 | M42: 999.99 | N42: 999.99 | O42: 999.99 | P42: 999.99 | Q42: 999.99 | R42: 999.99 | S42: 999.99 | T42: 999.99 | U42: 999.99 | V42: 999.99 | W42: 999.99 | X42: 999.99 | Y42: 999.99 | Z42: 999.99 | AA42: 999.99 | AB42: 999.99 | AC42: 999.99 | AD42: 999.99
A43: 2010-08-25 | B43: 234064819 | C43: MARINA | D43: LÓPEZ CHAMORRO | E43: F | F43: CEC | G43: AS | H43: U16 | I43: SI | J43: 2 | K43: 999.99 | L43: 999.99 | M43: 999.99 | N43: 999.99 | O43: 999.99 | P43: 236.57 | Q43: 270.23 | R43: 999.99 | S43: 999.99 | T43: 999.99 | U43: 223.24 | V43: 999.99 | W43: 999.99 | X43: 288.08 | Y43: 999.99 | Z43: 999.99 | AA43: 999.99 | AB43: 349.80 | AC43: 332.41 | AD43: 358.93
A44: 2010-09-08 | B44: 234183079 | C44: COLOMBA | D44: VASQUEZ HOTT | E44: F | F44: CAO | G44: AS | H44: U16 | I44: SI | J44: 2 | K44: 999.99 | L44: 999.99 | M44: 999.99 | N44: 999.99 | O44: 999.99 | P44: 999.99 | Q44: 999.99 | R44: 999.99 | S44: 999.99 | T44: 999.99 | U44: 999.99 | V44: 999.99 | W44: 999.99 | X44: 999.99 | Y44: 999.99 | Z44: 999.99 | AA44: 999.99 | AB44: 999.99 | AC44: 999.99 | AD44: 999.99
A45: 2010-08-24 | B45: 234187511 | C45: RICARDO | D45: VICUÑA CURTZE | E45: M | F45: CLP | G45: AS | H45: U16 | I45: SI | J45: 2 | K45: 999.99 | L45: 188.72 | M45: 999.99 | N45: 999.99 | O45: 999.99 | P45: 999.99 | Q45: 999.99 | R45: 999.99 | S45: 999.99 | T45: 999.99 | U45: 999.99 | V45: 183.77 | W45: 999.99 | X45: 205.31 | Y45: 999.99 | Z45: 999.99 | AA45: 183.07 | AB45: 999.99 | AC45: 999.99 | AD45: 999.99
A46: 2010-08-24 | B46: 234187651 | C46: FRANCISCO | D46: VICUÑA CURTZE | E46: M | F46: CLP | G46: AS | H46: U16 | I46: SI | J46: 2 | K46: 999.99 | L46: 150.36 | M46: 133.18 | N46: 999.99 | O46: 999.99 | P46: 999.99 | Q46: 999.99 | R46: 999.99 | S46: 999.99 | T46: 999.99 | U46: 999.99 | V46: 204.19 | W46: 999.99 | X46: 206.39 | Y46: 999.99 | Z46: 999.99 | AA46: 133.12 | AB46: 999.99 | AC46: 207.63 | AD46: 214.21
A47: 2010-09-06 | B47: 234197185 | C47: UVY | D47: ACERBONI AHUMADA | E47: F | F47: UC | G47: AS | H47: U16 | I47: SI | J47: 2 | K47: 999.99 | L47: 74.21 | M47: 67.5 | N47: 999.99 | O47: 999.99 | P47: 999.99 | Q47: 999.99 | R47: 999.99 | S47: 999.99 | T47: 999.99 | U47: 999.99 | V47: 999.99 | W47: 999.99 | X47: 999.99 | Y47: 999.99 | Z47: 999.99 | AA47: 999.99 | AB47: 999.99 | AC47: 999.99 | AD47: 999.99
A48: 2010-09-16 | B48: 234271490 | C48: MATILDE SOFIA | D48: GARDA TIMMERMANN | E48: F | F48: CEC | G48: AS | H48: U16 | I48: SI | J48: 2 | K48: 97.95 | L48: 999.99 | M48: 999.99 | N48: 999.99 | O48: 999.99 | P48: 202.93 | Q48: 174.94 | R48: 999.99 | S48: 999.99 | T48: 999.99 | U48: 153.33 | V48: 999.99 | W48: 999.99 | X48: 999.99 | Y48: 999.99 | Z48: 999.99 | AA48: 252.2 | AB48: 181.16 | AC48: 193.11 | AD48: 999.99
A49: 2010-09-22 | B49: 23429511K | C49: MAXIMILIANO | D49: DIAZ FIGUEROA | E49: M | F49: CAR | G49: AS | H49: U16 | I49: SI | J49: 2 | K49: 999.99 | L49: 999.99 | M49: 999.99 | N49: 999.99 | O49: 999.99 | P49: 999.99 | Q49: 182.6 | R49: 999.99 | S49: 999.99 | T49: 999.99 | U49: 999.99 | V49: 999.99 | W49: 999.99 | X49: 999.99 | Y49: 999.99 | Z49: 999.99 | AA49: 999.99 | AB49: 174.57 | AC49: 999.99 | AD49: 999.99
A50: 2010-09-16 | B50: 234304798 | C50: EMILIA | D50: ALVAREZ CHACON | E50: F | F50: CLP | G50: AS | H50: U16 | I50: SI | J50: 2 | K50: 999.99 | L50: 280.12 | M50: 229.3 | N50: 999.99 | O50: 999.99 | P50: 999.99 | Q50: 999.99 | R50: 999.99 | S50: 999.99 | T50: 999.99 | U50: 999.99 | V50: 999.99 | W50: 999.99 | X50: 384.07 | Y50: 999.99 | Z50: 999.99 | AA50: 999.99 | AB50: 999.99 | AC50: 999.99 | AD50: 999.99
A51: 2010-09-22 | B51: 234304860 | C51: PATRICK | D51: RABY IBAÑEZ | E51: M | F51: CLP | G51: AS | H51: U16 | I51: SI | J51: 2 | K51: 999.99 | L51: 999.99 | M51: 126.81 | N51: 999.99 | O51: 999.99 | P51: 999.99 | Q51: 999.99 | R51: 999.99 | S51: 999.99 | T51: 999.99 | U51: 999.99 | V51: 149.73 | W51: 999.99 | X51: 153.06 | Y51: 999.99 | Z51: 999.99 | AA51: 122.2 | AB51: 999.99 | AC51: 143.54 | AD51: 174.37
A52: 2010-10-05 | B52: 234452452 | C52: MARTINA NATALIA | D52: HERRERA NORAMBUENA | E52: F | F52: CORR | G52: AS | H52: U16 | I52: SI | J52: 2 | K52: 400.6 | L52: 999.99 | M52: 999.99 | N52: 999.99 | O52: 999.99 | P52: 999.99 | Q52: 442.04 | R52: 999.99 | S52: 999.99 | T52: 999.99 | U52: 999.99 | V52: 999.99 | W52: 999.99 | X52: 999.99 | Y52: 999.99 | Z52: 999.99 | AA52: 999.99 | AB52: 450.18 | AC52: 999.99 | AD52: 999.99
A53: 2011-10-18 | B53: 234571850 | C53: MATÍAS | D53: ANTIHUALA ARAYA | E53: M | F53: CLP | G53: AS | H53: U16 | I53: SI | J53: 1 | K53: 999.99 | L53: 999.99 | M53: 999.99 | N53: 999.99 | O53: 999.99 | P53: 999.99 | Q53: 999.99 | R53: 999.99 | S53: 999.99 | T53: 999.99 | U53: 999.99 | V53: 999.99 | W53: 999.99 | X53: 195.89 | Y53: 999.99 | Z53: 999.99 | AA53: 999.99 | AB53: 999.99 | AC53: 999.99 | AD53: 999.99
A54: 2010-10-29 | B54: 234657704 | C54: EMILIO | D54: CADIZ MARIN | E54: M | F54: UC | G54: AS | H54: U16 | I54: SI | J54: 2 | K54: 999.99 | L54: 999.99 | M54: 112.8 | N54: 999.99 | O54: 999.99 | P54: 999.99 | Q54: 999.99 | R54: 999.99 | S54: 999.99 | T54: 999.99 | U54: 999.99 | V54: 999.99 | W54: 999.99 | X54: 215.55 | Y54: 999.99 | Z54: 999.99 | AA54: 999.99 | AB54: 999.99 | AC54: 198.4 | AD54: 185.68
A55: 2010-10-28 | B55: 234670417 | C55: LUNA | D55: ANGUITA AVILES | E55: F | F55: CAO | G55: AS | H55: U16 | I55: SI | J55: 2 | K55: 999.99 | L55: 999.99 | M55: 999.99 | N55: 269.13 | O55: 266.05 | P55: 999.99 | Q55: 294.54 | R55: 999.99 | S55: 999.99 | T55: 257.3 | U55: 999.99 | V55: 999.99 | W55: 999.99 | X55: 999.99 | Y55: 999.99 | Z55: 999.99 | AA55: 999.99 | AB55: 322.34 | AC55: 999.99 | AD55: 999.99
A56: 2010-11-05 | B56: 234718827 | C56: MATEO | D56: GROB CONCHA | E56: M | F56: CAO | G56: AS | H56: U16 | I56: SI | J56: 2 | K56: 113.62 | L56: 999.99 | M56: 999.99 | N56: 98.48 | O56: 999.99 | P56: 999.99 | Q56: 142.64 | R56: 127.09 | S56: 999.99 | T56: 999.99 | U56: 999.99 | V56: 999.99 | W56: 999.99 | X56: 999.99 | Y56: 999.99 | Z56: 999.99 | AA56: 999.99 | AB56: 138.05 | AC56: 114.11 | AD56: 999.99
A57: 2010-11-19 | B57: 234863371 | C57: PEDRO | D57: SANTIBAÑEZ PUFFE | E57: M | F57: CLP | G57: AS | H57: U16 | I57: SI | J57: 2 | K57: 999.99 | L57: 999.99 | M57: 999.99 | N57: 999.99 | O57: 999.99 | P57: 999.99 | Q57: 999.99 | R57: 999.99 | S57: 999.99 | T57: 999.99 | U57: 999.99 | V57: 999.99 | W57: 999.99 | X57: 999.99 | Y57: 999.99 | Z57: 999.99 | AA57: 216.2 | AB57: 999.99 | AC57: 228.58 | AD57: 999.99
A58: 2010-11-24 | B58: 234873016 | C58: ANTONIA | D58: MISLEJ LÓPEZ | E58: F | F58: CVN | G58: AS | H58: U16 | I58: SI | J58: 2 | K58: 999.99 | L58: 999.99 | M58: 999.99 | N58: 999.99 | O58: 999.99 | P58: 999.99 | Q58: 999.99 | R58: 999.99 | S58: 999.99 | T58: 999.99 | U58: 999.99 | V58: 999.99 | W58: 999.99 | X58: 999.99 | Y58: 999.99 | Z58: 999.99 | AA58: 999.99 | AB58: 999.99 | AC58: 999.99 | AD58: 999.99
A59: 2010-12-15 | B59: 235046873 | C59: CLEMENTE | D59: MURUA INFANTE | E59: M | F59: UC | G59: AS | H59: U16 | I59: SI | J59: 2 | K59: 999.99 | L59: 190.1 | M59: 208.61 | N59: 999.99 | O59: 999.99 | P59: 999.99 | Q59: 999.99 | R59: 999.99 | S59: 999.99 | T59: 999.99 | U59: 999.99 | V59: 999.99 | W59: 999.99 | X59: 325.71 | Y59: 999.99 | Z59: 999.99 | AA59: 237.13 | AB59: 999.99 | AC59: 999.99 | AD59: 999.99
A60: 2010-12-27 | B60: 235123975 | C60: FLORENCIA | D60: VIDAL DIAZ | E60: F | F60: CVN | G60: AS | H60: U16 | I60: SI | J60: 2 | K60: 999.99 | L60: 262.81 | M60: 182.13 | N60: 999.99 | O60: 999.99 | P60: 999.99 | Q60: 999.99 | R60: 999.99 | S60: 999.99 | T60: 999.99 | U60: 999.99 | V60: 999.99 | W60: 999.99 | X60: 232.32 | Y60: 999.99 | Z60: 999.99 | AA60: 999.99 | AB60: 999.99 | AC60: 240.38 | AD60: 248.69
A61: 2010-12-30 | B61: 235145197 | C61: TOMAS | D61: GUZMAN LECANNELIER | E61: M | F61: CEC | G61: AS | H61: U16 | I61: SI | J61: 2 | K61: 999.99 | L61: 999.99 | M61: 999.99 | N61: 199.43 | O61: 999.99 | P61: 999.99 | Q61: 156.06 | R61: 197.85 | S61: 999.99 | T61: 999.99 | U61: 999.99 | V61: 999.99 | W61: 999.99 | X61: 999.99 | Y61: 999.99 | Z61: 999.99 | AA61: 152.76 | AB61: 189.39 | AC61: 159.5 | AD61: 163.31
A62: 2011-01-03 | B62: 235182785 | C62: FRANCISCO JAVIER | D62: PEREZ HADDAD | E62: M | F62: CAN | G62: AS | H62: U16 | I62: SI | J62: 1 | K62: 999.99 | L62: 999.99 | M62: 999.99 | N62: 999.99 | O62: 999.99 | P62: 999.99 | Q62: 999.99 | R62: 999.99 | S62: 999.99 | T62: 999.99 | U62: 999.99 | V62: 999.99 | W62: 999.99 | X62: 999.99 | Y62: 999.99 | Z62: 999.99 | AA62: 999.99 | AB62: 999.99 | AC62: 999.99 | AD62: 999.99
A63: 2010-12-28 | B63: 235205378 | C63: JOAQUÍN | D63: MARCHANT OLGUÍN | E63: M | F63: ARS | G63: AS | H63: U16 | I63: SI | J63: 2 | K63: 999.99 | L63: 999.99 | M63: 999.99 | N63: 999.99 | O63: 999.99 | P63: 999.99 | Q63: 999.99 | R63: 999.99 | S63: 999.99 | T63: 999.99 | U63: 999.99 | V63: 999.99 | W63: 999.99 | X63: 999.99 | Y63: 999.99 | Z63: 999.99 | AA63: 999.99 | AB63: 999.99 | AC63: 999.99 | AD63: 999.99
A64: 2011-01-24 | B64: 235429683 | C64: BAUTISTA | D64: LAMA KAISER | E64: M | F64: CLP | G64: AS | H64: U16 | I64: SI | J64: 1 | K64: 999.99 | L64: 73.75 | M64: 79.2 | N64: 999.99 | O64: 999.99 | P64: 999.99 | Q64: 999.99 | R64: 999.99 | S64: 999.99 | T64: 999.99 | U64: 999.99 | V64: 999.99 | W64: 999.99 | X64: 77.38 | Y64: 999.99 | Z64: 999.99 | AA64: 999.99 | AB64: 999.99 | AC64: 105.63 | AD64: 110.19
A65: 2011-02-06 | B65: 235529300 | C65: ELBA | D65: HUBER SOLIS | E65: F | F65: LV | G65: AS | H65: U16 | I65: SI | J65: 1 | K65: 114.3 | L65: 999.99 | M65: 999.99 | N65: 999.99 | O65: 999.99 | P65: 999.99 | Q65: 218.84 | R65: 999.99 | S65: 999.99 | T65: 999.99 | U65: 207.93 | V65: 999.99 | W65: 999.99 | X65: 999.99 | Y65: 999.99 | Z65: 999.99 | AA65: 999.99 | AB65: 266.06 | AC65: 999.99 | AD65: 999.99
A66: 2011-02-01 | B66: 235609819 | C66: JEAN PAUL | D66: BOUDON URRA | E66: M | F66: CSC | G66: AS | H66: U16 | I66: SI | J66: 1 | K66: 608.03 | L66: 999.99 | M66: 999.99 | N66: 999.99 | O66: 999.99 | P66: 999.99 | Q66: 578.59 | R66: 999.99 | S66: 999.99 | T66: 999.99 | U66: 999.99 | V66: 999.99 | W66: 999.99 | X66: 999.99 | Y66: 999.99 | Z66: 999.99 | AA66: 999.99 | AB66: 999.99 | AC66: 999.99 | AD66: 999.99
A67: 2011-02-21 | B67: 235706288 | C67: FRIDA | D67: SILVA JENSEN | E67: F | F67: CLP | G67: AS | H67: U16 | I67: SI | J67: 1 | K67: 999.99 | L67: 999.99 | M67: 176 | N67: 999.99 | O67: 999.99 | P67: 999.99 | Q67: 999.99 | R67: 999.99 | S67: 999.99 | T67: 999.99 | U67: 999.99 | V67: 999.99 | W67: 999.99 | X67: 220.14 | Y67: 999.99 | Z67: 999.99 | AA67: 239.97 | AB67: 999.99 | AC67: 328.41 | AD67: 999.99
A68: 2011-03-12 | B68: 235826844 | C68: CLEMENTE ANDRÉS | D68: BUSTOS ALVARADO | E68: M | F68: CORR | G68: AS | H68: U16 | I68: SI | J68: 1 | K68: 999.99 | L68: 999.99 | M68: 999.99 | N68: 999.99 | O68: 999.99 | P68: 999.99 | Q68: 999.99 | R68: 999.99 | S68: 999.99 | T68: 999.99 | U68: 999.99 | V68: 999.99 | W68: 999.99 | X68: 999.99 | Y68: 999.99 | Z68: 999.99 | AA68: 999.99 | AB68: 253.88 | AC68: 999.99 | AD68: 999.99
A69: 2011-03-14 | B69: 23585550K | C69: BORJA | D69: LESSER DILL | E69: M | F69: CLP | G69: AS | H69: U16 | I69: SI | J69: 1 | K69: 999.99 | L69: 128.9 | M69: 115.84 | N69: 999.99 | O69: 999.99 | P69: 999.99 | Q69: 999.99 | R69: 999.99 | S69: 999.99 | T69: 999.99 | U69: 999.99 | V69: 999.99 | W69: 999.99 | X69: 187.81 | Y69: 999.99 | Z69: 999.99 | AA69: 999.99 | AB69: 999.99 | AC69: 204.39 | AD69: 201.67
A70: 2011-01-17 | B70: 235889730 | C70: ALBERTO | D70: PUENTE YANKOVIC | E70: M | F70: CAN | G70: AS | H70: U16 | I70: SI | J70: 1 | K70: 999.99 | L70: 999.99 | M70: 66.37 | N70: 999.99 | O70: 999.99 | P70: 999.99 | Q70: 999.99 | R70: 999.99 | S70: 999.99 | T70: 999.99 | U70: 999.99 | V70: 72.97 | W70: 999.99 | X70: 84.11 | Y70: 999.99 | Z70: 999.99 | AA70: 71.09 | AB70: 999.99 | AC70: 94.4 | AD70: 104.29
A71: 2011-08-11 | B71: 235923602 | C71: MAXIMILIAN | D71: EPP GOYENECHEA | E71: M | F71: UC | G71: AS | H71: U16 | I71: SI | J71: 1 | K71: 999.99 | L71: 999.99 | M71: 999.99 | N71: 999.99 | O71: 999.99 | P71: 999.99 | Q71: 999.99 | R71: 999.99 | S71: 999.99 | T71: 999.99 | U71: 999.99 | V71: 999.99 | W71: 999.99 | X71: 999.99 | Y71: 999.99 | Z71: 999.99 | AA71: 999.99 | AB71: 999.99 | AC71: 999.99 | AD71: 999.99
A72: 2011-03-20 | B72: 235986701 | C72: BLANCA | D72: IBAÑEZ AMBIA | E72: F | F72: CLP | G72: AS | H72: U16 | I72: SI | J72: 1 | K72: 999.99 | L72: 999.99 | M72: 213.3 | N72: 999.99 | O72: 999.99 | P72: 999.99 | Q72: 999.99 | R72: 999.99 | S72: 999.99 | T72: 999.99 | U72: 999.99 | V72: 464.73 | W72: 999.99 | X72: 999.99 | Y72: 999.99 | Z72: 999.99 | AA72: 999.99 | AB72: 999.99 | AC72: 999.99 | AD72: 999.99
A73: 2011-03-21 | B73: 235998793 | C73: IGNACIA | D73: FUENTES LABRA | E73: F | F73: ARS | G73: AS | H73: U16 | I73: SI | J73: 1 | K73: 999.99 | L73: 101.15 | M73: 79.47 | N73: 999.99 | O73: 999.99 | P73: 999.99 | Q73: 999.99 | R73: 999.99 | S73: 999.99 | T73: 999.99 | U73: 999.99 | V73: 999.99 | W73: 999.99 | X73: 101.66 | Y73: 999.99 | Z73: 999.99 | AA73: 110.94 | AB73: 999.99 | AC73: 83.86 | AD73: 122.73
A74: 2011-03-23 | B74: 236058379 | C74: SANTIAGO | D74: CASTRO OTERO | E74: M | F74: UC | G74: AS | H74: U16 | I74: SI | J74: 1 | K74: 999.99 | L74: 999.99 | M74: 999.99 | N74: 999.99 | O74: 999.99 | P74: 999.99 | Q74: 999.99 | R74: 999.99 | S74: 999.99 | T74: 999.99 | U74: 999.99 | V74: 999.99 | W74: 999.99 | X74: 999.99 | Y74: 999.99 | Z74: 999.99 | AA74: 999.99 | AB74: 999.99 | AC74: 999.99 | AD74: 999.99
A75: 2011-03-30 | B75: 236060357 | C75: TOMAS | D75: GONZALEZ VALDES | E75: M | F75: CAN | G75: AS | H75: U16 | I75: SI | J75: 1 | K75: 999.99 | L75: 999.99 | M75: 153.06 | N75: 999.99 | O75: 999.99 | P75: 999.99 | Q75: 999.99 | R75: 999.99 | S75: 999.99 | T75: 999.99 | U75: 999.99 | V75: 999.99 | W75: 999.99 | X75: 999.99 | Y75: 999.99 | Z75: 999.99 | AA75: 999.99 | AB75: 999.99 | AC75: 999.99 | AD75: 999.99
A76: 2011-04-09 | B76: 236151077 | C76: FEDERICO | D76: AYALA PEREZ | E76: M | F76: CAN | G76: AS | H76: U16 | I76: SI | J76: 1 | K76: 999.99 | L76: 999.99 | M76: 158.26 | N76: 999.99 | O76: 999.99 | P76: 999.99 | Q76: 999.99 | R76: 999.99 | S76: 999.99 | T76: 999.99 | U76: 999.99 | V76: 999.99 | W76: 999.99 | X76: 308.2 | Y76: 999.99 | Z76: 999.99 | AA76: 999.99 | AB76: 999.99 | AC76: 999.99 | AD76: 999.99
A77: 2011-04-13 | B77: 236208508 | C77: DIEGO | D77: TAGLE ALLIENDE | E77: M | F77: CAO | G77: AS | H77: U16 | I77: SI | J77: 1 | K77: 999.99 | L77: 999.99 | M77: 999.99 | N77: 269.26 | O77: 999.99 | P77: 999.99 | Q77: 999.99 | R77: 999.99 | S77: 999.99 | T77: 999.99 | U77: 999.99 | V77: 999.99 | W77: 999.99 | X77: 999.99 | Y77: 999.99 | Z77: 999.99 | AA77: 999.99 | AB77: 999.99 | AC77: 999.99 | AD77: 999.99
A78: 2011-04-13 | B78: 236208613 | C78: ANA | D78: TAGLE ALLIENDE | E78: F | F78: CAO | G78: AS | H78: U16 | I78: SI | J78: 1 | K78: 999.99 | L78: 999.99 | M78: 999.99 | N78: 236.89 | O78: 999.99 | P78: 999.99 | Q78: 999.99 | R78: 999.99 | S78: 999.99 | T78: 999.99 | U78: 999.99 | V78: 999.99 | W78: 999.99 | X78: 999.99 | Y78: 999.99 | Z78: 999.99 | AA78: 999.99 | AB78: 999.99 | AC78: 999.99 | AD78: 999.99
A79: 2011-01-05 | B79: 236348741 | C79: MAXIMILIANO | D79: MOLINA QUINTANA | E79: M | F79: CVN | G79: AS | H79: U16 | I79: SI | J79: 1 | K79: 999.99 | L79: 999.99 | M79: 999.99 | N79: 999.99 | O79: 999.99 | P79: 999.99 | Q79: 999.99 | R79: 999.99 | S79: 999.99 | T79: 999.99 | U79: 999.99 | V79: 999.99 | W79: 999.99 | X79: 999.99 | Y79: 999.99 | Z79: 999.99 | AA79: 999.99 | AB79: 999.99 | AC79: 999.99 | AD79: 999.99
A80: 2011-05-16 | B80: 236440893 | C80: CLARA | D80: DONOSO INFANTE | E80: F | F80: CAO | G80: AS | H80: U16 | I80: SI | J80: 1 | K80: 109.99 | L80: 999.99 | M80: 999.99 | N80: 123.19 | O80: 128.52 | P80: 999.99 | Q80: 163.57 | R80: 999.99 | S80: 999.99 | T80: 999.99 | U80: 999.99 | V80: 999.99 | W80: 999.99 | X80: 999.99 | Y80: 999.99 | Z80: 999.99 | AA80: 999.99 | AB80: 174.77 | AC80: 155.49 | AD80: 185.83
A81: 2011-05-14 | B81: 236442764 | C81: DIEGO | D81: MONTAGNON FERNÁNDEZ | E81: M | F81: ARS | G81: AS | H81: U16 | I81: SI | J81: 1 | K81: 999.99 | L81: 999.99 | M81: 999.99 | N81: 999.99 | O81: 999.99 | P81: 999.99 | Q81: 999.99 | R81: 999.99 | S81: 999.99 | T81: 999.99 | U81: 999.99 | V81: 999.99 | W81: 999.99 | X81: 999.99 | Y81: 999.99 | Z81: 999.99 | AA81: 999.99 | AB81: 999.99 | AC81: 999.99 | AD81: 999.99
A82: 2011-05-16 | B82: 236449246 | C82: MARTIN | D82: ROMENY WAEGER | E82: M | F82: CAO | G82: AS | H82: U16 | I82: SI | J82: 1 | K82: 174.31 | L82: 999.99 | M82: 999.99 | N82: 177.05 | O82: 999.99 | P82: 999.99 | Q82: 189.31 | R82: 214.3 | S82: 999.99 | T82: 999.99 | U82: 999.99 | V82: 999.99 | W82: 999.99 | X82: 999.99 | Y82: 999.99 | Z82: 999.99 | AA82: 999.99 | AB82: 259.72 | AC82: 999.99 | AD82: 999.99
A83: 2011-05-18 | B83: 236489973 | C83: GRACIELA | D83: BARRIENTOS TRUJILLOS | E83: F | F83: PAT | G83: AS | H83: U16 | I83: SI | J83: 1 | K83: 999.99 | L83: 999.99 | M83: 999.99 | N83: 999.99 | O83: 999.99 | P83: 999.99 | Q83: 176.7 | R83: 999.99 | S83: 999.99 | T83: 999.99 | U83: 999.99 | V83: 999.99 | W83: 999.99 | X83: 999.99 | Y83: 999.99 | Z83: 999.99 | AA83: 999.99 | AB83: 233.96 | AC83: 999.99 | AD83: 999.99
A84: 2011-06-15 | B84: 236684938 | C84: GASPAR | D84: CHAVEZ BAHAMONDES | E84: M | F84: ARS | G84: AS | H84: U16 | I84: SI | J84: 1 | K84: 999.99 | L84: 999.99 | M84: 302.55 | N84: 999.99 | O84: 999.99 | P84: 999.99 | Q84: 999.99 | R84: 999.99 | S84: 999.99 | T84: 999.99 | U84: 999.99 | V84: 999.99 | W84: 999.99 | X84: 999.99 | Y84: 999.99 | Z84: 999.99 | AA84: 999.99 | AB84: 999.99 | AC84: 322.85 | AD84: 341.34
A85: 2011-06-13 | B85: 236692175 | C85: LEONARDO | D85: CARVALLO TARICCO | E85: M | F85: POR | G85: AS | H85: U16 | I85: SI | J85: 1 | K85: 999.99 | L85: 474.45 | M85: 999.99 | N85: 999.99 | O85: 999.99 | P85: 999.99 | Q85: 999.99 | R85: 999.99 | S85: 999.99 | T85: 999.99 | U85: 999.99 | V85: 999.99 | W85: 999.99 | X85: 999.99 | Y85: 999.99 | Z85: 999.99 | AA85: 999.99 | AB85: 999.99 | AC85: 999.99 | AD85: 999.99
A86: 2011-06-18 | B86: 236710122 | C86: MARTINA | D86: VERGARA SÁNCHEZ | E86: F | F86: POR | G86: AS | H86: U16 | I86: SI | J86: 1 | K86: 999.99 | L86: 999.99 | M86: 999.99 | N86: 999.99 | O86: 999.99 | P86: 999.99 | Q86: 999.99 | R86: 999.99 | S86: 999.99 | T86: 999.99 | U86: 999.99 | V86: 999.99 | W86: 999.99 | X86: 999.99 | Y86: 999.99 | Z86: 999.99 | AA86: 999.99 | AB86: 999.99 | AC86: 999.99 | AD86: 999.99
A87: 2011-06-22 | B87: 236769127 | C87: SOFIA | D87: ASTORGA LAGOMARSINO | E87: F | F87: UC | G87: AS | H87: U16 | I87: SI | J87: 1 | K87: 999.99 | L87: 999.99 | M87: 236.06 | N87: 999.99 | O87: 999.99 | P87: 999.99 | Q87: 999.99 | R87: 999.99 | S87: 999.99 | T87: 999.99 | U87: 999.99 | V87: 999.99 | W87: 999.99 | X87: 999.99 | Y87: 999.99 | Z87: 999.99 | AA87: 999.99 | AB87: 999.99 | AC87: 999.99 | AD87: 999.99
A88: 2011-06-22 | B88: 236769607 | C88: MARTIN | D88: ASTORGA LAGOMARSINO | E88: M | F88: UC | G88: AS | H88: U16 | I88: SI | J88: 1 | K88: 999.99 | L88: 999.99 | M88: 242.11 | N88: 999.99 | O88: 999.99 | P88: 999.99 | Q88: 999.99 | R88: 999.99 | S88: 999.99 | T88: 999.99 | U88: 999.99 | V88: 999.99 | W88: 999.99 | X88: 323.42 | Y88: 999.99 | Z88: 999.99 | AA88: 999.99 | AB88: 999.99 | AC88: 999.99 | AD88: 999.99
A89: 2011-06-28 | B89: 23679590K | C89: MAGDALENA PASCALE | D89: NEUMANN MENDEZ | E89: F | F89: CEC | G89: AS | H89: U16 | I89: SI | J89: 1 | K89: 190.08 | L89: 999.99 | M89: 999.99 | N89: 999.99 | O89: 999.99 | P89: 250.44 | Q89: 231.69 | R89: 999.99 | S89: 999.99 | T89: 999.99 | U89: 219.12 | V89: 999.99 | W89: 999.99 | X89: 999.99 | Y89: 999.99 | Z89: 999.99 | AA89: 999.99 | AB89: 296.04 | AC89: 999.99 | AD89: 999.99 | AE89: INJURY (09.09.25)
A90: 2011-06-07 | B90: 236797112 | C90: LOURDES | D90: GARCÍA | E90: F | F90: CVN | G90: AS | H90: U16 | I90: SI | J90: 1 | K90: 999.99 | L90: 999.99 | M90: 208.18 | N90: 999.99 | O90: 999.99 | P90: 999.99 | Q90: 999.99 | R90: 999.99 | S90: 999.99 | T90: 999.99 | U90: 999.99 | V90: 999.99 | W90: 999.99 | X90: 999.99 | Y90: 999.99 | Z90: 999.99 | AA90: 332.76 | AB90: 999.99 | AC90: 292.48 | AD90: 302.26
A91: 2011-07-21 | B91: 236983242 | C91: VICENTE | D91: GALDAMES RINCÓN | E91: M | F91: CVN | G91: AS | H91: U16 | I91: SI | J91: 1 | K91: 999.99 | L91: 999.99 | M91: 999.99 | N91: 999.99 | O91: 999.99 | P91: 999.99 | Q91: 999.99 | R91: 999.99 | S91: 999.99 | T91: 999.99 | U91: 999.99 | V91: 999.99 | W91: 999.99 | X91: 999.99 | Y91: 999.99 | Z91: 999.99 | AA91: 413.84 | AB91: 999.99 | AC91: 999.99 | AD91: 999.99
A92: 2011-07-22 | B92: 237037456 | C92: PEDRO | D92: CASTRO GONZALEZ | E92: M | F92: ARS | G92: AS | H92: U16 | I92: SI | J92: 1 | K92: 999.99 | L92: 999.99 | M92: 107.42 | N92: 999.99 | O92: 999.99 | P92: 999.99 | Q92: 999.99 | R92: 999.99 | S92: 999.99 | T92: 999.99 | U92: 999.99 | V92: 999.99 | W92: 999.99 | X92: 175.01 | Y92: 999.99 | Z92: 999.99 | AA92: 130.42 | AB92: 999.99 | AC92: 999.99 | AD92: 144.13
A93: 2011-07-29 | B93: 237068440 | C93: LIONEL | D93: ROBLES LOPEZ | E93: M | F93: CAO | G93: AS | H93: U16 | I93: SI | J93: 1 | K93: 999.99 | L93: 999.99 | M93: 999.99 | N93: 999.99 | O93: 999.99 | P93: 999.99 | Q93: 999.99 | R93: 380.62 | S93: 999.99 | T93: 999.99 | U93: 999.99 | V93: 999.99 | W93: 999.99 | X93: 999.99 | Y93: 999.99 | Z93: 999.99 | AA93: 999.99 | AB93: 999.99 | AC93: 999.99 | AD93: 999.99
A94: 2011-08-01 | B94: 237100441 | C94: ISMAEL | D94: GANDARA RODILLO | E94: M | F94: CAN | G94: AS | H94: U16 | I94: SI | J94: 1 | K94: 999.99 | L94: 182.88 | M94: 180.89 | N94: 999.99 | O94: 999.99 | P94: 999.99 | Q94: 999.99 | R94: 999.99 | S94: 999.99 | T94: 999.99 | U94: 999.99 | V94: 999.99 | W94: 999.99 | X94: 244.64 | Y94: 999.99 | Z94: 999.99 | AA94: 197.97 | AB94: 999.99 | AC94: 999.99 | AD94: 999.99
A95: 2011-08-07 | B95: 237109740 | C95: RAFAELA | D95: KNAPP MOYA | E95: F | F95: CAPA | G95: AS | H95: U16 | I95: SI | J95: 1 | K95: 999.99 | L95: 999.99 | M95: 999.99 | N95: 999.99 | O95: 999.99 | P95: 93.6 | Q95: 126.51 | R95: 999.99 | S95: 999.99 | T95: 999.99 | U95: 227.45 | V95: 999.99 | W95: 999.99 | X95: 999.99 | Y95: 999.99 | Z95: 999.99 | AA95: 87.2 | AB95: 999.99 | AC95: 128.72 | AD95: 118.45
A96: 2011-07-28 | B96: 237117174 | C96: RAFAELLA | D96: REYES SBARAGLINI | E96: F | F96: CEC | G96: AS | H96: U16 | I96: SI | J96: 1 | K96: 999.99 | L96: 999.99 | M96: 999.99 | N96: 999.99 | O96: 999.99 | P96: 999.99 | Q96: 999.99 | R96: 999.99 | S96: 999.99 | T96: 999.99 | U96: 999.99 | V96: 999.99 | W96: 999.99 | X96: 999.99 | Y96: 999.99 | Z96: 999.99 | AA96: 999.99 | AB96: 999.99 | AC96: 999.99 | AD96: 999.99
A97: 2011-08-09 | B97: 237159500 | C97: FRANCISCA | D97: JABAT CROQUEVIELLE | E97: F | F97: ARS | G97: AS | H97: U16 | I97: SI | J97: 1 | K97: 999.99 | L97: 999.99 | M97: 999.99 | N97: 999.99 | O97: 999.99 | P97: 999.99 | Q97: 999.99 | R97: 999.99 | S97: 999.99 | T97: 999.99 | U97: 999.99 | V97: 999.99 | W97: 999.99 | X97: 999.99 | Y97: 999.99 | Z97: 999.99 | AA97: 999.99 | AB97: 999.99 | AC97: 999.99 | AD97: 999.99
A98: 2011-08-12 | B98: 23730571K | C98: NICOLÁS ADOLFO | D98: TAPIA MARDONES | E98: M | F98: CSC | G98: AS | H98: U16 | I98: SI | J98: 1 | K98: 368.27 | L98: 999.99 | M98: 999.99 | N98: 999.99 | O98: 999.99 | P98: 999.99 | Q98: 347.24 | R98: 999.99 | S98: 999.99 | T98: 999.99 | U98: 999.99 | V98: 999.99 | W98: 999.99 | X98: 999.99 | Y98: 999.99 | Z98: 999.99 | AA98: 999.99 | AB98: 999.99 | AC98: 999.99 | AD98: 999.99
A99: 2011-09-07 | B99: 237392299 | C99: DIEGO | D99: RODRIGUEZ LAPOSTOL | E99: M | F99: CVN | G99: AS | H99: U16 | I99: SI | J99: 1 | K99: 999.99 | L99: 999.99 | M99: 999.99 | N99: 999.99 | O99: 999.99 | P99: 999.99 | Q99: 999.99 | R99: 999.99 | S99: 999.99 | T99: 999.99 | U99: 999.99 | V99: 999.99 | W99: 999.99 | X99: 627.36 | Y99: 999.99 | Z99: 999.99 | AA99: 390.46 | AB99: 999.99 | AC99: 999.99 | AD99: 999.99
A100: 2011-09-12 | B100: 237440420 | C100: PAULA FRANCISCA | D100: SILVA CORNEJO | E100: F | F100: CEC | G100: AS | H100: U16 | I100: SI | J100: 1 | K100: 999.99 | L100: 999.99 | M100: 999.99 | N100: 999.99 | O100: 999.99 | P100: 999.99 | Q100: 999.99 | R100: 999.99 | S100: 999.99 | T100: 999.99 | U100: 999.99 | V100: 999.99 | W100: 999.99 | X100: 999.99 | Y100: 999.99 | Z100: 999.99 | AA100: 999.99 | AB100: 999.99 | AC100: 999.99 | AD100: 999.99
A101: 2011-09-14 | B101: 237461665 | C101: LAURA | D101: DEL CAMPO TRAUTMANN | E101: F | F101: CEC | G101: AS | H101: U16 | I101: SI | J101: 1 | K101: 999.99 | L101: 999.99 | M101: 999.99 | N101: 999.99 | O101: 999.99 | P101: 999.99 | Q101: 999.99 | R101: 999.99 | S101: 999.99 | T101: 999.99 | U101: 999.99 | V101: 999.99 | W101: 999.99 | X101: 157.66 | Y101: 999.99 | Z101: 999.99 | AA101: 999.99 | AB101: 999.99 | AC101: 999.99 | AD101: 999.99
A102: 2011-09-20 | B102: 237514475 | C102: FLORENCIA | D102: ROSS MASSANES | E102: F | F102: CAN | G102: AS | H102: U16 | I102: SI | J102: 1 | K102: 999.99 | L102: 999.99 | M102: 172.9 | N102: 999.99 | O102: 999.99 | P102: 999.99 | Q102: 999.99 | R102: 999.99 | S102: 999.99 | T102: 999.99 | U102: 999.99 | V102: 999.99 | W102: 999.99 | X102: 999.99 | Y102: 999.99 | Z102: 999.99 | AA102: 999.99 | AB102: 999.99 | AC102: 999.99 | AD102: 999.99
A103: 2011-10-04 | B103: 237609107 | C103: TRINIDAD | D103: MONTANARI OTERO | E103: F | F103: UC | G103: AS | H103: U16 | I103: SI | J103: 1 | K103: 999.99 | L103: 999.99 | M103: 999.99 | N103: 999.99 | O103: 999.99 | P103: 999.99 | Q103: 999.99 | R103: 999.99 | S103: 999.99 | T103: 999.99 | U103: 999.99 | V103: 999.99 | W103: 999.99 | X103: 999.99 | Y103: 999.99 | Z103: 999.99 | AA103: 999.99 | AB103: 999.99 | AC103: 999.99 | AD103: 999.99
A104: 2011-10-11 | B104: 237668634 | C104: JOSE | D104: MASSOUD AUSIN | E104: M | F104: CLP | G104: AS | H104: U16 | I104: SI | J104: 1 | K104: 999.99 | L104: 999.99 | M104: 999.99 | N104: 999.99 | O104: 999.99 | P104: 999.99 | Q104: 999.99 | R104: 999.99 | S104: 999.99 | T104: 999.99 | U104: 999.99 | V104: 999.99 | W104: 999.99 | X104: 999.99 | Y104: 999.99 | Z104: 999.99 | AA104: 999.99 | AB104: 999.99 | AC104: 999.99 | AD104: 999.99
A105: 2011-10-10 | B105: 237674901 | C105: JULIÁN | D105: RIVERA DEL CAMPO | E105: M | F105: ARS | G105: AS | H105: U16 | I105: SI | J105: 1 | K105: 999.99 | L105: 188.51 | M105: 173.44 | N105: 999.99 | O105: 999.99 | P105: 999.99 | Q105: 999.99 | R105: 999.99 | S105: 999.99 | T105: 999.99 | U105: 999.99 | V105: 999.99 | W105: 999.99 | X105: 999.99 | Y105: 999.99 | Z105: 999.99 | AA105: 188.85 | AB105: 999.99 | AC105: 240.05 | AD105: 213.96
A106: 2011-10-11 | B106: 237684176 | C106: PATRICIO MATÍAS | D106: CONTESSE ORTIZ | E106: M | F106: CAN | G106: AS | H106: U16 | I106: SI | J106: 1 | K106: 999.99 | L106: 125.18 | M106: 147.77 | N106: 999.99 | O106: 999.99 | P106: 999.99 | Q106: 999.99 | R106: 999.99 | S106: 999.99 | T106: 999.99 | U106: 999.99 | V106: 999.99 | W106: 999.99 | X106: 999.99 | Y106: 999.99 | Z106: 999.99 | AA106: 999.99 | AB106: 999.99 | AC106: 999.99 | AD106: 999.99
A107: 2011-10-24 | B107: 237794540 | C107: MELISA MARIA | D107: LERMANDA IBAÑEZ | E107: F | F107: CORR | G107: AS | H107: U16 | I107: SI | J107: 1 | K107: 166.32 | L107: 999.99 | M107: 999.99 | N107: 999.99 | O107: 999.99 | P107: 999.99 | Q107: 268.01 | R107: 999.99 | S107: 999.99 | T107: 999.99 | U107: 999.99 | V107: 999.99 | W107: 999.99 | X107: 999.99 | Y107: 999.99 | Z107: 999.99 | AA107: 999.99 | AB107: 273.22 | AC107: 999.99 | AD107: 999.99
A108: 2011-11-03 | B108: 237871677 | C108: ARTURO | D108: WILLER SIMON | E108: M | F108: CAO | G108: AS | H108: U16 | I108: SI | J108: 1 | K108: 999.99 | L108: 999.99 | M108: 999.99 | N108: 999.99 | O108: 999.99 | P108: 999.99 | Q108: 999.99 | R108: 207.25 | S108: 999.99 | T108: 999.99 | U108: 999.99 | V108: 999.99 | W108: 999.99 | X108: 999.99 | Y108: 999.99 | Z108: 999.99 | AA108: 158.41 | AB108: 999.99 | AC108: 178.45 | AD108: 196.01
A109: 2011-10-30 | B109: 237881370 | C109: JULIA | D109: OPITZ SEIDL | E109: F | F109: CAO | G109: AS | H109: U16 | I109: SI | J109: 1 | K109: 999.99 | L109: 999.99 | M109: 999.99 | N109: 999.99 | O109: 999.99 | P109: 999.99 | Q109: 999.99 | R109: 999.99 | S109: 999.99 | T109: 999.99 | U109: 999.99 | V109: 999.99 | W109: 999.99 | X109: 999.99 | Y109: 999.99 | Z109: 999.99 | AA109: 999.99 | AB109: 999.99 | AC109: 999.99 | AD109: 999.99
A110: 2011-10-13 | B110: 237939859 | C110: NAOMI | D110: FISCHER BARENBOIM | E110: F | F110: ARS | G110: AS | H110: U16 | I110: SI | J110: 1 | K110: 999.99 | L110: 999.99 | M110: 999.99 | N110: 999.99 | O110: 999.99 | P110: 999.99 | Q110: 999.99 | R110: 999.99 | S110: 999.99 | T110: 999.99 | U110: 999.99 | V110: 999.99 | W110: 999.99 | X110: 999.99 | Y110: 999.99 | Z110: 999.99 | AA110: 999.99 | AB110: 999.99 | AC110: 999.99 | AD110: 999.99
A111: 2011-11-11 | B111: 237948424 | C111: DOMINGA | D111: MANDRU ROMENY | E111: F | F111: CAO | G111: AS | H111: U16 | I111: SI | J111: 1 | K111: 999.99 | L111: 999.99 | M111: 999.99 | N111: 253.71 | O111: 285.31 | P111: 999.99 | Q111: 273.74 | R111: 999.99 | S111: 999.99 | T111: 260.74 | U111: 999.99 | V111: 999.99 | W111: 999.99 | X111: 999.99 | Y111: 999.99 | Z111: 999.99 | AA111: 999.99 | AB111: 303.39 | AC111: 999.99 | AD111: 999.99
A112: 2011-11-16 | B112: 237972236 | C112: AGUSTINA | D112: BANNURA DECEBAL-CUZA | E112: F | F112: UC | G112: AS | H112: U16 | I112: SI | J112: 1 | K112: 999.99 | L112: 224.29 | M112: 160.1 | N112: 999.99 | O112: 999.99 | P112: 999.99 | Q112: 999.99 | R112: 999.99 | S112: 999.99 | T112: 999.99 | U112: 999.99 | V112: 999.99 | W112: 999.99 | X112: 161.13 | Y112: 999.99 | Z112: 999.99 | AA112: 238.27 | AB112: 999.99 | AC112: 278.49 | AD112: 252.98
A113: 2011-11-23 | B113: 238028973 | C113: VICENTE | D113: MARTINEZ VICHERAT | E113: M | F113: UC | G113: AS | H113: U16 | I113: SI | J113: 1 | K113: 999.99 | L113: 999.99 | M113: 999.99 | N113: 999.99 | O113: 999.99 | P113: 999.99 | Q113: 999.99 | R113: 999.99 | S113: 999.99 | T113: 999.99 | U113: 999.99 | V113: 999.99 | W113: 999.99 | X113: 999.99 | Y113: 999.99 | Z113: 999.99 | AA113: 999.99 | AB113: 999.99 | AC113: 999.99 | AD113: 999.99
A114: 2011-12-09 | B114: 238169380 | C114: SANTIAGO | D114: BADILLA FUENTES | E114: M | F114: CAN | G114: AS | H114: U16 | I114: SI | J114: 1 | K114: 999.99 | L114: 999.99 | M114: 188.82 | N114: 999.99 | O114: 999.99 | P114: 999.99 | Q114: 999.99 | R114: 999.99 | S114: 999.99 | T114: 999.99 | U114: 999.99 | V114: 999.99 | W114: 999.99 | X114: 366.11 | Y114: 999.99 | Z114: 999.99 | AA114: 999.99 | AB114: 999.99 | AC114: 999.99 | AD114: 999.99
A115: 2011-12-20 | B115: 238262828 | C115: VICENTE | D115: DÍAZ SOTO | E115: M | F115: CLP | G115: AS | H115: U16 | I115: SI | J115: 1 | K115: 999.99 | L115: 999.99 | M115: 148.85 | N115: 999.99 | O115: 999.99 | P115: 999.99 | Q115: 999.99 | R115: 999.99 | S115: 999.99 | T115: 999.99 | U115: 999.99 | V115: 194.16 | W115: 999.99 | X115: 219.86 | Y115: 999.99 | Z115: 999.99 | AA115: 999.99 | AB115: 999.99 | AC115: 441.07 | AD115: 239.53
A116: 2011-12-23 | B116: 238289130 | C116: TIAGO | D116: CARTES ATALAH | E116: M | F116: CAN | G116: AS | H116: U16 | I116: SI | J116: 1 | K116: 999.99 | L116: 110.62 | M116: 113.29 | N116: 999.99 | O116: 999.99 | P116: 999.99 | Q116: 999.99 | R116: 999.99 | S116: 999.99 | T116: 999.99 | U116: 999.99 | V116: 999.99 | W116: 999.99 | X116: 145.25 | Y116: 999.99 | Z116: 999.99 | AA116: 999.99 | AB116: 999.99 | AC116: 157.75 | AD116: 180.27
A117: 2012-08-01 | B117: 238390419 | C117: MAGDALENA | D117: ROJAS F | E117: F | F117: CVN | G117: AS | H117: U14 | I117: SI | J117: 2 | K117: 999.99 | L117: 999.99 | M117: 209.99 | N117: 999.99 | O117: 999.99 | P117: 999.99 | Q117: 999.99 | R117: 999.99 | S117: 999.99 | T117: 999.99 | U117: 999.99 | V117: 999.99 | W117: 999.99 | X117: 999.99 | Y117: 305 | Z117: 241.95 | AA117: 266.75 | AB117: 999.99 | AC117: 232.66 | AD117: 253.56
A118: 2012-01-18 | B118: 238487544 | C118: LUCIANO | D118: BRITO DIAZ | E118: M | F118: CLP | G118: AS | H118: U14 | I118: SI | J118: 2 | K118: 999.99 | L118: 90.64 | M118: 999.99 | N118: 999.99 | O118: 999.99 | P118: 999.99 | Q118: 999.99 | R118: 999.99 | S118: 999.99 | T118: 999.99 | U118: 999.99 | V118: 999.99 | W118: 999.99 | X118: 999.99 | Y118: 999.99 | Z118: 999.99 | AA118: 999.99 | AB118: 999.99 | AC118: 999.99 | AD118: 999.99
A119: 2012-01-02 | B119: 238488060 | C119: LORENZO | D119: LEON AZUA | E119: M | F119: CVN | G119: AS | H119: U14 | I119: SI | J119: 2 | K119: 999.99 | L119: 999.99 | M119: 999.99 | N119: 999.99 | O119: 999.99 | P119: 999.99 | Q119: 999.99 | R119: 999.99 | S119: 999.99 | T119: 999.99 | U119: 999.99 | V119: 999.99 | W119: 999.99 | X119: 999.99 | Y119: 999.99 | Z119: 999.99 | AA119: 999.99 | AB119: 999.99 | AC119: 999.99 | AD119: 999.99
A120: 2012-03-02 | B120: 238625661 | C120: ISIDRO | D120: SECALL MOREL | E120: M | F120: CVN | G120: AS | H120: U14 | I120: SI | J120: 2 | K120: 999.99 | L120: 999.99 | M120: 999.99 | N120: 999.99 | O120: 999.99 | P120: 999.99 | Q120: 999.99 | R120: 999.99 | S120: 999.99 | T120: 999.99 | U120: 999.99 | V120: 999.99 | W120: 999.99 | X120: 999.99 | Y120: 999.99 | Z120: 999.99 | AA120: 999.99 | AB120: 999.99 | AC120: 999.99 | AD120: 999.99
A121: 2012-02-09 | B121: 23866926K | C121: HUGO JOSÉ | D121: TAPIA MEDINA | E121: M | F121: CSC | G121: AS | H121: U14 | I121: SI | J121: 2 | K121: 327.13 | L121: 999.99 | M121: 999.99 | N121: 999.99 | O121: 999.99 | P121: 999.99 | Q121: 320.45 | R121: 999.99 | S121: 999.99 | T121: 999.99 | U121: 999.99 | V121: 999.99 | W121: 999.99 | X121: 999.99 | Y121: 999.99 | Z121: 999.99 | AA121: 999.99 | AB121: 466.59 | AC121: 999.99 | AD121: 999.99
A122: 2012-10-02 | B122: 238674840 | C122: ANTONIA | D122: GARDILCIC SANTA CRUZ | E122: F | F122: CVN | G122: AS | H122: U14 | I122: SI | J122: 2 | K122: 999.99 | L122: 999.99 | M122: 999.99 | N122: 999.99 | O122: 999.99 | P122: 999.99 | Q122: 999.99 | R122: 999.99 | S122: 999.99 | T122: 999.99 | U122: 999.99 | V122: 999.99 | W122: 999.99 | X122: 200.54 | Y122: 182.84 | Z122: 174.07 | AA122: 999.99 | AB122: 999.99 | AC122: 268.5 | AD122: 217.73
A123: 2012-02-21 | B123: 238774861 | C123: IGNACIA | D123: LIRA CASAS | E123: F | F123: CAPA | G123: AS | H123: U14 | I123: SI | J123: 2 | K123: 999.99 | L123: 999.99 | M123: 999.99 | N123: 999.99 | O123: 999.99 | P123: 999.99 | Q123: 999.99 | R123: 999.99 | S123: 999.99 | T123: 999.99 | U123: 200.66 | V123: 999.99 | W123: 999.99 | X123: 999.99 | Y123: 999.99 | Z123: 999.99 | AA123: 999.99 | AB123: 999.99 | AC123: 999.99 | AD123: 999.99
A124: 2012-02-21 | B124: 238775086 | C124: JOAQUIN | D124: LIRA CASAS | E124: M | F124: CAPA | G124: AS | H124: U14 | I124: SI | J124: 2 | K124: 999.99 | L124: 999.99 | M124: 999.99 | N124: 999.99 | O124: 999.99 | P124: 593.73 | Q124: 999.99 | R124: 999.99 | S124: 999.99 | T124: 999.99 | U124: 249.5 | V124: 999.99 | W124: 999.99 | X124: 999.99 | Y124: 999.99 | Z124: 999.99 | AA124: 999.99 | AB124: 999.99 | AC124: 999.99 | AD124: 999.99
A125: 2012-03-09 | B125: 238944864 | C125: LUNA | D125: VERA ZAROR | E125: F | F125: LV | G125: AS | H125: U14 | I125: SI | J125: 2 | K125: 138.33 | L125: 999.99 | M125: 999.99 | N125: 999.99 | O125: 999.99 | P125: 448.19 | Q125: 282.65 | R125: 999.99 | S125: 999.99 | T125: 999.99 | U125: 289.29 | V125: 999.99 | W125: 999.99 | X125: 999.99 | Y125: 999.99 | Z125: 999.99 | AA125: 999.99 | AB125: 261.63 | AC125: 999.99 | AD125: 999.99
A126: 2012-08-03 | B126: 238953502 | C126: GABRIEL | D126: FARÍAS AGUAYO | E126: M | F126: CVN | G126: AS | H126: U14 | I126: SI | J126: 2 | K126: 999.99 | L126: 999.99 | M126: 999.99 | N126: 999.99 | O126: 999.99 | P126: 999.99 | Q126: 999.99 | R126: 999.99 | S126: 999.99 | T126: 999.99 | U126: 999.99 | V126: 999.99 | W126: 999.99 | X126: 999.99 | Y126: 999.99 | Z126: 176.29 | AA126: 177.4 | AB126: 999.99 | AC126: 226.06 | AD126: 173.36
A127: 2012-03-13 | B127: 239038379 | C127: MANUEL | D127: LE-BERT RODRIGUEZ | E127: M | F127: UC | G127: AS | H127: U14 | I127: SI | J127: 2 | K127: 999.99 | L127: 241.93 | M127: 205.51 | N127: 999.99 | O127: 999.99 | P127: 999.99 | Q127: 999.99 | R127: 999.99 | S127: 999.99 | T127: 999.99 | U127: 999.99 | V127: 999.99 | W127: 999.99 | X127: 194.31 | Y127: 168.42 | Z127: 999.99 | AA127: 149.97 | AB127: 999.99 | AC127: 329.4 | AD127: 222.35
A128: 2012-03-21 | B128: 239060099 | C128: ANGELES | D128: CANDIA ECHENIQUE | E128: F | F128: UC | G128: AS | H128: U14 | I128: SI | J128: 2 | K128: 999.99 | L128: 266.62 | M128: 999.99 | N128: 999.99 | O128: 999.99 | P128: 999.99 | Q128: 999.99 | R128: 999.99 | S128: 999.99 | T128: 999.99 | U128: 999.99 | V128: 999.99 | W128: 999.99 | X128: 406.38 | Y128: 344.61 | Z128: 330.34 | AA128: 303.67 | AB128: 999.99 | AC128: 344.06 | AD128: 337.07
A129: 2012-03-28 | B129: 239091547 | C129: JUAN EDUARDO | D129: IBAÑEZ VERGARA | E129: M | F129: CLP | G129: AS | H129: U14 | I129: SI | J129: 2 | K129: 999.99 | L129: 999.99 | M129: 999.99 | N129: 999.99 | O129: 999.99 | P129: 999.99 | Q129: 999.99 | R129: 999.99 | S129: 999.99 | T129: 999.99 | U129: 999.99 | V129: 999.99 | W129: 999.99 | X129: 999.99 | Y129: 999.99 | Z129: 999.99 | AA129: 999.99 | AB129: 999.99 | AC129: 999.99 | AD129: 999.99
A130: 2012-04-01 | B130: 239221904 | C130: NABIH | D130: SEITUN FUENTES | E130: M | F130: LV | G130: AS | H130: U14 | I130: SI | J130: 2 | K130: 135.49 | L130: 999.99 | M130: 999.99 | N130: 999.99 | O130: 999.99 | P130: 103.66 | Q130: 205.7 | R130: 999.99 | S130: 999.99 | T130: 999.99 | U130: 276.82 | V130: 999.99 | W130: 999.99 | X130: 999.99 | Y130: 999.99 | Z130: 999.99 | AA130: 999.99 | AB130: 374.15 | AC130: 999.99 | AD130: 999.99
A131: 2012-12-04 | B131: 239225624 | C131: JUAN | D131: BRINKMANN UNDURRAGA | E131: M | F131: CVN | G131: AS | H131: U14 | I131: SI | J131: 2 | K131: 999.99 | L131: 141.99 | M131: 999.99 | N131: 999.99 | O131: 999.99 | P131: 999.99 | Q131: 999.99 | R131: 999.99 | S131: 999.99 | T131: 999.99 | U131: 999.99 | V131: 999.99 | W131: 999.99 | X131: 999.99 | Y131: 137.89 | Z131: 143.2 | AA131: 999.99 | AB131: 999.99 | AC131: 153.82 | AD131: 170.32
A132: 2012-04-21 | B132: 23930088K | C132: ANIBAL | D132: MONTES GUTIERREZ | E132: M | F132: UC | G132: AS | H132: U14 | I132: SI | J132: 2 | K132: 999.99 | L132: 180.88 | M132: 140.5 | N132: 999.99 | O132: 999.99 | P132: 999.99 | Q132: 999.99 | R132: 999.99 | S132: 999.99 | T132: 999.99 | U132: 999.99 | V132: 999.99 | W132: 999.99 | X132: 78.36 | Y132: 92.59 | Z132: 128.33 | AA132: 99.33 | AB132: 999.99 | AC132: 999.99 | AD132: 195.87
A133: 2012-04-21 | B133: 239350453 | C133: DOMINGO ARNAU | D133: TORRES RETI | E133: M | F133: CAN | G133: AS | H133: U14 | I133: SI | J133: 2 | K133: 999.99 | L133: 164.55 | M133: 139.46 | N133: 999.99 | O133: 999.99 | P133: 999.99 | Q133: 999.99 | R133: 999.99 | S133: 999.99 | T133: 999.99 | U133: 999.99 | V133: 999.99 | W133: 999.99 | X133: 234.66 | Y133: 171.38 | Z133: 999.99 | AA133: 999.99 | AB133: 999.99 | AC133: 999.99 | AD133: 999.99
A134: 2012-05-22 | B134: 23954326K | C134: MAX | D134: MONREAL ORMEÑO | E134: M | F134: CORR | G134: AS | H134: U14 | I134: SI | J134: 2 | K134: 150.11 | L134: 999.99 | M134: 999.99 | N134: 999.99 | O134: 999.99 | P134: 97.24 | Q134: 226.74 | R134: 999.99 | S134: 999.99 | T134: 999.99 | U134: 232.29 | V134: 999.99 | W134: 999.99 | X134: 999.99 | Y134: 999.99 | Z134: 999.99 | AA134: 999.99 | AB134: 365.25 | AC134: 999.99 | AD134: 999.99
A135: 2012-05-03 | B135: 23954410K | C135: EMA | D135: MUYLLE ALLIENDE | E135: F | F135: UC | G135: AS | H135: U14 | I135: SI | J135: 2 | K135: 999.99 | L135: 158.7 | M135: 121.49 | N135: 999.99 | O135: 999.99 | P135: 999.99 | Q135: 999.99 | R135: 999.99 | S135: 999.99 | T135: 999.99 | U135: 999.99 | V135: 999.99 | W135: 999.99 | X135: 265.76 | Y135: 160.78 | Z135: 145.43 | AA135: 157.13 | AB135: 999.99 | AC135: 235.1 | AD135: 226.46
A136: 2012-05-16 | B136: 239561756 | C136: TEODORO | D136: PASTENE SOTO | E136: M | F136: CORR | G136: AS | H136: U14 | I136: SI | J136: 2 | K136: 999.99 | L136: 999.99 | M136: 999.99 | N136: 999.99 | O136: 999.99 | P136: 999.99 | Q136: 377.21 | R136: 999.99 | S136: 999.99 | T136: 999.99 | U136: 999.99 | V136: 999.99 | W136: 999.99 | X136: 999.99 | Y136: 999.99 | Z136: 999.99 | AA136: 999.99 | AB136: 614.54 | AC136: 999.99 | AD136: 999.99
A137: 2012-05-29 | B137: 239611478 | C137: JACINTA | D137: OPAZO DIAZ | E137: F | F137: CLP | G137: AS | H137: U14 | I137: SI | J137: 2 | K137: 999.99 | L137: 999.99 | M137: 154.02 | N137: 999.99 | O137: 999.99 | P137: 999.99 | Q137: 999.99 | R137: 999.99 | S137: 999.99 | T137: 999.99 | U137: 999.99 | V137: 999.99 | W137: 356.08 | X137: 999.99 | Y137: 999.99 | Z137: 999.99 | AA137: 999.99 | AB137: 999.99 | AC137: 999.99 | AD137: 999.99
A138: 2012-05-01 | B138: 239624863 | C138: CLARA | D138: GAZMURI PIEDRA | E138: F | F138: CEC | G138: AS | H138: U14 | I138: SI | J138: 2 | K138: 999.99 | L138: 999.99 | M138: 999.99 | N138: 999.99 | O138: 999.99 | P138: 999.99 | Q138: 999.99 | R138: 999.99 | S138: 999.99 | T138: 999.99 | U138: 999.99 | V138: 999.99 | W138: 999.99 | X138: 999.99 | Y138: 999.99 | Z138: 999.99 | AA138: 999.99 | AB138: 999.99 | AC138: 999.99 | AD138: 999.99
A139: 2012-05-30 | B139: 239677304 | C139: JULIETA | D139: FERNANDEZ VERGARA | E139: F | F139: CLP | G139: AS | H139: U14 | I139: SI | J139: 2 | K139: 999.99 | L139: 999.99 | M139: 102.5 | N139: 999.99 | O139: 999.99 | P139: 999.99 | Q139: 999.99 | R139: 999.99 | S139: 999.99 | T139: 999.99 | U139: 999.99 | V139: 142.25 | W139: 999.99 | X139: 999.99 | Y139: 156.27 | Z139: 168.66 | AA139: 134.57 | AB139: 999.99 | AC139: 999.99 | AD139: 999.99
A140: 2012-05-30 | B140: 239679838 | C140: OLGA | D140: KUBICK LESSER | E140: F | F140: CLP | G140: AS | H140: U14 | I140: SI | J140: 2 | K140: 999.99 | L140: 999.99 | M140: 999.99 | N140: 999.99 | O140: 999.99 | P140: 999.99 | Q140: 999.99 | R140: 999.99 | S140: 999.99 | T140: 999.99 | U140: 999.99 | V140: 192.05 | W140: 187.17 | X140: 185.13 | Y140: 159.83 | Z140: 193.46 | AA140: 171.72 | AB140: 999.99 | AC140: 194.74 | AD140: 178.77
A141: 2012-05-25 | B141: 239693318 | C141: MAGDALENA | D141: CORDERO VON LEYSER | E141: F | F141: CEC | G141: AS | H141: U14 | I141: SI | J141: 2 | K141: 999.99 | L141: 999.99 | M141: 999.99 | N141: 999.99 | O141: 999.99 | P141: 999.99 | Q141: 999.99 | R141: 999.99 | S141: 999.99 | T141: 999.99 | U141: 999.99 | V141: 999.99 | W141: 999.99 | X141: 999.99 | Y141: 999.99 | Z141: 999.99 | AA141: 999.99 | AB141: 999.99 | AC141: 999.99 | AD141: 999.99
A142: 2012-06-02 | B142: 239697003 | C142: ADELA | D142: VALDES PRIETO | E142: F | F142: CAO | G142: AS | H142: U14 | I142: SI | J142: 2 | K142: 85.83 | L142: 999.99 | M142: 999.99 | N142: 999.99 | O142: 999.99 | P142: 999.99 | Q142: 113.85 | R142: 999.99 | S142: 999.99 | T142: 999.99 | U142: 999.99 | V142: 999.99 | W142: 999.99 | X142: 999.99 | Y142: 999.99 | Z142: 87.26 | AA142: 89.68 | AB142: 187.99 | AC142: 160.21 | AD142: 152.13
A143: 2012-05-25 | B143: 239723578 | C143: GUSTAVO | D143: PINCHEIRA BRAVO | E143: M | F143: CAR | G143: AS | H143: U14 | I143: SI | J143: 2 | K143: 79.46 | L143: 999.99 | M143: 999.99 | N143: 999.99 | O143: 999.99 | P143: 49.67 | Q143: 151.59 | R143: 999.99 | S143: 999.99 | T143: 999.99 | U143: 161.97 | V143: 999.99 | W143: 999.99 | X143: 999.99 | Y143: 999.99 | Z143: 999.99 | AA143: 999.99 | AB143: 315.81 | AC143: 999.99 | AD143: 999.99
A144: 2012-06-07 | B144: 239740588 | C144: ROSARIO ALEJANDRA | D144: CALDERA ALMONACID | E144: F | F144: CEC | G144: AS | H144: U14 | I144: SI | J144: 2 | K144: 125.73 | L144: 999.99 | M144: 225.13 | N144: 999.99 | O144: 999.99 | P144: 442 | Q144: 250.04 | R144: 999.99 | S144: 999.99 | T144: 999.99 | U144: 215.33 | V144: 999.99 | W144: 999.99 | X144: 999.99 | Y144: 999.99 | Z144: 247.36 | AA144: 240.09 | AB144: 237.96 | AC144: 259.75 | AD144: 262.06
A145: 2012-06-02 | B145: 239743889 | C145: CLARA | D145: CAMUS CORREA | E145: F | F145: CAN | G145: AS | H145: U14 | I145: SI | J145: 2 | K145: 999.99 | L145: 999.99 | M145: 999.99 | N145: 999.99 | O145: 999.99 | P145: 999.99 | Q145: 999.99 | R145: 999.99 | S145: 999.99 | T145: 999.99 | U145: 999.99 | V145: 999.99 | W145: 999.99 | X145: 931.9 | Y145: 619.29 | Z145: 545.92 | AA145: 615.87 | AB145: 999.99 | AC145: 999.99 | AD145: 999.99
A146: 2012-06-05 | B146: 239758096 | C146: CRESCENTE | D146: TUÑON SOTO | E146: M | F146: UC | G146: AS | H146: U14 | I146: SI | J146: 2 | K146: 999.99 | L146: 999.99 | M146: 999.99 | N146: 999.99 | O146: 999.99 | P146: 999.99 | Q146: 999.99 | R146: 999.99 | S146: 999.99 | T146: 999.99 | U146: 999.99 | V146: 999.99 | W146: 999.99 | X146: 999.99 | Y146: 999.99 | Z146: 999.99 | AA146: 999.99 | AB146: 999.99 | AC146: 999.99 | AD146: 999.99
A147: 2012-06-12 | B147: 239800572 | C147: IÑAKI | D147: BASAURI GARDILCIC | E147: M | F147: CORR | G147: AS | H147: U14 | I147: SI | J147: 2 | K147: 145.59 | L147: 999.99 | M147: 999.99 | N147: 999.99 | O147: 999.99 | P147: 121.06 | Q147: 261.93 | R147: 999.99 | S147: 999.99 | T147: 999.99 | U147: 377.16 | V147: 999.99 | W147: 999.99 | X147: 999.99 | Y147: 999.99 | Z147: 999.99 | AA147: 999.99 | AB147: 415.07 | AC147: 999.99 | AD147: 999.99
A148: 2012-06-02 | B148: 239811019 | C148: EMILIA | D148: PEREZ OLMOS | E148: F | F148: LV | G148: AS | H148: U14 | I148: SI | J148: 2 | K148: 136.02 | L148: 999.99 | M148: 999.99 | N148: 999.99 | O148: 999.99 | P148: 127.94 | Q148: 266.9 | R148: 999.99 | S148: 999.99 | T148: 999.99 | U148: 332.12 | V148: 999.99 | W148: 999.99 | X148: 999.99 | Y148: 999.99 | Z148: 999.99 | AA148: 999.99 | AB148: 248.21 | AC148: 999.99 | AD148: 999.99
A149: 2012-06-15 | B149: 239854001 | C149: TEO | D149: ATALAH BINFA | E149: M | F149: LV | G149: AS | H149: U14 | I149: SI | J149: 2 | K149: 205.34 | L149: 999.99 | M149: 999.99 | N149: 999.99 | O149: 999.99 | P149: 999.99 | Q149: 360.59 | R149: 999.99 | S149: 999.99 | T149: 999.99 | U149: 999.99 | V149: 999.99 | W149: 999.99 | X149: 999.99 | Y149: 999.99 | Z149: 999.99 | AA149: 999.99 | AB149: 485.54 | AC149: 999.99 | AD149: 999.99
A150: 2012-03-19 | B150: 239864716 | C150: PEDRO | D150: RODRIGUEZ CASTRO | E150: M | F150: CVN | G150: AS | H150: U14 | I150: SI | J150: 2 | K150: 999.99 | L150: 254.29 | M150: 227.17 | N150: 999.99 | O150: 999.99 | P150: 999.99 | Q150: 999.99 | R150: 999.99 | S150: 999.99 | T150: 999.99 | U150: 999.99 | V150: 999.99 | W150: 999.99 | X150: 263.34 | Y150: 999.99 | Z150: 204.82 | AA150: 219.61 | AB150: 999.99 | AC150: 285.38 | AD150: 218.14
A151: 2012-06-23 | B151: 239909833 | C151: AGUSTIN | D151: JARA ALVARADO | E151: M | F151: UC | G151: AS | H151: U14 | I151: SI | J151: 2 | K151: 999.99 | L151: 999.99 | M151: 999.99 | N151: 999.99 | O151: 999.99 | P151: 999.99 | Q151: 999.99 | R151: 999.99 | S151: 999.99 | T151: 999.99 | U151: 999.99 | V151: 999.99 | W151: 999.99 | X151: 999.99 | Y151: 999.99 | Z151: 999.99 | AA151: 999.99 | AB151: 999.99 | AC151: 999.99 | AD151: 999.99
A152: 2012-07-02 | B152: 240010763 | C152: JOSÉ | D152: KRAUSE GUTIÉRREZ | E152: M | F152: CVN | G152: AS | H152: U14 | I152: SI | J152: 2 | K152: 999.99 | L152: 165.74 | M152: 125.22 | N152: 999.99 | O152: 999.99 | P152: 999.99 | Q152: 999.99 | R152: 999.99 | S152: 999.99 | T152: 999.99 | U152: 999.99 | V152: 999.99 | W152: 999.99 | X152: 999.99 | Y152: 999.99 | Z152: 142.48 | AA152: 116.92 | AB152: 999.99 | AC152: 176.79 | AD152: 184.85
A153: 2012-06-28 | B153: 240018462 | C153: PILAR | D153: CLARO IRARRAZAVAL | E153: F | F153: UC | G153: AS | H153: U14 | I153: SI | J153: 2 | K153: 999.99 | L153: 999.99 | M153: 136.54 | N153: 999.99 | O153: 999.99 | P153: 999.99 | Q153: 999.99 | R153: 999.99 | S153: 999.99 | T153: 999.99 | U153: 999.99 | V153: 999.99 | W153: 999.99 | X153: 999.99 | Y153: 999.99 | Z153: 236.08 | AA153: 232.57 | AB153: 999.99 | AC153: 999.99 | AD153: 999.99
A154: 2012-07-04 | B154: 240101319 | C154: AMANDA | D154: JONES ILLANES | E154: F | F154: CAN | G154: AS | H154: U14 | I154: SI | J154: 2 | K154: 999.99 | L154: 999.99 | M154: 78.91 | N154: 999.99 | O154: 999.99 | P154: 999.99 | Q154: 999.99 | R154: 999.99 | S154: 999.99 | T154: 999.99 | U154: 999.99 | V154: 999.99 | W154: 999.99 | X154: 999.99 | Y154: 999.99 | Z154: 999.99 | AA154: 999.99 | AB154: 999.99 | AC154: 999.99 | AD154: 999.99
A155: 2012-07-18 | B155: 240114283 | C155: BLANCA | D155: PUIG GUTIERREZ | E155: F | F155: CAR | G155: AS | H155: U14 | I155: SI | J155: 2 | K155: 999.99 | L155: 999.99 | M155: 999.99 | N155: 999.99 | O155: 999.99 | P155: 151.09 | Q155: 253.19 | R155: 999.99 | S155: 999.99 | T155: 999.99 | U155: 245.8 | V155: 999.99 | W155: 999.99 | X155: 999.99 | Y155: 999.99 | Z155: 999.99 | AA155: 999.99 | AB155: 242.81 | AC155: 999.99 | AD155: 999.99
A156: 2012-07-17 | B156: 24019130K | C156: VICENTE JAVIER | D156: ACLE ASENJO | E156: M | F156: CSC | G156: AS | H156: U14 | I156: SI | J156: 2 | K156: 999.99 | L156: 999.99 | M156: 999.99 | N156: 999.99 | O156: 999.99 | P156: 999.99 | Q156: 282.44 | R156: 999.99 | S156: 999.99 | T156: 999.99 | U156: 999.99 | V156: 999.99 | W156: 999.99 | X156: 999.99 | Y156: 999.99 | Z156: 999.99 | AA156: 999.99 | AB156: 362.03 | AC156: 999.99 | AD156: 999.99
A157: 2012-07-27 | B157: 240208881 | C157: FRANCISCA | D157: COSMELLI PIWONKA | E157: F | F157: UC | G157: AS | H157: U14 | I157: SI | J157: 2 | K157: 999.99 | L157: 116.97 | M157: 107.01 | N157: 999.99 | O157: 999.99 | P157: 999.99 | Q157: 999.99 | R157: 999.99 | S157: 999.99 | T157: 999.99 | U157: 999.99 | V157: 999.99 | W157: 999.99 | X157: 999.99 | Y157: 999.99 | Z157: 999.99 | AA157: 999.99 | AB157: 999.99 | AC157: 999.99 | AD157: 999.99
A158: 2012-08-06 | B158: 240321343 | C158: EMA ANTONIA | D158: GARDA TIMMERMANN | E158: F | F158: CEC | G158: AS | H158: U14 | I158: SI | J158: 2 | K158: 128.77 | L158: 999.99 | M158: 999.99 | N158: 999.99 | O158: 999.99 | P158: 999.99 | Q158: 212.98 | R158: 999.99 | S158: 999.99 | T158: 999.99 | U158: 999.99 | V158: 999.99 | W158: 999.99 | X158: 999.99 | Y158: 999.99 | Z158: 999.99 | AA158: 999.99 | AB158: 236.65 | AC158: 999.99 | AD158: 999.99
A159: 2012-08-09 | B159: 240324194 | C159: VICTORIA | D159: BORCHERT TOLEDO | E159: F | F159: POR | G159: AS | H159: U14 | I159: SI | J159: 2 | K159: 999.99 | L159: 293.81 | M159: 999.99 | N159: 999.99 | O159: 999.99 | P159: 999.99 | Q159: 999.99 | R159: 999.99 | S159: 999.99 | T159: 999.99 | U159: 999.99 | V159: 278.52 | W159: 999.99 | X159: 419.9 | Y159: 356.95 | Z159: 420.09 | AA159: 391.86 | AB159: 999.99 | AC159: 999.99 | AD159: 999.99
A160: 2012-08-17 | B160: 240385538 | C160: CLEMENTE | D160: SILVA OSSIPOVICH | E160: M | F160: CVN | G160: AS | H160: U14 | I160: SI | J160: 2 | K160: 999.99 | L160: 999.99 | M160: 95.61 | N160: 999.99 | O160: 999.99 | P160: 999.99 | Q160: 999.99 | R160: 999.99 | S160: 999.99 | T160: 999.99 | U160: 999.99 | V160: 999.99 | W160: 999.99 | X160: 140.1 | Y160: 80.77 | Z160: 71.5 | AA160: 81.75 | AB160: 999.99 | AC160: 83.02 | AD160: 87.34
A161: 2012-08-29 | B161: 240505428 | C161: NICOLAS | D161: PEREZ CARDENAS | E161: M | F161: PAT | G161: AS | H161: U14 | I161: SI | J161: 2 | K161: 999.99 | L161: 999.99 | M161: 999.99 | N161: 999.99 | O161: 197.72 | P161: 999.99 | Q161: 999.99 | R161: 234.55 | S161: 999.99 | T161: 227.46 | U161: 999.99 | V161: 999.99 | W161: 999.99 | X161: 999.99 | Y161: 999.99 | Z161: 999.99 | AA161: 999.99 | AB161: 999.99 | AC161: 999.99 | AD161: 999.99
A162: 2012-09-05 | B162: 240575167 | C162: EMA | D162: MURUA INFANTE | E162: F | F162: UC | G162: AS | H162: U14 | I162: SI | J162: 2 | K162: 999.99 | L162: 341.49 | M162: 292.46 | N162: 999.99 | O162: 999.99 | P162: 999.99 | Q162: 999.99 | R162: 999.99 | S162: 999.99 | T162: 999.99 | U162: 999.99 | V162: 999.99 | W162: 999.99 | X162: 427.73 | Y162: 370.47 | Z162: 365.52 | AA162: 349.7 | AB162: 999.99 | AC162: 999.99 | AD162: 999.99
A163: 2012-08-06 | B163: 240583348 | C163: IAN | D163: STENGEL MORRIS | E163: M | F163: CSC | G163: AS | H163: U14 | I163: SI | J163: 2 | K163: 999.99 | L163: 999.99 | M163: 999.99 | N163: 999.99 | O163: 999.99 | P163: 999.99 | Q163: 999.99 | R163: 999.99 | S163: 999.99 | T163: 999.99 | U163: 999.99 | V163: 999.99 | W163: 999.99 | X163: 999.99 | Y163: 999.99 | Z163: 999.99 | AA163: 999.99 | AB163: 999.99 | AC163: 999.99 | AD163: 999.99
A164: 2012-09-12 | B164: 240631164 | C164: RAFFAELLA | D164: MOTTO GRINSPUN | E164: F | F164: CAN | G164: AS | H164: U14 | I164: SI | J164: 2 | K164: 999.99 | L164: 255.95 | M164: 229.73 | N164: 999.99 | O164: 999.99 | P164: 999.99 | Q164: 999.99 | R164: 999.99 | S164: 999.99 | T164: 999.99 | U164: 999.99 | V164: 999.99 | W164: 999.99 | X164: 287.1 | Y164: 999.99 | Z164: 318.62 | AA164: 999.99 | AB164: 999.99 | AC164: 380.15 | AD164: 350.51
A165: 2012-09-06 | B165: 240631997 | C165: ANGEL | D165: MARIN SOTO | E165: M | F165: PAT | G165: AS | H165: U14 | I165: SI | J165: 2 | K165: 126.33 | L165: 999.99 | M165: 999.99 | N165: 999.99 | O165: 154.2 | P165: 999.99 | Q165: 179.35 | R165: 202.68 | S165: 999.99 | T165: 224.98 | U165: 999.99 | V165: 999.99 | W165: 999.99 | X165: 999.99 | Y165: 999.99 | Z165: 999.99 | AA165: 999.99 | AB165: 360.14 | AC165: 999.99 | AD165: 999.99
A166: 2012-09-23 | B166: 240699540 | C166: SEBASTIAN | D166: BASAURE VARGAS | E166: M | F166: UC | G166: AS | H166: U14 | I166: SI | J166: 2 | K166: 999.99 | L166: 107.07 | M166: 114.26 | N166: 999.99 | O166: 999.99 | P166: 999.99 | Q166: 999.99 | R166: 999.99 | S166: 999.99 | T166: 999.99 | U166: 999.99 | V166: 999.99 | W166: 999.99 | X166: 74.47 | Y166: 87.17 | Z166: 194.51 | AA166: 999.99 | AB166: 999.99 | AC166: 122.97 | AD166: 110.78
A167: 2012-09-28 | B167: 240776367 | C167: ELOISA | D167: ROSENDE ZEGERS | E167: F | F167: LV | G167: AS | H167: U14 | I167: SI | J167: 2 | K167: 169.64 | L167: 999.99 | M167: 999.99 | N167: 999.99 | O167: 999.99 | P167: 999.99 | Q167: 265.41 | R167: 999.99 | S167: 999.99 | T167: 999.99 | U167: 237.73 | V167: 999.99 | W167: 999.99 | X167: 999.99 | Y167: 999.99 | Z167: 999.99 | AA167: 999.99 | AB167: 303.58 | AC167: 999.99 | AD167: 999.99
A168: 2012-10-09 | B168: 240845229 | C168: RAFAEL | D168: AYALA PEREZ | E168: M | F168: CAN | G168: AS | H168: U14 | I168: SI | J168: 2 | K168: 999.99 | L168: 999.99 | M168: 138.08 | N168: 999.99 | O168: 999.99 | P168: 999.99 | Q168: 999.99 | R168: 999.99 | S168: 999.99 | T168: 999.99 | U168: 999.99 | V168: 999.99 | W168: 999.99 | X168: 308.8 | Y168: 999.99 | Z168: 258.06 | AA168: 257.12 | AB168: 999.99 | AC168: 999.99 | AD168: 999.99
A169: 2012-10-21 | B169: 240953978 | C169: CARMEN | D169: FLEISCHMANN KOSTER | E169: F | F169: CORR | G169: AS | H169: U14 | I169: SI | J169: 2 | K169: 252.23 | L169: 999.99 | M169: 999.99 | N169: 999.99 | O169: 999.99 | P169: 540.92 | Q169: 323.6 | R169: 999.99 | S169: 999.99 | T169: 999.99 | U169: 328.5 | V169: 999.99 | W169: 999.99 | X169: 999.99 | Y169: 999.99 | Z169: 999.99 | AA169: 999.99 | AB169: 377.60 | AC169: 999.99 | AD169: 999.99
A170: 2012-10-20 | B170: 24095821K | C170: SANTIAGO | D170: MORALES FORMAS | E170: M | F170: UC | G170: AS | H170: U14 | I170: SI | J170: 2 | K170: 999.99 | L170: 322.96 | M170: 288.04 | N170: 999.99 | O170: 999.99 | P170: 999.99 | Q170: 999.99 | R170: 999.99 | S170: 999.99 | T170: 999.99 | U170: 999.99 | V170: 999.99 | W170: 999.99 | X170: 479.44 | Y170: 516.34 | Z170: 365.96 | AA170: 394.5 | AB170: 999.99 | AC170: 511.66 | AD170: 457.46
A171: 2012-10-22 | B171: 240962144 | C171: BERNARDITA | D171: WINTER PINEDA | E171: F | F171: UC | G171: AS | H171: U14 | I171: SI | J171: 2 | K171: 999.99 | L171: 210.72 | M171: 999.99 | N171: 999.99 | O171: 999.99 | P171: 999.99 | Q171: 999.99 | R171: 999.99 | S171: 999.99 | T171: 999.99 | U171: 999.99 | V171: 999.99 | W171: 999.99 | X171: 999.99 | Y171: 999.99 | Z171: 999.99 | AA171: 999.99 | AB171: 999.99 | AC171: 999.99 | AD171: 999.99
A172: 2012-10-24 | B172: 24098105K | C172: MARTINA | D172: WILLEMSEN GALARCE | E172: F | F172: CAPA | G172: AS | H172: U14 | I172: SI | J172: 2 | K172: 999.99 | L172: 999.99 | M172: 999.99 | N172: 999.99 | O172: 999.99 | P172: 999.99 | Q172: 999.99 | R172: 999.99 | S172: 999.99 | T172: 999.99 | U172: 432.12 | V172: 999.99 | W172: 999.99 | X172: 999.99 | Y172: 999.99 | Z172: 999.99 | AA172: 999.99 | AB172: 999.99 | AC172: 999.99 | AD172: 999.99
A173: 2012-10-26 | B173: 240995360 | C173: DOMINGA | D173: REINIKE DURAN | E173: F | F173: LV | G173: AS | H173: U14 | I173: SI | J173: 2 | K173: 999.99 | L173: 999.99 | M173: 999.99 | N173: 999.99 | O173: 999.99 | P173: 142.71 | Q173: 209.09 | R173: 999.99 | S173: 999.99 | T173: 999.99 | U173: 999.99 | V173: 999.99 | W173: 999.99 | X173: 999.99 | Y173: 999.99 | Z173: 999.99 | AA173: 999.99 | AB173: 256.60 | AC173: 999.99 | AD173: 999.99
A174: 2012-10-25 | B174: 241014703 | C174: AGUSTIN | D174: MILLAN KING | E174: M | F174: CAPA | G174: AS | H174: U14 | I174: SI | J174: 2 | K174: 231.16 | L174: 999.99 | M174: 999.99 | N174: 999.99 | O174: 999.99 | P174: 999.99 | Q174: 999.99 | R174: 999.99 | S174: 999.99 | T174: 999.99 | U174: 363.84 | V174: 999.99 | W174: 999.99 | X174: 999.99 | Y174: 999.99 | Z174: 369.8 | AA174: 341.05 | AB174: 415.64 | AC174: 411.68 | AD174: 339.09
A175: 2012-10-29 | B175: 241030326 | C175: LAWRENCE | D175: WESTCOTT LEIBBRANDT | E175: M | F175: CLP | G175: AS | H175: U14 | I175: SI | J175: 2 | K175: 999.99 | L175: 999.99 | M175: 999.99 | N175: 999.99 | O175: 999.99 | P175: 999.99 | Q175: 999.99 | R175: 999.99 | S175: 999.99 | T175: 999.99 | U175: 999.99 | V175: 137 | W175: 999.99 | X175: 177.54 | Y175: 114.99 | Z175: 999.99 | AA175: 102.62 | AB175: 999.99 | AC175: 205.01 | AD175: 163.29
A176: 2012-10-27 | B176: 241086215 | C176: MADDALENA | D176: CERONI YOB | E176: F | F176: CAO | G176: AS | H176: U14 | I176: SI | J176: 2 | K176: 91.8 | L176: 999.99 | M176: 999.99 | N176: 94.48 | O176: 999.99 | P176: 999.99 | Q176: 159.25 | R176: 176.92 | S176: 164.81 | T176: 164.81 | U176: 999.99 | V176: 999.99 | W176: 999.99 | X176: 999.99 | Y176: 999.99 | Z176: 999.99 | AA176: 999.99 | AB176: 193.03 | AC176: 999.99 | AD176: 999.99
A177: 2012-11-11 | B177: 241106004 | C177: ASUNCION | D177: GARCIA OVALLE | E177: F | F177: UC | G177: AS | H177: U14 | I177: SI | J177: 2 | K177: 999.99 | L177: 999.99 | M177: 167.07 | N177: 999.99 | O177: 999.99 | P177: 999.99 | Q177: 999.99 | R177: 999.99 | S177: 999.99 | T177: 999.99 | U177: 999.99 | V177: 999.99 | W177: 999.99 | X177: 231.84 | Y177: 190.67 | Z177: 260.44 | AA177: 212.28 | AB177: 999.99 | AC177: 191.38 | AD177: 216.61
A178: 2012-11-10 | B178: 241121836 | C178: JAVIERA | D178: QUEVEDO MONTAÑO | E178: F | F178: LV | G178: AS | H178: U14 | I178: SI | J178: 2 | K178: 999.99 | L178: 999.99 | M178: 999.99 | N178: 999.99 | O178: 999.99 | P178: 874.71 | Q178: 559.09 | R178: 999.99 | S178: 999.99 | T178: 999.99 | U178: 999.99 | V178: 999.99 | W178: 999.99 | X178: 999.99 | Y178: 999.99 | Z178: 999.99 | AA178: 999.99 | AB178: 278.79 | AC178: 999.99 | AD178: 999.99
A179: 2012-11-21 | B179: 241213900 | C179: DELFINA | D179: ANGUITA AVILES | E179: F | F179: CAO | G179: AS | H179: U14 | I179: SI | J179: 2 | K179: 93.5 | L179: 999.99 | M179: 999.99 | N179: 105.25 | O179: 999.99 | P179: 999.99 | Q179: 137.38 | R179: 144.94 | S179: 152.73 | T179: 152.73 | U179: 999.99 | V179: 999.99 | W179: 999.99 | X179: 999.99 | Y179: 999.99 | Z179: 132.13 | AA179: 127.97 | AB179: 172.52 | AC179: 199.67 | AD179: 183.48
A180: 2012-11-26 | B180: 241242684 | C180: TOBÍAS | D180: GROB ANGERMEYER | E180: M | F180: CAN | G180: AS | H180: U14 | I180: SI | J180: 2 | K180: 999.99 | L180: 166.93 | M180: 127.2 | N180: 999.99 | O180: 999.99 | P180: 999.99 | Q180: 999.99 | R180: 999.99 | S180: 999.99 | T180: 999.99 | U180: 999.99 | V180: 999.99 | W180: 999.99 | X180: 153.96 | Y180: 999.99 | Z180: 110.35 | AA180: 84.56 | AB180: 999.99 | AC180: 186.83 | AD180: 175.01
A181: 2012-11-14 | B181: 24124489K | C181: SANTIAGO | D181: CARVALLO TARICCO | E181: M | F181: POR | G181: AS | H181: U14 | I181: SI | J181: 2 | K181: 999.99 | L181: 999.99 | M181: 999.99 | N181: 999.99 | O181: 999.99 | P181: 999.99 | Q181: 999.99 | R181: 999.99 | S181: 999.99 | T181: 999.99 | U181: 338.37 | V181: 999.99 | W181: 999.99 | X181: 999.99 | Y181: 999.99 | Z181: 999.99 | AA181: 999.99 | AB181: 999.99 | AC181: 999.99 | AD181: 999.99
A182: 2012-11-29 | B182: 241284565 | C182: MATIAS | D182: BARRIENTOS ENGLER | E182: M | F182: CAO | G182: AS | H182: U14 | I182: SI | J182: 2 | K182: 190.35 | L182: 999.99 | M182: 999.99 | N182: 999.99 | O182: 190.42 | P182: 999.99 | Q182: 999.99 | R182: 237.61 | S182: 999.99 | T182: 228.07 | U182: 999.99 | V182: 999.99 | W182: 999.99 | X182: 999.99 | Y182: 999.99 | Z182: 999.99 | AA182: 999.99 | AB182: 387.41 | AC182: 999.99 | AD182: 999.99
A183: 2012-12-09 | B183: 241342328 | C183: MARIA | D183: BRICEÑO PURCELL | E183: F | F183: CLP | G183: AS | H183: U14 | I183: SI | J183: 2 | K183: 999.99 | L183: 104.6 | M183: 87.69 | N183: 999.99 | O183: 999.99 | P183: 999.99 | Q183: 999.99 | R183: 999.99 | S183: 999.99 | T183: 999.99 | U183: 999.99 | V183: 110.13 | W183: 101.81 | X183: 97.62 | Y183: 106.94 | Z183: 115.22 | AA183: 108.14 | AB183: 999.99 | AC183: 137.12 | AD183: 136.68
A184: 2012-12-07 | B184: 241351483 | C184: FACUNDO | D184: MORAGA CANTERINI | E184: M | F184: CAN | G184: AS | H184: U14 | I184: SI | J184: 2 | K184: 999.99 | L184: 999.99 | M184: 172.79 | N184: 999.99 | O184: 999.99 | P184: 999.99 | Q184: 999.99 | R184: 999.99 | S184: 999.99 | T184: 999.99 | U184: 999.99 | V184: 999.99 | W184: 999.99 | X184: 170.24 | Y184: 216.44 | Z184: 173.65 | AA184: 150.91 | AB184: 999.99 | AC184: 234.43 | AD184: 999.99
A185: 2012-12-06 | B185: 241361489 | C185: JULIETA | D185: ESCUDERO ZARATE | E185: F | F185: CAPA | G185: AS | H185: U14 | I185: SI | J185: 2 | K185: 999.99 | L185: 999.99 | M185: 999.99 | N185: 999.99 | O185: 999.99 | P185: 999.99 | Q185: 999.99 | R185: 999.99 | S185: 999.99 | T185: 999.99 | U185: 529.81 | V185: 999.99 | W185: 999.99 | X185: 999.99 | Y185: 999.99 | Z185: 448.73 | AA185: 402.8 | AB185: 999.99 | AC185: 999.99 | AD185: 999.99
A186: 2012-12-11 | B186: 241446131 | C186: SIMONA | D186: SÁNCHEZ GÓMEZ | E186: F | F186: POR | G186: AS | H186: U14 | I186: SI | J186: 2 | K186: 999.99 | L186: 414.66 | M186: 999.99 | N186: 999.99 | O186: 999.99 | P186: 999.99 | Q186: 999.99 | R186: 999.99 | S186: 999.99 | T186: 999.99 | U186: 999.99 | V186: 433.6 | W186: 485.69 | X186: 999.99 | Y186: 999.99 | Z186: 999.99 | AA186: 999.99 | AB186: 999.99 | AC186: 999.99 | AD186: 999.99
A187: 2012-12-26 | B187: 241484866 | C187: SARA | D187: GALLEGUILLOS MIRANDA | E187: F | F187: CAPA | G187: AS | H187: U14 | I187: SI | J187: 2 | K187: 117.26 | L187: 999.99 | M187: 999.99 | N187: 999.99 | O187: 999.99 | P187: 82.77 | Q187: 204.46 | R187: 999.99 | S187: 999.99 | T187: 999.99 | U187: 165.41 | V187: 999.99 | W187: 999.99 | X187: 999.99 | Y187: 999.99 | Z187: 196.17 | AA187: 153.03 | AB187: 218.38 | AC187: 188.46 | AD187: 215.49
A188: 2012-12-27 | B188: 24149618K | C188: JACINTA | D188: LÓPEZ CHAMORRO | E188: F | F188: CEC | G188: AS | H188: U14 | I188: SI | J188: 2 | K188: 255.71 | L188: 999.99 | M188: 999.99 | N188: 999.99 | O188: 999.99 | P188: 999.99 | Q188: 484.24 | R188: 999.99 | S188: 999.99 | T188: 999.99 | U188: 366.06 | V188: 999.99 | W188: 999.99 | X188: 455.23 | Y188: 424.31 | Z188: 999.99 | AA188: 999.99 | AB188: 516.12 | AC188: 483.06 | AD188: 417.23
A189: 2013-01-07 | B189: 241587681 | C189: BENJAMIN | D189: DIAZ FIGUEROA | E189: M | F189: CAR | G189: AS | H189: U14 | I189: SI | J189: 1 | K189: 108.75 | L189: 999.99 | M189: 999.99 | N189: 999.99 | O189: 999.99 | P189: 187.51 | Q189: 186.95 | R189: 999.99 | S189: 999.99 | T189: 999.99 | U189: 197.38 | V189: 999.99 | W189: 999.99 | X189: 999.99 | Y189: 999.99 | Z189: 999.99 | AA189: 999.99 | AB189: 282.09 | AC189: 999.99 | AD189: 999.99
A190: 2013-01-02 | B190: 241593223 | C190: STEPHAN KARL | D190: LANDOLT HARRIS | E190: M | F190: CAPA | G190: AS | H190: U14 | I190: SI | J190: 1 | K190: 999.99 | L190: 999.99 | M190: 999.99 | N190: 999.99 | O190: 999.99 | P190: 999.99 | Q190: 999.99 | R190: 999.99 | S190: 999.99 | T190: 999.99 | U190: 999.99 | V190: 999.99 | W190: 999.99 | X190: 999.99 | Y190: 999.99 | Z190: 999.99 | AA190: 999.99 | AB190: 999.99 | AC190: 999.99 | AD190: 999.99
A191: 2013-01-07 | B191: 241608506 | C191: CRISTIAN | D191: SWETT LAGO | E191: M | F191: CAO | G191: AS | H191: U14 | I191: SI | J191: 1 | K191: 999.99 | L191: 999.99 | M191: 999.99 | N191: 999.99 | O191: 999.99 | P191: 999.99 | Q191: 999.99 | R191: 999.99 | S191: 999.99 | T191: 999.99 | U191: 999.99 | V191: 999.99 | W191: 999.99 | X191: 999.99 | Y191: 999.99 | Z191: 999.99 | AA191: 999.99 | AB191: 999.99 | AC191: 999.99 | AD191: 999.99
A192: 2013-01-07 | B192: 241608786 | C192: TRINIDAD | D192: SWETT LAGO | E192: F | F192: CAO | G192: AS | H192: U14 | I192: SI | J192: 1 | K192: 999.99 | L192: 999.99 | M192: 999.99 | N192: 999.99 | O192: 999.99 | P192: 999.99 | Q192: 999.99 | R192: 999.99 | S192: 999.99 | T192: 999.99 | U192: 999.99 | V192: 999.99 | W192: 999.99 | X192: 999.99 | Y192: 999.99 | Z192: 999.99 | AA192: 999.99 | AB192: 999.99 | AC192: 999.99 | AD192: 999.99
A193: 2013-01-18 | B193: 241684717 | C193: SOFÍA | D193: SOLAR TURRILLAS | E193: F | F193: CVN | G193: AS | H193: U14 | I193: SI | J193: 1 | K193: 999.99 | L193: 999.99 | M193: 999.99 | N193: 999.99 | O193: 999.99 | P193: 999.99 | Q193: 999.99 | R193: 999.99 | S193: 999.99 | T193: 999.99 | U193: 999.99 | V193: 999.99 | W193: 999.99 | X193: 999.99 | Y193: 999.99 | Z193: 999.99 | AA193: 999.99 | AB193: 999.99 | AC193: 999.99 | AD193: 999.99
A194: 2013-01-16 | B194: 241684849 | C194: AMBAR | D194: CARDENAS CONEJEROS | E194: F | F194: PAT | G194: AS | H194: U14 | I194: SI | J194: 1 | K194: 999.99 | L194: 999.99 | M194: 999.99 | N194: 232.83 | O194: 999.99 | P194: 999.99 | Q194: 999.99 | R194: 316.08 | S194: 314.3 | T194: 314.3 | U194: 999.99 | V194: 999.99 | W194: 999.99 | X194: 999.99 | Y194: 999.99 | Z194: 999.99 | AA194: 999.99 | AB194: 999.99 | AC194: 999.99 | AD194: 999.99
A195: 2013-01-19 | B195: 241702219 | C195: ANA | D195: MONTAGNON FERNÁNDEZ | E195: F | F195: ARS | G195: AS | H195: U14 | I195: SI | J195: 1 | K195: 999.99 | L195: 209.21 | M195: 160.13 | N195: 999.99 | O195: 999.99 | P195: 999.99 | Q195: 999.99 | R195: 999.99 | S195: 999.99 | T195: 999.99 | U195: 999.99 | V195: 999.99 | W195: 999.99 | X195: 999.99 | Y195: 245.22 | Z195: 170.24 | AA195: 218.66 | AB195: 999.99 | AC195: 208.19 | AD195: 231.84
A196: 2013-01-22 | B196: 241716457 | C196: BORJA | D196: CHAVEZ BAHAMONDES | E196: M | F196: ARS | G196: AS | H196: U14 | I196: SI | J196: 1 | K196: 999.99 | L196: 999.99 | M196: 999.99 | N196: 999.99 | O196: 999.99 | P196: 999.99 | Q196: 999.99 | R196: 999.99 | S196: 999.99 | T196: 999.99 | U196: 999.99 | V196: 999.99 | W196: 999.99 | X196: 999.99 | Y196: 999.99 | Z196: 999.99 | AA196: 254.07 | AB196: 999.99 | AC196: 319.35 | AD196: 360.88
A197: 2013-01-27 | B197: 241761185 | C197: ALEXANDER | D197: ROJAS BUSTOS | E197: M | F197: UC | G197: AS | H197: U14 | I197: SI | J197: 1 | K197: 999.99 | L197: 999.99 | M197: 999.99 | N197: 999.99 | O197: 999.99 | P197: 999.99 | Q197: 999.99 | R197: 999.99 | S197: 999.99 | T197: 999.99 | U197: 999.99 | V197: 999.99 | W197: 999.99 | X197: 124.79 | Y197: 158.82 | Z197: 232.64 | AA197: 188.89 | AB197: 999.99 | AC197: 999.99 | AD197: 999.99
A198: 2013-05-02 | B198: 241853950 | C198: ZOE | D198: MOLINARE OLMOS | E198: F | F198: LV | G198: AS | H198: U14 | I198: SI | J198: 1 | K198: 215.51 | L198: 999.99 | M198: 999.99 | N198: 999.99 | O198: 999.99 | P198: 486.59 | Q198: 333.23 | R198: 999.99 | S198: 999.99 | T198: 999.99 | U198: 329.49 | V198: 999.99 | W198: 999.99 | X198: 999.99 | Y198: 999.99 | Z198: 999.99 | AA198: 999.99 | AB198: 282.89 | AC198: 999.99 | AD198: 999.99
A199: 2013-01-17 | B199: 241893359 | C199: JUAN | D199: UNDURRAGA URIBE | E199: M | F199: CLP | G199: AS | H199: U14 | I199: SI | J199: 1 | K199: 999.99 | L199: 999.99 | M199: 168.04 | N199: 999.99 | O199: 999.99 | P199: 999.99 | Q199: 999.99 | R199: 999.99 | S199: 999.99 | T199: 999.99 | U199: 999.99 | V199: 107.92 | W199: 137.44 | X199: 200.14 | Y199: 116.72 | Z199: 165.02 | AA199: 999.99 | AB199: 999.99 | AC199: 350.21 | AD199: 239
A200: 2013-02-08 | B200: 24189715K | C200: BERNARDO | D200: BRAVO RECCIUS | E200: M | F200: UC | G200: AS | H200: U14 | I200: SI | J200: 1 | K200: 999.99 | L200: 999.99 | M200: 999.99 | N200: 999.99 | O200: 999.99 | P200: 999.99 | Q200: 999.99 | R200: 999.99 | S200: 999.99 | T200: 999.99 | U200: 999.99 | V200: 999.99 | W200: 999.99 | X200: 261.89 | Y200: 261.25 | Z200: 226.17 | AA200: 236.95 | AB200: 999.99 | AC200: 304.04 | AD200: 308.38
... 167 more rows

Sheet Resultados
A1: Datos de Deportista | K1: Resultados SL | S1: Resultados GS | AA1: Resultado SG
A2: Fecha | B2: Rut | C2: Nombre | D2: Apellido | E2: Sexo | F2: Club | G2: Disc. | H2: Cat. | I2: Activo | J2: Año | K2: BASE SL (aplica adder) | L2: Lista 3 | M2: Ind. | N2: Mejor | O2: 2do Mejor | P2: Mejor * 1,2 | Q2: SL | R2: Ind. | S2: BASE GS (aplica adder) | T2: Lista 3 | U2: Ind. | V2: Mejor | W2: 2do Mejor | X2: Mejor * 1,2 | Y2: GS | Z2: Ind. | AA2: BASE SG (aplica adder) | AB2: Lista 3 | AC2: Ind. | AD2: Mejor | AE2: 2do Mejor | AF2: Mejor * 1,2 | AG2: SG | AH2: Ind.
A3: 2010-02-19 | B3: 131926880 | C3: ENZO | D3: CASAGRANDE BERTOLDI | E3: M | F3: CVN | G3: AS | H3: U16 | I3: SI | J3: 2 | K3: 999.99 | L3: 999.99 | N3: =MIN([1]Competencias!K3:P3) -> 999.99 | O3: =IFERROR(SMALL([1]Competencias!K3:P3,2),999.99) -> 999.99 | P3: =N3*1.2 -> 1199.99 | Q3: =IF(N3=999.99,K3,IF(O3=999.99,IF(K3<999.99,K3,P3),IF((N3+O3)/2>K3,K3,(N3+O3)/2))) -> 999.99 | R3: =IF(Q3="999,99","",IF(Q3=A3,">",IF(Q3=O3,"+",""))) -> + | S3: 999.99 | T3: 999.99 | V3: =MIN([1]Competencias!Q3:AA3) -> 999.99 | W3: =IFERROR(SMALL([1]Competencias!Q3:AA3,2),999.99) -> 999.99 | X3: =V3*1.2 -> 1199.99 | Y3: =IF(V3=999.99,S3,IF(W3=999.99,IF(S3<999.99,S3,X3),IF((V3+W3)/2>S3,S3,(V3+W3)/2))) -> 999.99 | Z3: =IF(Y3="999,99","",IF(Y3=G3,">",IF(Y3=W3,"+",""))) -> + | AA3: 999.99 | AB3: 345.53 | AD3: =MIN([1]Competencias!AB3:AD3) -> 287.94 | AE3: =IFERROR(SMALL([1]Competencias!AB3:AD3,2),999.99) -> 999.99 | AF3: =AD3*1.2 -> 345.53 | AG3: =IF(AD3=999.99,AA3,IF(AE3=999.99,IF(AA3<999.99,AA3,AF3),IF((AD3+AE3)/2>AA3,AA3,(AD3+AE3)/2))) -> 345.53 | AH3: =IF(AG3="999,99","",IF(AG3=R3,">",IF(AG3=AE3,"+",""))) -> 
A4: 2013-06-21 | B4: 16707724 | C4: RUFINO | D4: CRESPO RODRÍGUEZ | E4: M | F4: CLP | G4: AS | H4: U14 | I4: SI | J4: 1 | K4: 999.99 | L4: 281.66 | N4: =MIN([1]Competencias!K4:P4) -> 243.92 | O4: =IFERROR(SMALL([1]Competencias!K4:P4,2),999.99) -> 319.40 | P4: 292.70 | Q4: 281.66 | S4: 999.99 | T4: 999.99 | V4: =MIN([1]Competencias!Q4:AA4) -> 999.99 | W4: =IFERROR(SMALL([1]Competencias!Q4:AA4,2),999.99) -> 999.99 | X4: 1199.99 | Y4: 999.99 | Z4: + | AA4: 999.99 | AB4: 999.99 | AD4: =MIN([1]Competencias!AB4:AD4) -> 999.99 | AE4: =IFERROR(SMALL([1]Competencias!AB4:AD4,2),999.99) -> 999.99 | AF4: 1199.99 | AG4: 999.99 | AH4: +
A5: 2012-01-07 | B5: 22EA72258 | C5: JUAN | D5: LE BAULT DE LA MORINIERE | E5: M | F5: CLP | G5: AS | H5: U14 | I5: SI | J5: 2 | K5: 999.99 | L5: 999.99 | N5: =MIN([1]Competencias!K5:P5) -> 999.99 | O5: =IFERROR(SMALL([1]Competencias!K5:P5,2),999.99) -> 999.99 | P5: 1199.99 | Q5: 999.99 | R5: + | S5: 999.99 | T5: 999.99 | V5: =MIN([1]Competencias!Q5:AA5) -> 999.99 | W5: =IFERROR(SMALL([1]Competencias!Q5:AA5,2),999.99) -> 999.99 | X5: 1199.99 | Y5: 999.99 | Z5: + | AA5: 999.99 | AB5: 999.99 | AD5: =MIN([1]Competencias!AB5:AD5) -> 999.99 | AE5: =IFERROR(SMALL([1]Competencias!AB5:AD5,2),999.99) -> 999.99 | AF5: 1199.99 | AG5: 999.99 | AH5: +
A6: 2010-01-03 | B6: 23215800K | C6: ANTONIA | D6: ESTEVE SECO | E6: F | F6: CAR | G6: AS | H6: U16 | I6: SI | J6: 2 | K6: 93.44 | L6: 93.44 | N6: =MIN([1]Competencias!K6:P6) -> 999.99 | O6: =IFERROR(SMALL([1]Competencias!K6:P6,2),999.99) -> 999.99 | P6: 1199.99 | Q6: 93.44 | S6: 137.35 | T6: 137.35 | V6: =MIN([1]Competencias!Q6:AA6) -> 999.99 | W6: =IFERROR(SMALL([1]Competencias!Q6:AA6,2),999.99) -> 999.99 | X6: 1199.99 | Y6: 137.35 | AA6: 216.81 | AB6: 216.81 | AD6: =MIN([1]Competencias!AB6:AD6) -> 999.99 | AE6: =IFERROR(SMALL([1]Competencias!AB6:AD6,2),999.99) -> 999.99 | AF6: 1199.99 | AG6: 216.81
A7: 2010-01-19 | B7: 23227283K | C7: JOSEFINA | D7: PEREZ OLMOS | E7: F | F7: LV | G7: AS | H7: U16 | I7: SI | J7: 2 | K7: 230.47 | L7: 230.47 | N7: =MIN([1]Competencias!K7:P7) -> 228.74 | O7: =IFERROR(SMALL([1]Competencias!K7:P7,2),999.99) -> 999.99 | P7: 274.49 | Q7: 230.47 | S7: 212.52 | T7: 209.13 | V7: =MIN([1]Competencias!Q7:AA7) -> 203.50 | W7: =IFERROR(SMALL([1]Competencias!Q7:AA7,2),999.99) -> 214.75 | X7: 244.20 | Y7: 209.13 | AA7: 208.65 | AB7: 208.65 | AD7: =MIN([1]Competencias!AB7:AD7) -> 208.81 | AE7: =IFERROR(SMALL([1]Competencias!AB7:AD7,2),999.99) -> 999.99 | AF7: 250.57 | AG7: 208.65
A8: 2010-01-17 | B8: 232274360 | C8: SILKE | D8: OPITZ SEIDL | E8: F | F8: CAO | G8: AS | H8: U16 | I8: SI | J8: 2 | K8: 156.18 | L8: 132.49 | N8: =MIN([1]Competencias!K8:P8) -> 124.06 | O8: =IFERROR(SMALL([1]Competencias!K8:P8,2),999.99) -> 140.92 | P8: 148.87 | Q8: 132.49 | S8: 154.47 | T8: 154.47 | V8: =MIN([1]Competencias!Q8:AA8) -> 165.93 | W8: =IFERROR(SMALL([1]Competencias!Q8:AA8,2),999.99) -> 207.47 | X8: 199.12 | Y8: 154.47 | AA8: 111.16 | AB8: 111.16 | AD8: =MIN([1]Competencias!AB8:AD8) -> 999.99 | AE8: =IFERROR(SMALL([1]Competencias!AB8:AD8,2),999.99) -> 999.99 | AF8: 1199.99 | AG8: 111.16
A9: 2010-01-20 | B9: 232291966 | C9: ALEGRA | D9: REYES SBARAGLINI | E9: F | F9: CEC | G9: AS | H9: U16 | I9: SI | J9: 2 | K9: 999.99 | L9: 999.99 | N9: =MIN([1]Competencias!K9:P9) -> 999.99 | O9: =IFERROR(SMALL([1]Competencias!K9:P9,2),999.99) -> 999.99 | P9: 1199.99 | Q9: 999.99 | R9: + | S9: 999.99 | T9: 999.99 | V9: =MIN([1]Competencias!Q9:AA9) -> 999.99 | W9: =IFERROR(SMALL([1]Competencias!Q9:AA9,2),999.99) -> 999.99 | X9: 1199.99 | Y9: 999.99 | Z9: + | AA9: 999.99 | AB9: 999.99 | AD9: =MIN([1]Competencias!AB9:AD9) -> 999.99 | AE9: =IFERROR(SMALL([1]Competencias!AB9:AD9,2),999.99) -> 999.99 | AF9: 1199.99 | AG9: 999.99 | AH9: +
A10: 2010-01-26 | B10: 232325704 | C10: AMALIA | D10: BARRIENTOS MARTINEZ | E10: F | F10: CAO | G10: AS | H10: U16 | I10: SI | J10: 2 | K10: 137.20 | L10: 137.20 | N10: =MIN([1]Competencias!K10:P10) -> 134.85 | O10: =IFERROR(SMALL([1]Competencias!K10:P10,2),999.99) -> 139.70 | P10: 161.82 | Q10: 137.20 | S10: 168.60 | T10: 168.60 | V10: =MIN([1]Competencias!Q10:AA10) -> 164.77 | W10: =IFERROR(SMALL([1]Competencias!Q10:AA10,2),999.99) -> 185.08 | X10: 197.72 | Y10: 168.60 | AA10: 107.11 | AB10: 107.11 | AD10: =MIN([1]Competencias!AB10:AD10) -> 151.18 | AE10: =IFERROR(SMALL([1]Competencias!AB10:AD10,2),999.99) -> 187.74 | AF10: 181.42 | AG10: 107.11
A11: 2010-01-23 | B11: 232336994 | C11: FERNANDA JOSEFA | D11: VASQUEZ VERGARA | E11: F | F11: CAN | G11: AS | H11: U16 | I11: SI | J11: 2 | K11: 197.04 | L11: 161.71 | N11: =MIN([1]Competencias!K11:P11) -> 153.52 | O11: =IFERROR(SMALL([1]Competencias!K11:P11,2),999.99) -> 169.89 | P11: 184.22 | Q11: 161.71 | S11: 211.92 | T11: 211.92 | V11: =MIN([1]Competencias!Q11:AA11) -> 999.99 | W11: =IFERROR(SMALL([1]Competencias!Q11:AA11,2),999.99) -> 999.99 | X11: 1199.99 | Y11: 211.92 | AA11: 190.18 | AB11: 190.18 | AD11: =MIN([1]Competencias!AB11:AD11) -> 999.99 | AE11: =IFERROR(SMALL([1]Competencias!AB11:AD11,2),999.99) -> 999.99 | AF11: 1199.99 | AG11: 190.18
A12: 2010-01-23 | B12: 232341041 | C12: FLORENCIA | D12: PINCHEIRA BRAVO | E12: F | F12: CAR | G12: AS | H12: U16 | I12: SI | J12: 2 | K12: 395.60 | L12: 204.99 | N12: =MIN([1]Competencias!K12:P12) -> 167.42 | O12: =IFERROR(SMALL([1]Competencias!K12:P12,2),999.99) -> 242.55 | P12: 200.90 | Q12: 204.99 | S12: 427.93 | T12: 209.32 | V12: =MIN([1]Competencias!Q12:AA12) -> 205.07 | W12: =IFERROR(SMALL([1]Competencias!Q12:AA12,2),999.99) -> 213.57 | X12: 246.08 | Y12: 209.32 | AA12: 310.93 | AB12: 310.93 | AD12: =MIN([1]Competencias!AB12:AD12) -> 327.76 | AE12: =IFERROR(SMALL([1]Competencias!AB12:AD12,2),999.99) -> 999.99 | AF12: 393.31 | AG12: 310.93
A13: 2010-01-25 | B13: 23234394K | C13: MARIA | D13: MULLER CORREA | E13: F | F13: CLP | G13: AS | H13: U16 | I13: SI | J13: 2 | K13: 185.27 | L13: 185.27 | N13: =MIN([1]Competencias!K13:P13) -> 999.99 | O13: =IFERROR(SMALL([1]Competencias!K13:P13,2),999.99) -> 999.99 | P13: 1199.99 | Q13: 185.27 | S13: 182.87 | T13: 182.87 | V13: =MIN([1]Competencias!Q13:AA13) -> 281.01 | W13: =IFERROR(SMALL([1]Competencias!Q13:AA13,2),999.99) -> 460.17 | X13: 337.21 | Y13: 182.87 | AA13: 249.13 | AB13: 227.06 | AD13: =MIN([1]Competencias!AB13:AD13) -> 211.55 | AE13: =IFERROR(SMALL([1]Competencias!AB13:AD13,2),999.99) -> 242.56 | AF13: 253.86 | AG13: 227.06
A14: 2010-01-30 | B14: 232362693 | C14: MARTIN | D14: CRESPO IBAÑEZ | E14: M | F14: CLP | G14: AS | H14: U16 | I14: SI | J14: 2 | K14: 93.90 | L14: 93.90 | N14: =MIN([1]Competencias!K14:P14) -> 105.46 | O14: =IFERROR(SMALL([1]Competencias!K14:P14,2),999.99) -> 999.99 | P14: 126.55 | Q14: 93.90 | S14: 84.41 | T14: 84.41 | V14: =MIN([1]Competencias!Q14:AA14) -> 124.38 | W14: =IFERROR(SMALL([1]Competencias!Q14:AA14,2),999.99) -> 141.21 | X14: 149.26 | Y14: 84.41 | AA14: 99.08 | AB14: 99.08 | AD14: =MIN([1]Competencias!AB14:AD14) -> 171.21 | AE14: =IFERROR(SMALL([1]Competencias!AB14:AD14,2),999.99) -> 999.99 | AF14: 205.45 | AG14: 99.08
A15: 2010-01-28 | B15: 232389168 | C15: JADE | D15: REBOLLEDO HERNANDEZ | E15: F | F15: CAPA | G15: AS | H15: U16 | I15: SI | J15: 2 | K15: 999.99 | L15: 251.51 | N15: =MIN([1]Competencias!K15:P15) -> 209.59 | O15: =IFERROR(SMALL([1]Competencias!K15:P15,2),999.99) -> 999.99 | P15: 251.51 | Q15: 251.51 | S15: 342.64 | T15: 342.64 | V15: =MIN([1]Competencias!Q15:AA15) -> 208.44 | W15: =IFERROR(SMALL([1]Competencias!Q15:AA15,2),999.99) -> 999.99 | X15: 250.13 | Y15: 342.64 | AA15: 421.62 | AB15: 421.62 | AD15: =MIN([1]Competencias!AB15:AD15) -> 999.99 | AE15: =IFERROR(SMALL([1]Competencias!AB15:AD15,2),999.99) -> 999.99 | AF15: 1199.99 | AG15: 421.62
A16: 2010-02-15 | B16: 232504285 | C16: CRISTIÁN | D16: CUMSILLE SCHULBACH | E16: M | F16: CVN | G16: AS | H16: U16 | I16: SI | J16: 2 | K16: 310.34 | L16: 310.34 | N16: =MIN([1]Competencias!K16:P16) -> 999.99 | O16: =IFERROR(SMALL([1]Competencias!K16:P16,2),999.99) -> 999.99 | P16: 1199.99 | Q16: 310.34 | S16: 200.72 | T16: 200.72 | V16: =MIN([1]Competencias!Q16:AA16) -> 640.42 | W16: =IFERROR(SMALL([1]Competencias!Q16:AA16,2),999.99) -> 999.99 | X16: 768.50 | Y16: 200.72 | AA16: 200.12 | AB16: 200.12 | AD16: =MIN([1]Competencias!AB16:AD16) -> 219.60 | AE16: =IFERROR(SMALL([1]Competencias!AB16:AD16,2),999.99) -> 999.99 | AF16: 263.52 | AG16: 200.12
A17: 2010-03-10 | B17: 232699809 | C17: FLORENCIA | D17: ROJAS FARIAS | E17: F | F17: UC | G17: AS | H17: U16 | I17: SI | J17: 2 | K17: 151.61 | L17: 151.61 | N17: =MIN([1]Competencias!K17:P17) -> 152.88 | O17: =IFERROR(SMALL([1]Competencias!K17:P17,2),999.99) -> 186.28 | P17: 183.46 | Q17: 151.61 | S17: 179.92 | T17: 179.92 | V17: =MIN([1]Competencias!Q17:AA17) -> 170.18 | W17: =IFERROR(SMALL([1]Competencias!Q17:AA17,2),999.99) -> 196.84 | X17: 204.22 | Y17: 179.92 | AA17: 228.79 | AB17: 228.79 | AD17: =MIN([1]Competencias!AB17:AD17) -> 249.79 | AE17: =IFERROR(SMALL([1]Competencias!AB17:AD17,2),999.99) -> 257.02 | AF17: 299.75 | AG17: 228.79
A18: 2010-03-15 | B18: 232700335 | C18: CLARA | D18: BASAURI GARDILCIC | E18: F | F18: CORR | G18: AS | H18: U16 | I18: SI | J18: 2 | K18: 215.95 | L18: 215.95 | N18: =MIN([1]Competencias!K18:P18) -> 999.99 | O18: =IFERROR(SMALL([1]Competencias!K18:P18,2),999.99) -> 999.99 | P18: 1199.99 | Q18: 215.95 | S18: 230.36 | T18: 230.36 | V18: =MIN([1]Competencias!Q18:AA18) -> 999.99 | W18: =IFERROR(SMALL([1]Competencias!Q18:AA18,2),999.99) -> 999.99 | X18: 1199.99 | Y18: 230.36 | AA18: 219.83 | AB18: 219.83 | AD18: =MIN([1]Competencias!AB18:AD18) -> 999.99 | AE18: =IFERROR(SMALL([1]Competencias!AB18:AD18,2),999.99) -> 999.99 | AF18: 1199.99 | AG18: 219.83
A19: 2010-03-15 | B19: 232706651 | C19: OLIVIA | D19: RODRIGUEZ CASTRO | E19: F | F19: CVN | G19: AS | H19: U16 | I19: SI | J19: 2 | K19: 206.50 | L19: 206.50 | N19: =MIN([1]Competencias!K19:P19) -> 407.66 | O19: =IFERROR(SMALL([1]Competencias!K19:P19,2),999.99) -> 999.99 | P19: 489.19 | Q19: 206.50 | S19: 284.87 | T19: 284.87 | V19: =MIN([1]Competencias!Q19:AA19) -> 406.91 | W19: =IFERROR(SMALL([1]Competencias!Q19:AA19,2),999.99) -> 999.99 | X19: 488.29 | Y19: 284.87 | AA19: 488.72 | AB19: 488.72 | AD19: =MIN([1]Competencias!AB19:AD19) -> 999.99 | AE19: =IFERROR(SMALL([1]Competencias!AB19:AD19,2),999.99) -> 999.99 | AF19: 1199.99 | AG19: 488.72
A20: 2010-03-22 | B20: 232776323 | C20: ANTONIO | D20: KUBICK LESSER | E20: M | F20: CLP | G20: AS | H20: U16 | I20: SI | J20: 2 | K20: 170.92 | L20: 170.92 | N20: =MIN([1]Competencias!K20:P20) -> 157.59 | O20: =IFERROR(SMALL([1]Competencias!K20:P20,2),999.99) -> 999.99 | P20: 189.11 | Q20: 170.92 | S20: 191.35 | T20: 191.35 | V20: =MIN([1]Competencias!Q20:AA20) -> 267.95 | W20: =IFERROR(SMALL([1]Competencias!Q20:AA20,2),999.99) -> 999.99 | X20: 321.54 | Y20: 191.35 | AA20: 189.31 | AB20: 189.31 | AD20: =MIN([1]Competencias!AB20:AD20) -> 999.99 | AE20: =IFERROR(SMALL([1]Competencias!AB20:AD20,2),999.99) -> 999.99 | AF20: 1199.99 | AG20: 189.31
A21: 2010-04-05 | B21: 232893249 | C21: FACUNDO | D21: GALILEA FUENTEALBA | E21: M | F21: CAEC | G21: AS | H21: U16 | I21: SI | J21: 2 | K21: 242.69 | L21: 242.69 | N21: =MIN([1]Competencias!K21:P21) -> 999.99 | O21: =IFERROR(SMALL([1]Competencias!K21:P21,2),999.99) -> 999.99 | P21: 1199.99 | Q21: 242.69 | S21: 202.79 | T21: 202.79 | V21: =MIN([1]Competencias!Q21:AA21) -> 192.92 | W21: =IFERROR(SMALL([1]Competencias!Q21:AA21,2),999.99) -> 999.99 | X21: 231.50 | Y21: 202.79 | AA21: 216.42 | AB21: 216.42 | AD21: =MIN([1]Competencias!AB21:AD21) -> 226.01 | AE21: =IFERROR(SMALL([1]Competencias!AB21:AD21,2),999.99) -> 259.77 | AF21: 271.21 | AG21: 216.42
A22: 2010-04-08 | B22: 232926155 | C22: PATRICIO | D22: BANNURA DECEBAL-CUZA | E22: M | F22: UC | G22: AS | H22: U16 | I22: SI | J22: 2 | K22: 50.00 | L22: 50.00 | N22: =MIN([1]Competencias!K22:P22) -> 999.99 | O22: =IFERROR(SMALL([1]Competencias!K22:P22,2),999.99) -> 999.99 | P22: 1199.99 | Q22: 50.00 | S22: 122.02 | T22: 122.02 | V22: =MIN([1]Competencias!Q22:AA22) -> 127.47 | W22: =IFERROR(SMALL([1]Competencias!Q22:AA22,2),999.99) -> 999.99 | X22: 152.96 | Y22: 122.02 | AA22: 141.41 | AB22: 141.41 | AD22: =MIN([1]Competencias!AB22:AD22) -> 161.83 | AE22: =IFERROR(SMALL([1]Competencias!AB22:AD22,2),999.99) -> 209.13 | AF22: 194.20 | AG22: 141.41
A23: 2010-04-19 | B23: 233009822 | C23: CARMENCITA | D23: PINILLA MORENO | E23: F | F23: CLP | G23: AS | H23: U16 | I23: SI | J23: 2 | K23: 50.00 | L23: 50.00 | N23: =MIN([1]Competencias!K23:P23) -> 94.19 | O23: =IFERROR(SMALL([1]Competencias!K23:P23,2),999.99) -> 97.87 | P23: 113.03 | Q23: 50.00 | S23: 78.97 | T23: 78.97 | V23: =MIN([1]Competencias!Q23:AA23) -> 111.43 | W23: =IFERROR(SMALL([1]Competencias!Q23:AA23,2),999.99) -> 440.00 | X23: 133.72 | Y23: 78.97 | AA23: 85.00 | AB23: 85.00 | AD23: =MIN([1]Competencias!AB23:AD23) -> 112.97 | AE23: =IFERROR(SMALL([1]Competencias!AB23:AD23,2),999.99) -> 132.33 | AF23: 135.56 | AG23: 85.00
A24: 2010-04-22 | B24: 233032808 | C24: LEONOR | D24: MUÑOZ QUINTANA | E24: F | F24: CORR | G24: AS | H24: U16 | I24: SI | J24: 2 | K24: 87.35 | L24: 87.35 | N24: =MIN([1]Competencias!K24:P24) -> 127.97 | O24: =IFERROR(SMALL([1]Competencias!K24:P24,2),999.99) -> 999.99 | P24: 153.56 | Q24: 87.35 | S24: 132.97 | T24: 132.97 | V24: =MIN([1]Competencias!Q24:AA24) -> 130.11 | W24: =IFERROR(SMALL([1]Competencias!Q24:AA24,2),999.99) -> 140.84 | X24: 156.13 | Y24: 132.97 | AA24: 129.26 | AB24: 129.26 | AD24: =MIN([1]Competencias!AB24:AD24) -> 177.48 | AE24: =IFERROR(SMALL([1]Competencias!AB24:AD24,2),999.99) -> 999.99 | AF24: 212.98 | AG24: 129.26
A25: 2010-04-19 | B25: 233059706 | C25: ISABEL | D25: CLARO IRARRAZAVAL | E25: F | F25: UC | G25: AS | H25: U16 | I25: SI | J25: 2 | K25: 74.57 | L25: 74.57 | N25: =MIN([1]Competencias!K25:P25) -> 122.53 | O25: =IFERROR(SMALL([1]Competencias!K25:P25,2),999.99) -> 999.99 | P25: 147.04 | Q25: 74.57 | S25: 85.46 | T25: 85.46 | V25: =MIN([1]Competencias!Q25:AA25) -> 108.27 | W25: =IFERROR(SMALL([1]Competencias!Q25:AA25,2),999.99) -> 141.72 | X25: 129.92 | Y25: 85.46 | AA25: 135.02 | AB25: 135.02 | AD25: =MIN([1]Competencias!AB25:AD25) -> 999.99 | AE25: =IFERROR(SMALL([1]Competencias!AB25:AD25,2),999.99) -> 999.99 | AF25: 1199.99 | AG25: 135.02
A26: 2010-04-27 | B26: 233074896 | C26: SANTIAGO | D26: CAPO CORNEJO | E26: M | F26: UC | G26: AS | H26: U16 | I26: SI | J26: 2 | K26: 198.26 | L26: 198.26 | N26: =MIN([1]Competencias!K26:P26) -> 202.93 | O26: =IFERROR(SMALL([1]Competencias!K26:P26,2),999.99) -> 999.99 | P26: 243.52 | Q26: 198.26 | S26: 216.79 | T26: 216.79 | V26: =MIN([1]Competencias!Q26:AA26) -> 221.98 | W26: =IFERROR(SMALL([1]Competencias!Q26:AA26,2),999.99) -> 234.54 | X26: 266.38 | Y26: 216.79 | AA26: 155.84 | AB26: 155.84 | AD26: =MIN([1]Competencias!AB26:AD26) -> 226.50 | AE26: =IFERROR(SMALL([1]Competencias!AB26:AD26,2),999.99) -> 253.57 | AF26: 271.80 | AG26: 155.84
A27: 2010-04-01 | B27: 233243736 | C27: NINA | D27: DUPUY ALLEN | E27: F | F27: CVN | G27: AS | H27: U16 | I27: SI | J27: 2 | K27: 171.50 | L27: 171.50 | N27: =MIN([1]Competencias!K27:P27) -> 142.64 | O27: =IFERROR(SMALL([1]Competencias!K27:P27,2),999.99) -> 999.99 | P27: 171.17 | Q27: 171.50 | S27: 112.82 | T27: 112.82 | V27: =MIN([1]Competencias!Q27:AA27) -> 999.99 | W27: =IFERROR(SMALL([1]Competencias!Q27:AA27,2),999.99) -> 999.99 | X27: 1199.99 | Y27: 112.82 | AA27: 226.51 | AB27: 226.51 | AD27: =MIN([1]Competencias!AB27:AD27) -> 999.99 | AE27: =IFERROR(SMALL([1]Competencias!AB27:AD27,2),999.99) -> 999.99 | AF27: 1199.99 | AG27: 226.51
A28: 2010-07-02 | B28: 233245771 | C28: CLARA | D28: TELLO MOLINARE | E28: F | F28: CAO | G28: AS | H28: U16 | I28: SI | J28: 2 | K28: 180.57 | L28: 180.57 | N28: =MIN([1]Competencias!K28:P28) -> 170.38 | O28: =IFERROR(SMALL([1]Competencias!K28:P28,2),999.99) -> 999.99 | P28: 204.46 | Q28: 180.57 | S28: 246.41 | T28: 246.41 | V28: =MIN([1]Competencias!Q28:AA28) -> 999.99 | W28: =IFERROR(SMALL([1]Competencias!Q28:AA28,2),999.99) -> 999.99 | X28: 1199.99 | Y28: 246.41 | AA28: 240.31 | AB28: 240.31 | AD28: =MIN([1]Competencias!AB28:AD28) -> 297.97 | AE28: =IFERROR(SMALL([1]Competencias!AB28:AD28,2),999.99) -> 999.99 | AF28: 357.56 | AG28: 240.31
A29: 2010-05-28 | B29: 23338349K | C29: JEAN CLAUDIO | D29: CARDENAS MANSILLA | E29: M | F29: PAT | G29: AS | H29: U16 | I29: SI | J29: 2 | K29: 198.07 | L29: 198.07 | N29: =MIN([1]Competencias!K29:P29) -> 999.99 | O29: =IFERROR(SMALL([1]Competencias!K29:P29,2),999.99) -> 999.99 | P29: 1199.99 | Q29: 198.07 | S29: 222.69 | T29: 222.69 | V29: =MIN([1]Competencias!Q29:AA29) -> 291.64 | W29: =IFERROR(SMALL([1]Competencias!Q29:AA29,2),999.99) -> 999.99 | X29: 349.97 | Y29: 222.69 | AA29: 366.15 | AB29: 366.15 | AD29: =MIN([1]Competencias!AB29:AD29) -> 999.99 | AE29: =IFERROR(SMALL([1]Competencias!AB29:AD29,2),999.99) -> 999.99 | AF29: 1199.99 | AG29: 366.15
A30: 2010-06-05 | B30: 233456179 | C30: EMILIA | D30: GROB ANGERMEYER | E30: F | F30: CAN | G30: AS | H30: U16 | I30: SI | J30: 2 | K30: 122.80 | L30: 122.80 | N30: =MIN([1]Competencias!K30:P30) -> 116.59 | O30: =IFERROR(SMALL([1]Competencias!K30:P30,2),999.99) -> 141.21 | P30: 139.91 | Q30: 122.80 | S30: 155.12 | T30: 116.91 | V30: =MIN([1]Competencias!Q30:AA30) -> 106.88 | W30: =IFERROR(SMALL([1]Competencias!Q30:AA30,2),999.99) -> 126.94 | X30: 128.26 | Y30: 116.91 | AA30: 109.14 | AB30: 109.14 | AD30: =MIN([1]Competencias!AB30:AD30) -> 109.89 | AE30: =IFERROR(SMALL([1]Competencias!AB30:AD30,2),999.99) -> 122.93 | AF30: 131.87 | AG30: 109.14
A31: 2010-05-30 | B31: 233464090 | C31: KARL | D31: PAULMANN PARSONS | E31: M | F31: CAN | G31: AS | H31: U16 | I31: SI | J31: 2 | K31: 999.99 | L31: 453.56 | N31: =MIN([1]Competencias!K31:P31) -> 377.97 | O31: =IFERROR(SMALL([1]Competencias!K31:P31,2),999.99) -> 999.99 | P31: 453.56 | Q31: 453.56 | S31: 999.99 | T31: 524.65 | V31: =MIN([1]Competencias!Q31:AA31) -> 437.21 | W31: =IFERROR(SMALL([1]Competencias!Q31:AA31,2),999.99) -> 999.99 | X31: 524.65 | Y31: 524.65 | AA31: 999.99 | AB31: 999.99 | AD31: =MIN([1]Competencias!AB31:AD31) -> 999.99 | AE31: =IFERROR(SMALL([1]Competencias!AB31:AD31,2),999.99) -> 999.99 | AF31: 1199.99 | AG31: 999.99 | AH31: +
A32: 2010-11-06 | B32: 233465003 | C32: ELOISA | D32: COSTA BERNALES | E32: F | F32: CVN | G32: AS | H32: U16 | I32: SI | J32: 2 | K32: 215.91 | L32: 185.36 | N32: =MIN([1]Competencias!K32:P32) -> 163.85 | O32: =IFERROR(SMALL([1]Competencias!K32:P32,2),999.99) -> 206.87 | P32: 196.62 | Q32: 185.36 | S32: 121.55 | T32: 121.55 | V32: =MIN([1]Competencias!Q32:AA32) -> 146.99 | W32: =IFERROR(SMALL([1]Competencias!Q32:AA32,2),999.99) -> 159.40 | X32: 176.39 | Y32: 121.55 | AA32: 146.50 | AB32: 146.50 | AD32: =MIN([1]Competencias!AB32:AD32) -> 168.03 | AE32: =IFERROR(SMALL([1]Competencias!AB32:AD32,2),999.99) -> 169.40 | AF32: 201.64 | AG32: 146.50
A33: 2010-11-06 | B33: 233465100 | C33: MATEO | D33: COSTA BERNALES | E33: M | F33: CVN | G33: AS | H33: U16 | I33: SI | J33: 2 | K33: 186.30 | L33: 186.30 | N33: =MIN([1]Competencias!K33:P33) -> 179.32 | O33: =IFERROR(SMALL([1]Competencias!K33:P33,2),999.99) -> 999.99 | P33: 215.18 | Q33: 186.30 | S33: 201.39 | T33: 201.39 | V33: =MIN([1]Competencias!Q33:AA33) -> 999.99 | W33: =IFERROR(SMALL([1]Competencias!Q33:AA33,2),999.99) -> 999.99 | X33: 1199.99 | Y33: 201.39 | AA33: 180.98 | AB33: 180.98 | AD33: =MIN([1]Competencias!AB33:AD33) -> 208.63 | AE33: =IFERROR(SMALL([1]Competencias!AB33:AD33,2),999.99) -> 209.29 | AF33: 250.36 | AG33: 180.98
A34: 2010-11-06 | B34: 233465259 | C34: LOURDES | D34: COSTA BERNALES | E34: F | F34: CVN | G34: AS | H34: U16 | I34: SI | J34: 2 | K34: 242.85 | L34: 242.85 | N34: =MIN([1]Competencias!K34:P34) -> 147.94 | O34: =IFERROR(SMALL([1]Competencias!K34:P34,2),999.99) -> 999.99 | P34: 177.53 | Q34: 242.85 | S34: 194.71 | T34: 194.71 | V34: =MIN([1]Competencias!Q34:AA34) -> 223.39 | W34: =IFERROR(SMALL([1]Competencias!Q34:AA34,2),999.99) -> 999.99 | X34: 268.07 | Y34: 194.71 | AA34: 198.69 | AB34: 198.69 | AD34: =MIN([1]Competencias!AB34:AD34) -> 216.78 | AE34: =IFERROR(SMALL([1]Competencias!AB34:AD34,2),999.99) -> 999.99 | AF34: 260.14 | AG34: 198.69
A35: 2010-06-09 | B35: 233466352 | C35: AMY | D35: CASTILLO ALVAREZ | E35: F | F35: UC | G35: AS | H35: U16 | I35: SI | J35: 2 | K35: 250.83 | L35: 250.83 | N35: =MIN([1]Competencias!K35:P35) -> 229.75 | O35: =IFERROR(SMALL([1]Competencias!K35:P35,2),999.99) -> 273.25 | P35: 275.70 | Q35: 250.83 | S35: 174.50 | T35: 174.50 | V35: =MIN([1]Competencias!Q35:AA35) -> 238.58 | W35: =IFERROR(SMALL([1]Competencias!Q35:AA35,2),999.99) -> 283.46 | X35: 286.30 | Y35: 174.50 | AA35: 188.41 | AB35: 188.41 | AD35: =MIN([1]Competencias!AB35:AD35) -> 359.77 | AE35: =IFERROR(SMALL([1]Competencias!AB35:AD35,2),999.99) -> 370.12 | AF35: 431.72 | AG35: 188.41
A36: 2010-11-06 | B36: 233480916 | C36: JUAN | D36: GARDILCIC SANTA CRUZ | E36: M | F36: CVN | G36: AS | H36: U16 | I36: SI | J36: 2 | K36: 211.51 | L36: 211.51 | N36: =MIN([1]Competencias!K36:P36) -> 999.99 | O36: =IFERROR(SMALL([1]Competencias!K36:P36,2),999.99) -> 999.99 | P36: 1199.99 | Q36: 211.51 | S36: 136.88 | T36: 136.88 | V36: =MIN([1]Competencias!Q36:AA36) -> 999.99 | W36: =IFERROR(SMALL([1]Competencias!Q36:AA36,2),999.99) -> 999.99 | X36: 1199.99 | Y36: 136.88 | AA36: 151.31 | AB36: 151.31 | AD36: =MIN([1]Competencias!AB36:AD36) -> 999.99 | AE36: =IFERROR(SMALL([1]Competencias!AB36:AD36,2),999.99) -> 999.99 | AF36: 1199.99 | AG36: 151.31
A37: 2010-06-14 | B37: 233491136 | C37: DANIEL IGNACIO | D37: GONZÁLEZ LOPEZ | E37: M | F37: CEC | G37: AS | H37: U16 | I37: SI | J37: 2 | K37: 73.22 | L37: 73.22 | N37: =MIN([1]Competencias!K37:P37) -> 123.63 | O37: =IFERROR(SMALL([1]Competencias!K37:P37,2),999.99) -> 999.99 | P37: 148.36 | Q37: 73.22 | S37: 108.81 | T37: 108.81 | V37: =MIN([1]Competencias!Q37:AA37) -> 177.26 | W37: =IFERROR(SMALL([1]Competencias!Q37:AA37,2),999.99) -> 999.99 | X37: 212.71 | Y37: 108.81 | AA37: 135.71 | AB37: 135.71 | AD37: =MIN([1]Competencias!AB37:AD37) -> 223.62 | AE37: =IFERROR(SMALL([1]Competencias!AB37:AD37,2),999.99) -> 999.99 | AF37: 268.34 | AG37: 135.71
A38: 2010-06-22 | B38: 233557250 | C38: TOMAS | D38: OPAZO DIAZ | E38: M | F38: CLP | G38: AS | H38: U16 | I38: SI | J38: 2 | K38: 219.82 | L38: 219.82 | N38: =MIN([1]Competencias!K38:P38) -> 999.99 | O38: =IFERROR(SMALL([1]Competencias!K38:P38,2),999.99) -> 999.99 | P38: 1199.99 | Q38: 219.82 | S38: 208.29 | T38: 208.29 | V38: =MIN([1]Competencias!Q38:AA38) -> 999.99 | W38: =IFERROR(SMALL([1]Competencias!Q38:AA38,2),999.99) -> 999.99 | X38: 1199.99 | Y38: 208.29 | AA38: 239.08 | AB38: 239.08 | AD38: =MIN([1]Competencias!AB38:AD38) -> 999.99 | AE38: =IFERROR(SMALL([1]Competencias!AB38:AD38,2),999.99) -> 999.99 | AF38: 1199.99 | AG38: 239.08
A39: 2010-06-21 | B39: 233561312 | C39: MATEO | D39: CURKOVIC FRANCO | E39: M | F39: UC | G39: AS | H39: U16 | I39: SI | J39: 2 | K39: 63.71 | L39: 63.71 | N39: =MIN([1]Competencias!K39:P39) -> 58.34 | O39: =IFERROR(SMALL([1]Competencias!K39:P39,2),999.99) -> 78.42 | P39: 70.01 | Q39: 63.71 | S39: 70.00 | T39: 70.00 | V39: =MIN([1]Competencias!Q39:AA39) -> 107.55 | W39: =IFERROR(SMALL([1]Competencias!Q39:AA39,2),999.99) -> 999.99 | X39: 129.06 | Y39: 70.00 | AA39: 85.00 | AB39: 85.00 | AD39: =MIN([1]Competencias!AB39:AD39) -> 91.91 | AE39: =IFERROR(SMALL([1]Competencias!AB39:AD39,2),999.99) -> 98.88 | AF39: 110.29 | AG39: 85.00
A40: 2010-07-06 | B40: 233659525 | C40: JOAQUIN | D40: BARRIENTOS ENGLER | E40: M | F40: CAO | G40: AS | H40: U16 | I40: SI | J40: 2 | K40: 170.93 | L40: 170.93 | N40: =MIN([1]Competencias!K40:P40) -> 211.04 | O40: =IFERROR(SMALL([1]Competencias!K40:P40,2),999.99) -> 229.16 | P40: 253.25 | Q40: 170.93 | S40: 197.63 | T40: 197.63 | V40: =MIN([1]Competencias!Q40:AA40) -> 213.25 | W40: =IFERROR(SMALL([1]Competencias!Q40:AA40,2),999.99) -> 999.99 | X40: 255.90 | Y40: 197.63 | AA40: 194.86 | AB40: 194.86 | AD40: =MIN([1]Competencias!AB40:AD40) -> 243.86 | AE40: =IFERROR(SMALL([1]Competencias!AB40:AD40,2),999.99) -> 999.99 | AF40: 292.63 | AG40: 194.86
A41: 2010-05-07 | B41: 233662801 | C41: SOPHIE | D41: HAMEAU GAETE | E41: F | F41: CLP | G41: AS | H41: U16 | I41: SI | J41: 2 | K41: 279.72 | L41: 279.72 | N41: =MIN([1]Competencias!K41:P41) -> 237.91 | O41: =IFERROR(SMALL([1]Competencias!K41:P41,2),999.99) -> 999.99 | P41: 285.49 | Q41: 279.72 | S41: 255.74 | T41: 255.74 | V41: =MIN([1]Competencias!Q41:AA41) -> 999.99 | W41: =IFERROR(SMALL([1]Competencias!Q41:AA41,2),999.99) -> 999.99 | X41: 1199.99 | Y41: 255.74 | AA41: 352.22 | AB41: 352.22 | AD41: =MIN([1]Competencias!AB41:AD41) -> 318.95 | AE41: =IFERROR(SMALL([1]Competencias!AB41:AD41,2),999.99) -> 999.99 | AF41: 382.74 | AG41: 352.22
A42: 2010-06-11 | B42: 233711799 | C42: VICENTE | D42: JUNEMANN ARANCIBIA | E42: M | F42: CAN | G42: AS | H42: U16 | I42: SI | J42: 2 | K42: 730.74 | L42: 730.74 | N42: =MIN([1]Competencias!K42:P42) -> 999.99 | O42: =IFERROR(SMALL([1]Competencias!K42:P42,2),999.99) -> 999.99 | P42: 1199.99 | Q42: 730.74 | S42: 999.99 | T42: 999.99 | V42: =MIN([1]Competencias!Q42:AA42) -> 999.99 | W42: =IFERROR(SMALL([1]Competencias!Q42:AA42,2),999.99) -> 999.99 | X42: 1199.99 | Y42: 999.99 | Z42: + | AA42: 999.99 | AB42: 999.99 | AD42: =MIN([1]Competencias!AB42:AD42) -> 999.99 | AE42: =IFERROR(SMALL([1]Competencias!AB42:AD42,2),999.99) -> 999.99 | AF42: 1199.99 | AG42: 999.99 | AH42: +
A43: 2010-08-25 | B43: 234064819 | C43: MARINA | D43: LÓPEZ CHAMORRO | E43: F | F43: CEC | G43: AS | H43: U16 | I43: SI | J43: 2 | K43: 215.02 | L43: 215.02 | N43: =MIN([1]Competencias!K43:P43) -> 236.57 | O43: =IFERROR(SMALL([1]Competencias!K43:P43,2),999.99) -> 999.99 | P43: 283.88 | Q43: 215.02 | S43: 394.56 | T43: 246.74 | V43: =MIN([1]Competencias!Q43:AA43) -> 223.24 | W43: =IFERROR(SMALL([1]Competencias!Q43:AA43,2),999.99) -> 270.23 | X43: 267.89 | Y43: 246.74 | AA43: 238.52 | AB43: 238.52 | AD43: =MIN([1]Competencias!AB43:AD43) -> 332.41 | AE43: =IFERROR(SMALL([1]Competencias!AB43:AD43,2),999.99) -> 349.80 | AF43: 398.89 | AG43: 238.52
A44: 2010-09-08 | B44: 234183079 | C44: COLOMBA | D44: VASQUEZ HOTT | E44: F | F44: CAO | G44: AS | H44: U16 | I44: SI | J44: 2 | K44: 172.26 | L44: 172.26 | N44: =MIN([1]Competencias!K44:P44) -> 999.99 | O44: =IFERROR(SMALL([1]Competencias!K44:P44,2),999.99) -> 999.99 | P44: 1199.99 | Q44: 172.26 | S44: 253.38 | T44: 253.38 | V44: =MIN([1]Competencias!Q44:AA44) -> 999.99 | W44: =IFERROR(SMALL([1]Competencias!Q44:AA44,2),999.99) -> 999.99 | X44: 1199.99 | Y44: 253.38 | AA44: 237.70 | AB44: 237.70 | AD44: =MIN([1]Competencias!AB44:AD44) -> 999.99 | AE44: =IFERROR(SMALL([1]Competencias!AB44:AD44,2),999.99) -> 999.99 | AF44: 1199.99 | AG44: 237.70
A45: 2010-08-24 | B45: 234187511 | C45: RICARDO | D45: VICUÑA CURTZE | E45: M | F45: CLP | G45: AS | H45: U16 | I45: SI | J45: 2 | K45: 232.37 | L45: 232.37 | N45: =MIN([1]Competencias!K45:P45) -> 188.72 | O45: =IFERROR(SMALL([1]Competencias!K45:P45,2),999.99) -> 999.99 | P45: 226.46 | Q45: 232.37 | S45: 202.07 | T45: 183.42 | V45: =MIN([1]Competencias!Q45:AA45) -> 183.07 | W45: =IFERROR(SMALL([1]Competencias!Q45:AA45,2),999.99) -> 183.77 | X45: 219.68 | Y45: 183.42 | AA45: 248.51 | AB45: 248.51 | AD45: =MIN([1]Competencias!AB45:AD45) -> 999.99 | AE45: =IFERROR(SMALL([1]Competencias!AB45:AD45,2),999.99) -> 999.99 | AF45: 1199.99 | AG45: 248.51
A46: 2010-08-24 | B46: 234187651 | C46: FRANCISCO | D46: VICUÑA CURTZE | E46: M | F46: CLP | G46: AS | H46: U16 | I46: SI | J46: 2 | K46: 98.92 | L46: 98.92 | N46: =MIN([1]Competencias!K46:P46) -> 133.18 | O46: =IFERROR(SMALL([1]Competencias!K46:P46,2),999.99) -> 150.36 | P46: 159.82 | Q46: 98.92 | S46: 152.60 | T46: 152.60 | V46: =MIN([1]Competencias!Q46:AA46) -> 133.12 | W46: =IFERROR(SMALL([1]Competencias!Q46:AA46,2),999.99) -> 204.19 | X46: 159.74 | Y46: 152.60 | AA46: 238.16 | AB46: 210.92 | AD46: =MIN([1]Competencias!AB46:AD46) -> 207.63 | AE46: =IFERROR(SMALL([1]Competencias!AB46:AD46,2),999.99) -> 214.21 | AF46: 249.16 | AG46: 210.92
A47: 2010-09-06 | B47: 234197185 | C47: UVY | D47: ACERBONI AHUMADA | E47: F | F47: UC | G47: AS | H47: U16 | I47: SI | J47: 2 | K47: 89.52 | L47: 70.86 | N47: =MIN([1]Competencias!K47:P47) -> 67.50 | O47: =IFERROR(SMALL([1]Competencias!K47:P47,2),999.99) -> 74.21 | P47: 81.00 | Q47: 70.86 | S47: 70.00 | T47: 70.00 | V47: =MIN([1]Competencias!Q47:AA47) -> 999.99 | W47: =IFERROR(SMALL([1]Competencias!Q47:AA47,2),999.99) -> 999.99 | X47: 1199.99 | Y47: 70.00 | AA47: 163.45 | AB47: 163.45 | AD47: =MIN([1]Competencias!AB47:AD47) -> 999.99 | AE47: =IFERROR(SMALL([1]Competencias!AB47:AD47,2),999.99) -> 999.99 | AF47: 1199.99 | AG47: 163.45
A48: 2010-09-16 | B48: 234271490 | C48: MATILDE SOFIA | D48: GARDA TIMMERMANN | E48: F | F48: CEC | G48: AS | H48: U16 | I48: SI | J48: 2 | K48: 144.74 | L48: 144.74 | N48: =MIN([1]Competencias!K48:P48) -> 97.95 | O48: =IFERROR(SMALL([1]Competencias!K48:P48,2),999.99) -> 202.93 | P48: 117.54 | Q48: 144.74 | S48: 226.40 | T48: 164.14 | V48: =MIN([1]Competencias!Q48:AA48) -> 153.33 | W48: =IFERROR(SMALL([1]Competencias!Q48:AA48,2),999.99) -> 174.94 | X48: 184.00 | Y48: 164.14 | AA48: 134.39 | AB48: 134.39 | AD48: =MIN([1]Competencias!AB48:AD48) -> 181.16 | AE48: =IFERROR(SMALL([1]Competencias!AB48:AD48,2),999.99) -> 193.11 | AF48: 217.39 | AG48: 134.39
A49: 2010-09-22 | B49: 23429511K | C49: MAXIMILIANO | D49: DIAZ FIGUEROA | E49: M | F49: CAR | G49: AS | H49: U16 | I49: SI | J49: 2 | K49: 132.11 | L49: 132.11 | N49: =MIN([1]Competencias!K49:P49) -> 999.99 | O49: =IFERROR(SMALL([1]Competencias!K49:P49,2),999.99) -> 999.99 | P49: 1199.99 | Q49: 132.11 | S49: 206.12 | T49: 206.12 | V49: =MIN([1]Competencias!Q49:AA49) -> 182.60 | W49: =IFERROR(SMALL([1]Competencias!Q49:AA49,2),999.99) -> 999.99 | X49: 219.12 | Y49: 206.12 | AA49: 175.07 | AB49: 175.07 | AD49: =MIN([1]Competencias!AB49:AD49) -> 174.57 | AE49: =IFERROR(SMALL([1]Competencias!AB49:AD49,2),999.99) -> 999.99 | AF49: 209.48 | AG49: 175.07
A50: 2010-09-16 | B50: 234304798 | C50: EMILIA | D50: ALVAREZ CHACON | E50: F | F50: CLP | G50: AS | H50: U16 | I50: SI | J50: 2 | K50: 304.11 | L50: 254.71 | N50: =MIN([1]Competencias!K50:P50) -> 229.30 | O50: =IFERROR(SMALL([1]Competencias!K50:P50,2),999.99) -> 280.12 | P50: 275.16 | Q50: 254.71 | S50: 287.38 | T50: 287.38 | V50: =MIN([1]Competencias!Q50:AA50) -> 384.07 | W50: =IFERROR(SMALL([1]Competencias!Q50:AA50,2),999.99) -> 999.99 | X50: 460.88 | Y50: 287.38 | AA50: 389.40 | AB50: 389.40 | AD50: =MIN([1]Competencias!AB50:AD50) -> 999.99 | AE50: =IFERROR(SMALL([1]Competencias!AB50:AD50,2),999.99) -> 999.99 | AF50: 1199.99 | AG50: 389.40
A51: 2010-09-22 | B51: 234304860 | C51: PATRICK | D51: RABY IBAÑEZ | E51: M | F51: CLP | G51: AS | H51: U16 | I51: SI | J51: 2 | K51: 128.79 | L51: 128.79 | N51: =MIN([1]Competencias!K51:P51) -> 126.81 | O51: =IFERROR(SMALL([1]Competencias!K51:P51,2),999.99) -> 999.99 | P51: 152.17 | Q51: 128.79 | S51: 116.93 | T51: 116.93 | V51: =MIN([1]Competencias!Q51:AA51) -> 122.20 | W51: =IFERROR(SMALL([1]Competencias!Q51:AA51,2),999.99) -> 149.73 | X51: 146.64 | Y51: 116.93 | AA51: 116.76 | AB51: 116.76 | AD51: =MIN([1]Competencias!AB51:AD51) -> 143.54 | AE51: =IFERROR(SMALL([1]Competencias!AB51:AD51,2),999.99) -> 174.37 | AF51: 172.25 | AG51: 116.76
A52: 2010-10-05 | B52: 234452452 | C52: MARTINA NATALIA | D52: HERRERA NORAMBUENA | E52: F | F52: CORR | G52: AS | H52: U16 | I52: SI | J52: 2 | K52: 999.99 | L52: 480.72 | N52: =MIN([1]Competencias!K52:P52) -> 400.60 | O52: =IFERROR(SMALL([1]Competencias!K52:P52,2),999.99) -> 999.99 | P52: 480.72 | Q52: 480.72 | S52: 999.99 | T52: 530.45 | V52: =MIN([1]Competencias!Q52:AA52) -> 442.04 | W52: =IFERROR(SMALL([1]Competencias!Q52:AA52,2),999.99) -> 999.99 | X52: 530.45 | Y52: 530.45 | AA52: 999.99 | AB52: 540.22 | AD52: =MIN([1]Competencias!AB52:AD52) -> 450.18 | AE52: =IFERROR(SMALL([1]Competencias!AB52:AD52,2),999.99) -> 999.99 | AF52: 540.22 | AG52: 540.22
A53: 2011-10-18 | B53: 234571850 | C53: MATÍAS | D53: ANTIHUALA ARAYA | E53: M | F53: CLP | G53: AS | H53: U16 | I53: SI | J53: 1 | K53: 390.08 | L53: 390.08 | N53: =MIN([1]Competencias!K53:P53) -> 999.99 | O53: =IFERROR(SMALL([1]Competencias!K53:P53,2),999.99) -> 999.99 | P53: 1199.99 | Q53: 390.08 | S53: 448.54 | T53: 448.54 | V53: =MIN([1]Competencias!Q53:AA53) -> 195.89 | W53: =IFERROR(SMALL([1]Competencias!Q53:AA53,2),999.99) -> 999.99 | X53: 235.07 | Y53: 448.54 | AA53: 330.47 | AB53: 330.47 | AD53: =MIN([1]Competencias!AB53:AD53) -> 999.99 | AE53: =IFERROR(SMALL([1]Competencias!AB53:AD53,2),999.99) -> 999.99 | AF53: 1199.99 | AG53: 330.47
A54: 2010-10-29 | B54: 234657704 | C54: EMILIO | D54: CADIZ MARIN | E54: M | F54: UC | G54: AS | H54: U16 | I54: SI | J54: 2 | K54: 207.06 | L54: 207.06 | N54: =MIN([1]Competencias!K54:P54) -> 112.80 | O54: =IFERROR(SMALL([1]Competencias!K54:P54,2),999.99) -> 999.99 | P54: 135.36 | Q54: 207.06 | S54: 167.24 | T54: 167.24 | V54: =MIN([1]Competencias!Q54:AA54) -> 215.55 | W54: =IFERROR(SMALL([1]Competencias!Q54:AA54,2),999.99) -> 999.99 | X54: 258.66 | Y54: 167.24 | AA54: 207.47 | AB54: 192.04 | AD54: =MIN([1]Competencias!AB54:AD54) -> 185.68 | AE54: =IFERROR(SMALL([1]Competencias!AB54:AD54,2),999.99) -> 198.40 | AF54: 222.82 | AG54: 192.04
A55: 2010-10-28 | B55: 234670417 | C55: LUNA | D55: ANGUITA AVILES | E55: F | F55: CAO | G55: AS | H55: U16 | I55: SI | J55: 2 | K55: 252.38 | L55: 252.38 | N55: =MIN([1]Competencias!K55:P55) -> 266.05 | O55: =IFERROR(SMALL([1]Competencias!K55:P55,2),999.99) -> 269.13 | P55: 319.26 | Q55: 252.38 | S55: 238.78 | T55: 238.78 | V55: =MIN([1]Competencias!Q55:AA55) -> 257.30 | W55: =IFERROR(SMALL([1]Competencias!Q55:AA55,2),999.99) -> 294.54 | X55: 308.76 | Y55: 238.78 | AA55: 246.89 | AB55: 246.89 | AD55: =MIN([1]Competencias!AB55:AD55) -> 322.34 | AE55: =IFERROR(SMALL([1]Competencias!AB55:AD55,2),999.99) -> 999.99 | AF55: 386.81 | AG55: 246.89
A56: 2010-11-05 | B56: 234718827 | C56: MATEO | D56: GROB CONCHA | E56: M | F56: CAO | G56: AS | H56: U16 | I56: SI | J56: 2 | K56: 107.95 | L56: 106.05 | N56: =MIN([1]Competencias!K56:P56) -> 98.48 | O56: =IFERROR(SMALL([1]Competencias!K56:P56,2),999.99) -> 113.62 | P56: 118.18 | Q56: 106.05 | S56: 157.23 | T56: 134.87 | V56: =MIN([1]Competencias!Q56:AA56) -> 127.09 | W56: =IFERROR(SMALL([1]Competencias!Q56:AA56,2),999.99) -> 142.64 | X56: 152.51 | Y56: 134.87 | AA56: 125.81 | AB56: 125.81 | AD56: =MIN([1]Competencias!AB56:AD56) -> 114.11 | AE56: =IFERROR(SMALL([1]Competencias!AB56:AD56,2),999.99) -> 138.05 | AF56: 136.93 | AG56: 125.81
A57: 2010-11-19 | B57: 234863371 | C57: PEDRO | D57: SANTIBAÑEZ PUFFE | E57: M | F57: CLP | G57: AS | H57: U16 | I57: SI | J57: 2 | K57: 289.98 | L57: 289.98 | N57: =MIN([1]Competencias!K57:P57) -> 999.99 | O57: =IFERROR(SMALL([1]Competencias!K57:P57,2),999.99) -> 999.99 | P57: 1199.99 | Q57: 289.98 | S57: 188.59 | T57: 188.59 | V57: =MIN([1]Competencias!Q57:AA57) -> 216.20 | W57: =IFERROR(SMALL([1]Competencias!Q57:AA57,2),999.99) -> 999.99 | X57: 259.44 | Y57: 188.59 | AA57: 236.99 | AB57: 236.99 | AD57: =MIN([1]Competencias!AB57:AD57) -> 228.58 | AE57: =IFERROR(SMALL([1]Competencias!AB57:AD57,2),999.99) -> 999.99 | AF57: 274.30 | AG57: 236.99
A58: 2010-11-24 | B58: 234873016 | C58: ANTONIA | D58: MISLEJ LÓPEZ | E58: F | F58: CVN | G58: AS | H58: U16 | I58: SI | J58: 2 | K58: 999.99 | L58: 999.99 | N58: =MIN([1]Competencias!K58:P58) -> 999.99 | O58: =IFERROR(SMALL([1]Competencias!K58:P58,2),999.99) -> 999.99 | P58: 1199.99 | Q58: 999.99 | R58: + | S58: 999.99 | T58: 999.99 | V58: =MIN([1]Competencias!Q58:AA58) -> 999.99 | W58: =IFERROR(SMALL([1]Competencias!Q58:AA58,2),999.99) -> 999.99 | X58: 1199.99 | Y58: 999.99 | Z58: + | AA58: 999.99 | AB58: 999.99 | AD58: =MIN([1]Competencias!AB58:AD58) -> 999.99 | AE58: =IFERROR(SMALL([1]Competencias!AB58:AD58,2),999.99) -> 999.99 | AF58: 1199.99 | AG58: 999.99 | AH58: +
A59: 2010-12-15 | B59: 235046873 | C59: CLEMENTE | D59: MURUA INFANTE | E59: M | F59: UC | G59: AS | H59: U16 | I59: SI | J59: 2 | K59: 213.81 | L59: 199.36 | N59: =MIN([1]Competencias!K59:P59) -> 190.10 | O59: =IFERROR(SMALL([1]Competencias!K59:P59,2),999.99) -> 208.61 | P59: 228.12 | Q59: 199.36 | S59: 187.08 | T59: 187.08 | V59: =MIN([1]Competencias!Q59:AA59) -> 237.13 | W59: =IFERROR(SMALL([1]Competencias!Q59:AA59,2),999.99) -> 325.71 | X59: 284.56 | Y59: 187.08 | AA59: 370.52 | AB59: 370.52 | AD59: =MIN([1]Competencias!AB59:AD59) -> 999.99 | AE59: =IFERROR(SMALL([1]Competencias!AB59:AD59,2),999.99) -> 999.99 | AF59: 1199.99 | AG59: 370.52
A60: 2010-12-27 | B60: 235123975 | C60: FLORENCIA | D60: VIDAL DIAZ | E60: F | F60: CVN | G60: AS | H60: U16 | I60: SI | J60: 2 | K60: 233.04 | L60: 222.47 | N60: =MIN([1]Competencias!K60:P60) -> 182.13 | O60: =IFERROR(SMALL([1]Competencias!K60:P60,2),999.99) -> 262.81 | P60: 218.56 | Q60: 222.47 | S60: 247.27 | T60: 247.27 | V60: =MIN([1]Competencias!Q60:AA60) -> 232.32 | W60: =IFERROR(SMALL([1]Competencias!Q60:AA60,2),999.99) -> 999.99 | X60: 278.78 | Y60: 247.27 | AA60: 297.77 | AB60: 244.54 | AD60: =MIN([1]Competencias!AB60:AD60) -> 240.38 | AE60: =IFERROR(SMALL([1]Competencias!AB60:AD60,2),999.99) -> 248.69 | AF60: 288.46 | AG60: 244.54
A61: 2010-12-30 | B61: 235145197 | C61: TOMAS | D61: GUZMAN LECANNELIER | E61: M | F61: CEC | G61: AS | H61: U16 | I61: SI | J61: 2 | K61: 145.61 | L61: 145.61 | N61: =MIN([1]Competencias!K61:P61) -> 199.43 | O61: =IFERROR(SMALL([1]Competencias!K61:P61,2),999.99) -> 999.99 | P61: 239.32 | Q61: 145.61 | S61: 172.59 | T61: 154.41 | V61: =MIN([1]Competencias!Q61:AA61) -> 152.76 | W61: =IFERROR(SMALL([1]Competencias!Q61:AA61,2),999.99) -> 156.06 | X61: 183.31 | Y61: 154.41 | AA61: 190.57 | AB61: 161.41 | AD61: =MIN([1]Competencias!AB61:AD61) -> 159.50 | AE61: =IFERROR(SMALL([1]Competencias!AB61:AD61,2),999.99) -> 163.31 | AF61: 191.40 | AG61: 161.41
A62: 2011-01-03 | B62: 235182785 | C62: FRANCISCO JAVIER | D62: PEREZ HADDAD | E62: M | F62: CAN | G62: AS | H62: U16 | I62: SI | J62: 1 | K62: 113.26 | L62: 113.26 | N62: =MIN([1]Competencias!K62:P62) -> 999.99 | O62: =IFERROR(SMALL([1]Competencias!K62:P62,2),999.99) -> 999.99 | P62: 1199.99 | Q62: 113.26 | S62: 77.39 | T62: 77.39 | V62: =MIN([1]Competencias!Q62:AA62) -> 999.99 | W62: =IFERROR(SMALL([1]Competencias!Q62:AA62,2),999.99) -> 999.99 | X62: 1199.99 | Y62: 77.39 | AA62: 88.09 | AB62: 88.09 | AD62: =MIN([1]Competencias!AB62:AD62) -> 999.99 | AE62: =IFERROR(SMALL([1]Competencias!AB62:AD62,2),999.99) -> 999.99 | AF62: 1199.99 | AG62: 88.09
A63: 2010-12-28 | B63: 235205378 | C63: JOAQUÍN | D63: MARCHANT OLGUÍN | E63: M | F63: ARS | G63: AS | H63: U16 | I63: SI | J63: 2 | K63: 999.99 | L63: 999.99 | N63: =MIN([1]Competencias!K63:P63) -> 999.99 | O63: =IFERROR(SMALL([1]Competencias!K63:P63,2),999.99) -> 999.99 | P63: 1199.99 | Q63: 999.99 | R63: + | S63: 999.99 | T63: 999.99 | V63: =MIN([1]Competencias!Q63:AA63) -> 999.99 | W63: =IFERROR(SMALL([1]Competencias!Q63:AA63,2),999.99) -> 999.99 | X63: 1199.99 | Y63: 999.99 | Z63: + | AA63: 999.99 | AB63: 999.99 | AD63: =MIN([1]Competencias!AB63:AD63) -> 999.99 | AE63: =IFERROR(SMALL([1]Competencias!AB63:AD63,2),999.99) -> 999.99 | AF63: 1199.99 | AG63: 999.99 | AH63: +
A64: 2011-01-24 | B64: 235429683 | C64: BAUTISTA | D64: LAMA KAISER | E64: M | F64: CLP | G64: AS | H64: U16 | I64: SI | J64: 1 | K64: 66.01 | L64: 66.01 | N64: =MIN([1]Competencias!K64:P64) -> 73.75 | O64: =IFERROR(SMALL([1]Competencias!K64:P64,2),999.99) -> 79.20 | P64: 88.50 | Q64: 66.01 | S64: 78.97 | T64: 78.97 | V64: =MIN([1]Competencias!Q64:AA64) -> 77.38 | W64: =IFERROR(SMALL([1]Competencias!Q64:AA64,2),999.99) -> 999.99 | X64: 92.86 | Y64: 78.97 | AA64: 117.55 | AB64: 107.91 | AD64: =MIN([1]Competencias!AB64:AD64) -> 105.63 | AE64: =IFERROR(SMALL([1]Competencias!AB64:AD64,2),999.99) -> 110.19 | AF64: 126.76 | AG64: 107.91
A65: 2011-02-06 | B65: 235529300 | C65: ELBA | D65: HUBER SOLIS | E65: F | F65: LV | G65: AS | H65: U16 | I65: SI | J65: 1 | K65: 129.83 | L65: 129.83 | N65: =MIN([1]Competencias!K65:P65) -> 114.30 | O65: =IFERROR(SMALL([1]Competencias!K65:P65,2),999.99) -> 999.99 | P65: 137.16 | Q65: 129.83 | S65: 177.18 | T65: 177.18 | V65: =MIN([1]Competencias!Q65:AA65) -> 207.93 | W65: =IFERROR(SMALL([1]Competencias!Q65:AA65,2),999.99) -> 218.84 | X65: 249.52 | Y65: 177.18 | AA65: 224.11 | AB65: 224.11 | AD65: =MIN([1]Competencias!AB65:AD65) -> 266.06 | AE65: =IFERROR(SMALL([1]Competencias!AB65:AD65,2),999.99) -> 999.99 | AF65: 319.27 | AG65: 224.11
A66: 2011-02-01 | B66: 235609819 | C66: JEAN PAUL | D66: BOUDON URRA | E66: M | F66: CSC | G66: AS | H66: U16 | I66: SI | J66: 1 | K66: 999.99 | L66: 729.64 | N66: =MIN([1]Competencias!K66:P66) -> 608.03 | O66: =IFERROR(SMALL([1]Competencias!K66:P66,2),999.99) -> 999.99 | P66: 729.64 | Q66: 729.64 | S66: 999.99 | T66: 694.31 | V66: =MIN([1]Competencias!Q66:AA66) -> 578.59 | W66: =IFERROR(SMALL([1]Competencias!Q66:AA66,2),999.99) -> 999.99 | X66: 694.31 | Y66: 694.31 | AA66: 999.99 | AB66: 999.99 | AD66: =MIN([1]Competencias!AB66:AD66) -> 999.99 | AE66: =IFERROR(SMALL([1]Competencias!AB66:AD66,2),999.99) -> 999.99 | AF66: 1199.99 | AG66: 999.99 | AH66: +
A67: 2011-02-21 | B67: 235706288 | C67: FRIDA | D67: SILVA JENSEN | E67: F | F67: CLP | G67: AS | H67: U16 | I67: SI | J67: 1 | K67: 163.98 | L67: 163.98 | N67: =MIN([1]Competencias!K67:P67) -> 176.00 | O67: =IFERROR(SMALL([1]Competencias!K67:P67,2),999.99) -> 999.99 | P67: =N67*1.2 -> 211.20 | Q67: =IF(N67=999.99,K67,IF(O67=999.99,IF(K67<999.99,K67,P67),IF((N67+O67)/2>K67,K67,(N67+O67)/2))) -> 163.98 | R67: =IF(Q67="999,99","",IF(Q67=A67,">",IF(Q67=O67,"+",""))) ->  | S67: 269.41 | T67: 230.06 | V67: =MIN([1]Competencias!Q67:AA67) -> 220.14 | W67: =IFERROR(SMALL([1]Competencias!Q67:AA67,2),999.99) -> 239.97 | X67: =V67*1.2 -> 264.17 | Y67: =IF(V67=999.99,S67,IF(W67=999.99,IF(S67<999.99,S67,X67),IF((V67+W67)/2>S67,S67,(V67+W67)/2))) -> 230.06 | Z67: =IF(Y67="999,99","",IF(Y67=G67,">",IF(Y67=W67,"+",""))) ->  | AA67: 233.37 | AB67: 233.37 | AD67: =MIN([1]Competencias!AB67:AD67) -> 328.41 | AE67: =IFERROR(SMALL([1]Competencias!AB67:AD67,2),999.99) -> 999.99 | AF67: =AD67*1.2 -> 394.09 | AG67: =IF(AD67=999.99,AA67,IF(AE67=999.99,IF(AA67<999.99,AA67,AF67),IF((AD67+AE67)/2>AA67,AA67,(AD67+AE67)/2))) -> 233.37 | AH67: =IF(AG67="999,99","",IF(AG67=R67,">",IF(AG67=AE67,"+",""))) -> 
A68: 2011-03-12 | B68: 235826844 | C68: CLEMENTE ANDRÉS | D68: BUSTOS ALVARADO | E68: M | F68: CORR | G68: AS | H68: U16 | I68: SI | J68: 1 | K68: 141.55 | L68: 141.55 | N68: =MIN([1]Competencias!K68:P68) -> 999.99 | O68: =IFERROR(SMALL([1]Competencias!K68:P68,2),999.99) -> 999.99 | P68: 1199.99 | Q68: 141.55 | S68: 196.81 | T68: 196.81 | V68: =MIN([1]Competencias!Q68:AA68) -> 999.99 | W68: =IFERROR(SMALL([1]Competencias!Q68:AA68,2),999.99) -> 999.99 | X68: 1199.99 | Y68: 196.81 | AA68: 212.75 | AB68: 212.75 | AD68: =MIN([1]Competencias!AB68:AD68) -> 253.88 | AE68: =IFERROR(SMALL([1]Competencias!AB68:AD68,2),999.99) -> 999.99 | AF68: 304.66 | AG68: 212.75
A69: 2011-03-14 | B69: 23585550K | C69: BORJA | D69: LESSER DILL | E69: M | F69: CLP | G69: AS | H69: U16 | I69: SI | J69: 1 | K69: 141.73 | L69: 122.37 | N69: =MIN([1]Competencias!K69:P69) -> 115.84 | O69: =IFERROR(SMALL([1]Competencias!K69:P69,2),999.99) -> 128.90 | P69: 139.01 | Q69: 122.37 | S69: 147.61 | T69: 147.61 | V69: =MIN([1]Competencias!Q69:AA69) -> 187.81 | W69: =IFERROR(SMALL([1]Competencias!Q69:AA69,2),999.99) -> 999.99 | X69: 225.37 | Y69: 147.61 | AA69: 236.76 | AB69: 203.03 | AD69: =MIN([1]Competencias!AB69:AD69) -> 201.67 | AE69: =IFERROR(SMALL([1]Competencias!AB69:AD69,2),999.99) -> 204.39 | AF69: 242.00 | AG69: 203.03
A70: 2011-01-17 | B70: 235889730 | C70: ALBERTO | D70: PUENTE YANKOVIC | E70: M | F70: CAN | G70: AS | H70: U16 | I70: SI | J70: 1 | K70: 86.13 | L70: 86.13 | N70: =MIN([1]Competencias!K70:P70) -> 66.37 | O70: =IFERROR(SMALL([1]Competencias!K70:P70,2),999.99) -> 999.99 | P70: 79.64 | Q70: 86.13 | S70: 95.86 | T70: 72.03 | V70: =MIN([1]Competencias!Q70:AA70) -> 71.09 | W70: =IFERROR(SMALL([1]Competencias!Q70:AA70,2),999.99) -> 72.97 | X70: 85.31 | Y70: 72.03 | AA70: 139.00 | AB70: 99.35 | AD70: =MIN([1]Competencias!AB70:AD70) -> 94.40 | AE70: =IFERROR(SMALL([1]Competencias!AB70:AD70,2),999.99) -> 104.29 | AF70: 113.28 | AG70: 99.35
A71: 2011-08-11 | B71: 235923602 | C71: MAXIMILIAN | D71: EPP GOYENECHEA | E71: M | F71: UC | G71: AS | H71: U16 | I71: SI | J71: 1 | K71: 999.99 | L71: 999.99 | N71: =MIN([1]Competencias!K71:P71) -> 999.99 | O71: =IFERROR(SMALL([1]Competencias!K71:P71,2),999.99) -> 999.99 | P71: 1199.99 | Q71: 999.99 | R71: + | S71: 999.99 | T71: 999.99 | V71: =MIN([1]Competencias!Q71:AA71) -> 999.99 | W71: =IFERROR(SMALL([1]Competencias!Q71:AA71,2),999.99) -> 999.99 | X71: 1199.99 | Y71: 999.99 | Z71: + | AA71: 999.99 | AB71: 999.99 | AD71: =MIN([1]Competencias!AB71:AD71) -> 999.99 | AE71: =IFERROR(SMALL([1]Competencias!AB71:AD71,2),999.99) -> 999.99 | AF71: 1199.99 | AG71: 999.99 | AH71: +
A72: 2011-03-20 | B72: 235986701 | C72: BLANCA | D72: IBAÑEZ AMBIA | E72: F | F72: CLP | G72: AS | H72: U16 | I72: SI | J72: 1 | K72: 270.00 | L72: 270.00 | N72: =MIN([1]Competencias!K72:P72) -> 213.30 | O72: =IFERROR(SMALL([1]Competencias!K72:P72,2),999.99) -> 999.99 | P72: 255.96 | Q72: 270.00 | S72: 213.24 | T72: 213.24 | V72: =MIN([1]Competencias!Q72:AA72) -> 464.73 | W72: =IFERROR(SMALL([1]Competencias!Q72:AA72,2),999.99) -> 999.99 | X72: 557.68 | Y72: 213.24 | AA72: 270.13 | AB72: 270.13 | AD72: =MIN([1]Competencias!AB72:AD72) -> 999.99 | AE72: =IFERROR(SMALL([1]Competencias!AB72:AD72,2),999.99) -> 999.99 | AF72: 1199.99 | AG72: 270.13
A73: 2011-03-21 | B73: 235998793 | C73: IGNACIA | D73: FUENTES LABRA | E73: F | F73: ARS | G73: AS | H73: U16 | I73: SI | J73: 1 | K73: 71.98 | L73: 71.98 | N73: =MIN([1]Competencias!K73:P73) -> 79.47 | O73: =IFERROR(SMALL([1]Competencias!K73:P73,2),999.99) -> 101.15 | P73: 95.36 | Q73: 71.98 | S73: 110.00 | T73: 106.30 | V73: =MIN([1]Competencias!Q73:AA73) -> 101.66 | W73: =IFERROR(SMALL([1]Competencias!Q73:AA73,2),999.99) -> 110.94 | X73: 121.99 | Y73: 106.30 | AA73: 132.94 | AB73: 103.30 | AD73: =MIN([1]Competencias!AB73:AD73) -> 83.86 | AE73: =IFERROR(SMALL([1]Competencias!AB73:AD73,2),999.99) -> 122.73 | AF73: 100.63 | AG73: 103.30
A74: 2011-03-23 | B74: 236058379 | C74: SANTIAGO | D74: CASTRO OTERO | E74: M | F74: UC | G74: AS | H74: U16 | I74: SI | J74: 1 | K74: 463.25 | L74: 463.25 | N74: =MIN([1]Competencias!K74:P74) -> 999.99 | O74: =IFERROR(SMALL([1]Competencias!K74:P74,2),999.99) -> 999.99 | P74: 1199.99 | Q74: 463.25 | S74: 231.97 | T74: 231.97 | V74: =MIN([1]Competencias!Q74:AA74) -> 999.99 | W74: =IFERROR(SMALL([1]Competencias!Q74:AA74,2),999.99) -> 999.99 | X74: 1199.99 | Y74: 231.97 | AA74: 295.45 | AB74: 295.45 | AD74: =MIN([1]Competencias!AB74:AD74) -> 999.99 | AE74: =IFERROR(SMALL([1]Competencias!AB74:AD74,2),999.99) -> 999.99 | AF74: 1199.99 | AG74: 295.45
A75: 2011-03-30 | B75: 236060357 | C75: TOMAS | D75: GONZALEZ VALDES | E75: M | F75: CAN | G75: AS | H75: U16 | I75: SI | J75: 1 | K75: 999.99 | L75: 183.67 | N75: =MIN([1]Competencias!K75:P75) -> 153.06 | O75: =IFERROR(SMALL([1]Competencias!K75:P75,2),999.99) -> 999.99 | P75: 183.67 | Q75: 183.67 | S75: 999.99 | T75: 999.99 | V75: =MIN([1]Competencias!Q75:AA75) -> 999.99 | W75: =IFERROR(SMALL([1]Competencias!Q75:AA75,2),999.99) -> 999.99 | X75: 1199.99 | Y75: 999.99 | Z75: + | AA75: 241.84 | AB75: 241.84 | AD75: =MIN([1]Competencias!AB75:AD75) -> 999.99 | AE75: =IFERROR(SMALL([1]Competencias!AB75:AD75,2),999.99) -> 999.99 | AF75: 1199.99 | AG75: 241.84
A76: 2011-04-09 | B76: 236151077 | C76: FEDERICO | D76: AYALA PEREZ | E76: M | F76: CAN | G76: AS | H76: U16 | I76: SI | J76: 1 | K76: 152.49 | L76: 152.49 | N76: =MIN([1]Competencias!K76:P76) -> 158.26 | O76: =IFERROR(SMALL([1]Competencias!K76:P76,2),999.99) -> 999.99 | P76: 189.91 | Q76: 152.49 | S76: 187.43 | T76: 187.43 | V76: =MIN([1]Competencias!Q76:AA76) -> 308.20 | W76: =IFERROR(SMALL([1]Competencias!Q76:AA76,2),999.99) -> 999.99 | X76: 369.84 | Y76: 187.43 | AA76: 213.25 | AB76: 213.25 | AD76: =MIN([1]Competencias!AB76:AD76) -> 999.99 | AE76: =IFERROR(SMALL([1]Competencias!AB76:AD76,2),999.99) -> 999.99 | AF76: 1199.99 | AG76: 213.25
A77: 2011-04-13 | B77: 236208508 | C77: DIEGO | D77: TAGLE ALLIENDE | E77: M | F77: CAO | G77: AS | H77: U16 | I77: SI | J77: 1 | K77: 200.47 | L77: 200.47 | N77: =MIN([1]Competencias!K77:P77) -> 269.26 | O77: =IFERROR(SMALL([1]Competencias!K77:P77,2),999.99) -> 999.99 | P77: 323.11 | Q77: 200.47 | S77: 180.58 | T77: 180.58 | V77: =MIN([1]Competencias!Q77:AA77) -> 999.99 | W77: =IFERROR(SMALL([1]Competencias!Q77:AA77,2),999.99) -> 999.99 | X77: 1199.99 | Y77: 180.58 | AA77: 318.72 | AB77: 318.72 | AD77: =MIN([1]Competencias!AB77:AD77) -> 999.99 | AE77: =IFERROR(SMALL([1]Competencias!AB77:AD77,2),999.99) -> 999.99 | AF77: 1199.99 | AG77: 318.72
A78: 2011-04-13 | B78: 236208613 | C78: ANA | D78: TAGLE ALLIENDE | E78: F | F78: CAO | G78: AS | H78: U16 | I78: SI | J78: 1 | K78: 258.03 | L78: 258.03 | N78: =MIN([1]Competencias!K78:P78) -> 236.89 | O78: =IFERROR(SMALL([1]Competencias!K78:P78,2),999.99) -> 999.99 | P78: 284.27 | Q78: 258.03 | S78: 405.23 | T78: 405.23 | V78: =MIN([1]Competencias!Q78:AA78) -> 999.99 | W78: =IFERROR(SMALL([1]Competencias!Q78:AA78,2),999.99) -> 999.99 | X78: 1199.99 | Y78: 405.23 | AA78: 392.13 | AB78: 392.13 | AD78: =MIN([1]Competencias!AB78:AD78) -> 999.99 | AE78: =IFERROR(SMALL([1]Competencias!AB78:AD78,2),999.99) -> 999.99 | AF78: 1199.99 | AG78: 392.13
A79: 2011-01-05 | B79: 236348741 | C79: MAXIMILIANO | D79: MOLINA QUINTANA | E79: M | F79: CVN | G79: AS | H79: U16 | I79: SI | J79: 1 | K79: 999.99 | L79: 999.99 | N79: =MIN([1]Competencias!K79:P79) -> 999.99 | O79: =IFERROR(SMALL([1]Competencias!K79:P79,2),999.99) -> 999.99 | P79: 1199.99 | Q79: 999.99 | R79: + | S79: 999.99 | T79: 999.99 | V79: =MIN([1]Competencias!Q79:AA79) -> 999.99 | W79: =IFERROR(SMALL([1]Competencias!Q79:AA79,2),999.99) -> 999.99 | X79: 1199.99 | Y79: 999.99 | Z79: + | AA79: 330.41 | AB79: 330.41 | AD79: =MIN([1]Competencias!AB79:AD79) -> 999.99 | AE79: =IFERROR(SMALL([1]Competencias!AB79:AD79,2),999.99) -> 999.99 | AF79: 1199.99 | AG79: 330.41
A80: 2011-05-16 | B80: 236440893 | C80: CLARA | D80: DONOSO INFANTE | E80: F | F80: CAO | G80: AS | H80: U16 | I80: SI | J80: 1 | K80: 117.08 | L80: 116.59 | N80: =MIN([1]Competencias!K80:P80) -> 109.99 | O80: =IFERROR(SMALL([1]Competencias!K80:P80,2),999.99) -> 123.19 | P80: 131.99 | Q80: 116.59 | S80: 134.47 | T80: 134.47 | V80: =MIN([1]Competencias!Q80:AA80) -> 163.57 | W80: =IFERROR(SMALL([1]Competencias!Q80:AA80,2),999.99) -> 999.99 | X80: 196.28 | Y80: 134.47 | AA80: 157.23 | AB80: 157.23 | AD80: =MIN([1]Competencias!AB80:AD80) -> 155.49 | AE80: =IFERROR(SMALL([1]Competencias!AB80:AD80,2),999.99) -> 174.77 | AF80: 186.59 | AG80: 157.23
A81: 2011-05-14 | B81: 236442764 | C81: DIEGO | D81: MONTAGNON FERNÁNDEZ | E81: M | F81: ARS | G81: AS | H81: U16 | I81: SI | J81: 1 | K81: 377.62 | L81: 377.62 | N81: =MIN([1]Competencias!K81:P81) -> 999.99 | O81: =IFERROR(SMALL([1]Competencias!K81:P81,2),999.99) -> 999.99 | P81: 1199.99 | Q81: 377.62 | S81: 243.38 | T81: 243.38 | V81: =MIN([1]Competencias!Q81:AA81) -> 999.99 | W81: =IFERROR(SMALL([1]Competencias!Q81:AA81,2),999.99) -> 999.99 | X81: 1199.99 | Y81: 243.38 | AA81: 345.85 | AB81: 345.85 | AD81: =MIN([1]Competencias!AB81:AD81) -> 999.99 | AE81: =IFERROR(SMALL([1]Competencias!AB81:AD81,2),999.99) -> 999.99 | AF81: 1199.99 | AG81: 345.85
A82: 2011-05-16 | B82: 236449246 | C82: MARTIN | D82: ROMENY WAEGER | E82: M | F82: CAO | G82: AS | H82: U16 | I82: SI | J82: 1 | K82: 170.62 | L82: 170.62 | N82: =MIN([1]Competencias!K82:P82) -> 174.31 | O82: =IFERROR(SMALL([1]Competencias!K82:P82,2),999.99) -> 177.05 | P82: 209.17 | Q82: 170.62 | S82: 125.10 | T82: 125.10 | V82: =MIN([1]Competencias!Q82:AA82) -> 189.31 | W82: =IFERROR(SMALL([1]Competencias!Q82:AA82,2),999.99) -> 214.30 | X82: 227.17 | Y82: 125.10 | AA82: 161.83 | AB82: 161.83 | AD82: =MIN([1]Competencias!AB82:AD82) -> 259.72 | AE82: =IFERROR(SMALL([1]Competencias!AB82:AD82,2),999.99) -> 999.99 | AF82: 311.66 | AG82: 161.83
A83: 2011-05-18 | B83: 236489973 | C83: GRACIELA | D83: BARRIENTOS TRUJILLOS | E83: F | F83: PAT | G83: AS | H83: U16 | I83: SI | J83: 1 | K83: 999.99 | L83: 999.99 | N83: =MIN([1]Competencias!K83:P83) -> 999.99 | O83: =IFERROR(SMALL([1]Competencias!K83:P83,2),999.99) -> 999.99 | P83: 1199.99 | Q83: 999.99 | R83: + | S83: 999.99 | T83: 212.04 | V83: =MIN([1]Competencias!Q83:AA83) -> 176.70 | W83: =IFERROR(SMALL([1]Competencias!Q83:AA83,2),999.99) -> 999.99 | X83: 212.04 | Y83: 212.04 | AA83: 999.99 | AB83: 280.75 | AD83: =MIN([1]Competencias!AB83:AD83) -> 233.96 | AE83: =IFERROR(SMALL([1]Competencias!AB83:AD83,2),999.99) -> 999.99 | AF83: 280.75 | AG83: 280.75
A84: 2011-06-15 | B84: 236684938 | C84: GASPAR | D84: CHAVEZ BAHAMONDES | E84: M | F84: ARS | G84: AS | H84: U16 | I84: SI | J84: 1 | K84: 999.99 | L84: 363.06 | N84: =MIN([1]Competencias!K84:P84) -> 302.55 | O84: =IFERROR(SMALL([1]Competencias!K84:P84,2),999.99) -> 999.99 | P84: 363.06 | Q84: 363.06 | S84: 395.85 | T84: 395.85 | V84: =MIN([1]Competencias!Q84:AA84) -> 999.99 | W84: =IFERROR(SMALL([1]Competencias!Q84:AA84,2),999.99) -> 999.99 | X84: 1199.99 | Y84: 395.85 | AA84: 528.25 | AB84: 332.10 | AD84: =MIN([1]Competencias!AB84:AD84) -> 322.85 | AE84: =IFERROR(SMALL([1]Competencias!AB84:AD84,2),999.99) -> 341.34 | AF84: 387.42 | AG84: 332.10
A85: 2011-06-13 | B85: 236692175 | C85: LEONARDO | D85: CARVALLO TARICCO | E85: M | F85: POR | G85: AS | H85: U16 | I85: SI | J85: 1 | K85: 999.99 | L85: 569.34 | N85: =MIN([1]Competencias!K85:P85) -> 474.45 | O85: =IFERROR(SMALL([1]Competencias!K85:P85,2),999.99) -> 999.99 | P85: 569.34 | Q85: 569.34 | S85: 999.99 | T85: 999.99 | V85: =MIN([1]Competencias!Q85:AA85) -> 999.99 | W85: =IFERROR(SMALL([1]Competencias!Q85:AA85,2),999.99) -> 999.99 | X85: 1199.99 | Y85: 999.99 | Z85: + | AA85: 792.54 | AB85: 792.54 | AD85: =MIN([1]Competencias!AB85:AD85) -> 999.99 | AE85: =IFERROR(SMALL([1]Competencias!AB85:AD85,2),999.99) -> 999.99 | AF85: 1199.99 | AG85: 792.54
A86: 2011-06-18 | B86: 236710122 | C86: MARTINA | D86: VERGARA SÁNCHEZ | E86: F | F86: POR | G86: AS | H86: U16 | I86: SI | J86: 1 | K86: 999.99 | L86: 999.99 | N86: =MIN([1]Competencias!K86:P86) -> 999.99 | O86: =IFERROR(SMALL([1]Competencias!K86:P86,2),999.99) -> 999.99 | P86: 1199.99 | Q86: 999.99 | R86: + | S86: 999.99 | T86: 999.99 | V86: =MIN([1]Competencias!Q86:AA86) -> 999.99 | W86: =IFERROR(SMALL([1]Competencias!Q86:AA86,2),999.99) -> 999.99 | X86: 1199.99 | Y86: 999.99 | Z86: + | AA86: 427.37 | AB86: 427.37 | AD86: =MIN([1]Competencias!AB86:AD86) -> 999.99 | AE86: =IFERROR(SMALL([1]Competencias!AB86:AD86,2),999.99) -> 999.99 | AF86: 1199.99 | AG86: 427.37
A87: 2011-06-22 | B87: 236769127 | C87: SOFIA | D87: ASTORGA LAGOMARSINO | E87: F | F87: UC | G87: AS | H87: U16 | I87: SI | J87: 1 | K87: 422.61 | L87: 422.61 | N87: =MIN([1]Competencias!K87:P87) -> 236.06 | O87: =IFERROR(SMALL([1]Competencias!K87:P87,2),999.99) -> 999.99 | P87: 283.27 | Q87: 422.61 | S87: 281.68 | T87: 281.68 | V87: =MIN([1]Competencias!Q87:AA87) -> 999.99 | W87: =IFERROR(SMALL([1]Competencias!Q87:AA87,2),999.99) -> 999.99 | X87: 1199.99 | Y87: 281.68 | AA87: 226.25 | AB87: 226.25 | AD87: =MIN([1]Competencias!AB87:AD87) -> 999.99 | AE87: =IFERROR(SMALL([1]Competencias!AB87:AD87,2),999.99) -> 999.99 | AF87: 1199.99 | AG87: 226.25
A88: 2011-06-22 | B88: 236769607 | C88: MARTIN | D88: ASTORGA LAGOMARSINO | E88: M | F88: UC | G88: AS | H88: U16 | I88: SI | J88: 1 | K88: 269.95 | L88: 269.95 | N88: =MIN([1]Competencias!K88:P88) -> 242.11 | O88: =IFERROR(SMALL([1]Competencias!K88:P88,2),999.99) -> 999.99 | P88: 290.53 | Q88: 269.95 | S88: 276.31 | T88: 276.31 | V88: =MIN([1]Competencias!Q88:AA88) -> 323.42 | W88: =IFERROR(SMALL([1]Competencias!Q88:AA88,2),999.99) -> 999.99 | X88: 388.10 | Y88: 276.31 | AA88: 390.28 | AB88: 390.28 | AD88: =MIN([1]Competencias!AB88:AD88) -> 999.99 | AE88: =IFERROR(SMALL([1]Competencias!AB88:AD88,2),999.99) -> 999.99 | AF88: 1199.99 | AG88: 390.28
A89: 2011-06-28 | B89: 23679590K | C89: MAGDALENA PASCALE | D89: NEUMANN MENDEZ | E89: F | F89: CEC | G89: AS | H89: U16 | I89: SI | J89: 1 | K89: 145.24 | L89: 145.24 | N89: =MIN([1]Competencias!K89:P89) -> 190.08 | O89: =IFERROR(SMALL([1]Competencias!K89:P89,2),999.99) -> 250.44 | P89: 228.10 | Q89: 145.24 | S89: 174.94 | T89: 174.94 | V89: =MIN([1]Competencias!Q89:AA89) -> 219.12 | W89: =IFERROR(SMALL([1]Competencias!Q89:AA89,2),999.99) -> 231.69 | X89: 262.94 | Y89: 174.94 | AA89: 195.09 | AB89: 195.09 | AD89: =MIN([1]Competencias!AB89:AD89) -> 296.04 | AE89: =IFERROR(SMALL([1]Competencias!AB89:AD89,2),999.99) -> 999.99 | AF89: 355.25 | AG89: 195.09 | AI89: INJURY 09.09.25
A90: 2011-06-07 | B90: 236797112 | C90: LOURDES | D90: GARCÍA | E90: F | F90: CVN | G90: AS | H90: U16 | I90: SI | J90: 1 | K90: 237.51 | L90: 237.51 | N90: =MIN([1]Competencias!K90:P90) -> 208.18 | O90: =IFERROR(SMALL([1]Competencias!K90:P90,2),999.99) -> 999.99 | P90: 249.82 | Q90: 237.51 | S90: 286.21 | T90: 286.21 | V90: =MIN([1]Competencias!Q90:AA90) -> 332.76 | W90: =IFERROR(SMALL([1]Competencias!Q90:AA90,2),999.99) -> 999.99 | X90: 399.31 | Y90: 286.21 | AA90: 263.16 | AB90: 263.16 | AD90: =MIN([1]Competencias!AB90:AD90) -> 292.48 | AE90: =IFERROR(SMALL([1]Competencias!AB90:AD90,2),999.99) -> 302.26 | AF90: 350.98 | AG90: 263.16
A91: 2011-07-21 | B91: 236983242 | C91: VICENTE | D91: GALDAMES RINCÓN | E91: M | F91: CVN | G91: AS | H91: U16 | I91: SI | J91: 1 | K91: 336.38 | L91: 336.38 | N91: =MIN([1]Competencias!K91:P91) -> 999.99 | O91: =IFERROR(SMALL([1]Competencias!K91:P91,2),999.99) -> 999.99 | P91: 1199.99 | Q91: 336.38 | S91: 382.72 | T91: 382.72 | V91: =MIN([1]Competencias!Q91:AA91) -> 413.84 | W91: =IFERROR(SMALL([1]Competencias!Q91:AA91,2),999.99) -> 999.99 | X91: 496.61 | Y91: 382.72 | AA91: 412.54 | AB91: 412.54 | AD91: =MIN([1]Competencias!AB91:AD91) -> 999.99 | AE91: =IFERROR(SMALL([1]Competencias!AB91:AD91,2),999.99) -> 999.99 | AF91: 1199.99 | AG91: 412.54
A92: 2011-07-22 | B92: 237037456 | C92: PEDRO | D92: CASTRO GONZALEZ | E92: M | F92: ARS | G92: AS | H92: U16 | I92: SI | J92: 1 | K92: 122.80 | L92: 122.80 | N92: =MIN([1]Competencias!K92:P92) -> 107.42 | O92: =IFERROR(SMALL([1]Competencias!K92:P92,2),999.99) -> 999.99 | P92: 128.90 | Q92: 122.80 | S92: 148.66 | T92: 148.66 | V92: =MIN([1]Competencias!Q92:AA92) -> 130.42 | W92: =IFERROR(SMALL([1]Competencias!Q92:AA92,2),999.99) -> 175.01 | X92: 156.50 | Y92: 148.66 | AA92: 223.46 | AB92: 223.46 | AD92: =MIN([1]Competencias!AB92:AD92) -> 144.13 | AE92: =IFERROR(SMALL([1]Competencias!AB92:AD92,2),999.99) -> 999.99 | AF92: 172.96 | AG92: 223.46
A93: 2011-07-29 | B93: 237068440 | C93: LIONEL | D93: ROBLES LOPEZ | E93: M | F93: CAO | G93: AS | H93: U16 | I93: SI | J93: 1 | K93: 472.94 | L93: 472.94 | N93: =MIN([1]Competencias!K93:P93) -> 999.99 | O93: =IFERROR(SMALL([1]Competencias!K93:P93,2),999.99) -> 999.99 | P93: 1199.99 | Q93: 472.94 | S93: 333.61 | T93: 333.61 | V93: =MIN([1]Competencias!Q93:AA93) -> 380.62 | W93: =IFERROR(SMALL([1]Competencias!Q93:AA93,2),999.99) -> 999.99 | X93: 456.74 | Y93: 333.61 | AA93: 335.36 | AB93: 335.36 | AD93: =MIN([1]Competencias!AB93:AD93) -> 999.99 | AE93: =IFERROR(SMALL([1]Competencias!AB93:AD93,2),999.99) -> 999.99 | AF93: 1199.99 | AG93: 335.36
A94: 2011-08-01 | B94: 237100441 | C94: ISMAEL | D94: GANDARA RODILLO | E94: M | F94: CAN | G94: AS | H94: U16 | I94: SI | J94: 1 | K94: 190.10 | L94: 181.89 | N94: =MIN([1]Competencias!K94:P94) -> 180.89 | O94: =IFERROR(SMALL([1]Competencias!K94:P94,2),999.99) -> 182.88 | P94: 217.07 | Q94: 181.89 | S94: 195.98 | T94: 195.98 | V94: =MIN([1]Competencias!Q94:AA94) -> 197.97 | W94: =IFERROR(SMALL([1]Competencias!Q94:AA94,2),999.99) -> 244.64 | X94: 237.56 | Y94: 195.98 | AA94: 262.54 | AB94: 262.54 | AD94: =MIN([1]Competencias!AB94:AD94) -> 999.99 | AE94: =IFERROR(SMALL([1]Competencias!AB94:AD94,2),999.99) -> 999.99 | AF94: 1199.99 | AG94: 262.54
A95: 2011-08-07 | B95: 237109740 | C95: RAFAELA | D95: KNAPP MOYA | E95: F | F95: CAPA | G95: AS | H95: U16 | I95: SI | J95: 1 | K95: 171.13 | L95: 171.13 | N95: =MIN([1]Competencias!K95:P95) -> 93.60 | O95: =IFERROR(SMALL([1]Competencias!K95:P95,2),999.99) -> 999.99 | P95: 112.32 | Q95: 171.13 | S95: 127.35 | T95: 106.86 | V95: =MIN([1]Competencias!Q95:AA95) -> 87.20 | W95: =IFERROR(SMALL([1]Competencias!Q95:AA95,2),999.99) -> 126.51 | X95: 104.64 | Y95: 106.86 | AA95: 87.23 | AB95: 87.23 | AD95: =MIN([1]Competencias!AB95:AD95) -> 118.45 | AE95: =IFERROR(SMALL([1]Competencias!AB95:AD95,2),999.99) -> 128.72 | AF95: 142.14 | AG95: 87.23
A96: 2011-07-28 | B96: 237117174 | C96: RAFAELLA | D96: REYES SBARAGLINI | E96: F | F96: CEC | G96: AS | H96: U16 | I96: SI | J96: 1 | K96: 999.99 | L96: 999.99 | N96: =MIN([1]Competencias!K96:P96) -> 999.99 | O96: =IFERROR(SMALL([1]Competencias!K96:P96,2),999.99) -> 999.99 | P96: 1199.99 | Q96: 999.99 | R96: + | S96: 999.99 | T96: 999.99 | V96: =MIN([1]Competencias!Q96:AA96) -> 999.99 | W96: =IFERROR(SMALL([1]Competencias!Q96:AA96,2),999.99) -> 999.99 | X96: 1199.99 | Y96: 999.99 | Z96: + | AA96: 999.99 | AB96: 999.99 | AD96: =MIN([1]Competencias!AB96:AD96) -> 999.99 | AE96: =IFERROR(SMALL([1]Competencias!AB96:AD96,2),999.99) -> 999.99 | AF96: 1199.99 | AG96: 999.99 | AH96: +
A97: 2011-08-09 | B97: 237159500 | C97: FRANCISCA | D97: JABAT CROQUEVIELLE | E97: F | F97: ARS | G97: AS | H97: U16 | I97: SI | J97: 1 | K97: 393.70 | L97: 393.70 | N97: =MIN([1]Competencias!K97:P97) -> 999.99 | O97: =IFERROR(SMALL([1]Competencias!K97:P97,2),999.99) -> 999.99 | P97: 1199.99 | Q97: 393.70 | S97: 822.38 | T97: 822.38 | V97: =MIN([1]Competencias!Q97:AA97) -> 999.99 | W97: =IFERROR(SMALL([1]Competencias!Q97:AA97,2),999.99) -> 999.99 | X97: 1199.99 | Y97: 822.38 | AA97: 469.81 | AB97: 469.81 | AD97: =MIN([1]Competencias!AB97:AD97) -> 999.99 | AE97: =IFERROR(SMALL([1]Competencias!AB97:AD97,2),999.99) -> 999.99 | AF97: 1199.99 | AG97: 469.81
A98: 2011-08-12 | B98: 23730571K | C98: NICOLÁS ADOLFO | D98: TAPIA MARDONES | E98: M | F98: CSC | G98: AS | H98: U16 | I98: SI | J98: 1 | K98: 999.99 | L98: 441.92 | N98: =MIN([1]Competencias!K98:P98) -> 368.27 | O98: =IFERROR(SMALL([1]Competencias!K98:P98,2),999.99) -> 999.99 | P98: 441.92 | Q98: 441.92 | S98: 999.99 | T98: 416.69 | V98: =MIN([1]Competencias!Q98:AA98) -> 347.24 | W98: =IFERROR(SMALL([1]Competencias!Q98:AA98,2),999.99) -> 999.99 | X98: 416.69 | Y98: 416.69 | AA98: 999.99 | AB98: 999.99 | AD98: =MIN([1]Competencias!AB98:AD98) -> 999.99 | AE98: =IFERROR(SMALL([1]Competencias!AB98:AD98,2),999.99) -> 999.99 | AF98: 1199.99 | AG98: 999.99 | AH98: +
A99: 2011-09-07 | B99: 237392299 | C99: DIEGO | D99: RODRIGUEZ LAPOSTOL | E99: M | F99: CVN | G99: AS | H99: U16 | I99: SI | J99: 1 | K99: 526.62 | L99: 526.62 | N99: =MIN([1]Competencias!K99:P99) -> 999.99 | O99: =IFERROR(SMALL([1]Competencias!K99:P99,2),999.99) -> 999.99 | P99: 1199.99 | Q99: 526.62 | S99: 390.27 | T99: 390.27 | V99: =MIN([1]Competencias!Q99:AA99) -> 390.46 | W99: =IFERROR(SMALL([1]Competencias!Q99:AA99,2),999.99) -> 627.36 | X99: 468.55 | Y99: 390.27 | AA99: 500.01 | AB99: 500.01 | AD99: =MIN([1]Competencias!AB99:AD99) -> 999.99 | AE99: =IFERROR(SMALL([1]Competencias!AB99:AD99,2),999.99) -> 999.99 | AF99: 1199.99 | AG99: 500.01
A100: 2011-09-12 | B100: 237440420 | C100: PAULA FRANCISCA | D100: SILVA CORNEJO | E100: F | F100: CEC | G100: AS | H100: U16 | I100: SI | J100: 1 | K100: 999.99 | L100: 999.99 | N100: =MIN([1]Competencias!K100:P100) -> 999.99 | O100: =IFERROR(SMALL([1]Competencias!K100:P100,2),999.99) -> 999.99 | P100: 1199.99 | Q100: 999.99 | R100: + | S100: 999.99 | T100: 999.99 | V100: =MIN([1]Competencias!Q100:AA100) -> 999.99 | W100: =IFERROR(SMALL([1]Competencias!Q100:AA100,2),999.99) -> 999.99 | X100: 1199.99 | Y100: 999.99 | Z100: + | AA100: 999.99 | AB100: 999.99 | AD100: =MIN([1]Competencias!AB100:AD100) -> 999.99 | AE100: =IFERROR(SMALL([1]Competencias!AB100:AD100,2),999.99) -> 999.99 | AF100: 1199.99 | AG100: 999.99 | AH100: +
A101: 2011-09-14 | B101: 237461665 | C101: LAURA | D101: DEL CAMPO TRAUTMANN | E101: F | F101: CEC | G101: AS | H101: U16 | I101: SI | J101: 1 | K101: 130.99 | L101: 130.99 | N101: =MIN([1]Competencias!K101:P101) -> 999.99 | O101: =IFERROR(SMALL([1]Competencias!K101:P101,2),999.99) -> 999.99 | P101: 1199.99 | Q101: 130.99 | S101: 171.94 | T101: 171.94 | V101: =MIN([1]Competencias!Q101:AA101) -> 157.66 | W101: =IFERROR(SMALL([1]Competencias!Q101:AA101,2),999.99) -> 999.99 | X101: 189.19 | Y101: 171.94 | AA101: 167.56 | AB101: 167.56 | AD101: =MIN([1]Competencias!AB101:AD101) -> 999.99 | AE101: =IFERROR(SMALL([1]Competencias!AB101:AD101,2),999.99) -> 999.99 | AF101: 1199.99 | AG101: 167.56
A102: 2011-09-20 | B102: 237514475 | C102: FLORENCIA | D102: ROSS MASSANES | E102: F | F102: CAN | G102: AS | H102: U16 | I102: SI | J102: 1 | K102: 143.06 | L102: 143.06 | N102: =MIN([1]Competencias!K102:P102) -> 172.90 | O102: =IFERROR(SMALL([1]Competencias!K102:P102,2),999.99) -> 999.99 | P102: 207.48 | Q102: 143.06 | S102: 177.34 | T102: 177.34 | V102: =MIN([1]Competencias!Q102:AA102) -> 999.99 | W102: =IFERROR(SMALL([1]Competencias!Q102:AA102,2),999.99) -> 999.99 | X102: 1199.99 | Y102: 177.34 | AA102: 211.46 | AB102: 211.46 | AD102: =MIN([1]Competencias!AB102:AD102) -> 999.99 | AE102: =IFERROR(SMALL([1]Competencias!AB102:AD102,2),999.99) -> 999.99 | AF102: 1199.99 | AG102: 211.46
A103: 2011-10-04 | B103: 237609107 | C103: TRINIDAD | D103: MONTANARI OTERO | E103: F | F103: UC | G103: AS | H103: U16 | I103: SI | J103: 1 | K103: 411.04 | L103: 411.04 | N103: =MIN([1]Competencias!K103:P103) -> 999.99 | O103: =IFERROR(SMALL([1]Competencias!K103:P103,2),999.99) -> 999.99 | P103: 1199.99 | Q103: 411.04 | S103: 999.99 | T103: 999.99 | V103: =MIN([1]Competencias!Q103:AA103) -> 999.99 | W103: =IFERROR(SMALL([1]Competencias!Q103:AA103,2),999.99) -> 999.99 | X103: 1199.99 | Y103: 999.99 | Z103: + | AA103: 468.67 | AB103: 468.67 | AD103: =MIN([1]Competencias!AB103:AD103) -> 999.99 | AE103: =IFERROR(SMALL([1]Competencias!AB103:AD103,2),999.99) -> 999.99 | AF103: 1199.99 | AG103: 468.67
A104: 2011-10-11 | B104: 237668634 | C104: JOSE | D104: MASSOUD AUSIN | E104: M | F104: CLP | G104: AS | H104: U16 | I104: SI | J104: 1 | K104: 226.98 | L104: 226.98 | N104: =MIN([1]Competencias!K104:P104) -> 999.99 | O104: =IFERROR(SMALL([1]Competencias!K104:P104,2),999.99) -> 999.99 | P104: 1199.99 | Q104: 226.98 | S104: 199.72 | T104: 199.72 | V104: =MIN([1]Competencias!Q104:AA104) -> 999.99 | W104: =IFERROR(SMALL([1]Competencias!Q104:AA104,2),999.99) -> 999.99 | X104: 1199.99 | Y104: 199.72 | AA104: 282.23 | AB104: 282.23 | AD104: =MIN([1]Competencias!AB104:AD104) -> 999.99 | AE104: =IFERROR(SMALL([1]Competencias!AB104:AD104,2),999.99) -> 999.99 | AF104: 1199.99 | AG104: 282.23
A105: 2011-10-10 | B105: 237674901 | C105: JULIÁN | D105: RIVERA DEL CAMPO | E105: M | F105: ARS | G105: AS | H105: U16 | I105: SI | J105: 1 | K105: 244.42 | L105: 180.98 | N105: =MIN([1]Competencias!K105:P105) -> 173.44 | O105: =IFERROR(SMALL([1]Competencias!K105:P105,2),999.99) -> 188.51 | P105: 208.13 | Q105: 180.98 | S105: 275.63 | T105: 275.63 | V105: =MIN([1]Competencias!Q105:AA105) -> 188.85 | W105: =IFERROR(SMALL([1]Competencias!Q105:AA105,2),999.99) -> 999.99 | X105: 226.62 | Y105: 275.63 | AA105: 354.28 | AB105: 227.01 | AD105: =MIN([1]Competencias!AB105:AD105) -> 213.96 | AE105: =IFERROR(SMALL([1]Competencias!AB105:AD105,2),999.99) -> 240.05 | AF105: 256.75 | AG105: 227.01
A106: 2011-10-11 | B106: 237684176 | C106: PATRICIO MATÍAS | D106: CONTESSE ORTIZ | E106: M | F106: CAN | G106: AS | H106: U16 | I106: SI | J106: 1 | K106: 116.52 | L106: 116.52 | N106: =MIN([1]Competencias!K106:P106) -> 125.18 | O106: =IFERROR(SMALL([1]Competencias!K106:P106,2),999.99) -> 147.77 | P106: 150.22 | Q106: 116.52 | S106: 112.45 | T106: 112.45 | V106: =MIN([1]Competencias!Q106:AA106) -> 999.99 | W106: =IFERROR(SMALL([1]Competencias!Q106:AA106,2),999.99) -> 999.99 | X106: 1199.99 | Y106: 112.45 | AA106: 134.06 | AB106: 134.06 | AD106: =MIN([1]Competencias!AB106:AD106) -> 999.99 | AE106: =IFERROR(SMALL([1]Competencias!AB106:AD106,2),999.99) -> 999.99 | AF106: 1199.99 | AG106: 134.06
A107: 2011-10-24 | B107: 237794540 | C107: MELISA MARIA | D107: LERMANDA IBAÑEZ | E107: F | F107: CORR | G107: AS | H107: U16 | I107: SI | J107: 1 | K107: 152.30 | L107: 152.30 | N107: =MIN([1]Competencias!K107:P107) -> 166.32 | O107: =IFERROR(SMALL([1]Competencias!K107:P107,2),999.99) -> 999.99 | P107: 199.58 | Q107: 152.30 | S107: 255.98 | T107: 255.98 | V107: =MIN([1]Competencias!Q107:AA107) -> 268.01 | W107: =IFERROR(SMALL([1]Competencias!Q107:AA107,2),999.99) -> 999.99 | X107: 321.61 | Y107: 255.98 | AA107: 327.86 | AB107: 327.86 | AD107: =MIN([1]Competencias!AB107:AD107) -> 273.22 | AE107: =IFERROR(SMALL([1]Competencias!AB107:AD107,2),999.99) -> 999.99 | AF107: 327.86 | AG107: 327.86
A108: 2011-11-03 | B108: 237871677 | C108: ARTURO | D108: WILLER SIMON | E108: M | F108: CAO | G108: AS | H108: U16 | I108: SI | J108: 1 | K108: 127.88 | L108: 127.88 | N108: =MIN([1]Competencias!K108:P108) -> 999.99 | O108: =IFERROR(SMALL([1]Competencias!K108:P108,2),999.99) -> 999.99 | P108: 1199.99 | Q108: 127.88 | S108: 145.06 | T108: 145.06 | V108: =MIN([1]Competencias!Q108:AA108) -> 158.41 | W108: =IFERROR(SMALL([1]Competencias!Q108:AA108,2),999.99) -> 207.25 | X108: 190.09 | Y108: 145.06 | AA108: 194.20 | AB108: 187.23 | AD108: =MIN([1]Competencias!AB108:AD108) -> 178.45 | AE108: =IFERROR(SMALL([1]Competencias!AB108:AD108,2),999.99) -> 196.01 | AF108: 214.14 | AG108: 187.23
A109: 2011-10-30 | B109: 237881370 | C109: JULIA | D109: OPITZ SEIDL | E109: F | F109: CAO | G109: AS | H109: U16 | I109: SI | J109: 1 | K109: 398.07 | L109: 398.07 | N109: =MIN([1]Competencias!K109:P109) -> 999.99 | O109: =IFERROR(SMALL([1]Competencias!K109:P109,2),999.99) -> 999.99 | P109: 1199.99 | Q109: 398.07 | S109: 523.93 | T109: 523.93 | V109: =MIN([1]Competencias!Q109:AA109) -> 999.99 | W109: =IFERROR(SMALL([1]Competencias!Q109:AA109,2),999.99) -> 999.99 | X109: 1199.99 | Y109: 523.93 | AA109: 661.88 | AB109: 661.88 | AD109: =MIN([1]Competencias!AB109:AD109) -> 999.99 | AE109: =IFERROR(SMALL([1]Competencias!AB109:AD109,2),999.99) -> 999.99 | AF109: 1199.99 | AG109: 661.88
A110: 2011-10-13 | B110: 237939859 | C110: NAOMI | D110: FISCHER BARENBOIM | E110: F | F110: ARS | G110: AS | H110: U16 | I110: SI | J110: 1 | K110: 999.99 | L110: 999.99 | N110: =MIN([1]Competencias!K110:P110) -> 999.99 | O110: =IFERROR(SMALL([1]Competencias!K110:P110,2),999.99) -> 999.99 | P110: 1199.99 | Q110: 999.99 | R110: + | S110: 999.99 | T110: 999.99 | V110: =MIN([1]Competencias!Q110:AA110) -> 999.99 | W110: =IFERROR(SMALL([1]Competencias!Q110:AA110,2),999.99) -> 999.99 | X110: 1199.99 | Y110: 999.99 | Z110: + | AA110: 999.99 | AB110: 999.99 | AD110: =MIN([1]Competencias!AB110:AD110) -> 999.99 | AE110: =IFERROR(SMALL([1]Competencias!AB110:AD110,2),999.99) -> 999.99 | AF110: 1199.99 | AG110: 999.99 | AH110: +
A111: 2011-11-11 | B111: 237948424 | C111: DOMINGA | D111: MANDRU ROMENY | E111: F | F111: CAO | G111: AS | H111: U16 | I111: SI | J111: 1 | K111: 290.79 | L111: 269.51 | N111: =MIN([1]Competencias!K111:P111) -> 253.71 | O111: =IFERROR(SMALL([1]Competencias!K111:P111,2),999.99) -> 285.31 | P111: 304.45 | Q111: 269.51 | S111: 322.58 | T111: 267.24 | V111: =MIN([1]Competencias!Q111:AA111) -> 260.74 | W111: =IFERROR(SMALL([1]Competencias!Q111:AA111,2),999.99) -> 273.74 | X111: 312.89 | Y111: 267.24 | AA111: 346.41 | AB111: 346.41 | AD111: =MIN([1]Competencias!AB111:AD111) -> 303.39 | AE111: =IFERROR(SMALL([1]Competencias!AB111:AD111,2),999.99) -> 999.99 | AF111: 364.07 | AG111: 346.41
A112: 2011-11-16 | B112: 237972236 | C112: AGUSTINA | D112: BANNURA DECEBAL-CUZA | E112: F | F112: UC | G112: AS | H112: U16 | I112: SI | J112: 1 | K112: 193.21 | L112: 192.20 | N112: =MIN([1]Competencias!K112:P112) -> 160.10 | O112: =IFERROR(SMALL([1]Competencias!K112:P112,2),999.99) -> 224.29 | P112: 192.12 | Q112: 192.20 | S112: 146.58 | T112: 146.58 | V112: =MIN([1]Competencias!Q112:AA112) -> 161.13 | W112: =IFERROR(SMALL([1]Competencias!Q112:AA112,2),999.99) -> 238.27 | X112: 193.36 | Y112: 146.58 | AA112: 181.22 | AB112: 181.22 | AD112: =MIN([1]Competencias!AB112:AD112) -> 252.98 | AE112: =IFERROR(SMALL([1]Competencias!AB112:AD112,2),999.99) -> 278.49 | AF112: 303.58 | AG112: 181.22
A113: 2011-11-23 | B113: 238028973 | C113: VICENTE | D113: MARTINEZ VICHERAT | E113: M | F113: UC | G113: AS | H113: U16 | I113: SI | J113: 1 | K113: 409.56 | L113: 409.56 | N113: =MIN([1]Competencias!K113:P113) -> 999.99 | O113: =IFERROR(SMALL([1]Competencias!K113:P113,2),999.99) -> 999.99 | P113: 1199.99 | Q113: 409.56 | S113: 353.46 | T113: 353.46 | V113: =MIN([1]Competencias!Q113:AA113) -> 999.99 | W113: =IFERROR(SMALL([1]Competencias!Q113:AA113,2),999.99) -> 999.99 | X113: 1199.99 | Y113: 353.46 | AA113: 999.99 | AB113: 999.99 | AD113: =MIN([1]Competencias!AB113:AD113) -> 999.99 | AE113: =IFERROR(SMALL([1]Competencias!AB113:AD113,2),999.99) -> 999.99 | AF113: 1199.99 | AG113: 999.99 | AH113: +
A114: 2011-12-09 | B114: 238169380 | C114: SANTIAGO | D114: BADILLA FUENTES | E114: M | F114: CAN | G114: AS | H114: U16 | I114: SI | J114: 1 | K114: 234.13 | L114: 234.13 | N114: =MIN([1]Competencias!K114:P114) -> 188.82 | O114: =IFERROR(SMALL([1]Competencias!K114:P114,2),999.99) -> 999.99 | P114: 226.58 | Q114: 234.13 | S114: 181.07 | T114: 181.07 | V114: =MIN([1]Competencias!Q114:AA114) -> 366.11 | W114: =IFERROR(SMALL([1]Competencias!Q114:AA114,2),999.99) -> 999.99 | X114: 439.33 | Y114: 181.07 | AA114: 231.28 | AB114: 231.28 | AD114: =MIN([1]Competencias!AB114:AD114) -> 999.99 | AE114: =IFERROR(SMALL([1]Competencias!AB114:AD114,2),999.99) -> 999.99 | AF114: 1199.99 | AG114: 231.28
A115: 2011-12-20 | B115: 238262828 | C115: VICENTE | D115: DÍAZ SOTO | E115: M | F115: CLP | G115: AS | H115: U16 | I115: SI | J115: 1 | K115: 196.69 | L115: 196.69 | N115: =MIN([1]Competencias!K115:P115) -> 148.85 | O115: =IFERROR(SMALL([1]Competencias!K115:P115,2),999.99) -> 999.99 | P115: 178.62 | Q115: 196.69 | S115: 170.78 | T115: 170.78 | V115: =MIN([1]Competencias!Q115:AA115) -> 194.16 | W115: =IFERROR(SMALL([1]Competencias!Q115:AA115,2),999.99) -> 219.86 | X115: 232.99 | Y115: 170.78 | AA115: 240.50 | AB115: 240.50 | AD115: =MIN([1]Competencias!AB115:AD115) -> 239.53 | AE115: =IFERROR(SMALL([1]Competencias!AB115:AD115,2),999.99) -> 441.07 | AF115: 287.44 | AG115: 240.50
A116: 2011-12-23 | B116: 238289130 | C116: TIAGO | D116: CARTES ATALAH | E116: M | F116: CAN | G116: AS | H116: U16 | I116: SI | J116: 1 | K116: 105.05 | L116: 105.05 | N116: =MIN([1]Competencias!K116:P116) -> 110.62 | O116: =IFERROR(SMALL([1]Competencias!K116:P116,2),999.99) -> 113.29 | P116: 132.74 | Q116: 105.05 | S116: 163.57 | T116: 163.57 | V116: =MIN([1]Competencias!Q116:AA116) -> 145.25 | W116: =IFERROR(SMALL([1]Competencias!Q116:AA116,2),999.99) -> 999.99 | X116: 174.30 | Y116: 163.57 | AA116: 181.74 | AB116: 169.01 | AD116: =MIN([1]Competencias!AB116:AD116) -> 157.75 | AE116: =IFERROR(SMALL([1]Competencias!AB116:AD116,2),999.99) -> 180.27 | AF116: 189.30 | AG116: 169.01
A117: 2012-08-01 | B117: 238390419 | C117: MAGDALENA | D117: ROJAS F | E117: F | F117: CVN | G117: AS | H117: U14 | I117: SI | J117: 2 | K117: 177.17 | L117: 177.17 | N117: =MIN([1]Competencias!K117:P117) -> 209.99 | O117: =IFERROR(SMALL([1]Competencias!K117:P117,2),999.99) -> 999.99 | P117: 251.99 | Q117: 177.17 | S117: 179.86 | T117: 179.86 | V117: =MIN([1]Competencias!Q117:AA117) -> 241.95 | W117: =IFERROR(SMALL([1]Competencias!Q117:AA117,2),999.99) -> 266.75 | X117: 290.34 | Y117: 179.86 | AA117: 205.60 | AB117: 205.60 | AD117: =MIN([1]Competencias!AB117:AD117) -> 232.66 | AE117: =IFERROR(SMALL([1]Competencias!AB117:AD117,2),999.99) -> 253.56 | AF117: 279.19 | AG117: 205.60
A118: 2012-01-18 | B118: 238487544 | C118: LUCIANO | D118: BRITO DIAZ | E118: M | F118: CLP | G118: AS | H118: U14 | I118: SI | J118: 2 | K118: 106.99 | L118: 106.99 | N118: =MIN([1]Competencias!K118:P118) -> 90.64 | O118: =IFERROR(SMALL([1]Competencias!K118:P118,2),999.99) -> 999.99 | P118: 108.77 | Q118: 106.99 | S118: 96.02 | T118: 96.02 | V118: =MIN([1]Competencias!Q118:AA118) -> 999.99 | W118: =IFERROR(SMALL([1]Competencias!Q118:AA118,2),999.99) -> 999.99 | X118: 1199.99 | Y118: 96.02 | AA118: 109.06 | AB118: 109.06 | AD118: =MIN([1]Competencias!AB118:AD118) -> 999.99 | AE118: =IFERROR(SMALL([1]Competencias!AB118:AD118,2),999.99) -> 999.99 | AF118: 1199.99 | AG118: 109.06
A119: 2012-01-02 | B119: 238488060 | C119: LORENZO | D119: LEON AZUA | E119: M | F119: CVN | G119: AS | H119: U14 | I119: SI | J119: 2 | K119: 999.99 | L119: 999.99 | N119: =MIN([1]Competencias!K119:P119) -> 999.99 | O119: =IFERROR(SMALL([1]Competencias!K119:P119,2),999.99) -> 999.99 | P119: 1199.99 | Q119: 999.99 | R119: + | S119: 490.08 | T119: 490.08 | V119: =MIN([1]Competencias!Q119:AA119) -> 999.99 | W119: =IFERROR(SMALL([1]Competencias!Q119:AA119,2),999.99) -> 999.99 | X119: 1199.99 | Y119: 490.08 | AA119: 999.99 | AB119: 999.99 | AD119: =MIN([1]Competencias!AB119:AD119) -> 999.99 | AE119: =IFERROR(SMALL([1]Competencias!AB119:AD119,2),999.99) -> 999.99 | AF119: 1199.99 | AG119: 999.99 | AH119: +
A120: 2012-03-02 | B120: 238625661 | C120: ISIDRO | D120: SECALL MOREL | E120: M | F120: CVN | G120: AS | H120: U14 | I120: SI | J120: 2 | K120: 200.90 | L120: 200.90 | N120: =MIN([1]Competencias!K120:P120) -> 999.99 | O120: =IFERROR(SMALL([1]Competencias!K120:P120,2),999.99) -> 999.99 | P120: 1199.99 | Q120: 200.90 | S120: 148.03 | T120: 148.03 | V120: =MIN([1]Competencias!Q120:AA120) -> 999.99 | W120: =IFERROR(SMALL([1]Competencias!Q120:AA120,2),999.99) -> 999.99 | X120: 1199.99 | Y120: 148.03 | AA120: 182.28 | AB120: 182.28 | AD120: =MIN([1]Competencias!AB120:AD120) -> 999.99 | AE120: =IFERROR(SMALL([1]Competencias!AB120:AD120,2),999.99) -> 999.99 | AF120: 1199.99 | AG120: 182.28
A121: 2012-02-09 | B121: 23866926K | C121: HUGO JOSÉ | D121: TAPIA MEDINA | E121: M | F121: CSC | G121: AS | H121: U14 | I121: SI | J121: 2 | K121: 999.99 | L121: 392.56 | N121: =MIN([1]Competencias!K121:P121) -> 327.13 | O121: =IFERROR(SMALL([1]Competencias!K121:P121,2),999.99) -> 999.99 | P121: 392.56 | Q121: 392.56 | S121: 999.99 | T121: 384.54 | V121: =MIN([1]Competencias!Q121:AA121) -> 320.45 | W121: =IFERROR(SMALL([1]Competencias!Q121:AA121,2),999.99) -> 999.99 | X121: 384.54 | Y121: 384.54 | AA121: 999.99 | AB121: 559.91 | AD121: =MIN([1]Competencias!AB121:AD121) -> 466.59 | AE121: =IFERROR(SMALL([1]Competencias!AB121:AD121,2),999.99) -> 999.99 | AF121: 559.91 | AG121: 559.91
A122: 2012-10-02 | B122: 238674840 | C122: ANTONIA | D122: GARDILCIC SANTA CRUZ | E122: F | F122: CVN | G122: AS | H122: U14 | I122: SI | J122: 2 | K122: 162.96 | L122: 162.96 | N122: =MIN([1]Competencias!K122:P122) -> 999.99 | O122: =IFERROR(SMALL([1]Competencias!K122:P122,2),999.99) -> 999.99 | P122: 1199.99 | Q122: 162.96 | S122: 155.75 | T122: 155.75 | V122: =MIN([1]Competencias!Q122:AA122) -> 174.07 | W122: =IFERROR(SMALL([1]Competencias!Q122:AA122,2),999.99) -> 182.84 | X122: 208.88 | Y122: 155.75 | AA122: 151.45 | AB122: 151.45 | AD122: =MIN([1]Competencias!AB122:AD122) -> 217.73 | AE122: =IFERROR(SMALL([1]Competencias!AB122:AD122,2),999.99) -> 268.50 | AF122: 261.28 | AG122: 151.45
A123: 2012-02-21 | B123: 238774861 | C123: IGNACIA | D123: LIRA CASAS | E123: F | F123: CAPA | G123: AS | H123: U14 | I123: SI | J123: 2 | K123: 205.94 | L123: 205.94 | N123: =MIN([1]Competencias!K123:P123) -> 999.99 | O123: =IFERROR(SMALL([1]Competencias!K123:P123,2),999.99) -> 999.99 | P123: 1199.99 | Q123: 205.94 | S123: 999.99 | T123: 240.79 | V123: =MIN([1]Competencias!Q123:AA123) -> 200.66 | W123: =IFERROR(SMALL([1]Competencias!Q123:AA123,2),999.99) -> 999.99 | X123: 240.79 | Y123: 240.79 | AA123: 260.15 | AB123: 260.15 | AD123: =MIN([1]Competencias!AB123:AD123) -> 999.99 | AE123: =IFERROR(SMALL([1]Competencias!AB123:AD123,2),999.99) -> 999.99 | AF123: 1199.99 | AG123: 260.15
A124: 2012-02-21 | B124: 238775086 | C124: JOAQUIN | D124: LIRA CASAS | E124: M | F124: CAPA | G124: AS | H124: U14 | I124: SI | J124: 2 | K124: 230.76 | L124: 230.76 | N124: =MIN([1]Competencias!K124:P124) -> 593.73 | O124: =IFERROR(SMALL([1]Competencias!K124:P124,2),999.99) -> 999.99 | P124: 712.48 | Q124: 230.76 | S124: 999.99 | T124: 299.40 | V124: =MIN([1]Competencias!Q124:AA124) -> 249.50 | W124: =IFERROR(SMALL([1]Competencias!Q124:AA124,2),999.99) -> 999.99 | X124: 299.40 | Y124: 299.40 | AA124: 303.74 | AB124: 303.74 | AD124: =MIN([1]Competencias!AB124:AD124) -> 999.99 | AE124: =IFERROR(SMALL([1]Competencias!AB124:AD124,2),999.99) -> 999.99 | AF124: 1199.99 | AG124: 303.74
A125: 2012-03-09 | B125: 238944864 | C125: LUNA | D125: VERA ZAROR | E125: F | F125: LV | G125: AS | H125: U14 | I125: SI | J125: 2 | K125: 213.75 | L125: 213.75 | N125: =MIN([1]Competencias!K125:P125) -> 138.33 | O125: =IFERROR(SMALL([1]Competencias!K125:P125,2),999.99) -> 448.19 | P125: 166.00 | Q125: 213.75 | S125: 250.64 | T125: 250.64 | V125: =MIN([1]Competencias!Q125:AA125) -> 282.65 | W125: =IFERROR(SMALL([1]Competencias!Q125:AA125,2),999.99) -> 289.29 | X125: 339.18 | Y125: 250.64 | AA125: 281.06 | AB125: 281.06 | AD125: =MIN([1]Competencias!AB125:AD125) -> 261.63 | AE125: =IFERROR(SMALL([1]Competencias!AB125:AD125,2),999.99) -> 999.99 | AF125: 313.96 | AG125: 281.06
A126: 2012-08-03 | B126: 238953502 | C126: GABRIEL | D126: FARÍAS AGUAYO | E126: M | F126: CVN | G126: AS | H126: U14 | I126: SI | J126: 2 | K126: 999.99 | L126: 999.99 | N126: =MIN([1]Competencias!K126:P126) -> 999.99 | O126: =IFERROR(SMALL([1]Competencias!K126:P126,2),999.99) -> 999.99 | P126: 1199.99 | Q126: 999.99 | R126: + | S126: 999.99 | T126: 176.85 | V126: =MIN([1]Competencias!Q126:AA126) -> 176.29 | W126: =IFERROR(SMALL([1]Competencias!Q126:AA126,2),999.99) -> 177.40 | X126: 211.55 | Y126: 176.85 | AA126: 999.99 | AB126: 199.71 | AD126: =MIN([1]Competencias!AB126:AD126) -> 173.36 | AE126: =IFERROR(SMALL([1]Competencias!AB126:AD126,2),999.99) -> 226.06 | AF126: 208.03 | AG126: 199.71
A127: 2012-03-13 | B127: 239038379 | C127: MANUEL | D127: LE-BERT RODRIGUEZ | E127: M | F127: UC | G127: AS | H127: U14 | I127: SI | J127: 2 | K127: 367.49 | L127: 223.72 | N127: =MIN([1]Competencias!K127:P127) -> 205.51 | O127: =IFERROR(SMALL([1]Competencias!K127:P127,2),999.99) -> 241.93 | P127: 246.61 | Q127: 223.72 | S127: 999.99 | T127: 159.20 | V127: =MIN([1]Competencias!Q127:AA127) -> 149.97 | W127: =IFERROR(SMALL([1]Competencias!Q127:AA127,2),999.99) -> 168.42 | X127: 179.96 | Y127: 159.20 | AA127: 999.99 | AB127: 275.88 | AD127: =MIN([1]Competencias!AB127:AD127) -> 222.35 | AE127: =IFERROR(SMALL([1]Competencias!AB127:AD127,2),999.99) -> 329.40 | AF127: 266.82 | AG127: 275.88
A128: 2012-03-21 | B128: 239060099 | C128: ANGELES | D128: CANDIA ECHENIQUE | E128: F | F128: UC | G128: AS | H128: U14 | I128: SI | J128: 2 | K128: 298.68 | L128: 298.68 | N128: =MIN([1]Competencias!K128:P128) -> 266.62 | O128: =IFERROR(SMALL([1]Competencias!K128:P128,2),999.99) -> 999.99 | P128: 319.94 | Q128: 298.68 | S128: 377.82 | T128: 317.01 | V128: =MIN([1]Competencias!Q128:AA128) -> 303.67 | W128: =IFERROR(SMALL([1]Competencias!Q128:AA128,2),999.99) -> 330.34 | X128: 364.40 | Y128: 317.01 | AA128: 396.61 | AB128: 340.57 | AD128: =MIN([1]Competencias!AB128:AD128) -> 337.07 | AE128: =IFERROR(SMALL([1]Competencias!AB128:AD128,2),999.99) -> 344.06 | AF128: 404.48 | AG128: 340.57
A129: 2012-03-28 | B129: 239091547 | C129: JUAN EDUARDO | D129: IBAÑEZ VERGARA | E129: M | F129: CLP | G129: AS | H129: U14 | I129: SI | J129: 2 | K129: 69.90 | L129: 69.90 | N129: =MIN([1]Competencias!K129:P129) -> 999.99 | O129: =IFERROR(SMALL([1]Competencias!K129:P129,2),999.99) -> 999.99 | P129: 1199.99 | Q129: 69.90 | S129: 70.00 | T129: 70.00 | V129: =MIN([1]Competencias!Q129:AA129) -> 999.99 | W129: =IFERROR(SMALL([1]Competencias!Q129:AA129,2),999.99) -> 999.99 | X129: 1199.99 | Y129: 70.00 | AA129: 140.46 | AB129: 140.46 | AD129: =MIN([1]Competencias!AB129:AD129) -> 999.99 | AE129: =IFERROR(SMALL([1]Competencias!AB129:AD129,2),999.99) -> 999.99 | AF129: 1199.99 | AG129: 140.46
A130: 2012-04-01 | B130: 239221904 | C130: NABIH | D130: SEITUN FUENTES | E130: M | F130: LV | G130: AS | H130: U14 | I130: SI | J130: 2 | K130: 103.82 | L130: 103.82 | N130: =MIN([1]Competencias!K130:P130) -> 103.66 | O130: =IFERROR(SMALL([1]Competencias!K130:P130,2),999.99) -> 135.49 | P130: 124.39 | Q130: 103.82 | S130: 188.02 | T130: 188.02 | V130: =MIN([1]Competencias!Q130:AA130) -> 205.70 | W130: =IFERROR(SMALL([1]Competencias!Q130:AA130,2),999.99) -> 276.82 | X130: 246.84 | Y130: 188.02 | AA130: 348.11 | AB130: 348.11 | AD130: =MIN([1]Competencias!AB130:AD130) -> 374.15 | AE130: =IFERROR(SMALL([1]Competencias!AB130:AD130,2),999.99) -> 999.99 | AF130: 448.98 | AG130: 348.11
A131: 2012-12-04 | B131: 239225624 | C131: JUAN | D131: BRINKMANN UNDURRAGA | E131: M | F131: CVN | G131: AS | H131: U14 | I131: SI | J131: 2 | K131: 126.00 | L131: 126.00 | N131: =MIN([1]Competencias!K131:P131) -> 141.99 | O131: =IFERROR(SMALL([1]Competencias!K131:P131,2),999.99) -> 999.99 | P131: =N131*1.2 -> 170.39 | Q131: =IF(N131=999.99,K131,IF(O131=999.99,IF(K131<999.99,K131,P131),IF((N131+O131)/2>K131,K131,(N131+O131)/2))) -> 126.00 | R131: =IF(Q131="999,99","",IF(Q131=A131,">",IF(Q131=O131,"+",""))) ->  | S131: 156.35 | T131: 140.55 | V131: =MIN([1]Competencias!Q131:AA131) -> 137.89 | W131: =IFERROR(SMALL([1]Competencias!Q131:AA131,2),999.99) -> 143.20 | X131: =V131*1.2 -> 165.47 | Y131: =IF(V131=999.99,S131,IF(W131=999.99,IF(S131<999.99,S131,X131),IF((V131+W131)/2>S131,S131,(V131+W131)/2))) -> 140.55 | Z131: =IF(Y131="999,99","",IF(Y131=G131,">",IF(Y131=W131,"+",""))) ->  | AA131: 272.25 | AB131: 162.07 | AD131: =MIN([1]Competencias!AB131:AD131) -> 153.82 | AE131: =IFERROR(SMALL([1]Competencias!AB131:AD131,2),999.99) -> 170.32 | AF131: =AD131*1.2 -> 184.58 | AG131: =IF(AD131=999.99,AA131,IF(AE131=999.99,IF(AA131<999.99,AA131,AF131),IF((AD131+AE131)/2>AA131,AA131,(AD131+AE131)/2))) -> 162.07 | AH131: =IF(AG131="999,99","",IF(AG131=R131,">",IF(AG131=AE131,"+",""))) -> 
A132: 2012-04-21 | B132: 23930088K | C132: ANIBAL | D132: MONTES GUTIERREZ | E132: M | F132: UC | G132: AS | H132: U14 | I132: SI | J132: 2 | K132: 999.99 | L132: 160.69 | N132: =MIN([1]Competencias!K132:P132) -> 140.50 | O132: =IFERROR(SMALL([1]Competencias!K132:P132,2),999.99) -> 180.88 | P132: 168.60 | Q132: 160.69 | S132: 97.28 | T132: 85.48 | V132: =MIN([1]Competencias!Q132:AA132) -> 78.36 | W132: =IFERROR(SMALL([1]Competencias!Q132:AA132,2),999.99) -> 92.59 | X132: 94.03 | Y132: 85.48 | AA132: 142.63 | AB132: 142.63 | AD132: =MIN([1]Competencias!AB132:AD132) -> 195.87 | AE132: =IFERROR(SMALL([1]Competencias!AB132:AD132,2),999.99) -> 999.99 | AF132: 235.04 | AG132: 142.63
A133: 2012-04-21 | B133: 239350453 | C133: DOMINGO ARNAU | D133: TORRES RETI | E133: M | F133: CAN | G133: AS | H133: U14 | I133: SI | J133: 2 | K133: 189.54 | L133: 152.01 | N133: =MIN([1]Competencias!K133:P133) -> 139.46 | O133: =IFERROR(SMALL([1]Competencias!K133:P133,2),999.99) -> 164.55 | P133: 167.35 | Q133: 152.01 | S133: 126.90 | T133: 126.90 | V133: =MIN([1]Competencias!Q133:AA133) -> 171.38 | W133: =IFERROR(SMALL([1]Competencias!Q133:AA133,2),999.99) -> 234.66 | X133: 205.66 | Y133: 126.90 | AA133: 117.78 | AB133: 117.78 | AD133: =MIN([1]Competencias!AB133:AD133) -> 999.99 | AE133: =IFERROR(SMALL([1]Competencias!AB133:AD133,2),999.99) -> 999.99 | AF133: 1199.99 | AG133: 117.78
A134: 2012-05-22 | B134: 23954326K | C134: MAX | D134: MONREAL ORMEÑO | E134: M | F134: CORR | G134: AS | H134: U14 | I134: SI | J134: 2 | K134: 98.20 | L134: 98.20 | N134: =MIN([1]Competencias!K134:P134) -> 97.24 | O134: =IFERROR(SMALL([1]Competencias!K134:P134,2),999.99) -> 150.11 | P134: 116.69 | Q134: 98.20 | S134: 189.82 | T134: 189.82 | V134: =MIN([1]Competencias!Q134:AA134) -> 226.74 | W134: =IFERROR(SMALL([1]Competencias!Q134:AA134,2),999.99) -> 232.29 | X134: 272.09 | Y134: 189.82 | AA134: 266.94 | AB134: 266.94 | AD134: =MIN([1]Competencias!AB134:AD134) -> 365.25 | AE134: =IFERROR(SMALL([1]Competencias!AB134:AD134,2),999.99) -> 999.99 | AF134: 438.30 | AG134: 266.94
A135: 2012-05-03 | B135: 23954410K | C135: EMA | D135: MUYLLE ALLIENDE | E135: F | F135: UC | G135: AS | H135: U14 | I135: SI | J135: 2 | K135: 999.99 | L135: 140.10 | N135: =MIN([1]Competencias!K135:P135) -> 121.49 | O135: =IFERROR(SMALL([1]Competencias!K135:P135,2),999.99) -> 158.70 | P135: 145.79 | Q135: 140.10 | S135: 160.13 | T135: 151.28 | V135: =MIN([1]Competencias!Q135:AA135) -> 145.43 | W135: =IFERROR(SMALL([1]Competencias!Q135:AA135,2),999.99) -> 157.13 | X135: 174.52 | Y135: 151.28 | AA135: 245.64 | AB135: 230.78 | AD135: =MIN([1]Competencias!AB135:AD135) -> 226.46 | AE135: =IFERROR(SMALL([1]Competencias!AB135:AD135,2),999.99) -> 235.10 | AF135: 271.75 | AG135: 230.78
A136: 2012-05-16 | B136: 239561756 | C136: TEODORO | D136: PASTENE SOTO | E136: M | F136: CORR | G136: AS | H136: U14 | I136: SI | J136: 2 | K136: 258.15 | L136: 258.15 | N136: =MIN([1]Competencias!K136:P136) -> 999.99 | O136: =IFERROR(SMALL([1]Competencias!K136:P136,2),999.99) -> 999.99 | P136: 1199.99 | Q136: 258.15 | S136: 348.62 | T136: 348.62 | V136: =MIN([1]Competencias!Q136:AA136) -> 377.21 | W136: =IFERROR(SMALL([1]Competencias!Q136:AA136,2),999.99) -> 999.99 | X136: 452.65 | Y136: 348.62 | AA136: 383.63 | AB136: 383.63 | AD136: =MIN([1]Competencias!AB136:AD136) -> 614.54 | AE136: =IFERROR(SMALL([1]Competencias!AB136:AD136,2),999.99) -> 999.99 | AF136: 737.45 | AG136: 383.63
A137: 2012-05-29 | B137: 239611478 | C137: JACINTA | D137: OPAZO DIAZ | E137: F | F137: CLP | G137: AS | H137: U14 | I137: SI | J137: 2 | K137: 193.15 | L137: 193.15 | N137: =MIN([1]Competencias!K137:P137) -> 154.02 | O137: =IFERROR(SMALL([1]Competencias!K137:P137,2),999.99) -> 999.99 | P137: 184.82 | Q137: 193.15 | S137: 214.19 | T137: 214.19 | V137: =MIN([1]Competencias!Q137:AA137) -> 356.08 | W137: =IFERROR(SMALL([1]Competencias!Q137:AA137,2),999.99) -> 999.99 | X137: 427.30 | Y137: 214.19 | AA137: 279.71 | AB137: 279.71 | AD137: =MIN([1]Competencias!AB137:AD137) -> 999.99 | AE137: =IFERROR(SMALL([1]Competencias!AB137:AD137,2),999.99) -> 999.99 | AF137: 1199.99 | AG137: 279.71
A138: 2012-05-01 | B138: 239624863 | C138: CLARA | D138: GAZMURI PIEDRA | E138: F | F138: CEC | G138: AS | H138: U14 | I138: SI | J138: 2 | K138: 232.14 | L138: 232.14 | N138: =MIN([1]Competencias!K138:P138) -> 999.99 | O138: =IFERROR(SMALL([1]Competencias!K138:P138,2),999.99) -> 999.99 | P138: 1199.99 | Q138: 232.14 | S138: 358.05 | T138: 358.05 | V138: =MIN([1]Competencias!Q138:AA138) -> 999.99 | W138: =IFERROR(SMALL([1]Competencias!Q138:AA138,2),999.99) -> 999.99 | X138: 1199.99 | Y138: 358.05 | AA138: 999.99 | AB138: 999.99 | AD138: =MIN([1]Competencias!AB138:AD138) -> 999.99 | AE138: =IFERROR(SMALL([1]Competencias!AB138:AD138,2),999.99) -> 999.99 | AF138: 1199.99 | AG138: 999.99 | AH138: +
A139: 2012-05-30 | B139: 239677304 | C139: JULIETA | D139: FERNANDEZ VERGARA | E139: F | F139: CLP | G139: AS | H139: U14 | I139: SI | J139: 2 | K139: 75.32 | L139: 75.32 | N139: =MIN([1]Competencias!K139:P139) -> 102.50 | O139: =IFERROR(SMALL([1]Competencias!K139:P139,2),999.99) -> 999.99 | P139: 123.00 | Q139: 75.32 | S139: 118.50 | T139: 118.50 | V139: =MIN([1]Competencias!Q139:AA139) -> 134.57 | W139: =IFERROR(SMALL([1]Competencias!Q139:AA139,2),999.99) -> 142.25 | X139: 161.48 | Y139: 118.50 | AA139: 159.37 | AB139: 159.37 | AD139: =MIN([1]Competencias!AB139:AD139) -> 999.99 | AE139: =IFERROR(SMALL([1]Competencias!AB139:AD139,2),999.99) -> 999.99 | AF139: 1199.99 | AG139: 159.37
A140: 2012-05-30 | B140: 239679838 | C140: OLGA | D140: KUBICK LESSER | E140: F | F140: CLP | G140: AS | H140: U14 | I140: SI | J140: 2 | K140: 155.09 | L140: 155.09 | N140: =MIN([1]Competencias!K140:P140) -> 999.99 | O140: =IFERROR(SMALL([1]Competencias!K140:P140,2),999.99) -> 999.99 | P140: 1199.99 | Q140: 155.09 | S140: 158.13 | T140: 158.13 | V140: =MIN([1]Competencias!Q140:AA140) -> 159.83 | W140: =IFERROR(SMALL([1]Competencias!Q140:AA140,2),999.99) -> 171.72 | X140: 191.80 | Y140: 158.13 | AA140: 210.97 | AB140: 186.76 | AD140: =MIN([1]Competencias!AB140:AD140) -> 178.77 | AE140: =IFERROR(SMALL([1]Competencias!AB140:AD140,2),999.99) -> 194.74 | AF140: 214.52 | AG140: 186.76
A141: 2012-05-25 | B141: 239693318 | C141: MAGDALENA | D141: CORDERO VON LEYSER | E141: F | F141: CEC | G141: AS | H141: U14 | I141: SI | J141: 2 | K141: 999.99 | L141: 999.99 | N141: =MIN([1]Competencias!K141:P141) -> 999.99 | O141: =IFERROR(SMALL([1]Competencias!K141:P141,2),999.99) -> 999.99 | P141: 1199.99 | Q141: 999.99 | R141: + | S141: 999.99 | T141: 999.99 | V141: =MIN([1]Competencias!Q141:AA141) -> 999.99 | W141: =IFERROR(SMALL([1]Competencias!Q141:AA141,2),999.99) -> 999.99 | X141: 1199.99 | Y141: 999.99 | Z141: + | AA141: 999.99 | AB141: 999.99 | AD141: =MIN([1]Competencias!AB141:AD141) -> 999.99 | AE141: =IFERROR(SMALL([1]Competencias!AB141:AD141,2),999.99) -> 999.99 | AF141: 1199.99 | AG141: 999.99 | AH141: +
A142: 2012-06-02 | B142: 239697003 | C142: ADELA | D142: VALDES PRIETO | E142: F | F142: CAO | G142: AS | H142: U14 | I142: SI | J142: 2 | K142: 57.28 | L142: 57.28 | N142: =MIN([1]Competencias!K142:P142) -> 85.83 | O142: =IFERROR(SMALL([1]Competencias!K142:P142,2),999.99) -> 999.99 | P142: 103.00 | Q142: 57.28 | S142: 70.00 | T142: 70.00 | V142: =MIN([1]Competencias!Q142:AA142) -> 87.26 | W142: =IFERROR(SMALL([1]Competencias!Q142:AA142,2),999.99) -> 89.68 | X142: 104.71 | Y142: 70.00 | AA142: 85.00 | AB142: 85.00 | AD142: =MIN([1]Competencias!AB142:AD142) -> 152.13 | AE142: =IFERROR(SMALL([1]Competencias!AB142:AD142,2),999.99) -> 160.21 | AF142: 182.56 | AG142: 85.00
A143: 2012-05-25 | B143: 239723578 | C143: GUSTAVO | D143: PINCHEIRA BRAVO | E143: M | F143: CAR | G143: AS | H143: U14 | I143: SI | J143: 2 | K143: 71.46 | L143: 64.57 | N143: =MIN([1]Competencias!K143:P143) -> 49.67 | O143: =IFERROR(SMALL([1]Competencias!K143:P143,2),999.99) -> 79.46 | P143: 59.60 | Q143: 64.57 | S143: 133.46 | T143: 133.46 | V143: =MIN([1]Competencias!Q143:AA143) -> 151.59 | W143: =IFERROR(SMALL([1]Competencias!Q143:AA143,2),999.99) -> 161.97 | X143: 181.91 | Y143: 133.46 | AA143: 231.73 | AB143: 231.73 | AD143: =MIN([1]Competencias!AB143:AD143) -> 315.81 | AE143: =IFERROR(SMALL([1]Competencias!AB143:AD143,2),999.99) -> 999.99 | AF143: 378.97 | AG143: 231.73
A144: 2012-06-07 | B144: 239740588 | C144: ROSARIO ALEJANDRA | D144: CALDERA ALMONACID | E144: F | F144: CEC | G144: AS | H144: U14 | I144: SI | J144: 2 | K144: 141.73 | L144: 141.73 | N144: =MIN([1]Competencias!K144:P144) -> 125.73 | O144: =IFERROR(SMALL([1]Competencias!K144:P144,2),999.99) -> 225.13 | P144: 150.88 | Q144: 141.73 | S144: 267.91 | T144: 227.71 | V144: =MIN([1]Competencias!Q144:AA144) -> 215.33 | W144: =IFERROR(SMALL([1]Competencias!Q144:AA144,2),999.99) -> 240.09 | X144: 258.40 | Y144: 227.71 | AA144: 261.85 | AB144: 248.86 | AD144: =MIN([1]Competencias!AB144:AD144) -> 237.96 | AE144: =IFERROR(SMALL([1]Competencias!AB144:AD144,2),999.99) -> 259.75 | AF144: 285.55 | AG144: 248.86
A145: 2012-06-02 | B145: 239743889 | C145: CLARA | D145: CAMUS CORREA | E145: F | F145: CAN | G145: AS | H145: U14 | I145: SI | J145: 2 | K145: 999.99 | L145: 999.99 | N145: =MIN([1]Competencias!K145:P145) -> 999.99 | O145: =IFERROR(SMALL([1]Competencias!K145:P145,2),999.99) -> 999.99 | P145: 1199.99 | Q145: 999.99 | R145: + | S145: 999.99 | T145: 580.90 | V145: =MIN([1]Competencias!Q145:AA145) -> 545.92 | W145: =IFERROR(SMALL([1]Competencias!Q145:AA145,2),999.99) -> 615.87 | X145: 655.10 | Y145: 580.90 | AA145: 999.99 | AB145: 999.99 | AD145: =MIN([1]Competencias!AB145:AD145) -> 999.99 | AE145: =IFERROR(SMALL([1]Competencias!AB145:AD145,2),999.99) -> 999.99 | AF145: 1199.99 | AG145: 999.99 | AH145: +
A146: 2012-06-05 | B146: 239758096 | C146: CRESCENTE | D146: TUÑON SOTO | E146: M | F146: UC | G146: AS | H146: U14 | I146: SI | J146: 2 | K146: 519.71 | L146: 519.71 | N146: =MIN([1]Competencias!K146:P146) -> 999.99 | O146: =IFERROR(SMALL([1]Competencias!K146:P146,2),999.99) -> 999.99 | P146: 1199.99 | Q146: 519.71 | S146: 999.99 | T146: 999.99 | V146: =MIN([1]Competencias!Q146:AA146) -> 999.99 | W146: =IFERROR(SMALL([1]Competencias!Q146:AA146,2),999.99) -> 999.99 | X146: 1199.99 | Y146: 999.99 | Z146: + | AA146: 999.99 | AB146: 999.99 | AD146: =MIN([1]Competencias!AB146:AD146) -> 999.99 | AE146: =IFERROR(SMALL([1]Competencias!AB146:AD146,2),999.99) -> 999.99 | AF146: 1199.99 | AG146: 999.99 | AH146: +
A147: 2012-06-12 | B147: 239800572 | C147: IÑAKI | D147: BASAURI GARDILCIC | E147: M | F147: CORR | G147: AS | H147: U14 | I147: SI | J147: 2 | K147: 110.68 | L147: 110.68 | N147: =MIN([1]Competencias!K147:P147) -> 121.06 | O147: =IFERROR(SMALL([1]Competencias!K147:P147,2),999.99) -> 145.59 | P147: 145.27 | Q147: 110.68 | S147: 181.78 | T147: 181.78 | V147: =MIN([1]Competencias!Q147:AA147) -> 261.93 | W147: =IFERROR(SMALL([1]Competencias!Q147:AA147,2),999.99) -> 377.16 | X147: 314.32 | Y147: 181.78 | AA147: 223.15 | AB147: 223.15 | AD147: =MIN([1]Competencias!AB147:AD147) -> 415.07 | AE147: =IFERROR(SMALL([1]Competencias!AB147:AD147,2),999.99) -> 999.99 | AF147: 498.08 | AG147: 223.15
A148: 2012-06-02 | B148: 239811019 | C148: EMILIA | D148: PEREZ OLMOS | E148: F | F148: LV | G148: AS | H148: U14 | I148: SI | J148: 2 | K148: 156.17 | L148: 131.98 | N148: =MIN([1]Competencias!K148:P148) -> 127.94 | O148: =IFERROR(SMALL([1]Competencias!K148:P148,2),999.99) -> 136.02 | P148: 153.53 | Q148: 131.98 | S148: 166.00 | T148: 166.00 | V148: =MIN([1]Competencias!Q148:AA148) -> 266.90 | W148: =IFERROR(SMALL([1]Competencias!Q148:AA148,2),999.99) -> 332.12 | X148: 320.28 | Y148: 166.00 | AA148: 216.92 | AB148: 216.92 | AD148: =MIN([1]Competencias!AB148:AD148) -> 248.21 | AE148: =IFERROR(SMALL([1]Competencias!AB148:AD148,2),999.99) -> 999.99 | AF148: 297.85 | AG148: 216.92
A149: 2012-06-15 | B149: 239854001 | C149: TEO | D149: ATALAH BINFA | E149: M | F149: LV | G149: AS | H149: U14 | I149: SI | J149: 2 | K149: 234.14 | L149: 234.14 | N149: =MIN([1]Competencias!K149:P149) -> 205.34 | O149: =IFERROR(SMALL([1]Competencias!K149:P149,2),999.99) -> 999.99 | P149: 246.41 | Q149: 234.14 | S149: 278.39 | T149: 278.39 | V149: =MIN([1]Competencias!Q149:AA149) -> 360.59 | W149: =IFERROR(SMALL([1]Competencias!Q149:AA149,2),999.99) -> 999.99 | X149: 432.71 | Y149: 278.39 | AA149: 378.08 | AB149: 378.08 | AD149: =MIN([1]Competencias!AB149:AD149) -> 485.54 | AE149: =IFERROR(SMALL([1]Competencias!AB149:AD149,2),999.99) -> 999.99 | AF149: 582.65 | AG149: 378.08
A150: 2012-03-19 | B150: 239864716 | C150: PEDRO | D150: RODRIGUEZ CASTRO | E150: M | F150: CVN | G150: AS | H150: U14 | I150: SI | J150: 2 | K150: 195.25 | L150: 195.25 | N150: =MIN([1]Competencias!K150:P150) -> 227.17 | O150: =IFERROR(SMALL([1]Competencias!K150:P150,2),999.99) -> 254.29 | P150: 272.60 | Q150: 195.25 | S150: 179.99 | T150: 179.99 | V150: =MIN([1]Competencias!Q150:AA150) -> 204.82 | W150: =IFERROR(SMALL([1]Competencias!Q150:AA150,2),999.99) -> 219.61 | X150: 245.78 | Y150: 179.99 | AA150: 171.88 | AB150: 171.88 | AD150: =MIN([1]Competencias!AB150:AD150) -> 218.14 | AE150: =IFERROR(SMALL([1]Competencias!AB150:AD150,2),999.99) -> 285.38 | AF150: 261.77 | AG150: 171.88
A151: 2012-06-23 | B151: 239909833 | C151: AGUSTIN | D151: JARA ALVARADO | E151: M | F151: UC | G151: AS | H151: U14 | I151: SI | J151: 2 | K151: 999.99 | L151: 999.99 | N151: =MIN([1]Competencias!K151:P151) -> 999.99 | O151: =IFERROR(SMALL([1]Competencias!K151:P151,2),999.99) -> 999.99 | P151: 1199.99 | Q151: 999.99 | R151: + | S151: 295.24 | T151: 295.24 | V151: =MIN([1]Competencias!Q151:AA151) -> 999.99 | W151: =IFERROR(SMALL([1]Competencias!Q151:AA151,2),999.99) -> 999.99 | X151: 1199.99 | Y151: 295.24 | AA151: 301.23 | AB151: 301.23 | AD151: =MIN([1]Competencias!AB151:AD151) -> 999.99 | AE151: =IFERROR(SMALL([1]Competencias!AB151:AD151,2),999.99) -> 999.99 | AF151: 1199.99 | AG151: 301.23
A152: 2012-07-02 | B152: 240010763 | C152: JOSÉ | D152: KRAUSE GUTIÉRREZ | E152: M | F152: CVN | G152: AS | H152: U14 | I152: SI | J152: 2 | K152: 999.99 | L152: 145.48 | N152: =MIN([1]Competencias!K152:P152) -> 125.22 | O152: =IFERROR(SMALL([1]Competencias!K152:P152,2),999.99) -> 165.74 | P152: 150.26 | Q152: 145.48 | S152: 149.67 | T152: 129.70 | V152: =MIN([1]Competencias!Q152:AA152) -> 116.92 | W152: =IFERROR(SMALL([1]Competencias!Q152:AA152,2),999.99) -> 142.48 | X152: 140.30 | Y152: 129.70 | AA152: 112.47 | AB152: 112.47 | AD152: =MIN([1]Competencias!AB152:AD152) -> 176.79 | AE152: =IFERROR(SMALL([1]Competencias!AB152:AD152,2),999.99) -> 184.85 | AF152: 212.15 | AG152: 112.47
A153: 2012-06-28 | B153: 240018462 | C153: PILAR | D153: CLARO IRARRAZAVAL | E153: F | F153: UC | G153: AS | H153: U14 | I153: SI | J153: 2 | K153: 199.69 | L153: 199.69 | N153: =MIN([1]Competencias!K153:P153) -> 136.54 | O153: =IFERROR(SMALL([1]Competencias!K153:P153,2),999.99) -> 999.99 | P153: 163.85 | Q153: 199.69 | S153: 164.91 | T153: 164.91 | V153: =MIN([1]Competencias!Q153:AA153) -> 232.57 | W153: =IFERROR(SMALL([1]Competencias!Q153:AA153,2),999.99) -> 236.08 | X153: 279.08 | Y153: 164.91 | AA153: 186.39 | AB153: 186.39 | AD153: =MIN([1]Competencias!AB153:AD153) -> 999.99 | AE153: =IFERROR(SMALL([1]Competencias!AB153:AD153,2),999.99) -> 999.99 | AF153: 1199.99 | AG153: 186.39
A154: 2012-07-04 | B154: 240101319 | C154: AMANDA | D154: JONES ILLANES | E154: F | F154: CAN | G154: AS | H154: U14 | I154: SI | J154: 2 | K154: 62.33 | L154: 62.33 | N154: =MIN([1]Competencias!K154:P154) -> 78.91 | O154: =IFERROR(SMALL([1]Competencias!K154:P154,2),999.99) -> 999.99 | P154: 94.69 | Q154: 62.33 | S154: 103.25 | T154: 103.25 | V154: =MIN([1]Competencias!Q154:AA154) -> 999.99 | W154: =IFERROR(SMALL([1]Competencias!Q154:AA154,2),999.99) -> 999.99 | X154: 1199.99 | Y154: 103.25 | AA154: 110.29 | AB154: 110.29 | AD154: =MIN([1]Competencias!AB154:AD154) -> 999.99 | AE154: =IFERROR(SMALL([1]Competencias!AB154:AD154,2),999.99) -> 999.99 | AF154: 1199.99 | AG154: 110.29
A155: 2012-07-18 | B155: 240114283 | C155: BLANCA | D155: PUIG GUTIERREZ | E155: F | F155: CAR | G155: AS | H155: U14 | I155: SI | J155: 2 | K155: 101.22 | L155: 101.22 | N155: =MIN([1]Competencias!K155:P155) -> 151.09 | O155: =IFERROR(SMALL([1]Competencias!K155:P155,2),999.99) -> 999.99 | P155: 181.31 | Q155: 101.22 | S155: 137.28 | T155: 137.28 | V155: =MIN([1]Competencias!Q155:AA155) -> 245.80 | W155: =IFERROR(SMALL([1]Competencias!Q155:AA155,2),999.99) -> 253.19 | X155: 294.96 | Y155: 137.28 | AA155: 230.03 | AB155: 230.03 | AD155: =MIN([1]Competencias!AB155:AD155) -> 242.81 | AE155: =IFERROR(SMALL([1]Competencias!AB155:AD155,2),999.99) -> 999.99 | AF155: 291.37 | AG155: 230.03
A156: 2012-07-17 | B156: 24019130K | C156: VICENTE JAVIER | D156: ACLE ASENJO | E156: M | F156: CSC | G156: AS | H156: U14 | I156: SI | J156: 2 | K156: 999.99 | L156: 999.99 | N156: =MIN([1]Competencias!K156:P156) -> 999.99 | O156: =IFERROR(SMALL([1]Competencias!K156:P156,2),999.99) -> 999.99 | P156: 1199.99 | Q156: 999.99 | R156: + | S156: 999.99 | T156: 338.93 | V156: =MIN([1]Competencias!Q156:AA156) -> 282.44 | W156: =IFERROR(SMALL([1]Competencias!Q156:AA156,2),999.99) -> 999.99 | X156: 338.93 | Y156: 338.93 | AA156: 999.99 | AB156: 434.44 | AD156: =MIN([1]Competencias!AB156:AD156) -> 362.03 | AE156: =IFERROR(SMALL([1]Competencias!AB156:AD156,2),999.99) -> 999.99 | AF156: 434.44 | AG156: 434.44
A157: 2012-07-27 | B157: 240208881 | C157: FRANCISCA | D157: COSMELLI PIWONKA | E157: F | F157: UC | G157: AS | H157: U14 | I157: SI | J157: 2 | K157: 141.30 | L157: 111.99 | N157: =MIN([1]Competencias!K157:P157) -> 107.01 | O157: =IFERROR(SMALL([1]Competencias!K157:P157,2),999.99) -> 116.97 | P157: 128.41 | Q157: 111.99 | S157: 204.22 | T157: 204.22 | V157: =MIN([1]Competencias!Q157:AA157) -> 999.99 | W157: =IFERROR(SMALL([1]Competencias!Q157:AA157,2),999.99) -> 999.99 | X157: 1199.99 | Y157: 204.22 | AA157: 196.30 | AB157: 196.30 | AD157: =MIN([1]Competencias!AB157:AD157) -> 999.99 | AE157: =IFERROR(SMALL([1]Competencias!AB157:AD157,2),999.99) -> 999.99 | AF157: 1199.99 | AG157: 196.30
A158: 2012-08-06 | B158: 240321343 | C158: EMA ANTONIA | D158: GARDA TIMMERMANN | E158: F | F158: CEC | G158: AS | H158: U14 | I158: SI | J158: 2 | K158: 123.40 | L158: 123.40 | N158: =MIN([1]Competencias!K158:P158) -> 128.77 | O158: =IFERROR(SMALL([1]Competencias!K158:P158,2),999.99) -> 999.99 | P158: 154.52 | Q158: 123.40 | S158: 302.92 | T158: 302.92 | V158: =MIN([1]Competencias!Q158:AA158) -> 212.98 | W158: =IFERROR(SMALL([1]Competencias!Q158:AA158,2),999.99) -> 999.99 | X158: 255.58 | Y158: 302.92 | AA158: 226.84 | AB158: 226.84 | AD158: =MIN([1]Competencias!AB158:AD158) -> 236.65 | AE158: =IFERROR(SMALL([1]Competencias!AB158:AD158,2),999.99) -> 999.99 | AF158: 283.98 | AG158: 226.84
A159: 2012-08-09 | B159: 240324194 | C159: VICTORIA | D159: BORCHERT TOLEDO | E159: F | F159: POR | G159: AS | H159: U14 | I159: SI | J159: 2 | K159: 999.99 | L159: 352.57 | N159: =MIN([1]Competencias!K159:P159) -> 293.81 | O159: =IFERROR(SMALL([1]Competencias!K159:P159,2),999.99) -> 999.99 | P159: 352.57 | Q159: 352.57 | S159: 999.99 | T159: 317.74 | V159: =MIN([1]Competencias!Q159:AA159) -> 278.52 | W159: =IFERROR(SMALL([1]Competencias!Q159:AA159,2),999.99) -> 356.95 | X159: 334.22 | Y159: 317.74 | AA159: 999.99 | AB159: 999.99 | AD159: =MIN([1]Competencias!AB159:AD159) -> 999.99 | AE159: =IFERROR(SMALL([1]Competencias!AB159:AD159,2),999.99) -> 999.99 | AF159: 1199.99 | AG159: 999.99 | AH159: +
A160: 2012-08-17 | B160: 240385538 | C160: CLEMENTE | D160: SILVA OSSIPOVICH | E160: M | F160: CVN | G160: AS | H160: U14 | I160: SI | J160: 2 | K160: 78.03 | L160: 78.03 | N160: =MIN([1]Competencias!K160:P160) -> 95.61 | O160: =IFERROR(SMALL([1]Competencias!K160:P160,2),999.99) -> 999.99 | P160: 114.73 | Q160: 78.03 | S160: 80.66 | T160: 76.14 | V160: =MIN([1]Competencias!Q160:AA160) -> 71.50 | W160: =IFERROR(SMALL([1]Competencias!Q160:AA160,2),999.99) -> 80.77 | X160: 85.80 | Y160: 76.14 | AA160: 85.00 | AB160: 85.00 | AD160: =MIN([1]Competencias!AB160:AD160) -> 83.02 | AE160: =IFERROR(SMALL([1]Competencias!AB160:AD160,2),999.99) -> 87.34 | AF160: 99.62 | AG160: 85.00
A161: 2012-08-29 | B161: 240505428 | C161: NICOLAS | D161: PEREZ CARDENAS | E161: M | F161: PAT | G161: AS | H161: U14 | I161: SI | J161: 2 | K161: 163.31 | L161: 163.31 | N161: =MIN([1]Competencias!K161:P161) -> 197.72 | O161: =IFERROR(SMALL([1]Competencias!K161:P161,2),999.99) -> 999.99 | P161: 237.26 | Q161: 163.31 | S161: 206.18 | T161: 206.18 | V161: =MIN([1]Competencias!Q161:AA161) -> 227.46 | W161: =IFERROR(SMALL([1]Competencias!Q161:AA161,2),999.99) -> 234.55 | X161: 272.95 | Y161: 206.18 | AA161: 151.39 | AB161: 151.39 | AD161: =MIN([1]Competencias!AB161:AD161) -> 999.99 | AE161: =IFERROR(SMALL([1]Competencias!AB161:AD161,2),999.99) -> 999.99 | AF161: 1199.99 | AG161: 151.39
A162: 2012-09-05 | B162: 240575167 | C162: EMA | D162: MURUA INFANTE | E162: F | F162: UC | G162: AS | H162: U14 | I162: SI | J162: 2 | K162: 336.23 | L162: 316.98 | N162: =MIN([1]Competencias!K162:P162) -> 292.46 | O162: =IFERROR(SMALL([1]Competencias!K162:P162,2),999.99) -> 341.49 | P162: 350.95 | Q162: 316.98 | S162: 512.55 | T162: 357.61 | V162: =MIN([1]Competencias!Q162:AA162) -> 349.70 | W162: =IFERROR(SMALL([1]Competencias!Q162:AA162,2),999.99) -> 365.52 | X162: 419.64 | Y162: 357.61 | AA162: 999.99 | AB162: 999.99 | AD162: =MIN([1]Competencias!AB162:AD162) -> 999.99 | AE162: =IFERROR(SMALL([1]Competencias!AB162:AD162,2),999.99) -> 999.99 | AF162: 1199.99 | AG162: 999.99 | AH162: +
A163: 2012-08-06 | B163: 240583348 | C163: IAN | D163: STENGEL MORRIS | E163: M | F163: CSC | G163: AS | H163: U14 | I163: SI | J163: 2 | K163: 999.99 | L163: 999.99 | N163: =MIN([1]Competencias!K163:P163) -> 999.99 | O163: =IFERROR(SMALL([1]Competencias!K163:P163,2),999.99) -> 999.99 | P163: 1199.99 | Q163: 999.99 | R163: + | S163: 999.99 | T163: 999.99 | V163: =MIN([1]Competencias!Q163:AA163) -> 999.99 | W163: =IFERROR(SMALL([1]Competencias!Q163:AA163,2),999.99) -> 999.99 | X163: 1199.99 | Y163: 999.99 | Z163: + | AA163: 999.99 | AB163: 999.99 | AD163: =MIN([1]Competencias!AB163:AD163) -> 999.99 | AE163: =IFERROR(SMALL([1]Competencias!AB163:AD163,2),999.99) -> 999.99 | AF163: 1199.99 | AG163: 999.99 | AH163: +
A164: 2012-09-12 | B164: 240631164 | C164: RAFFAELLA | D164: MOTTO GRINSPUN | E164: F | F164: CAN | G164: AS | H164: U14 | I164: SI | J164: 2 | K164: 341.44 | L164: 242.84 | N164: =MIN([1]Competencias!K164:P164) -> 229.73 | O164: =IFERROR(SMALL([1]Competencias!K164:P164,2),999.99) -> 255.95 | P164: 275.68 | Q164: 242.84 | S164: 357.93 | T164: 302.86 | V164: =MIN([1]Competencias!Q164:AA164) -> 287.10 | W164: =IFERROR(SMALL([1]Competencias!Q164:AA164,2),999.99) -> 318.62 | X164: 344.52 | Y164: 302.86 | AA164: 382.20 | AB164: 365.33 | AD164: =MIN([1]Competencias!AB164:AD164) -> 350.51 | AE164: =IFERROR(SMALL([1]Competencias!AB164:AD164,2),999.99) -> 380.15 | AF164: 420.61 | AG164: 365.33
A165: 2012-09-06 | B165: 240631997 | C165: ANGEL | D165: MARIN SOTO | E165: M | F165: PAT | G165: AS | H165: U14 | I165: SI | J165: 2 | K165: 999.99 | L165: 140.27 | N165: =MIN([1]Competencias!K165:P165) -> 126.33 | O165: =IFERROR(SMALL([1]Competencias!K165:P165,2),999.99) -> 154.20 | P165: 151.60 | Q165: 140.27 | S165: 198.57 | T165: 191.02 | V165: =MIN([1]Competencias!Q165:AA165) -> 179.35 | W165: =IFERROR(SMALL([1]Competencias!Q165:AA165,2),999.99) -> 202.68 | X165: 215.22 | Y165: 191.02 | AA165: 250.85 | AB165: 250.85 | AD165: =MIN([1]Competencias!AB165:AD165) -> 360.14 | AE165: =IFERROR(SMALL([1]Competencias!AB165:AD165,2),999.99) -> 999.99 | AF165: 432.17 | AG165: 250.85
A166: 2012-09-23 | B166: 240699540 | C166: SEBASTIAN | D166: BASAURE VARGAS | E166: M | F166: UC | G166: AS | H166: U14 | I166: SI | J166: 2 | K166: 75.26 | L166: 75.26 | N166: =MIN([1]Competencias!K166:P166) -> 107.07 | O166: =IFERROR(SMALL([1]Competencias!K166:P166,2),999.99) -> 114.26 | P166: 128.48 | Q166: 75.26 | S166: 81.83 | T166: 80.82 | V166: =MIN([1]Competencias!Q166:AA166) -> 74.47 | W166: =IFERROR(SMALL([1]Competencias!Q166:AA166,2),999.99) -> 87.17 | X166: 89.36 | Y166: 80.82 | AA166: 132.34 | AB166: 116.88 | AD166: =MIN([1]Competencias!AB166:AD166) -> 110.78 | AE166: =IFERROR(SMALL([1]Competencias!AB166:AD166,2),999.99) -> 122.97 | AF166: 132.94 | AG166: 116.88
A167: 2012-09-28 | B167: 240776367 | C167: ELOISA | D167: ROSENDE ZEGERS | E167: F | F167: LV | G167: AS | H167: U14 | I167: SI | J167: 2 | K167: 201.17 | L167: 201.17 | N167: =MIN([1]Competencias!K167:P167) -> 169.64 | O167: =IFERROR(SMALL([1]Competencias!K167:P167,2),999.99) -> 999.99 | P167: 203.57 | Q167: 201.17 | S167: 221.43 | T167: 221.43 | V167: =MIN([1]Competencias!Q167:AA167) -> 237.73 | W167: =IFERROR(SMALL([1]Competencias!Q167:AA167,2),999.99) -> 265.41 | X167: 285.28 | Y167: 221.43 | AA167: 281.45 | AB167: 281.45 | AD167: =MIN([1]Competencias!AB167:AD167) -> 303.58 | AE167: =IFERROR(SMALL([1]Competencias!AB167:AD167,2),999.99) -> 999.99 | AF167: 364.30 | AG167: 281.45
A168: 2012-10-09 | B168: 240845229 | C168: RAFAEL | D168: AYALA PEREZ | E168: M | F168: CAN | G168: AS | H168: U14 | I168: SI | J168: 2 | K168: 162.73 | L168: 162.73 | N168: =MIN([1]Competencias!K168:P168) -> 138.08 | O168: =IFERROR(SMALL([1]Competencias!K168:P168,2),999.99) -> 999.99 | P168: 165.70 | Q168: 162.73 | S168: 209.97 | T168: 209.97 | V168: =MIN([1]Competencias!Q168:AA168) -> 257.12 | W168: =IFERROR(SMALL([1]Competencias!Q168:AA168,2),999.99) -> 258.06 | X168: 308.54 | Y168: 209.97 | AA168: 216.29 | AB168: 216.29 | AD168: =MIN([1]Competencias!AB168:AD168) -> 999.99 | AE168: =IFERROR(SMALL([1]Competencias!AB168:AD168,2),999.99) -> 999.99 | AF168: 1199.99 | AG168: 216.29
A169: 2012-10-21 | B169: 240953978 | C169: CARMEN | D169: FLEISCHMANN KOSTER | E169: F | F169: CORR | G169: AS | H169: U14 | I169: SI | J169: 2 | K169: 999.99 | L169: 396.58 | N169: =MIN([1]Competencias!K169:P169) -> 252.23 | O169: =IFERROR(SMALL([1]Competencias!K169:P169,2),999.99) -> 540.92 | P169: 302.68 | Q169: 396.58 | S169: 746.40 | T169: 326.05 | V169: =MIN([1]Competencias!Q169:AA169) -> 323.60 | W169: =IFERROR(SMALL([1]Competencias!Q169:AA169,2),999.99) -> 328.50 | X169: 388.32 | Y169: 326.05 | AA169: 418.00 | AB169: 418.00 | AD169: =MIN([1]Competencias!AB169:AD169) -> 377.60 | AE169: =IFERROR(SMALL([1]Competencias!AB169:AD169,2),999.99) -> 999.99 | AF169: 453.12 | AG169: 418.00
A170: 2012-10-20 | B170: 24095821K | C170: SANTIAGO | D170: MORALES FORMAS | E170: M | F170: UC | G170: AS | H170: U14 | I170: SI | J170: 2 | K170: 305.47 | L170: 305.47 | N170: =MIN([1]Competencias!K170:P170) -> 288.04 | O170: =IFERROR(SMALL([1]Competencias!K170:P170,2),999.99) -> 322.96 | P170: 345.65 | Q170: 305.47 | S170: 364.92 | T170: 364.92 | V170: =MIN([1]Competencias!Q170:AA170) -> 365.96 | W170: =IFERROR(SMALL([1]Competencias!Q170:AA170,2),999.99) -> 394.50 | X170: 439.15 | Y170: 364.92 | AA170: 413.14 | AB170: 413.14 | AD170: =MIN([1]Competencias!AB170:AD170) -> 457.46 | AE170: =IFERROR(SMALL([1]Competencias!AB170:AD170,2),999.99) -> 511.66 | AF170: 548.95 | AG170: 413.14
A171: 2012-10-22 | B171: 240962144 | C171: BERNARDITA | D171: WINTER PINEDA | E171: F | F171: UC | G171: AS | H171: U14 | I171: SI | J171: 2 | K171: 999.99 | L171: 252.86 | N171: =MIN([1]Competencias!K171:P171) -> 210.72 | O171: =IFERROR(SMALL([1]Competencias!K171:P171,2),999.99) -> 999.99 | P171: 252.86 | Q171: 252.86 | S171: 240.79 | T171: 240.79 | V171: =MIN([1]Competencias!Q171:AA171) -> 999.99 | W171: =IFERROR(SMALL([1]Competencias!Q171:AA171,2),999.99) -> 999.99 | X171: 1199.99 | Y171: 240.79 | AA171: 999.99 | AB171: 999.99 | AD171: =MIN([1]Competencias!AB171:AD171) -> 999.99 | AE171: =IFERROR(SMALL([1]Competencias!AB171:AD171,2),999.99) -> 999.99 | AF171: 1199.99 | AG171: 999.99 | AH171: +
A172: 2012-10-24 | B172: 24098105K | C172: MARTINA | D172: WILLEMSEN GALARCE | E172: F | F172: CAPA | G172: AS | H172: U14 | I172: SI | J172: 2 | K172: 999.99 | L172: 999.99 | N172: =MIN([1]Competencias!K172:P172) -> 999.99 | O172: =IFERROR(SMALL([1]Competencias!K172:P172,2),999.99) -> 999.99 | P172: 1199.99 | Q172: 999.99 | R172: + | S172: 999.99 | T172: 518.54 | V172: =MIN([1]Competencias!Q172:AA172) -> 432.12 | W172: =IFERROR(SMALL([1]Competencias!Q172:AA172,2),999.99) -> 999.99 | X172: 518.54 | Y172: 518.54 | AA172: 999.99 | AB172: 999.99 | AD172: =MIN([1]Competencias!AB172:AD172) -> 999.99 | AE172: =IFERROR(SMALL([1]Competencias!AB172:AD172,2),999.99) -> 999.99 | AF172: 1199.99 | AG172: 999.99 | AH172: +
A173: 2012-10-26 | B173: 240995360 | C173: DOMINGA | D173: REINIKE DURAN | E173: F | F173: LV | G173: AS | H173: U14 | I173: SI | J173: 2 | K173: 999.99 | L173: 171.25 | N173: =MIN([1]Competencias!K173:P173) -> 142.71 | O173: =IFERROR(SMALL([1]Competencias!K173:P173,2),999.99) -> 999.99 | P173: 171.25 | Q173: 171.25 | S173: 999.99 | T173: 250.91 | V173: =MIN([1]Competencias!Q173:AA173) -> 209.09 | W173: =IFERROR(SMALL([1]Competencias!Q173:AA173,2),999.99) -> 999.99 | X173: 250.91 | Y173: 250.91 | AA173: 272.80 | AB173: 272.80 | AD173: =MIN([1]Competencias!AB173:AD173) -> 256.60 | AE173: =IFERROR(SMALL([1]Competencias!AB173:AD173,2),999.99) -> 999.99 | AF173: 307.92 | AG173: 272.80
A174: 2012-10-25 | B174: 241014703 | C174: AGUSTIN | D174: MILLAN KING | E174: M | F174: CAPA | G174: AS | H174: U14 | I174: SI | J174: 2 | K174: 306.72 | L174: 306.72 | N174: =MIN([1]Competencias!K174:P174) -> 231.16 | O174: =IFERROR(SMALL([1]Competencias!K174:P174,2),999.99) -> 999.99 | P174: 277.39 | Q174: 306.72 | S174: 999.99 | T174: 352.45 | V174: =MIN([1]Competencias!Q174:AA174) -> 341.05 | W174: =IFERROR(SMALL([1]Competencias!Q174:AA174,2),999.99) -> 363.84 | X174: 409.26 | Y174: 352.45 | AA174: 334.66 | AB174: 334.66 | AD174: =MIN([1]Competencias!AB174:AD174) -> 339.09 | AE174: =IFERROR(SMALL([1]Competencias!AB174:AD174,2),999.99) -> 411.68 | AF174: 406.91 | AG174: 334.66
A175: 2012-10-29 | B175: 241030326 | C175: LAWRENCE | D175: WESTCOTT LEIBBRANDT | E175: M | F175: CLP | G175: AS | H175: U14 | I175: SI | J175: 2 | K175: 50.00 | L175: 50.00 | N175: =MIN([1]Competencias!K175:P175) -> 999.99 | O175: =IFERROR(SMALL([1]Competencias!K175:P175,2),999.99) -> 999.99 | P175: 1199.99 | Q175: 50.00 | S175: 70.65 | T175: 70.65 | V175: =MIN([1]Competencias!Q175:AA175) -> 102.62 | W175: =IFERROR(SMALL([1]Competencias!Q175:AA175,2),999.99) -> 114.99 | X175: 123.14 | Y175: 70.65 | AA175: 116.97 | AB175: 116.97 | AD175: =MIN([1]Competencias!AB175:AD175) -> 163.29 | AE175: =IFERROR(SMALL([1]Competencias!AB175:AD175,2),999.99) -> 205.01 | AF175: 195.95 | AG175: 116.97
A176: 2012-10-27 | B176: 241086215 | C176: MADDALENA | D176: CERONI YOB | E176: F | F176: CAO | G176: AS | H176: U14 | I176: SI | J176: 2 | K176: 65.87 | L176: 65.87 | N176: =MIN([1]Competencias!K176:P176) -> 91.80 | O176: =IFERROR(SMALL([1]Competencias!K176:P176,2),999.99) -> 94.48 | P176: 110.16 | Q176: 65.87 | S176: 104.78 | T176: 104.78 | V176: =MIN([1]Competencias!Q176:AA176) -> 159.25 | W176: =IFERROR(SMALL([1]Competencias!Q176:AA176,2),999.99) -> 164.81 | X176: 191.10 | Y176: 104.78 | AA176: 145.68 | AB176: 145.68 | AD176: =MIN([1]Competencias!AB176:AD176) -> 193.03 | AE176: =IFERROR(SMALL([1]Competencias!AB176:AD176,2),999.99) -> 999.99 | AF176: 231.64 | AG176: 145.68
A177: 2012-11-11 | B177: 241106004 | C177: ASUNCION | D177: GARCIA OVALLE | E177: F | F177: UC | G177: AS | H177: U14 | I177: SI | J177: 2 | K177: 214.15 | L177: 214.15 | N177: =MIN([1]Competencias!K177:P177) -> 167.07 | O177: =IFERROR(SMALL([1]Competencias!K177:P177,2),999.99) -> 999.99 | P177: 200.48 | Q177: 214.15 | S177: 244.54 | T177: 201.48 | V177: =MIN([1]Competencias!Q177:AA177) -> 190.67 | W177: =IFERROR(SMALL([1]Competencias!Q177:AA177,2),999.99) -> 212.28 | X177: 228.80 | Y177: 201.48 | AA177: 229.58 | AB177: 204.00 | AD177: =MIN([1]Competencias!AB177:AD177) -> 191.38 | AE177: =IFERROR(SMALL([1]Competencias!AB177:AD177,2),999.99) -> 216.61 | AF177: 229.66 | AG177: 204.00
A178: 2012-11-10 | B178: 241121836 | C178: JAVIERA | D178: QUEVEDO MONTAÑO | E178: F | F178: LV | G178: AS | H178: U14 | I178: SI | J178: 2 | K178: 999.99 | L178: 1049.65 | N178: =MIN([1]Competencias!K178:P178) -> 874.71 | O178: =IFERROR(SMALL([1]Competencias!K178:P178,2),999.99) -> 999.99 | P178: 1049.65 | Q178: 1049.65 | S178: 999.99 | T178: 670.91 | V178: =MIN([1]Competencias!Q178:AA178) -> 559.09 | W178: =IFERROR(SMALL([1]Competencias!Q178:AA178,2),999.99) -> 999.99 | X178: 670.91 | Y178: 670.91 | AA178: 999.99 | AB178: 334.55 | AD178: =MIN([1]Competencias!AB178:AD178) -> 278.79 | AE178: =IFERROR(SMALL([1]Competencias!AB178:AD178,2),999.99) -> 999.99 | AF178: 334.55 | AG178: 334.55
A179: 2012-11-21 | B179: 241213900 | C179: DELFINA | D179: ANGUITA AVILES | E179: F | F179: CAO | G179: AS | H179: U14 | I179: SI | J179: 2 | K179: 109.36 | L179: 99.38 | N179: =MIN([1]Competencias!K179:P179) -> 93.50 | O179: =IFERROR(SMALL([1]Competencias!K179:P179,2),999.99) -> 105.25 | P179: 112.20 | Q179: 99.38 | S179: 204.87 | T179: 130.05 | V179: =MIN([1]Competencias!Q179:AA179) -> 127.97 | W179: =IFERROR(SMALL([1]Competencias!Q179:AA179,2),999.99) -> 132.13 | X179: 153.56 | Y179: 130.05 | AA179: 161.56 | AB179: 161.56 | AD179: =MIN([1]Competencias!AB179:AD179) -> 172.52 | AE179: =IFERROR(SMALL([1]Competencias!AB179:AD179,2),999.99) -> 183.48 | AF179: 207.02 | AG179: 161.56
A180: 2012-11-26 | B180: 241242684 | C180: TOBÍAS | D180: GROB ANGERMEYER | E180: M | F180: CAN | G180: AS | H180: U14 | I180: SI | J180: 2 | K180: 96.40 | L180: 96.40 | N180: =MIN([1]Competencias!K180:P180) -> 127.20 | O180: =IFERROR(SMALL([1]Competencias!K180:P180,2),999.99) -> 166.93 | P180: 152.64 | Q180: 96.40 | S180: 100.04 | T180: 97.46 | V180: =MIN([1]Competencias!Q180:AA180) -> 84.56 | W180: =IFERROR(SMALL([1]Competencias!Q180:AA180,2),999.99) -> 110.35 | X180: 101.47 | Y180: 97.46 | AA180: 153.40 | AB180: 153.40 | AD180: =MIN([1]Competencias!AB180:AD180) -> 175.01 | AE180: =IFERROR(SMALL([1]Competencias!AB180:AD180,2),999.99) -> 186.83 | AF180: 210.01 | AG180: 153.40
A181: 2012-11-14 | B181: 24124489K | C181: SANTIAGO | D181: CARVALLO TARICCO | E181: M | F181: POR | G181: AS | H181: U14 | I181: SI | J181: 2 | K181: 999.99 | L181: 999.99 | N181: =MIN([1]Competencias!K181:P181) -> 999.99 | O181: =IFERROR(SMALL([1]Competencias!K181:P181,2),999.99) -> 999.99 | P181: 1199.99 | Q181: 999.99 | R181: + | S181: 999.99 | T181: 406.04 | V181: =MIN([1]Competencias!Q181:AA181) -> 338.37 | W181: =IFERROR(SMALL([1]Competencias!Q181:AA181,2),999.99) -> 999.99 | X181: 406.04 | Y181: 406.04 | AA181: 579.79 | AB181: 579.79 | AD181: =MIN([1]Competencias!AB181:AD181) -> 999.99 | AE181: =IFERROR(SMALL([1]Competencias!AB181:AD181,2),999.99) -> 999.99 | AF181: 1199.99 | AG181: 579.79
A182: 2012-11-29 | B182: 241284565 | C182: MATIAS | D182: BARRIENTOS ENGLER | E182: M | F182: CAO | G182: AS | H182: U14 | I182: SI | J182: 2 | K182: 202.95 | L182: 190.39 | N182: =MIN([1]Competencias!K182:P182) -> 190.35 | O182: =IFERROR(SMALL([1]Competencias!K182:P182,2),999.99) -> 190.42 | P182: 228.42 | Q182: 190.39 | S182: 317.11 | T182: 232.84 | V182: =MIN([1]Competencias!Q182:AA182) -> 228.07 | W182: =IFERROR(SMALL([1]Competencias!Q182:AA182,2),999.99) -> 237.61 | X182: 273.68 | Y182: 232.84 | AA182: 405.95 | AB182: 405.95 | AD182: =MIN([1]Competencias!AB182:AD182) -> 387.41 | AE182: =IFERROR(SMALL([1]Competencias!AB182:AD182,2),999.99) -> 999.99 | AF182: 464.89 | AG182: 405.95
A183: 2012-12-09 | B183: 241342328 | C183: MARIA | D183: BRICEÑO PURCELL | E183: F | F183: CLP | G183: AS | H183: U14 | I183: SI | J183: 2 | K183: 56.35 | L183: 56.35 | N183: =MIN([1]Competencias!K183:P183) -> 87.69 | O183: =IFERROR(SMALL([1]Competencias!K183:P183,2),999.99) -> 104.60 | P183: 105.23 | Q183: 56.35 | S183: 78.80 | T183: 78.80 | V183: =MIN([1]Competencias!Q183:AA183) -> 97.62 | W183: =IFERROR(SMALL([1]Competencias!Q183:AA183,2),999.99) -> 101.81 | X183: 117.14 | Y183: 78.80 | AA183: 116.09 | AB183: 116.09 | AD183: =MIN([1]Competencias!AB183:AD183) -> 136.68 | AE183: =IFERROR(SMALL([1]Competencias!AB183:AD183,2),999.99) -> 137.12 | AF183: 164.02 | AG183: 116.09
A184: 2012-12-07 | B184: 241351483 | C184: FACUNDO | D184: MORAGA CANTERINI | E184: M | F184: CAN | G184: AS | H184: U14 | I184: SI | J184: 2 | K184: 164.71 | L184: 164.71 | N184: =MIN([1]Competencias!K184:P184) -> 172.79 | O184: =IFERROR(SMALL([1]Competencias!K184:P184,2),999.99) -> 999.99 | P184: 207.35 | Q184: 164.71 | S184: 199.26 | T184: 160.58 | V184: =MIN([1]Competencias!Q184:AA184) -> 150.91 | W184: =IFERROR(SMALL([1]Competencias!Q184:AA184,2),999.99) -> 170.24 | X184: 181.09 | Y184: 160.58 | AA184: 276.56 | AB184: 276.56 | AD184: =MIN([1]Competencias!AB184:AD184) -> 234.43 | AE184: =IFERROR(SMALL([1]Competencias!AB184:AD184,2),999.99) -> 999.99 | AF184: 281.32 | AG184: 276.56
A185: 2012-12-06 | B185: 241361489 | C185: JULIETA | D185: ESCUDERO ZARATE | E185: F | F185: CAPA | G185: AS | H185: U14 | I185: SI | J185: 2 | K185: 999.99 | L185: 999.99 | N185: =MIN([1]Competencias!K185:P185) -> 999.99 | O185: =IFERROR(SMALL([1]Competencias!K185:P185,2),999.99) -> 999.99 | P185: 1199.99 | Q185: 999.99 | R185: + | S185: 999.99 | T185: 425.77 | V185: =MIN([1]Competencias!Q185:AA185) -> 402.80 | W185: =IFERROR(SMALL([1]Competencias!Q185:AA185,2),999.99) -> 448.73 | X185: 483.36 | Y185: 425.77 | AA185: 999.99 | AB185: 999.99 | AD185: =MIN([1]Competencias!AB185:AD185) -> 999.99 | AE185: =IFERROR(SMALL([1]Competencias!AB185:AD185,2),999.99) -> 999.99 | AF185: 1199.99 | AG185: 999.99 | AH185: +
A186: 2012-12-11 | B186: 241446131 | C186: SIMONA | D186: SÁNCHEZ GÓMEZ | E186: F | F186: POR | G186: AS | H186: U14 | I186: SI | J186: 2 | K186: 999.99 | L186: 497.59 | N186: =MIN([1]Competencias!K186:P186) -> 414.66 | O186: =IFERROR(SMALL([1]Competencias!K186:P186,2),999.99) -> 999.99 | P186: 497.59 | Q186: 497.59 | S186: 999.99 | T186: 459.65 | V186: =MIN([1]Competencias!Q186:AA186) -> 433.60 | W186: =IFERROR(SMALL([1]Competencias!Q186:AA186,2),999.99) -> 485.69 | X186: 520.32 | Y186: 459.65 | AA186: 999.99 | AB186: 999.99 | AD186: =MIN([1]Competencias!AB186:AD186) -> 999.99 | AE186: =IFERROR(SMALL([1]Competencias!AB186:AD186,2),999.99) -> 999.99 | AF186: 1199.99 | AG186: 999.99 | AH186: +
A187: 2012-12-26 | B187: 241484866 | C187: SARA | D187: GALLEGUILLOS MIRANDA | E187: F | F187: CAPA | G187: AS | H187: U14 | I187: SI | J187: 2 | K187: 999.99 | L187: 100.02 | N187: =MIN([1]Competencias!K187:P187) -> 82.77 | O187: =IFERROR(SMALL([1]Competencias!K187:P187,2),999.99) -> 117.26 | P187: 99.32 | Q187: 100.02 | S187: 237.53 | T187: 159.22 | V187: =MIN([1]Competencias!Q187:AA187) -> 153.03 | W187: =IFERROR(SMALL([1]Competencias!Q187:AA187,2),999.99) -> 165.41 | X187: 183.64 | Y187: 159.22 | AA187: 205.92 | AB187: 201.98 | AD187: =MIN([1]Competencias!AB187:AD187) -> 188.46 | AE187: =IFERROR(SMALL([1]Competencias!AB187:AD187,2),999.99) -> 215.49 | AF187: 226.15 | AG187: 201.98
A188: 2012-12-27 | B188: 24149618K | C188: JACINTA | D188: LÓPEZ CHAMORRO | E188: F | F188: CEC | G188: AS | H188: U14 | I188: SI | J188: 2 | K188: 495.85 | L188: 495.85 | N188: =MIN([1]Competencias!K188:P188) -> 255.71 | O188: =IFERROR(SMALL([1]Competencias!K188:P188,2),999.99) -> 999.99 | P188: 306.85 | Q188: 495.85 | S188: 919.47 | T188: 395.19 | V188: =MIN([1]Competencias!Q188:AA188) -> 366.06 | W188: =IFERROR(SMALL([1]Competencias!Q188:AA188,2),999.99) -> 424.31 | X188: 439.27 | Y188: 395.19 | AA188: 584.22 | AB188: 450.15 | AD188: =MIN([1]Competencias!AB188:AD188) -> 417.23 | AE188: =IFERROR(SMALL([1]Competencias!AB188:AD188,2),999.99) -> 483.06 | AF188: 500.68 | AG188: 450.15
A189: 2013-01-07 | B189: 241587681 | C189: BENJAMIN | D189: DIAZ FIGUEROA | E189: M | F189: CAR | G189: AS | H189: U14 | I189: SI | J189: 1 | K189: 999.99 | L189: 148.13 | N189: =MIN([1]Competencias!K189:P189) -> 108.75 | O189: =IFERROR(SMALL([1]Competencias!K189:P189,2),999.99) -> 187.51 | P189: 130.50 | Q189: 148.13 | S189: 999.99 | T189: 192.17 | V189: =MIN([1]Competencias!Q189:AA189) -> 186.95 | W189: =IFERROR(SMALL([1]Competencias!Q189:AA189,2),999.99) -> 197.38 | X189: 224.34 | Y189: 192.17 | AA189: 999.99 | AB189: 338.51 | AD189: =MIN([1]Competencias!AB189:AD189) -> 282.09 | AE189: =IFERROR(SMALL([1]Competencias!AB189:AD189,2),999.99) -> 999.99 | AF189: 338.51 | AG189: 338.51
A190: 2013-01-02 | B190: 241593223 | C190: STEPHAN KARL | D190: LANDOLT HARRIS | E190: M | F190: CAPA | G190: AS | H190: U14 | I190: SI | J190: 1 | K190: 999.99 | L190: 999.99 | N190: =MIN([1]Competencias!K190:P190) -> 999.99 | O190: =IFERROR(SMALL([1]Competencias!K190:P190,2),999.99) -> 999.99 | P190: 1199.99 | Q190: 999.99 | R190: + | S190: 999.99 | T190: 999.99 | V190: =MIN([1]Competencias!Q190:AA190) -> 999.99 | W190: =IFERROR(SMALL([1]Competencias!Q190:AA190,2),999.99) -> 999.99 | X190: 1199.99 | Y190: 999.99 | Z190: + | AA190: 999.99 | AB190: 999.99 | AD190: =MIN([1]Competencias!AB190:AD190) -> 999.99 | AE190: =IFERROR(SMALL([1]Competencias!AB190:AD190,2),999.99) -> 999.99 | AF190: 1199.99 | AG190: 999.99 | AH190: +
A191: 2013-01-07 | B191: 241608506 | C191: CRISTIAN | D191: SWETT LAGO | E191: M | F191: CAO | G191: AS | H191: U14 | I191: SI | J191: 1 | K191: 999.99 | L191: 999.99 | N191: =MIN([1]Competencias!K191:P191) -> 999.99 | O191: =IFERROR(SMALL([1]Competencias!K191:P191,2),999.99) -> 999.99 | P191: 1199.99 | Q191: 999.99 | R191: + | S191: 999.99 | T191: 999.99 | V191: =MIN([1]Competencias!Q191:AA191) -> 999.99 | W191: =IFERROR(SMALL([1]Competencias!Q191:AA191,2),999.99) -> 999.99 | X191: 1199.99 | Y191: 999.99 | Z191: + | AA191: 999.99 | AB191: 999.99 | AD191: =MIN([1]Competencias!AB191:AD191) -> 999.99 | AE191: =IFERROR(SMALL([1]Competencias!AB191:AD191,2),999.99) -> 999.99 | AF191: 1199.99 | AG191: 999.99 | AH191: +
A192: 2013-01-07 | B192: 241608786 | C192: TRINIDAD | D192: SWETT LAGO | E192: F | F192: CAO | G192: AS | H192: U14 | I192: SI | J192: 1 | K192: 999.99 | L192: 999.99 | N192: =MIN([1]Competencias!K192:P192) -> 999.99 | O192: =IFERROR(SMALL([1]Competencias!K192:P192,2),999.99) -> 999.99 | P192: 1199.99 | Q192: 999.99 | R192: + | S192: 999.99 | T192: 999.99 | V192: =MIN([1]Competencias!Q192:AA192) -> 999.99 | W192: =IFERROR(SMALL([1]Competencias!Q192:AA192,2),999.99) -> 999.99 | X192: 1199.99 | Y192: 999.99 | Z192: + | AA192: 999.99 | AB192: 999.99 | AD192: =MIN([1]Competencias!AB192:AD192) -> 999.99 | AE192: =IFERROR(SMALL([1]Competencias!AB192:AD192,2),999.99) -> 999.99 | AF192: 1199.99 | AG192: 999.99 | AH192: +
A193: 2013-01-18 | B193: 241684717 | C193: SOFÍA | D193: SOLAR TURRILLAS | E193: F | F193: CVN | G193: AS | H193: U14 | I193: SI | J193: 1 | K193: 999.99 | L193: 999.99 | N193: =MIN([1]Competencias!K193:P193) -> 999.99 | O193: =IFERROR(SMALL([1]Competencias!K193:P193,2),999.99) -> 999.99 | P193: 1199.99 | Q193: 999.99 | R193: + | S193: 999.99 | T193: 999.99 | V193: =MIN([1]Competencias!Q193:AA193) -> 999.99 | W193: =IFERROR(SMALL([1]Competencias!Q193:AA193,2),999.99) -> 999.99 | X193: 1199.99 | Y193: 999.99 | Z193: + | AA193: 999.99 | AB193: 999.99 | AD193: =MIN([1]Competencias!AB193:AD193) -> 999.99 | AE193: =IFERROR(SMALL([1]Competencias!AB193:AD193,2),999.99) -> 999.99 | AF193: 1199.99 | AG193: 999.99 | AH193: +
A194: 2013-01-16 | B194: 241684849 | C194: AMBAR | D194: CARDENAS CONEJEROS | E194: F | F194: PAT | G194: AS | H194: U14 | I194: SI | J194: 1 | K194: 999.99 | L194: 279.40 | N194: =MIN([1]Competencias!K194:P194) -> 232.83 | O194: =IFERROR(SMALL([1]Competencias!K194:P194,2),999.99) -> 999.99 | P194: 279.40 | Q194: 279.40 | S194: 999.99 | T194: 314.30 | V194: =MIN([1]Competencias!Q194:AA194) -> 314.30 | W194: =IFERROR(SMALL([1]Competencias!Q194:AA194,2),999.99) -> 314.30 | X194: 377.16 | Y194: 314.30 | Z194: + | AA194: 999.99 | AB194: 999.99 | AD194: =MIN([1]Competencias!AB194:AD194) -> 999.99 | AE194: =IFERROR(SMALL([1]Competencias!AB194:AD194,2),999.99) -> 999.99 | AF194: 1199.99 | AG194: 999.99 | AH194: +
A195: 2013-01-19 | B195: 241702219 | C195: ANA | D195: MONTAGNON FERNÁNDEZ | E195: F | F195: ARS | G195: AS | H195: U14 | I195: SI | J195: 1 | K195: 999.99 | L195: 184.67 | N195: =MIN([1]Competencias!K195:P195) -> 160.13 | O195: =IFERROR(SMALL([1]Competencias!K195:P195,2),999.99) -> 209.21 | P195: =N195*1.2 -> 192.16 | Q195: =IF(N195=999.99,K195,IF(O195=999.99,IF(K195<999.99,K195,P195),IF((N195+O195)/2>K195,K195,(N195+O195)/2))) -> 184.67 | R195: =IF(Q195="999,99","",IF(Q195=A195,">",IF(Q195=O195,"+",""))) ->  | S195: 999.99 | T195: 194.45 | V195: =MIN([1]Competencias!Q195:AA195) -> 170.24 | W195: =IFERROR(SMALL([1]Competencias!Q195:AA195,2),999.99) -> 218.66 | X195: =V195*1.2 -> 204.29 | Y195: =IF(V195=999.99,S195,IF(W195=999.99,IF(S195<999.99,S195,X195),IF((V195+W195)/2>S195,S195,(V195+W195)/2))) -> 194.45 | Z195: =IF(Y195="999,99","",IF(Y195=G195,">",IF(Y195=W195,"+",""))) ->  | AA195: 999.99 | AB195: 220.02 | AD195: =MIN([1]Competencias!AB195:AD195) -> 208.19 | AE195: =IFERROR(SMALL([1]Competencias!AB195:AD195,2),999.99) -> 231.84 | AF195: =AD195*1.2 -> 249.83 | AG195: =IF(AD195=999.99,AA195,IF(AE195=999.99,IF(AA195<999.99,AA195,AF195),IF((AD195+AE195)/2>AA195,AA195,(AD195+AE195)/2))) -> 220.02 | AH195: =IF(AG195="999,99","",IF(AG195=R195,">",IF(AG195=AE195,"+",""))) -> 
A196: 2013-01-22 | B196: 241716457 | C196: BORJA | D196: CHAVEZ BAHAMONDES | E196: M | F196: ARS | G196: AS | H196: U14 | I196: SI | J196: 1 | K196: 999.99 | L196: 999.99 | N196: =MIN([1]Competencias!K196:P196) -> 999.99 | O196: =IFERROR(SMALL([1]Competencias!K196:P196,2),999.99) -> 999.99 | P196: 1199.99 | Q196: 999.99 | R196: + | S196: 999.99 | T196: 304.88 | V196: =MIN([1]Competencias!Q196:AA196) -> 254.07 | W196: =IFERROR(SMALL([1]Competencias!Q196:AA196,2),999.99) -> 999.99 | X196: 304.88 | Y196: 304.88 | AA196: 999.99 | AB196: 340.12 | AD196: =MIN([1]Competencias!AB196:AD196) -> 319.35 | AE196: =IFERROR(SMALL([1]Competencias!AB196:AD196,2),999.99) -> 360.88 | AF196: 383.22 | AG196: 340.12
A197: 2013-01-27 | B197: 241761185 | C197: ALEXANDER | D197: ROJAS BUSTOS | E197: M | F197: UC | G197: AS | H197: U14 | I197: SI | J197: 1 | K197: 999.99 | L197: 999.99 | N197: =MIN([1]Competencias!K197:P197) -> 999.99 | O197: =IFERROR(SMALL([1]Competencias!K197:P197,2),999.99) -> 999.99 | P197: 1199.99 | Q197: 999.99 | R197: + | S197: 999.99 | T197: 141.81 | V197: =MIN([1]Competencias!Q197:AA197) -> 124.79 | W197: =IFERROR(SMALL([1]Competencias!Q197:AA197,2),999.99) -> 158.82 | X197: 149.75 | Y197: 141.81 | AA197: 999.99 | AB197: 999.99 | AD197: =MIN([1]Competencias!AB197:AD197) -> 999.99 | AE197: =IFERROR(SMALL([1]Competencias!AB197:AD197,2),999.99) -> 999.99 | AF197: 1199.99 | AG197: 999.99 | AH197: +
A198: 2013-05-02 | B198: 241853950 | C198: ZOE | D198: MOLINARE OLMOS | E198: F | F198: LV | G198: AS | H198: U14 | I198: SI | J198: 1 | K198: 999.99 | L198: 351.05 | N198: =MIN([1]Competencias!K198:P198) -> 215.51 | O198: =IFERROR(SMALL([1]Competencias!K198:P198,2),999.99) -> 486.59 | P198: 258.61 | Q198: 351.05 | S198: 999.99 | T198: 331.36 | V198: =MIN([1]Competencias!Q198:AA198) -> 329.49 | W198: =IFERROR(SMALL([1]Competencias!Q198:AA198,2),999.99) -> 333.23 | X198: 395.39 | Y198: 331.36 | AA198: 999.99 | AB198: 339.47 | AD198: =MIN([1]Competencias!AB198:AD198) -> 282.89 | AE198: =IFERROR(SMALL([1]Competencias!AB198:AD198,2),999.99) -> 999.99 | AF198: 339.47 | AG198: 339.47
A199: 2013-01-17 | B199: 241893359 | C199: JUAN | D199: UNDURRAGA URIBE | E199: M | F199: CLP | G199: AS | H199: U14 | I199: SI | J199: 1 | K199: 999.99 | L199: 201.65 | N199: =MIN([1]Competencias!K199:P199) -> 168.04 | O199: =IFERROR(SMALL([1]Competencias!K199:P199,2),999.99) -> 999.99 | P199: 201.65 | Q199: 201.65 | S199: 999.99 | T199: 112.32 | V199: =MIN([1]Competencias!Q199:AA199) -> 107.92 | W199: =IFERROR(SMALL([1]Competencias!Q199:AA199,2),999.99) -> 116.72 | X199: 129.50 | Y199: 112.32 | AA199: 999.99 | AB199: 294.61 | AD199: =MIN([1]Competencias!AB199:AD199) -> 239.00 | AE199: =IFERROR(SMALL([1]Competencias!AB199:AD199,2),999.99) -> 350.21 | AF199: 286.80 | AG199: 294.61
A200: 2013-02-08 | B200: 24189715K | C200: BERNARDO | D200: BRAVO RECCIUS | E200: M | F200: UC | G200: AS | H200: U14 | I200: SI | J200: 1 | K200: 999.99 | L200: 999.99 | N200: =MIN([1]Competencias!K200:P200) -> 999.99 | O200: =IFERROR(SMALL([1]Competencias!K200:P200,2),999.99) -> 999.99 | P200: 1199.99 | Q200: 999.99 | R200: + | S200: 999.99 | T200: 231.56 | V200: =MIN([1]Competencias!Q200:AA200) -> 226.17 | W200: =IFERROR(SMALL([1]Competencias!Q200:AA200,2),999.99) -> 236.95 | X200: 271.40 | Y200: 231.56 | AA200: 999.99 | AB200: 306.21 | AD200: =MIN([1]Competencias!AB200:AD200) -> 304.04 | AE200: =IFERROR(SMALL([1]Competencias!AB200:AD200,2),999.99) -> 308.38 | AF200: 364.85 | AG200: 306.21
... 167 more rows

Sheet Lista CNI
A1: Datos de Deportista | K1: Resultados SL | M1: Resultados GS | O1: Resultado SG
A2: Fecha | B2: Rut | C2: Nombre | D2: Apellido | E2: Sexo | F2: Club | G2: Disc. | H2: Cat. | I2: Activo | J2: Año | K2: BASE SL (aplica adder) | L2: Lista 3 | M2: BASE GS (aplica adder) | N2: Lista 3 | O2: BASE SG (aplica adder) | P2: Lista 3
A3: 2010-02-19 | B3: 131926880 | C3: ENZO | D3: CASAGRANDE BERTOLDI | E3: M | F3: CVN | G3: AS | H3: U16 | I3: SI | J3: 2 | K3: 999.99 | L3: 999.99 | M3: 999.99 | N3: 999.99 | O3: 999.99 | P3: 345.53
A4: 2013-06-21 | B4: 16707724 | C4: RUFINO | D4: CRESPO RODRÍGUEZ | E4: M | F4: CLP | G4: AS | H4: U14 | I4: SI | J4: 1 | K4: 999.99 | L4: 281.66 | M4: 999.99 | N4: 999.99 | O4: 999.99 | P4: 999.99
A5: 2012-01-07 | B5: 22EA72258 | C5: JUAN | D5: LE BAULT DE LA MORINIERE | E5: M | F5: CLP | G5: AS | H5: U14 | I5: SI | J5: 2 | K5: 999.99 | L5: 999.99 | M5: 999.99 | N5: 999.99 | O5: 999.99 | P5: 999.99
A6: 2010-01-03 | B6: 23215800K | C6: ANTONIA | D6: ESTEVE SECO | E6: F | F6: CAR | G6: AS | H6: U16 | I6: SI | J6: 2 | K6: 93.44 | L6: 93.44 | M6: 137.35 | N6: 137.35 | O6: 216.81 | P6: 216.81
A7: 2010-01-19 | B7: 23227283K | C7: JOSEFINA | D7: PEREZ OLMOS | E7: F | F7: LV | G7: AS | H7: U16 | I7: SI | J7: 2 | K7: 230.47 | L7: 230.47 | M7: 212.52 | N7: 209.13 | O7: 208.65 | P7: 208.65
A8: 2010-01-17 | B8: 232274360 | C8: SILKE | D8: OPITZ SEIDL | E8: F | F8: CAO | G8: AS | H8: U16 | I8: SI | J8: 2 | K8: 156.18 | L8: 132.49 | M8: 154.47 | N8: 154.47 | O8: 111.16 | P8: 111.16
A9: 2010-01-20 | B9: 232291966 | C9: ALEGRA | D9: REYES SBARAGLINI | E9: F | F9: CEC | G9: AS | H9: U16 | I9: SI | J9: 2 | K9: 999.99 | L9: 999.99 | M9: 999.99 | N9: 999.99 | O9: 999.99 | P9: 999.99
A10: 2010-01-26 | B10: 232325704 | C10: AMALIA | D10: BARRIENTOS MARTINEZ | E10: F | F10: CAO | G10: AS | H10: U16 | I10: SI | J10: 2 | K10: 137.20 | L10: 137.20 | M10: 168.60 | N10: 168.60 | O10: 107.11 | P10: 107.11
A11: 2010-01-23 | B11: 232336994 | C11: FERNANDA JOSEFA | D11: VASQUEZ VERGARA | E11: F | F11: CAN | G11: AS | H11: U16 | I11: SI | J11: 2 | K11: 197.04 | L11: 161.71 | M11: 211.92 | N11: 211.92 | O11: 190.18 | P11: 190.18
A12: 2010-01-23 | B12: 232341041 | C12: FLORENCIA | D12: PINCHEIRA BRAVO | E12: F | F12: CAR | G12: AS | H12: U16 | I12: SI | J12: 2 | K12: 395.60 | L12: 204.99 | M12: 427.93 | N12: 209.32 | O12: 310.93 | P12: 310.93
A13: 2010-01-25 | B13: 23234394K | C13: MARIA | D13: MULLER CORREA | E13: F | F13: CLP | G13: AS | H13: U16 | I13: SI | J13: 2 | K13: 185.27 | L13: 185.27 | M13: 182.87 | N13: 182.87 | O13: 249.13 | P13: 227.06
A14: 2010-01-30 | B14: 232362693 | C14: MARTIN | D14: CRESPO IBAÑEZ | E14: M | F14: CLP | G14: AS | H14: U16 | I14: SI | J14: 2 | K14: 93.90 | L14: 93.90 | M14: 84.41 | N14: 84.41 | O14: 99.08 | P14: 99.08
A15: 2010-01-28 | B15: 232389168 | C15: JADE | D15: REBOLLEDO HERNANDEZ | E15: F | F15: CAPA | G15: AS | H15: U16 | I15: SI | J15: 2 | K15: 999.99 | L15: 251.51 | M15: 342.64 | N15: 342.64 | O15: 421.62 | P15: 421.62
A16: 2010-02-15 | B16: 232504285 | C16: CRISTIÁN | D16: CUMSILLE SCHULBACH | E16: M | F16: CVN | G16: AS | H16: U16 | I16: SI | J16: 2 | K16: 310.34 | L16: 310.34 | M16: 200.72 | N16: 200.72 | O16: 200.12 | P16: 200.12
A17: 2010-03-10 | B17: 232699809 | C17: FLORENCIA | D17: ROJAS FARIAS | E17: F | F17: UC | G17: AS | H17: U16 | I17: SI | J17: 2 | K17: 151.61 | L17: 151.61 | M17: 179.92 | N17: 179.92 | O17: 228.79 | P17: 228.79
A18: 2010-03-15 | B18: 232700335 | C18: CLARA | D18: BASAURI GARDILCIC | E18: F | F18: CORR | G18: AS | H18: U16 | I18: SI | J18: 2 | K18: 215.95 | L18: 215.95 | M18: 230.36 | N18: 230.36 | O18: 219.83 | P18: 219.83
A19: 2010-03-15 | B19: 232706651 | C19: OLIVIA | D19: RODRIGUEZ CASTRO | E19: F | F19: CVN | G19: AS | H19: U16 | I19: SI | J19: 2 | K19: 206.50 | L19: 206.50 | M19: 284.87 | N19: 284.87 | O19: 488.72 | P19: 488.72
A20: 2010-03-22 | B20: 232776323 | C20: ANTONIO | D20: KUBICK LESSER | E20: M | F20: CLP | G20: AS | H20: U16 | I20: SI | J20: 2 | K20: 170.92 | L20: 170.92 | M20: 191.35 | N20: 191.35 | O20: 189.31 | P20: 189.31
A21: 2010-04-05 | B21: 232893249 | C21: FACUNDO | D21: GALILEA FUENTEALBA | E21: M | F21: CAEC | G21: AS | H21: U16 | I21: SI | J21: 2 | K21: 242.69 | L21: 242.69 | M21: 202.79 | N21: 202.79 | O21: 216.42 | P21: 216.42
A22: 2010-04-08 | B22: 232926155 | C22: PATRICIO | D22: BANNURA DECEBAL-CUZA | E22: M | F22: UC | G22: AS | H22: U16 | I22: SI | J22: 2 | K22: 50.00 | L22: 50.00 | M22: 122.02 | N22: 122.02 | O22: 141.41 | P22: 141.41
A23: 2010-04-19 | B23: 233009822 | C23: CARMENCITA | D23: PINILLA MORENO | E23: F | F23: CLP | G23: AS | H23: U16 | I23: SI | J23: 2 | K23: 50.00 | L23: 50.00 | M23: 78.97 | N23: 78.97 | O23: 85.00 | P23: 85.00
A24: 2010-04-22 | B24: 233032808 | C24: LEONOR | D24: MUÑOZ QUINTANA | E24: F | F24: CORR | G24: AS | H24: U16 | I24: SI | J24: 2 | K24: 87.35 | L24: 87.35 | M24: 132.97 | N24: 132.97 | O24: 129.26 | P24: 129.26
A25: 2010-04-19 | B25: 233059706 | C25: ISABEL | D25: CLARO IRARRAZAVAL | E25: F | F25: UC | G25: AS | H25: U16 | I25: SI | J25: 2 | K25: 74.57 | L25: 74.57 | M25: 85.46 | N25: 85.46 | O25: 135.02 | P25: 135.02
A26: 2010-04-27 | B26: 233074896 | C26: SANTIAGO | D26: CAPO CORNEJO | E26: M | F26: UC | G26: AS | H26: U16 | I26: SI | J26: 2 | K26: 198.26 | L26: 198.26 | M26: 216.79 | N26: 216.79 | O26: 155.84 | P26: 155.84
A27: 2010-04-01 | B27: 233243736 | C27: NINA | D27: DUPUY ALLEN | E27: F | F27: CVN | G27: AS | H27: U16 | I27: SI | J27: 2 | K27: 171.50 | L27: 171.50 | M27: 112.82 | N27: 112.82 | O27: 226.51 | P27: 226.51
A28: 2010-07-02 | B28: 233245771 | C28: CLARA | D28: TELLO MOLINARE | E28: F | F28: CAO | G28: AS | H28: U16 | I28: SI | J28: 2 | K28: 180.57 | L28: 180.57 | M28: 246.41 | N28: 246.41 | O28: 240.31 | P28: 240.31
A29: 2010-05-28 | B29: 23338349K | C29: JEAN CLAUDIO | D29: CARDENAS MANSILLA | E29: M | F29: PAT | G29: AS | H29: U16 | I29: SI | J29: 2 | K29: 198.07 | L29: 198.07 | M29: 222.69 | N29: 222.69 | O29: 366.15 | P29: 366.15
A30: 2010-06-05 | B30: 233456179 | C30: EMILIA | D30: GROB ANGERMEYER | E30: F | F30: CAN | G30: AS | H30: U16 | I30: SI | J30: 2 | K30: 122.80 | L30: 122.80 | M30: 155.12 | N30: 116.91 | O30: 109.14 | P30: 109.14
A31: 2010-05-30 | B31: 233464090 | C31: KARL | D31: PAULMANN PARSONS | E31: M | F31: CAN | G31: AS | H31: U16 | I31: SI | J31: 2 | K31: 999.99 | L31: 453.56 | M31: 999.99 | N31: 524.65 | O31: 999.99 | P31: 999.99
A32: 2010-11-06 | B32: 233465003 | C32: ELOISA | D32: COSTA BERNALES | E32: F | F32: CVN | G32: AS | H32: U16 | I32: SI | J32: 2 | K32: 215.91 | L32: 185.36 | M32: 121.55 | N32: 121.55 | O32: 146.50 | P32: 146.50
A33: 2010-11-06 | B33: 233465100 | C33: MATEO | D33: COSTA BERNALES | E33: M | F33: CVN | G33: AS | H33: U16 | I33: SI | J33: 2 | K33: 186.30 | L33: 186.30 | M33: 201.39 | N33: 201.39 | O33: 180.98 | P33: 180.98
A34: 2010-11-06 | B34: 233465259 | C34: LOURDES | D34: COSTA BERNALES | E34: F | F34: CVN | G34: AS | H34: U16 | I34: SI | J34: 2 | K34: 242.85 | L34: 242.85 | M34: 194.71 | N34: 194.71 | O34: 198.69 | P34: 198.69
A35: 2010-06-09 | B35: 233466352 | C35: AMY | D35: CASTILLO ALVAREZ | E35: F | F35: UC | G35: AS | H35: U16 | I35: SI | J35: 2 | K35: 250.83 | L35: 250.83 | M35: 174.50 | N35: 174.50 | O35: 188.41 | P35: 188.41
A36: 2010-11-06 | B36: 233480916 | C36: JUAN | D36: GARDILCIC SANTA CRUZ | E36: M | F36: CVN | G36: AS | H36: U16 | I36: SI | J36: 2 | K36: 211.51 | L36: 211.51 | M36: 136.88 | N36: 136.88 | O36: 151.31 | P36: 151.31
A37: 2010-06-14 | B37: 233491136 | C37: DANIEL IGNACIO | D37: GONZÁLEZ LOPEZ | E37: M | F37: CEC | G37: AS | H37: U16 | I37: SI | J37: 2 | K37: 73.22 | L37: 73.22 | M37: 108.81 | N37: 108.81 | O37: 135.71 | P37: 135.71
A38: 2010-06-22 | B38: 233557250 | C38: TOMAS | D38: OPAZO DIAZ | E38: M | F38: CLP | G38: AS | H38: U16 | I38: SI | J38: 2 | K38: 219.82 | L38: 219.82 | M38: 208.29 | N38: 208.29 | O38: 239.08 | P38: 239.08
A39: 2010-06-21 | B39: 233561312 | C39: MATEO | D39: CURKOVIC FRANCO | E39: M | F39: UC | G39: AS | H39: U16 | I39: SI | J39: 2 | K39: 63.71 | L39: 63.71 | M39: 70.00 | N39: 70.00 | O39: 85.00 | P39: 85.00
A40: 2010-07-06 | B40: 233659525 | C40: JOAQUIN | D40: BARRIENTOS ENGLER | E40: M | F40: CAO | G40: AS | H40: U16 | I40: SI | J40: 2 | K40: 170.93 | L40: 170.93 | M40: 197.63 | N40: 197.63 | O40: 194.86 | P40: 194.86
A41: 2010-05-07 | B41: 233662801 | C41: SOPHIE | D41: HAMEAU GAETE | E41: F | F41: CLP | G41: AS | H41: U16 | I41: SI | J41: 2 | K41: 279.72 | L41: 279.72 | M41: 255.74 | N41: 255.74 | O41: 352.22 | P41: 352.22
A42: 2010-06-11 | B42: 233711799 | C42: VICENTE | D42: JUNEMANN ARANCIBIA | E42: M | F42: CAN | G42: AS | H42: U16 | I42: SI | J42: 2 | K42: 730.74 | L42: 730.74 | M42: 999.99 | N42: 999.99 | O42: 999.99 | P42: 999.99
A43: 2010-08-25 | B43: 234064819 | C43: MARINA | D43: LÓPEZ CHAMORRO | E43: F | F43: CEC | G43: AS | H43: U16 | I43: SI | J43: 2 | K43: 215.02 | L43: 215.02 | M43: 394.56 | N43: 246.74 | O43: 238.52 | P43: 238.52
A44: 2010-09-08 | B44: 234183079 | C44: COLOMBA | D44: VASQUEZ HOTT | E44: F | F44: CAO | G44: AS | H44: U16 | I44: SI | J44: 2 | K44: 172.26 | L44: 172.26 | M44: 253.38 | N44: 253.38 | O44: 237.70 | P44: 237.70
A45: 2010-08-24 | B45: 234187511 | C45: RICARDO | D45: VICUÑA CURTZE | E45: M | F45: CLP | G45: AS | H45: U16 | I45: SI | J45: 2 | K45: 232.37 | L45: 232.37 | M45: 202.07 | N45: 183.42 | O45: 248.51 | P45: 248.51
A46: 2010-08-24 | B46: 234187651 | C46: FRANCISCO | D46: VICUÑA CURTZE | E46: M | F46: CLP | G46: AS | H46: U16 | I46: SI | J46: 2 | K46: 98.92 | L46: 98.92 | M46: 152.60 | N46: 152.60 | O46: 238.16 | P46: 210.92
A47: 2010-09-06 | B47: 234197185 | C47: UVY | D47: ACERBONI AHUMADA | E47: F | F47: UC | G47: AS | H47: U16 | I47: SI | J47: 2 | K47: 89.52 | L47: 70.86 | M47: 70.00 | N47: 70.00 | O47: 163.45 | P47: 163.45
A48: 2010-09-16 | B48: 234271490 | C48: MATILDE SOFIA | D48: GARDA TIMMERMANN | E48: F | F48: CEC | G48: AS | H48: U16 | I48: SI | J48: 2 | K48: 144.74 | L48: 144.74 | M48: 226.40 | N48: 164.14 | O48: 134.39 | P48: 134.39
A49: 2010-09-22 | B49: 23429511K | C49: MAXIMILIANO | D49: DIAZ FIGUEROA | E49: M | F49: CAR | G49: AS | H49: U16 | I49: SI | J49: 2 | K49: 132.11 | L49: 132.11 | M49: 206.12 | N49: 206.12 | O49: 175.07 | P49: 175.07
A50: 2010-09-16 | B50: 234304798 | C50: EMILIA | D50: ALVAREZ CHACON | E50: F | F50: CLP | G50: AS | H50: U16 | I50: SI | J50: 2 | K50: 304.11 | L50: 254.71 | M50: 287.38 | N50: 287.38 | O50: 389.40 | P50: 389.40
A51: 2010-09-22 | B51: 234304860 | C51: PATRICK | D51: RABY IBAÑEZ | E51: M | F51: CLP | G51: AS | H51: U16 | I51: SI | J51: 2 | K51: 128.79 | L51: 128.79 | M51: 116.93 | N51: 116.93 | O51: 116.76 | P51: 116.76
A52: 2010-10-05 | B52: 234452452 | C52: MARTINA NATALIA | D52: HERRERA NORAMBUENA | E52: F | F52: CORR | G52: AS | H52: U16 | I52: SI | J52: 2 | K52: 999.99 | L52: 480.72 | M52: 999.99 | N52: 530.45 | O52: 999.99 | P52: 540.22
A53: 2011-10-18 | B53: 234571850 | C53: MATÍAS | D53: ANTIHUALA ARAYA | E53: M | F53: CLP | G53: AS | H53: U16 | I53: SI | J53: 1 | K53: 390.08 | L53: 390.08 | M53: 448.54 | N53: 448.54 | O53: 330.47 | P53: 330.47
A54: 2010-10-29 | B54: 234657704 | C54: EMILIO | D54: CADIZ MARIN | E54: M | F54: UC | G54: AS | H54: U16 | I54: SI | J54: 2 | K54: 207.06 | L54: 207.06 | M54: 167.24 | N54: 167.24 | O54: 207.47 | P54: 192.04
A55: 2010-10-28 | B55: 234670417 | C55: LUNA | D55: ANGUITA AVILES | E55: F | F55: CAO | G55: AS | H55: U16 | I55: SI | J55: 2 | K55: 252.38 | L55: 252.38 | M55: 238.78 | N55: 238.78 | O55: 246.89 | P55: 246.89
A56: 2010-11-05 | B56: 234718827 | C56: MATEO | D56: GROB CONCHA | E56: M | F56: CAO | G56: AS | H56: U16 | I56: SI | J56: 2 | K56: 107.95 | L56: 106.05 | M56: 157.23 | N56: 134.87 | O56: 125.81 | P56: 125.81
A57: 2010-11-19 | B57: 234863371 | C57: PEDRO | D57: SANTIBAÑEZ PUFFE | E57: M | F57: CLP | G57: AS | H57: U16 | I57: SI | J57: 2 | K57: 289.98 | L57: 289.98 | M57: 188.59 | N57: 188.59 | O57: 236.99 | P57: 236.99
A58: 2010-11-24 | B58: 234873016 | C58: ANTONIA | D58: MISLEJ LÓPEZ | E58: F | F58: CVN | G58: AS | H58: U16 | I58: SI | J58: 2 | K58: 999.99 | L58: 999.99 | M58: 999.99 | N58: 999.99 | O58: 999.99 | P58: 999.99
A59: 2010-12-15 | B59: 235046873 | C59: CLEMENTE | D59: MURUA INFANTE | E59: M | F59: UC | G59: AS | H59: U16 | I59: SI | J59: 2 | K59: 213.81 | L59: 199.36 | M59: 187.08 | N59: 187.08 | O59: 370.52 | P59: 370.52
A60: 2010-12-27 | B60: 235123975 | C60: FLORENCIA | D60: VIDAL DIAZ | E60: F | F60: CVN | G60: AS | H60: U16 | I60: SI | J60: 2 | K60: 233.04 | L60: 222.47 | M60: 247.27 | N60: 247.27 | O60: 297.77 | P60: 244.54
A61: 2010-12-30 | B61: 235145197 | C61: TOMAS | D61: GUZMAN LECANNELIER | E61: M | F61: CEC | G61: AS | H61: U16 | I61: SI | J61: 2 | K61: 145.61 | L61: 145.61 | M61: 172.59 | N61: 154.41 | O61: 190.57 | P61: 161.41
A62: 2011-01-03 | B62: 235182785 | C62: FRANCISCO JAVIER | D62: PEREZ HADDAD | E62: M | F62: CAN | G62: AS | H62: U16 | I62: SI | J62: 1 | K62: 113.26 | L62: 113.26 | M62: 77.39 | N62: 77.39 | O62: 88.09 | P62: 88.09
A63: 2010-12-28 | B63: 235205378 | C63: JOAQUÍN | D63: MARCHANT OLGUÍN | E63: M | F63: ARS | G63: AS | H63: U16 | I63: SI | J63: 2 | K63: 999.99 | L63: 999.99 | M63: 999.99 | N63: 999.99 | O63: 999.99 | P63: 999.99
A64: 2011-01-24 | B64: 235429683 | C64: BAUTISTA | D64: LAMA KAISER | E64: M | F64: CLP | G64: AS | H64: U16 | I64: SI | J64: 1 | K64: 66.01 | L64: 66.01 | M64: 78.97 | N64: 78.97 | O64: 117.55 | P64: 107.91
A65: 2011-02-06 | B65: 235529300 | C65: ELBA | D65: HUBER SOLIS | E65: F | F65: LV | G65: AS | H65: U16 | I65: SI | J65: 1 | K65: 129.83 | L65: 129.83 | M65: 177.18 | N65: 177.18 | O65: 224.11 | P65: 224.11
A66: 2011-02-01 | B66: 235609819 | C66: JEAN PAUL | D66: BOUDON URRA | E66: M | F66: CSC | G66: AS | H66: U16 | I66: SI | J66: 1 | K66: 999.99 | L66: 729.64 | M66: 999.99 | N66: 694.31 | O66: 999.99 | P66: 999.99
A67: 2011-02-21 | B67: 235706288 | C67: FRIDA | D67: SILVA JENSEN | E67: F | F67: CLP | G67: AS | H67: U16 | I67: SI | J67: 1 | K67: 163.98 | L67: 163.98 | M67: 269.41 | N67: 230.06 | O67: 233.37 | P67: 233.37
A68: 2011-03-12 | B68: 235826844 | C68: CLEMENTE ANDRÉS | D68: BUSTOS ALVARADO | E68: M | F68: CORR | G68: AS | H68: U16 | I68: SI | J68: 1 | K68: 141.55 | L68: 141.55 | M68: 196.81 | N68: 196.81 | O68: 212.75 | P68: 212.75
A69: 2011-03-14 | B69: 23585550K | C69: BORJA | D69: LESSER DILL | E69: M | F69: CLP | G69: AS | H69: U16 | I69: SI | J69: 1 | K69: 141.73 | L69: 122.37 | M69: 147.61 | N69: 147.61 | O69: 236.76 | P69: 203.03
A70: 2011-01-17 | B70: 235889730 | C70: ALBERTO | D70: PUENTE YANKOVIC | E70: M | F70: CAN | G70: AS | H70: U16 | I70: SI | J70: 1 | K70: 86.13 | L70: 86.13 | M70: 95.86 | N70: 72.03 | O70: 139.00 | P70: 99.35
A71: 2011-08-11 | B71: 235923602 | C71: MAXIMILIAN | D71: EPP GOYENECHEA | E71: M | F71: UC | G71: AS | H71: U16 | I71: SI | J71: 1 | K71: 999.99 | L71: 999.99 | M71: 999.99 | N71: 999.99 | O71: 999.99 | P71: 999.99
A72: 2011-03-20 | B72: 235986701 | C72: BLANCA | D72: IBAÑEZ AMBIA | E72: F | F72: CLP | G72: AS | H72: U16 | I72: SI | J72: 1 | K72: 270.00 | L72: 270.00 | M72: 213.24 | N72: 213.24 | O72: 270.13 | P72: 270.13
A73: 2011-03-21 | B73: 235998793 | C73: IGNACIA | D73: FUENTES LABRA | E73: F | F73: ARS | G73: AS | H73: U16 | I73: SI | J73: 1 | K73: 71.98 | L73: 71.98 | M73: 110.00 | N73: 106.30 | O73: 132.94 | P73: 103.30
A74: 2011-03-23 | B74: 236058379 | C74: SANTIAGO | D74: CASTRO OTERO | E74: M | F74: UC | G74: AS | H74: U16 | I74: SI | J74: 1 | K74: 463.25 | L74: 463.25 | M74: 231.97 | N74: 231.97 | O74: 295.45 | P74: 295.45
A75: 2011-03-30 | B75: 236060357 | C75: TOMAS | D75: GONZALEZ VALDES | E75: M | F75: CAN | G75: AS | H75: U16 | I75: SI | J75: 1 | K75: 999.99 | L75: 183.67 | M75: 999.99 | N75: 999.99 | O75: 241.84 | P75: 241.84
A76: 2011-04-09 | B76: 236151077 | C76: FEDERICO | D76: AYALA PEREZ | E76: M | F76: CAN | G76: AS | H76: U16 | I76: SI | J76: 1 | K76: 152.49 | L76: 152.49 | M76: 187.43 | N76: 187.43 | O76: 213.25 | P76: 213.25
A77: 2011-04-13 | B77: 236208508 | C77: DIEGO | D77: TAGLE ALLIENDE | E77: M | F77: CAO | G77: AS | H77: U16 | I77: SI | J77: 1 | K77: 200.47 | L77: 200.47 | M77: 180.58 | N77: 180.58 | O77: 318.72 | P77: 318.72
A78: 2011-04-13 | B78: 236208613 | C78: ANA | D78: TAGLE ALLIENDE | E78: F | F78: CAO | G78: AS | H78: U16 | I78: SI | J78: 1 | K78: 258.03 | L78: 258.03 | M78: 405.23 | N78: 405.23 | O78: 392.13 | P78: 392.13
A79: 2011-01-05 | B79: 236348741 | C79: MAXIMILIANO | D79: MOLINA QUINTANA | E79: M | F79: CVN | G79: AS | H79: U16 | I79: SI | J79: 1 | K79: 999.99 | L79: 999.99 | M79: 999.99 | N79: 999.99 | O79: 330.41 | P79: 330.41
A80: 2011-05-16 | B80: 236440893 | C80: CLARA | D80: DONOSO INFANTE | E80: F | F80: CAO | G80: AS | H80: U16 | I80: SI | J80: 1 | K80: 117.08 | L80: 116.59 | M80: 134.47 | N80: 134.47 | O80: 157.23 | P80: 157.23
A81: 2011-05-14 | B81: 236442764 | C81: DIEGO | D81: MONTAGNON FERNÁNDEZ | E81: M | F81: ARS | G81: AS | H81: U16 | I81: SI | J81: 1 | K81: 377.62 | L81: 377.62 | M81: 243.38 | N81: 243.38 | O81: 345.85 | P81: 345.85
A82: 2011-05-16 | B82: 236449246 | C82: MARTIN | D82: ROMENY WAEGER | E82: M | F82: CAO | G82: AS | H82: U16 | I82: SI | J82: 1 | K82: 170.62 | L82: 170.62 | M82: 125.10 | N82: 125.10 | O82: 161.83 | P82: 161.83
A83: 2011-05-18 | B83: 236489973 | C83: GRACIELA | D83: BARRIENTOS TRUJILLOS | E83: F | F83: PAT | G83: AS | H83: U16 | I83: SI | J83: 1 | K83: 999.99 | L83: 999.99 | M83: 999.99 | N83: 212.04 | O83: 999.99 | P83: 280.75
A84: 2011-06-15 | B84: 236684938 | C84: GASPAR | D84: CHAVEZ BAHAMONDES | E84: M | F84: ARS | G84: AS | H84: U16 | I84: SI | J84: 1 | K84: 999.99 | L84: 363.06 | M84: 395.85 | N84: 395.85 | O84: 528.25 | P84: 332.10
A85: 2011-06-13 | B85: 236692175 | C85: LEONARDO | D85: CARVALLO TARICCO | E85: M | F85: POR | G85: AS | H85: U16 | I85: SI | J85: 1 | K85: 999.99 | L85: 569.34 | M85: 999.99 | N85: 999.99 | O85: 792.54 | P85: 792.54
A86: 2011-06-18 | B86: 236710122 | C86: MARTINA | D86: VERGARA SÁNCHEZ | E86: F | F86: POR | G86: AS | H86: U16 | I86: SI | J86: 1 | K86: 999.99 | L86: 999.99 | M86: 999.99 | N86: 999.99 | O86: 427.37 | P86: 427.37
A87: 2011-06-22 | B87: 236769127 | C87: SOFIA | D87: ASTORGA LAGOMARSINO | E87: F | F87: UC | G87: AS | H87: U16 | I87: SI | J87: 1 | K87: 422.61 | L87: 422.61 | M87: 281.68 | N87: 281.68 | O87: 226.25 | P87: 226.25
A88: 2011-06-22 | B88: 236769607 | C88: MARTIN | D88: ASTORGA LAGOMARSINO | E88: M | F88: UC | G88: AS | H88: U16 | I88: SI | J88: 1 | K88: 269.95 | L88: 269.95 | M88: 276.31 | N88: 276.31 | O88: 390.28 | P88: 390.28
A89: 2011-06-28 | B89: 23679590K | C89: MAGDALENA PASCALE | D89: NEUMANN MENDEZ | E89: F | F89: CEC | G89: AS | H89: U16 | I89: SI | J89: 1 | K89: 145.24 | L89: 145.24 | M89: 174.94 | N89: 174.94 | O89: 195.09 | P89: 195.09 | Q89: INJURY 09.09.25
A90: 2011-06-07 | B90: 236797112 | C90: LOURDES | D90: GARCÍA | E90: F | F90: CVN | G90: AS | H90: U16 | I90: SI | J90: 1 | K90: 237.51 | L90: 237.51 | M90: 286.21 | N90: 286.21 | O90: 263.16 | P90: 263.16
A91: 2011-07-21 | B91: 236983242 | C91: VICENTE | D91: GALDAMES RINCÓN | E91: M | F91: CVN | G91: AS | H91: U16 | I91: SI | J91: 1 | K91: 336.38 | L91: 336.38 | M91: 382.72 | N91: 382.72 | O91: 412.54 | P91: 412.54
A92: 2011-07-22 | B92: 237037456 | C92: PEDRO | D92: CASTRO GONZALEZ | E92: M | F92: ARS | G92: AS | H92: U16 | I92: SI | J92: 1 | K92: 122.80 | L92: 122.80 | M92: 148.66 | N92: 148.66 | O92: 223.46 | P92: 223.46
A93: 2011-07-29 | B93: 237068440 | C93: LIONEL | D93: ROBLES LOPEZ | E93: M | F93: CAO | G93: AS | H93: U16 | I93: SI | J93: 1 | K93: 472.94 | L93: 472.94 | M93: 333.61 | N93: 333.61 | O93: 335.36 | P93: 335.36
A94: 2011-08-01 | B94: 237100441 | C94: ISMAEL | D94: GANDARA RODILLO | E94: M | F94: CAN | G94: AS | H94: U16 | I94: SI | J94: 1 | K94: 190.10 | L94: 181.89 | M94: 195.98 | N94: 195.98 | O94: 262.54 | P94: 262.54
A95: 2011-08-07 | B95: 237109740 | C95: RAFAELA | D95: KNAPP MOYA | E95: F | F95: CAPA | G95: AS | H95: U16 | I95: SI | J95: 1 | K95: 171.13 | L95: 171.13 | M95: 127.35 | N95: 106.86 | O95: 87.23 | P95: 87.23
A96: 2011-07-28 | B96: 237117174 | C96: RAFAELLA | D96: REYES SBARAGLINI | E96: F | F96: CEC | G96: AS | H96: U16 | I96: SI | J96: 1 | K96: 999.99 | L96: 999.99 | M96: 999.99 | N96: 999.99 | O96: 999.99 | P96: 999.99
A97: 2011-08-09 | B97: 237159500 | C97: FRANCISCA | D97: JABAT CROQUEVIELLE | E97: F | F97: ARS | G97: AS | H97: U16 | I97: SI | J97: 1 | K97: 393.70 | L97: 393.70 | M97: 822.38 | N97: 822.38 | O97: 469.81 | P97: 469.81
A98: 2011-08-12 | B98: 23730571K | C98: NICOLÁS ADOLFO | D98: TAPIA MARDONES | E98: M | F98: CSC | G98: AS | H98: U16 | I98: SI | J98: 1 | K98: 999.99 | L98: 441.92 | M98: 999.99 | N98: 416.69 | O98: 999.99 | P98: 999.99
A99: 2011-09-07 | B99: 237392299 | C99: DIEGO | D99: RODRIGUEZ LAPOSTOL | E99: M | F99: CVN | G99: AS | H99: U16 | I99: SI | J99: 1 | K99: 526.62 | L99: 526.62 | M99: 390.27 | N99: 390.27 | O99: 500.01 | P99: 500.01
A100: 2011-09-12 | B100: 237440420 | C100: PAULA FRANCISCA | D100: SILVA CORNEJO | E100: F | F100: CEC | G100: AS | H100: U16 | I100: SI | J100: 1 | K100: 999.99 | L100: 999.99 | M100: 999.99 | N100: 999.99 | O100: 999.99 | P100: 999.99
A101: 2011-09-14 | B101: 237461665 | C101: LAURA | D101: DEL CAMPO TRAUTMANN | E101: F | F101: CEC | G101: AS | H101: U16 | I101: SI | J101: 1 | K101: 130.99 | L101: 130.99 | M101: 171.94 | N101: 171.94 | O101: 167.56 | P101: 167.56
A102: 2011-09-20 | B102: 237514475 | C102: FLORENCIA | D102: ROSS MASSANES | E102: F | F102: CAN | G102: AS | H102: U16 | I102: SI | J102: 1 | K102: 143.06 | L102: 143.06 | M102: 177.34 | N102: 177.34 | O102: 211.46 | P102: 211.46
A103: 2011-10-04 | B103: 237609107 | C103: TRINIDAD | D103: MONTANARI OTERO | E103: F | F103: UC | G103: AS | H103: U16 | I103: SI | J103: 1 | K103: 411.04 | L103: 411.04 | M103: 999.99 | N103: 999.99 | O103: 468.67 | P103: 468.67
A104: 2011-10-11 | B104: 237668634 | C104: JOSE | D104: MASSOUD AUSIN | E104: M | F104: CLP | G104: AS | H104: U16 | I104: SI | J104: 1 | K104: 226.98 | L104: 226.98 | M104: 199.72 | N104: 199.72 | O104: 282.23 | P104: 282.23
A105: 2011-10-10 | B105: 237674901 | C105: JULIÁN | D105: RIVERA DEL CAMPO | E105: M | F105: ARS | G105: AS | H105: U16 | I105: SI | J105: 1 | K105: 244.42 | L105: 180.98 | M105: 275.63 | N105: 275.63 | O105: 354.28 | P105: 227.01
A106: 2011-10-11 | B106: 237684176 | C106: PATRICIO MATÍAS | D106: CONTESSE ORTIZ | E106: M | F106: CAN | G106: AS | H106: U16 | I106: SI | J106: 1 | K106: 116.52 | L106: 116.52 | M106: 112.45 | N106: 112.45 | O106: 134.06 | P106: 134.06
A107: 2011-10-24 | B107: 237794540 | C107: MELISA MARIA | D107: LERMANDA IBAÑEZ | E107: F | F107: CORR | G107: AS | H107: U16 | I107: SI | J107: 1 | K107: 152.30 | L107: 152.30 | M107: 255.98 | N107: 255.98 | O107: 327.86 | P107: 327.86
A108: 2011-11-03 | B108: 237871677 | C108: ARTURO | D108: WILLER SIMON | E108: M | F108: CAO | G108: AS | H108: U16 | I108: SI | J108: 1 | K108: 127.88 | L108: 127.88 | M108: 145.06 | N108: 145.06 | O108: 194.20 | P108: 187.23
A109: 2011-10-30 | B109: 237881370 | C109: JULIA | D109: OPITZ SEIDL | E109: F | F109: CAO | G109: AS | H109: U16 | I109: SI | J109: 1 | K109: 398.07 | L109: 398.07 | M109: 523.93 | N109: 523.93 | O109: 661.88 | P109: 661.88
A110: 2011-10-13 | B110: 237939859 | C110: NAOMI | D110: FISCHER BARENBOIM | E110: F | F110: ARS | G110: AS | H110: U16 | I110: SI | J110: 1 | K110: 999.99 | L110: 999.99 | M110: 999.99 | N110: 999.99 | O110: 999.99 | P110: 999.99
A111: 2011-11-11 | B111: 237948424 | C111: DOMINGA | D111: MANDRU ROMENY | E111: F | F111: CAO | G111: AS | H111: U16 | I111: SI | J111: 1 | K111: 290.79 | L111: 269.51 | M111: 322.58 | N111: 267.24 | O111: 346.41 | P111: 346.41
A112: 2011-11-16 | B112: 237972236 | C112: AGUSTINA | D112: BANNURA DECEBAL-CUZA | E112: F | F112: UC | G112: AS | H112: U16 | I112: SI | J112: 1 | K112: 193.21 | L112: 192.20 | M112: 146.58 | N112: 146.58 | O112: 181.22 | P112: 181.22
A113: 2011-11-23 | B113: 238028973 | C113: VICENTE | D113: MARTINEZ VICHERAT | E113: M | F113: UC | G113: AS | H113: U16 | I113: SI | J113: 1 | K113: 409.56 | L113: 409.56 | M113: 353.46 | N113: 353.46 | O113: 999.99 | P113: 999.99
A114: 2011-12-09 | B114: 238169380 | C114: SANTIAGO | D114: BADILLA FUENTES | E114: M | F114: CAN | G114: AS | H114: U16 | I114: SI | J114: 1 | K114: 234.13 | L114: 234.13 | M114: 181.07 | N114: 181.07 | O114: 231.28 | P114: 231.28
A115: 2011-12-20 | B115: 238262828 | C115: VICENTE | D115: DÍAZ SOTO | E115: M | F115: CLP | G115: AS | H115: U16 | I115: SI | J115: 1 | K115: 196.69 | L115: 196.69 | M115: 170.78 | N115: 170.78 | O115: 240.50 | P115: 240.50
A116: 2011-12-23 | B116: 238289130 | C116: TIAGO | D116: CARTES ATALAH | E116: M | F116: CAN | G116: AS | H116: U16 | I116: SI | J116: 1 | K116: 105.05 | L116: 105.05 | M116: 163.57 | N116: 163.57 | O116: 181.74 | P116: 169.01
A117: 2012-08-01 | B117: 238390419 | C117: MAGDALENA | D117: ROJAS F | E117: F | F117: CVN | G117: AS | H117: U14 | I117: SI | J117: 2 | K117: 177.17 | L117: 177.17 | M117: 179.86 | N117: 179.86 | O117: 205.60 | P117: 205.60
A118: 2012-01-18 | B118: 238487544 | C118: LUCIANO | D118: BRITO DIAZ | E118: M | F118: CLP | G118: AS | H118: U14 | I118: SI | J118: 2 | K118: 106.99 | L118: 106.99 | M118: 96.02 | N118: 96.02 | O118: 109.06 | P118: 109.06
A119: 2012-01-02 | B119: 238488060 | C119: LORENZO | D119: LEON AZUA | E119: M | F119: CVN | G119: AS | H119: U14 | I119: SI | J119: 2 | K119: 999.99 | L119: 999.99 | M119: 490.08 | N119: 490.08 | O119: 999.99 | P119: 999.99
A120: 2012-03-02 | B120: 238625661 | C120: ISIDRO | D120: SECALL MOREL | E120: M | F120: CVN | G120: AS | H120: U14 | I120: SI | J120: 2 | K120: 200.90 | L120: 200.90 | M120: 148.03 | N120: 148.03 | O120: 182.28 | P120: 182.28
A121: 2012-02-09 | B121: 23866926K | C121: HUGO JOSÉ | D121: TAPIA MEDINA | E121: M | F121: CSC | G121: AS | H121: U14 | I121: SI | J121: 2 | K121: 999.99 | L121: 392.56 | M121: 999.99 | N121: 384.54 | O121: 999.99 | P121: 559.91
A122: 2012-10-02 | B122: 238674840 | C122: ANTONIA | D122: GARDILCIC SANTA CRUZ | E122: F | F122: CVN | G122: AS | H122: U14 | I122: SI | J122: 2 | K122: 162.96 | L122: 162.96 | M122: 155.75 | N122: 155.75 | O122: 151.45 | P122: 151.45
A123: 2012-02-21 | B123: 238774861 | C123: IGNACIA | D123: LIRA CASAS | E123: F | F123: CAPA | G123: AS | H123: U14 | I123: SI | J123: 2 | K123: 205.94 | L123: 205.94 | M123: 999.99 | N123: 240.79 | O123: 260.15 | P123: 260.15
A124: 2012-02-21 | B124: 238775086 | C124: JOAQUIN | D124: LIRA CASAS | E124: M | F124: CAPA | G124: AS | H124: U14 | I124: SI | J124: 2 | K124: 230.76 | L124: 230.76 | M124: 999.99 | N124: 299.40 | O124: 303.74 | P124: 303.74
A125: 2012-03-09 | B125: 238944864 | C125: LUNA | D125: VERA ZAROR | E125: F | F125: LV | G125: AS | H125: U14 | I125: SI | J125: 2 | K125: 213.75 | L125: 213.75 | M125: 250.64 | N125: 250.64 | O125: 281.06 | P125: 281.06
A126: 2012-08-03 | B126: 238953502 | C126: GABRIEL | D126: FARÍAS AGUAYO | E126: M | F126: CVN | G126: AS | H126: U14 | I126: SI | J126: 2 | K126: 999.99 | L126: 999.99 | M126: 999.99 | N126: 176.85 | O126: 999.99 | P126: 199.71
A127: 2012-03-13 | B127: 239038379 | C127: MANUEL | D127: LE-BERT RODRIGUEZ | E127: M | F127: UC | G127: AS | H127: U14 | I127: SI | J127: 2 | K127: 367.49 | L127: 223.72 | M127: 999.99 | N127: 159.20 | O127: 999.99 | P127: 275.88
A128: 2012-03-21 | B128: 239060099 | C128: ANGELES | D128: CANDIA ECHENIQUE | E128: F | F128: UC | G128: AS | H128: U14 | I128: SI | J128: 2 | K128: 298.68 | L128: 298.68 | M128: 377.82 | N128: 317.01 | O128: 396.61 | P128: 340.57
A129: 2012-03-28 | B129: 239091547 | C129: JUAN EDUARDO | D129: IBAÑEZ VERGARA | E129: M | F129: CLP | G129: AS | H129: U14 | I129: SI | J129: 2 | K129: 69.90 | L129: 69.90 | M129: 70.00 | N129: 70.00 | O129: 140.46 | P129: 140.46
A130: 2012-04-01 | B130: 239221904 | C130: NABIH | D130: SEITUN FUENTES | E130: M | F130: LV | G130: AS | H130: U14 | I130: SI | J130: 2 | K130: 103.82 | L130: 103.82 | M130: 188.02 | N130: 188.02 | O130: 348.11 | P130: 348.11
A131: 2012-12-04 | B131: 239225624 | C131: JUAN | D131: BRINKMANN UNDURRAGA | E131: M | F131: CVN | G131: AS | H131: U14 | I131: SI | J131: 2 | K131: 126.00 | L131: 126.00 | M131: 156.35 | N131: 140.55 | O131: 272.25 | P131: 162.07
A132: 2012-04-21 | B132: 23930088K | C132: ANIBAL | D132: MONTES GUTIERREZ | E132: M | F132: UC | G132: AS | H132: U14 | I132: SI | J132: 2 | K132: 999.99 | L132: 160.69 | M132: 97.28 | N132: 85.48 | O132: 142.63 | P132: 142.63
A133: 2012-04-21 | B133: 239350453 | C133: DOMINGO ARNAU | D133: TORRES RETI | E133: M | F133: CAN | G133: AS | H133: U14 | I133: SI | J133: 2 | K133: 189.54 | L133: 152.01 | M133: 126.90 | N133: 126.90 | O133: 117.78 | P133: 117.78
A134: 2012-05-22 | B134: 23954326K | C134: MAX | D134: MONREAL ORMEÑO | E134: M | F134: CORR | G134: AS | H134: U14 | I134: SI | J134: 2 | K134: 98.20 | L134: 98.20 | M134: 189.82 | N134: 189.82 | O134: 266.94 | P134: 266.94
A135: 2012-05-03 | B135: 23954410K | C135: EMA | D135: MUYLLE ALLIENDE | E135: F | F135: UC | G135: AS | H135: U14 | I135: SI | J135: 2 | K135: 999.99 | L135: 140.10 | M135: 160.13 | N135: 151.28 | O135: 245.64 | P135: 230.78
A136: 2012-05-16 | B136: 239561756 | C136: TEODORO | D136: PASTENE SOTO | E136: M | F136: CORR | G136: AS | H136: U14 | I136: SI | J136: 2 | K136: 258.15 | L136: 258.15 | M136: 348.62 | N136: 348.62 | O136: 383.63 | P136: 383.63
A137: 2012-05-29 | B137: 239611478 | C137: JACINTA | D137: OPAZO DIAZ | E137: F | F137: CLP | G137: AS | H137: U14 | I137: SI | J137: 2 | K137: 193.15 | L137: 193.15 | M137: 214.19 | N137: 214.19 | O137: 279.71 | P137: 279.71
A138: 2012-05-01 | B138: 239624863 | C138: CLARA | D138: GAZMURI PIEDRA | E138: F | F138: CEC | G138: AS | H138: U14 | I138: SI | J138: 2 | K138: 232.14 | L138: 232.14 | M138: 358.05 | N138: 358.05 | O138: 999.99 | P138: 999.99
A139: 2012-05-30 | B139: 239677304 | C139: JULIETA | D139: FERNANDEZ VERGARA | E139: F | F139: CLP | G139: AS | H139: U14 | I139: SI | J139: 2 | K139: 75.32 | L139: 75.32 | M139: 118.50 | N139: 118.50 | O139: 159.37 | P139: 159.37
A140: 2012-05-30 | B140: 239679838 | C140: OLGA | D140: KUBICK LESSER | E140: F | F140: CLP | G140: AS | H140: U14 | I140: SI | J140: 2 | K140: 155.09 | L140: 155.09 | M140: 158.13 | N140: 158.13 | O140: 210.97 | P140: 186.76
A141: 2012-05-25 | B141: 239693318 | C141: MAGDALENA | D141: CORDERO VON LEYSER | E141: F | F141: CEC | G141: AS | H141: U14 | I141: SI | J141: 2 | K141: 999.99 | L141: 999.99 | M141: 999.99 | N141: 999.99 | O141: 999.99 | P141: 999.99
A142: 2012-06-02 | B142: 239697003 | C142: ADELA | D142: VALDES PRIETO | E142: F | F142: CAO | G142: AS | H142: U14 | I142: SI | J142: 2 | K142: 57.28 | L142: 57.28 | M142: 70.00 | N142: 70.00 | O142: 85.00 | P142: 85.00
A143: 2012-05-25 | B143: 239723578 | C143: GUSTAVO | D143: PINCHEIRA BRAVO | E143: M | F143: CAR | G143: AS | H143: U14 | I143: SI | J143: 2 | K143: 71.46 | L143: 64.57 | M143: 133.46 | N143: 133.46 | O143: 231.73 | P143: 231.73
A144: 2012-06-07 | B144: 239740588 | C144: ROSARIO ALEJANDRA | D144: CALDERA ALMONACID | E144: F | F144: CEC | G144: AS | H144: U14 | I144: SI | J144: 2 | K144: 141.73 | L144: 141.73 | M144: 267.91 | N144: 227.71 | O144: 261.85 | P144: 248.86
A145: 2012-06-02 | B145: 239743889 | C145: CLARA | D145: CAMUS CORREA | E145: F | F145: CAN | G145: AS | H145: U14 | I145: SI | J145: 2 | K145: 999.99 | L145: 999.99 | M145: 999.99 | N145: 580.90 | O145: 999.99 | P145: 999.99
A146: 2012-06-05 | B146: 239758096 | C146: CRESCENTE | D146: TUÑON SOTO | E146: M | F146: UC | G146: AS | H146: U14 | I146: SI | J146: 2 | K146: 519.71 | L146: 519.71 | M146: 999.99 | N146: 999.99 | O146: 999.99 | P146: 999.99
A147: 2012-06-12 | B147: 239800572 | C147: IÑAKI | D147: BASAURI GARDILCIC | E147: M | F147: CORR | G147: AS | H147: U14 | I147: SI | J147: 2 | K147: 110.68 | L147: 110.68 | M147: 181.78 | N147: 181.78 | O147: 223.15 | P147: 223.15
A148: 2012-06-02 | B148: 239811019 | C148: EMILIA | D148: PEREZ OLMOS | E148: F | F148: LV | G148: AS | H148: U14 | I148: SI | J148: 2 | K148: 156.17 | L148: 131.98 | M148: 166.00 | N148: 166.00 | O148: 216.92 | P148: 216.92
A149: 2012-06-15 | B149: 239854001 | C149: TEO | D149: ATALAH BINFA | E149: M | F149: LV | G149: AS | H149: U14 | I149: SI | J149: 2 | K149: 234.14 | L149: 234.14 | M149: 278.39 | N149: 278.39 | O149: 378.08 | P149: 378.08
A150: 2012-03-19 | B150: 239864716 | C150: PEDRO | D150: RODRIGUEZ CASTRO | E150: M | F150: CVN | G150: AS | H150: U14 | I150: SI | J150: 2 | K150: 195.25 | L150: 195.25 | M150: 179.99 | N150: 179.99 | O150: 171.88 | P150: 171.88
A151: 2012-06-23 | B151: 239909833 | C151: AGUSTIN | D151: JARA ALVARADO | E151: M | F151: UC | G151: AS | H151: U14 | I151: SI | J151: 2 | K151: 999.99 | L151: 999.99 | M151: 295.24 | N151: 295.24 | O151: 301.23 | P151: 301.23
A152: 2012-07-02 | B152: 240010763 | C152: JOSÉ | D152: KRAUSE GUTIÉRREZ | E152: M | F152: CVN | G152: AS | H152: U14 | I152: SI | J152: 2 | K152: 999.99 | L152: 145.48 | M152: 149.67 | N152: 129.70 | O152: 112.47 | P152: 112.47
A153: 2012-06-28 | B153: 240018462 | C153: PILAR | D153: CLARO IRARRAZAVAL | E153: F | F153: UC | G153: AS | H153: U14 | I153: SI | J153: 2 | K153: 199.69 | L153: 199.69 | M153: 164.91 | N153: 164.91 | O153: 186.39 | P153: 186.39
A154: 2012-07-04 | B154: 240101319 | C154: AMANDA | D154: JONES ILLANES | E154: F | F154: CAN | G154: AS | H154: U14 | I154: SI | J154: 2 | K154: 62.33 | L154: 62.33 | M154: 103.25 | N154: 103.25 | O154: 110.29 | P154: 110.29
A155: 2012-07-18 | B155: 240114283 | C155: BLANCA | D155: PUIG GUTIERREZ | E155: F | F155: CAR | G155: AS | H155: U14 | I155: SI | J155: 2 | K155: 101.22 | L155: 101.22 | M155: 137.28 | N155: 137.28 | O155: 230.03 | P155: 230.03
A156: 2012-07-17 | B156: 24019130K | C156: VICENTE JAVIER | D156: ACLE ASENJO | E156: M | F156: CSC | G156: AS | H156: U14 | I156: SI | J156: 2 | K156: 999.99 | L156: 999.99 | M156: 999.99 | N156: 338.93 | O156: 999.99 | P156: 434.44
A157: 2012-07-27 | B157: 240208881 | C157: FRANCISCA | D157: COSMELLI PIWONKA | E157: F | F157: UC | G157: AS | H157: U14 | I157: SI | J157: 2 | K157: 141.30 | L157: 111.99 | M157: 204.22 | N157: 204.22 | O157: 196.30 | P157: 196.30
A158: 2012-08-06 | B158: 240321343 | C158: EMA ANTONIA | D158: GARDA TIMMERMANN | E158: F | F158: CEC | G158: AS | H158: U14 | I158: SI | J158: 2 | K158: 123.40 | L158: 123.40 | M158: 302.92 | N158: 302.92 | O158: 226.84 | P158: 226.84
A159: 2012-08-09 | B159: 240324194 | C159: VICTORIA | D159: BORCHERT TOLEDO | E159: F | F159: POR | G159: AS | H159: U14 | I159: SI | J159: 2 | K159: 999.99 | L159: 352.57 | M159: 999.99 | N159: 317.74 | O159: 999.99 | P159: 999.99
A160: 2012-08-17 | B160: 240385538 | C160: CLEMENTE | D160: SILVA OSSIPOVICH | E160: M | F160: CVN | G160: AS | H160: U14 | I160: SI | J160: 2 | K160: 78.03 | L160: 78.03 | M160: 80.66 | N160: 76.14 | O160: 85.00 | P160: 85.00
A161: 2012-08-29 | B161: 240505428 | C161: NICOLAS | D161: PEREZ CARDENAS | E161: M | F161: PAT | G161: AS | H161: U14 | I161: SI | J161: 2 | K161: 163.31 | L161: 163.31 | M161: 206.18 | N161: 206.18 | O161: 151.39 | P161: 151.39
A162: 2012-09-05 | B162: 240575167 | C162: EMA | D162: MURUA INFANTE | E162: F | F162: UC | G162: AS | H162: U14 | I162: SI | J162: 2 | K162: 336.23 | L162: 316.98 | M162: 512.55 | N162: 357.61 | O162: 999.99 | P162: 999.99
A163: 2012-08-06 | B163: 240583348 | C163: IAN | D163: STENGEL MORRIS | E163: M | F163: CSC | G163: AS | H163: U14 | I163: SI | J163: 2 | K163: 999.99 | L163: 999.99 | M163: 999.99 | N163: 999.99 | O163: 999.99 | P163: 999.99
A164: 2012-09-12 | B164: 240631164 | C164: RAFFAELLA | D164: MOTTO GRINSPUN | E164: F | F164: CAN | G164: AS | H164: U14 | I164: SI | J164: 2 | K164: 341.44 | L164: 242.84 | M164: 357.93 | N164: 302.86 | O164: 382.20 | P164: 365.33
A165: 2012-09-06 | B165: 240631997 | C165: ANGEL | D165: MARIN SOTO | E165: M | F165: PAT | G165: AS | H165: U14 | I165: SI | J165: 2 | K165: 999.99 | L165: 140.27 | M165: 198.57 | N165: 191.02 | O165: 250.85 | P165: 250.85
A166: 2012-09-23 | B166: 240699540 | C166: SEBASTIAN | D166: BASAURE VARGAS | E166: M | F166: UC | G166: AS | H166: U14 | I166: SI | J166: 2 | K166: 75.26 | L166: 75.26 | M166: 81.83 | N166: 80.82 | O166: 132.34 | P166: 116.88
A167: 2012-09-28 | B167: 240776367 | C167: ELOISA | D167: ROSENDE ZEGERS | E167: F | F167: LV | G167: AS | H167: U14 | I167: SI | J167: 2 | K167: 201.17 | L167: 201.17 | M167: 221.43 | N167: 221.43 | O167: 281.45 | P167: 281.45
A168: 2012-10-09 | B168: 240845229 | C168: RAFAEL | D168: AYALA PEREZ | E168: M | F168: CAN | G168: AS | H168: U14 | I168: SI | J168: 2 | K168: 162.73 | L168: 162.73 | M168: 209.97 | N168: 209.97 | O168: 216.29 | P168: 216.29
A169: 2012-10-21 | B169: 240953978 | C169: CARMEN | D169: FLEISCHMANN KOSTER | E169: F | F169: CORR | G169: AS | H169: U14 | I169: SI | J169: 2 | K169: 999.99 | L169: 396.58 | M169: 746.40 | N169: 326.05 | O169: 418.00 | P169: 418.00
A170: 2012-10-20 | B170: 24095821K | C170: SANTIAGO | D170: MORALES FORMAS | E170: M | F170: UC | G170: AS | H170: U14 | I170: SI | J170: 2 | K170: 305.47 | L170: 305.47 | M170: 364.92 | N170: 364.92 | O170: 413.14 | P170: 413.14
A171: 2012-10-22 | B171: 240962144 | C171: BERNARDITA | D171: WINTER PINEDA | E171: F | F171: UC | G171: AS | H171: U14 | I171: SI | J171: 2 | K171: 999.99 | L171: 252.86 | M171: 240.79 | N171: 240.79 | O171: 999.99 | P171: 999.99
A172: 2012-10-24 | B172: 24098105K | C172: MARTINA | D172: WILLEMSEN GALARCE | E172: F | F172: CAPA | G172: AS | H172: U14 | I172: SI | J172: 2 | K172: 999.99 | L172: 999.99 | M172: 999.99 | N172: 518.54 | O172: 999.99 | P172: 999.99
A173: 2012-10-26 | B173: 240995360 | C173: DOMINGA | D173: REINIKE DURAN | E173: F | F173: LV | G173: AS | H173: U14 | I173: SI | J173: 2 | K173: 999.99 | L173: 171.25 | M173: 999.99 | N173: 250.91 | O173: 272.80 | P173: 272.80
A174: 2012-10-25 | B174: 241014703 | C174: AGUSTIN | D174: MILLAN KING | E174: M | F174: CAPA | G174: AS | H174: U14 | I174: SI | J174: 2 | K174: 306.72 | L174: 306.72 | M174: 999.99 | N174: 352.45 | O174: 334.66 | P174: 334.66
A175: 2012-10-29 | B175: 241030326 | C175: LAWRENCE | D175: WESTCOTT LEIBBRANDT | E175: M | F175: CLP | G175: AS | H175: U14 | I175: SI | J175: 2 | K175: 50.00 | L175: 50.00 | M175: 70.65 | N175: 70.65 | O175: 116.97 | P175: 116.97
A176: 2012-10-27 | B176: 241086215 | C176: MADDALENA | D176: CERONI YOB | E176: F | F176: CAO | G176: AS | H176: U14 | I176: SI | J176: 2 | K176: 65.87 | L176: 65.87 | M176: 104.78 | N176: 104.78 | O176: 145.68 | P176: 145.68
A177: 2012-11-11 | B177: 241106004 | C177: ASUNCION | D177: GARCIA OVALLE | E177: F | F177: UC | G177: AS | H177: U14 | I177: SI | J177: 2 | K177: 214.15 | L177: 214.15 | M177: 244.54 | N177: 201.48 | O177: 229.58 | P177: 204.00
A178: 2012-11-10 | B178: 241121836 | C178: JAVIERA | D178: QUEVEDO MONTAÑO | E178: F | F178: LV | G178: AS | H178: U14 | I178: SI | J178: 2 | K178: 999.99 | L178: 1049.65 | M178: 999.99 | N178: 670.91 | O178: 999.99 | P178: 334.55
A179: 2012-11-21 | B179: 241213900 | C179: DELFINA | D179: ANGUITA AVILES | E179: F | F179: CAO | G179: AS | H179: U14 | I179: SI | J179: 2 | K179: 109.36 | L179: 99.38 | M179: 204.87 | N179: 130.05 | O179: 161.56 | P179: 161.56
A180: 2012-11-26 | B180: 241242684 | C180: TOBÍAS | D180: GROB ANGERMEYER | E180: M | F180: CAN | G180: AS | H180: U14 | I180: SI | J180: 2 | K180: 96.40 | L180: 96.40 | M180: 100.04 | N180: 97.46 | O180: 153.40 | P180: 153.40
A181: 2012-11-14 | B181: 24124489K | C181: SANTIAGO | D181: CARVALLO TARICCO | E181: M | F181: POR | G181: AS | H181: U14 | I181: SI | J181: 2 | K181: 999.99 | L181: 999.99 | M181: 999.99 | N181: 406.04 | O181: 579.79 | P181: 579.79
A182: 2012-11-29 | B182: 241284565 | C182: MATIAS | D182: BARRIENTOS ENGLER | E182: M | F182: CAO | G182: AS | H182: U14 | I182: SI | J182: 2 | K182: 202.95 | L182: 190.39 | M182: 317.11 | N182: 232.84 | O182: 405.95 | P182: 405.95
A183: 2012-12-09 | B183: 241342328 | C183: MARIA | D183: BRICEÑO PURCELL | E183: F | F183: CLP | G183: AS | H183: U14 | I183: SI | J183: 2 | K183: 56.35 | L183: 56.35 | M183: 78.80 | N183: 78.80 | O183: 116.09 | P183: 116.09
A184: 2012-12-07 | B184: 241351483 | C184: FACUNDO | D184: MORAGA CANTERINI | E184: M | F184: CAN | G184: AS | H184: U14 | I184: SI | J184: 2 | K184: 164.71 | L184: 164.71 | M184: 199.26 | N184: 160.58 | O184: 276.56 | P184: 276.56
A185: 2012-12-06 | B185: 241361489 | C185: JULIETA | D185: ESCUDERO ZARATE | E185: F | F185: CAPA | G185: AS | H185: U14 | I185: SI | J185: 2 | K185: 999.99 | L185: 999.99 | M185: 999.99 | N185: 425.77 | O185: 999.99 | P185: 999.99
A186: 2012-12-11 | B186: 241446131 | C186: SIMONA | D186: SÁNCHEZ GÓMEZ | E186: F | F186: POR | G186: AS | H186: U14 | I186: SI | J186: 2 | K186: 999.99 | L186: 497.59 | M186: 999.99 | N186: 459.65 | O186: 999.99 | P186: 999.99
A187: 2012-12-26 | B187: 241484866 | C187: SARA | D187: GALLEGUILLOS MIRANDA | E187: F | F187: CAPA | G187: AS | H187: U14 | I187: SI | J187: 2 | K187: 999.99 | L187: 100.02 | M187: 237.53 | N187: 159.22 | O187: 205.92 | P187: 201.98
A188: 2012-12-27 | B188: 24149618K | C188: JACINTA | D188: LÓPEZ CHAMORRO | E188: F | F188: CEC | G188: AS | H188: U14 | I188: SI | J188: 2 | K188: 495.85 | L188: 495.85 | M188: 919.47 | N188: 395.19 | O188: 584.22 | P188: 450.15
A189: 2013-01-07 | B189: 241587681 | C189: BENJAMIN | D189: DIAZ FIGUEROA | E189: M | F189: CAR | G189: AS | H189: U14 | I189: SI | J189: 1 | K189: 999.99 | L189: 148.13 | M189: 999.99 | N189: 192.17 | O189: 999.99 | P189: 338.51
A190: 2013-01-02 | B190: 241593223 | C190: STEPHAN KARL | D190: LANDOLT HARRIS | E190: M | F190: CAPA | G190: AS | H190: U14 | I190: SI | J190: 1 | K190: 999.99 | L190: 999.99 | M190: 999.99 | N190: 999.99 | O190: 999.99 | P190: 999.99
A191: 2013-01-07 | B191: 241608506 | C191: CRISTIAN | D191: SWETT LAGO | E191: M | F191: CAO | G191: AS | H191: U14 | I191: SI | J191: 1 | K191: 999.99 | L191: 999.99 | M191: 999.99 | N191: 999.99 | O191: 999.99 | P191: 999.99
A192: 2013-01-07 | B192: 241608786 | C192: TRINIDAD | D192: SWETT LAGO | E192: F | F192: CAO | G192: AS | H192: U14 | I192: SI | J192: 1 | K192: 999.99 | L192: 999.99 | M192: 999.99 | N192: 999.99 | O192: 999.99 | P192: 999.99
A193: 2013-01-18 | B193: 241684717 | C193: SOFÍA | D193: SOLAR TURRILLAS | E193: F | F193: CVN | G193: AS | H193: U14 | I193: SI | J193: 1 | K193: 999.99 | L193: 999.99 | M193: 999.99 | N193: 999.99 | O193: 999.99 | P193: 999.99
A194: 2013-01-16 | B194: 241684849 | C194: AMBAR | D194: CARDENAS CONEJEROS | E194: F | F194: PAT | G194: AS | H194: U14 | I194: SI | J194: 1 | K194: 999.99 | L194: 279.40 | M194: 999.99 | N194: 314.30 | O194: 999.99 | P194: 999.99
A195: 2013-01-19 | B195: 241702219 | C195: ANA | D195: MONTAGNON FERNÁNDEZ | E195: F | F195: ARS | G195: AS | H195: U14 | I195: SI | J195: 1 | K195: 999.99 | L195: 184.67 | M195: 999.99 | N195: 194.45 | O195: 999.99 | P195: 220.02
A196: 2013-01-22 | B196: 241716457 | C196: BORJA | D196: CHAVEZ BAHAMONDES | E196: M | F196: ARS | G196: AS | H196: U14 | I196: SI | J196: 1 | K196: 999.99 | L196: 999.99 | M196: 999.99 | N196: 304.88 | O196: 999.99 | P196: 340.12
A197: 2013-01-27 | B197: 241761185 | C197: ALEXANDER | D197: ROJAS BUSTOS | E197: M | F197: UC | G197: AS | H197: U14 | I197: SI | J197: 1 | K197: 999.99 | L197: 999.99 | M197: 999.99 | N197: 141.81 | O197: 999.99 | P197: 999.99
A198: 2013-05-02 | B198: 241853950 | C198: ZOE | D198: MOLINARE OLMOS | E198: F | F198: LV | G198: AS | H198: U14 | I198: SI | J198: 1 | K198: 999.99 | L198: 351.05 | M198: 999.99 | N198: 331.36 | O198: 999.99 | P198: 339.47
A199: 2013-01-17 | B199: 241893359 | C199: JUAN | D199: UNDURRAGA URIBE | E199: M | F199: CLP | G199: AS | H199: U14 | I199: SI | J199: 1 | K199: 999.99 | L199: 201.65 | M199: 999.99 | N199: 112.32 | O199: 999.99 | P199: 294.61
A200: 2013-02-08 | B200: 24189715K | C200: BERNARDO | D200: BRAVO RECCIUS | E200: M | F200: UC | G200: AS | H200: U14 | I200: SI | J200: 1 | K200: 999.99 | L200: 999.99 | M200: 999.99 | N200: 231.56 | O200: 999.99 | P200: 306.21
... 167 more rows

Sheet Seleccionados DP
A1: Fecha | B1: Rut | C1: Nombre | D1: Apellido | E1: Sexo | F1: Club | G1: Disc. | H1: Cat. | I1: Activo | J1: Año | K1: BASE SL | L1: Lista 3 SL | M1: BASE GS | N1: Lista 3 GS | O1: BASE SG | P1: Lista 3 SG | Q1: Documento | R1: Participó_SL | S1: Participó_GS | T1: Participó_SG | U1: Puntos Lista 3 SL | V1: Rank | W1: Especialidad | X1: Puntos Lista 3 GS | Y1: Puntos Lista 3 SG
A2: 2010-04-08 | B2: 232926155 | C2: PATRICIO | D2: BANNURA DECEBAL-CUZA | E2: M | F2: UC | G2: AS | H2: U16 | I2: SI | J2: 2 | K2: 50 | L2: 50 | M2: 122.02 | N2: 122.02 | O2: 141.41 | P2: 141.41 | Q2: RUT | R2: TRUE | S2: TRUE | T2: TRUE | U2: 50 | V2: 1 | W2: SL
A3: 2010-04-19 | B3: 233009822 | C3: CARMENCITA | D3: PINILLA MORENO | E3: F | F3: CLP | G3: AS | H3: U16 | I3: SI | J3: 2 | K3: 50 | L3: 50 | M3: 78.97 | N3: 78.97 | O3: 85 | P3: 85 | Q3: RUT | R3: TRUE | S3: TRUE | T3: TRUE | U3: 50 | V3: 1 | W3: SL
A4: 2010-06-21 | B4: 233561312 | C4: MATEO | D4: CURKOVIC FRANCO | E4: M | F4: UC | G4: AS | H4: U16 | I4: SI | J4: 2 | K4: 63.71 | L4: 63.71 | M4: 70 | N4: 70 | O4: 85 | P4: 85 | Q4: RUT | R4: TRUE | S4: TRUE | T4: TRUE | V4: 1 | W4: GS | X4: 70
A5: 2010-09-06 | B5: 234197185 | C5: UVY | D5: ACERBONI AHUMADA | E5: F | F5: UC | G5: AS | H5: U16 | I5: SI | J5: 2 | K5: 89.52 | L5: 70.855 | M5: 70 | N5: 70 | O5: 163.45 | P5: 163.45 | Q5: RUT | R5: TRUE | S5: TRUE | T5: TRUE | V5: 1 | W5: GS | X5: 70
A6: 2012-03-28 | B6: 239091547 | C6: JUAN EDUARDO | D6: IBAÑEZ VERGARA | E6: M | F6: CLP | G6: AS | H6: U14 | I6: SI | J6: 2 | K6: 69.9 | L6: 69.9 | M6: 70 | N6: 70 | O6: 140.46 | P6: 140.46 | Q6: RUT | R6: TRUE | S6: TRUE | T6: TRUE | V6: 1 | W6: GS | X6: 70
A7: 2012-06-02 | B7: 239697003 | C7: ADELA | D7: VALDES PRIETO | E7: F | F7: CAO | G7: AS | H7: U14 | I7: SI | J7: 2 | K7: 57.28 | L7: 57.28 | M7: 70 | N7: 70 | O7: 85 | P7: 85 | Q7: RUT | R7: TRUE | S7: TRUE | T7: TRUE | V7: 1 | W7: GS | X7: 70
A8: 2012-08-17 | B8: 240385538 | C8: CLEMENTE | D8: SILVA OSSIPOVICH | E8: M | F8: CVN | G8: AS | H8: U14 | I8: SI | J8: 2 | K8: 78.03 | L8: 78.03 | M8: 80.66 | N8: 76.135 | O8: 85 | P8: 85 | Q8: RUT | R8: TRUE | S8: TRUE | T8: TRUE | V8: 1 | W8: SG | Y8: 85
A9: 2012-10-29 | B9: 241030326 | C9: LAWRENCE | D9: WESTCOTT LEIBBRANDT | E9: M | F9: CLP | G9: AS | H9: U14 | I9: SI | J9: 2 | K9: 50 | L9: 50 | M9: 70.65 | N9: 70.65 | O9: 116.97 | P9: 116.97 | Q9: RUT | R9: TRUE | S9: TRUE | T9: TRUE | U9: 50 | V9: 1 | W9: SL
A10: 2012-09-18 | B10: 257771806 | C10: LAURA | D10: PUENTE YANKOVIC | E10: F | F10: CAN | G10: AS | H10: U14 | I10: SI | J10: 2 | K10: 50 | L10: 50 | M10: 91.22 | N10: 84.65 | O10: 124.62 | P10: 107.55 | Q10: RUT | R10: TRUE | S10: TRUE | T10: TRUE | U10: 50 | V10: 1 | W10: SL
A11: 2011-01-03 | B11: 235182785 | C11: FRANCISCO JAVIER | D11: PEREZ HADDAD | E11: M | F11: CAN | G11: AS | H11: U16 | I11: SI | J11: 1 | K11: 113.26 | L11: 113.26 | M11: 77.39 | N11: 77.39 | O11: 88.09 | P11: 88.09 | Q11: RUT | R11: TRUE | S11: TRUE | T11: TRUE | V11: 2 | W11: SG | Y11: 88.09
A12: 2011-01-17 | B12: 235889730 | C12: ALBERTO | D12: PUENTE YANKOVIC | E12: M | F12: CAN | G12: AS | H12: U16 | I12: SI | J12: 1 | K12: 86.13 | L12: 86.13 | M12: 95.86 | N12: 72.03 | O12: 139 | P12: 99.345 | Q12: RUT | R12: TRUE | S12: TRUE | T12: TRUE | V12: 2 | W12: GS | X12: 72.03
A13: 2011-08-07 | B13: 237109740 | C13: RAFAELA | D13: KNAPP MOYA | E13: F | F13: CAPA | G13: AS | H13: U16 | I13: SI | J13: 1 | K13: 171.13 | L13: 171.13 | M13: 127.35 | N13: 106.855 | O13: 87.23 | P13: 87.23 | Q13: RUT | R13: TRUE | S13: TRUE | T13: TRUE | V13: 2 | W13: SG | Y13: 87.23
A14: 2012-01-18 | B14: 238487544 | C14: LUCIANO | D14: BRITO DIAZ | E14: M | F14: CLP | G14: AS | H14: U14 | I14: SI | J14: 2 | K14: 106.99 | L14: 106.99 | M14: 96.02 | N14: 96.02 | O14: 109.06 | P14: 109.06 | Q14: RUT | R14: TRUE | S14: TRUE | T14: TRUE | V14: 2 | W14: SG | Y14: 109.06
A15: 2012-05-25 | B15: 239723578 | C15: GUSTAVO | D15: PINCHEIRA BRAVO | E15: M | F15: CAR | G15: AS | H15: U14 | I15: SI | J15: 2 | K15: 71.46 | L15: 64.565 | M15: 133.46 | N15: 133.46 | O15: 231.73 | P15: 231.73 | Q15: RUT | R15: TRUE | S15: TRUE | T15: TRUE | U15: 64.565 | V15: 2 | W15: SL
A16: 2012-12-09 | B16: 241342328 | C16: MARIA | D16: BRICEÑO PURCELL | E16: F | F16: CLP | G16: AS | H16: U14 | I16: SI | J16: 2 | K16: 56.35 | L16: 56.35 | M16: 78.8 | N16: 78.8 | O16: 116.09 | P16: 116.09 | Q16: RUT | R16: TRUE | S16: TRUE | T16: TRUE | U16: 56.35 | V16: 2 | W16: SL
A17: 2010-01-30 | B17: 232362693 | C17: MARTIN | D17: CRESPO IBAÑEZ | E17: M | F17: CLP | G17: AS | H17: U16 | I17: SI | J17: 2 | K17: 93.9 | L17: 93.9 | M17: 84.41 | N17: 84.41 | O17: 99.08 | P17: 99.08 | Q17: RUT | R17: TRUE | S17: TRUE | T17: TRUE | V17: 3 | W17: SG | Y17: 99.08
A18: 2010-04-19 | B18: 233059706 | C18: ISABEL | D18: CLARO IRARRAZAVAL | E18: F | F18: UC | G18: AS | H18: U16 | I18: SI | J18: 2 | K18: 74.57 | L18: 74.57 | M18: 85.46 | N18: 85.46 | O18: 135.02 | P18: 135.02 | Q18: RUT | R18: TRUE | S18: TRUE | T18: TRUE | V18: 3 | W18: GS | X18: 85.46
A19: 2011-01-24 | B19: 235429683 | C19: BAUTISTA | D19: LAMA KAISER | E19: M | F19: CLP | G19: AS | H19: U16 | I19: SI | J19: 1 | K19: 66.01 | L19: 66.01 | M19: 78.97 | N19: 78.97 | O19: 117.55 | P19: 107.91 | Q19: RUT | R19: TRUE | S19: TRUE | T19: TRUE | U19: 66.01 | V19: 3 | W19: SL
A20: 2011-03-21 | B20: 235998793 | C20: IGNACIA | D20: FUENTES LABRA | E20: F | F20: ARS | G20: AS | H20: U16 | I20: SI | J20: 1 | K20: 71.98 | L20: 71.98 | M20: 110 | N20: 106.3 | O20: 132.94 | P20: 103.295 | Q20: RUT | R20: TRUE | S20: TRUE | T20: TRUE | U20: 71.98 | V20: 3 | W20: SL
A21: 2012-07-02 | B21: 240010763 | C21: JOSÉ | D21: KRAUSE GUTIÉRREZ | E21: M | F21: CVN | G21: AS | H21: U14 | I21: SI | J21: 2 | K21: 999.99 | L21: 145.48 | M21: 149.67 | N21: 129.7 | O21: 112.47 | P21: 112.47 | Q21: RUT | R21: TRUE | S21: TRUE | T21: TRUE | V21: 3 | W21: SG | Y21: 112.47
A22: 2012-07-04 | B22: 240101319 | C22: AMANDA | D22: JONES ILLANES | E22: F | F22: CAN | G22: AS | H22: U14 | I22: SI | J22: 2 | K22: 62.33 | L22: 62.33 | M22: 103.25 | N22: 103.25 | O22: 110.29 | P22: 110.29 | Q22: RUT | R22: TRUE | S22: TRUE | T22: TRUE | V22: 3 | W22: SG | Y22: 110.29
A23: 2010-01-26 | B23: 232325704 | C23: AMALIA | D23: BARRIENTOS MARTINEZ | E23: F | F23: CAO | G23: AS | H23: U16 | I23: SI | J23: 2 | K23: 137.2 | L23: 137.2 | M23: 168.6 | N23: 168.6 | O23: 107.11 | P23: 107.11 | Q23: RUT | R23: TRUE | S23: TRUE | T23: TRUE | V23: 4 | W23: SG | Y23: 107.11
A24: 2010-06-14 | B24: 233491136 | C24: DANIEL IGNACIO | D24: GONZÁLEZ LOPEZ | E24: M | F24: CEC | G24: AS | H24: U16 | I24: SI | J24: 2 | K24: 73.22 | L24: 73.22 | M24: 108.81 | N24: 108.81 | O24: 135.71 | P24: 135.71 | Q24: RUT | R24: TRUE | S24: TRUE | T24: TRUE | U24: 73.22 | V24: 4 | W24: SL
A25: 2012-09-23 | B25: 240699540 | C25: SEBASTIAN | D25: BASAURE VARGAS | E25: M | F25: UC | G25: AS | H25: U14 | I25: SI | J25: 2 | K25: 75.26 | L25: 75.26 | M25: 81.83 | N25: 80.82 | O25: 132.34 | P25: 116.875 | Q25: RUT | R25: TRUE | S25: TRUE | T25: TRUE | U25: 75.26 | V25: 4 | W25: SL
A26: 2010-04-22 | B26: 233032808 | C26: LEONOR | D26: MUÑOZ QUINTANA | E26: F | F26: CORR | G26: AS | H26: U16 | I26: SI | J26: 2 | K26: 87.35 | L26: 87.35 | M26: 132.97 | N26: 132.97 | O26: 129.26 | P26: 129.26 | Q26: RUT | R26: TRUE | S26: TRUE | T26: TRUE | U26: 87.35 | V26: 5 | W26: SL
A27: 2010-06-05 | B27: 233456179 | C27: EMILIA | D27: GROB ANGERMEYER | E27: F | F27: CAN | G27: AS | H27: U16 | I27: SI | J27: 2 | K27: 122.8 | L27: 122.8 | M27: 155.12 | N27: 116.91 | O27: 109.14 | P27: 109.14 | Q27: RUT | R27: TRUE | S27: TRUE | T27: TRUE | V27: 5 | W27: SG | Y27: 109.14
A28: 2012-04-21 | B28: 23930088K | C28: ANIBAL | D28: MONTES GUTIERREZ | E28: M | F28: UC | G28: AS | H28: U14 | I28: SI | J28: 2 | K28: 999.99 | L28: 160.69 | M28: 97.28 | N28: 85.475 | O28: 142.63 | P28: 142.63 | Q28: RUT | R28: TRUE | S28: TRUE | T28: TRUE | V28: 5 | W28: GS | X28: 85.475
A29: 2012-10-27 | B29: 241086215 | C29: MADDALENA | D29: CERONI YOB | E29: F | F29: CAO | G29: AS | H29: U14 | I29: SI | J29: 2 | K29: 65.87 | L29: 65.87 | M29: 104.78 | N29: 104.78 | O29: 145.68 | P29: 145.68 | Q29: RUT | R29: TRUE | S29: TRUE | T29: TRUE | U29: 65.87 | V29: 5 | W29: SL
A30: 2010-01-17 | B30: 232274360 | C30: SILKE | D30: OPITZ SEIDL | E30: F | F30: CAO | G30: AS | H30: U16 | I30: SI | J30: 2 | K30: 156.18 | L30: 132.49 | M30: 154.47 | N30: 154.47 | O30: 111.16 | P30: 111.16 | Q30: RUT | R30: TRUE | S30: TRUE | T30: TRUE | V30: 6 | W30: SG | Y30: 111.16
A31: 2010-04-01 | B31: 233243736 | C31: NINA | D31: DUPUY ALLEN | E31: F | F31: CVN | G31: AS | H31: U16 | I31: SI | J31: 2 | K31: 171.5 | L31: 171.5 | M31: 112.82 | N31: 112.82 | O31: 226.51 | P31: 226.51 | Q31: RUT | R31: TRUE | S31: TRUE | T31: TRUE | V31: 6 | W31: GS | X31: 112.82
A32: 2010-09-22 | B32: 234304860 | C32: PATRICK | D32: RABY IBAÑEZ | E32: M | F32: CLP | G32: AS | H32: U16 | I32: SI | J32: 2 | K32: 128.79 | L32: 128.79 | M32: 116.93 | N32: 116.93 | O32: 116.76 | P32: 116.76 | Q32: RUT | R32: TRUE | S32: TRUE | T32: TRUE | V32: 6 | W32: SG | Y32: 116.76
A33: 2012-10-02 | B33: 238674840 | C33: ANTONIA | D33: GARDILCIC SANTA CRUZ | E33: F | F33: CVN | G33: AS | H33: U14 | I33: SI | J33: 2 | K33: 162.96 | L33: 162.96 | M33: 155.75 | N33: 155.75 | O33: 151.45 | P33: 151.45 | Q33: RUT | R33: TRUE | S33: TRUE | T33: TRUE | V33: 6 | W33: SG | Y33: 151.45
A34: 2012-04-21 | B34: 239350453 | C34: DOMINGO ARNAU | D34: TORRES RETI | E34: M | F34: CAN | G34: AS | H34: U14 | I34: SI | J34: 2 | K34: 189.54 | L34: 152.005 | M34: 126.9 | N34: 126.9 | O34: 117.78 | P34: 117.78 | Q34: RUT | R34: TRUE | S34: TRUE | T34: TRUE | V34: 6 | W34: SG | Y34: 117.78
A35: 2012-05-30 | B35: 239677304 | C35: JULIETA | D35: FERNANDEZ VERGARA | E35: F | F35: CLP | G35: AS | H35: U14 | I35: SI | J35: 2 | K35: 75.32 | L35: 75.32 | M35: 118.5 | N35: 118.5 | O35: 159.37 | P35: 159.37 | Q35: RUT | R35: TRUE | S35: TRUE | T35: TRUE | U35: 75.32 | V35: 6 | W35: SL
A36: 2012-11-26 | B36: 241242684 | C36: TOBÍAS | D36: GROB ANGERMEYER | E36: M | F36: CAN | G36: AS | H36: U14 | I36: SI | J36: 2 | K36: 96.4 | L36: 96.4 | M36: 100.04 | N36: 97.455 | O36: 153.4 | P36: 153.4 | Q36: RUT | R36: TRUE | S36: TRUE | T36: TRUE | U36: 96.4 | V36: 6 | W36: SL
A37: 2010-01-03 | B37: 23215800K | C37: ANTONIA | D37: ESTEVE SECO | E37: F | F37: CAR | G37: AS | H37: U16 | I37: SI | J37: 2 | K37: 93.44 | L37: 93.44 | M37: 137.35 | N37: 137.35 | O37: 216.81 | P37: 216.81 | Q37: RUT | R37: TRUE | S37: TRUE | T37: TRUE | U37: 93.44 | V37: 7 | W37: SL
A38: 2010-11-05 | B38: 234718827 | C38: MATEO | D38: GROB CONCHA | E38: M | F38: CAO | G38: AS | H38: U16 | I38: SI | J38: 2 | K38: 107.95 | L38: 106.05 | M38: 157.23 | N38: 134.865 | O38: 125.81 | P38: 125.81 | Q38: RUT | R38: TRUE | S38: TRUE | T38: TRUE | V38: 7 | W38: SG | Y38: 125.81
A39: 2011-10-11 | B39: 237684176 | C39: PATRICIO MATÍAS | D39: CONTESSE ORTIZ | E39: M | F39: CAN | G39: AS | H39: U16 | I39: SI | J39: 1 | K39: 116.52 | L39: 116.52 | M39: 112.45 | N39: 112.45 | O39: 134.06 | P39: 134.06 | Q39: RUT | R39: TRUE | S39: TRUE | T39: TRUE | V39: 7 | W39: GS | X39: 112.45
A40: 2012-05-22 | B40: 23954326K | C40: MAX | D40: MONREAL ORMEÑO | E40: M | F40: CORR | G40: AS | H40: U14 | I40: SI | J40: 2 | K40: 98.2 | L40: 98.2 | M40: 189.82 | N40: 189.82 | O40: 266.94 | P40: 266.94 | Q40: RUT | R40: TRUE | S40: TRUE | T40: TRUE | U40: 98.2 | V40: 7 | W40: SL
A41: 2012-11-21 | B41: 241213900 | C41: DELFINA | D41: ANGUITA AVILES | E41: F | F41: CAO | G41: AS | H41: U14 | I41: SI | J41: 2 | K41: 109.36 | L41: 99.375 | M41: 204.87 | N41: 130.05 | O41: 161.56 | P41: 161.56 | Q41: RUT | R41: TRUE | S41: TRUE | T41: TRUE | U41: 99.375 | V41: 7 | W41: SL
A42: 2010-11-06 | B42: 233465003 | C42: ELOISA | D42: COSTA BERNALES | E42: F | F42: CVN | G42: AS | H42: U16 | I42: SI | J42: 2 | K42: 215.91 | L42: 185.36 | M42: 121.55 | N42: 121.55 | O42: 146.5 | P42: 146.5 | Q42: RUT | R42: TRUE | S42: TRUE | T42: TRUE | V42: 8 | W42: GS | X42: 121.55
A43: 2010-08-24 | B43: 234187651 | C43: FRANCISCO | D43: VICUÑA CURTZE | E43: M | F43: CLP | G43: AS | H43: U16 | I43: SI | J43: 2 | K43: 98.92 | L43: 98.92 | M43: 152.6 | N43: 152.6 | O43: 238.16 | P43: 210.92 | Q43: RUT | R43: TRUE | S43: TRUE | T43: TRUE | U43: 98.92 | V43: 8 | W43: SL
A44: 2010-09-16 | B44: 234271490 | C44: MATILDE SOFIA | D44: GARDA TIMMERMANN | E44: F | F44: CEC | G44: AS | H44: U16 | I44: SI | J44: 2 | K44: 144.74 | L44: 144.74 | M44: 226.4 | N44: 164.135 | O44: 134.39 | P44: 134.39 | Q44: RUT | R44: TRUE | S44: TRUE | T44: TRUE | V44: 8 | W44: SG | Y44: 134.39
A45: 2012-04-01 | B45: 239221904 | C45: NABIH | D45: SEITUN FUENTES | E45: M | F45: LV | G45: AS | H45: U14 | I45: SI | J45: 2 | K45: 103.82 | L45: 103.82 | M45: 188.02 | N45: 188.02 | O45: 348.11 | P45: 348.11 | Q45: RUT | R45: TRUE | S45: TRUE | T45: TRUE | U45: 103.82 | V45: 8 | W45: SL
A46: 2012-12-26 | B46: 241484866 | C46: SARA | D46: GALLEGUILLOS MIRANDA | E46: F | F46: CAPA | G46: AS | H46: U14 | I46: SI | J46: 2 | K46: 999.99 | L46: 100.015 | M46: 237.53 | N46: 159.22 | O46: 205.92 | P46: 201.975 | Q46: RUT | R46: TRUE | S46: TRUE | T46: TRUE | U46: 100.015 | V46: 8 | W46: SL
A47: 2013-04-20 | B47: 242512391 | C47: MATHIAS | D47: LINNEBERG CARRETERO | E47: M | F47: CLP | G47: AS | H47: U14 | I47: SI | J47: 1 | K47: 999.99 | L47: 999.99 | M47: 999.99 | N47: 100.55 | O47: 999.99 | P47: 167.785 | Q47: RUT | R47: TRUE | S47: TRUE | T47: TRUE | V47: 8 | W47: GS | X47: 100.55
A48: 2013-05-10 | B48: 242935659 | C48: MARGARITA | D48: ACUÑA BARROS | E48: F | F48: UC | G48: AS | H48: U14 | I48: SI | J48: 1 | K48: 999.99 | L48: 173.52 | M48: 999.99 | N48: 136.47 | O48: 999.99 | P48: 999.99 | Q48: RUT | R48: TRUE | S48: TRUE | T48: TRUE | V48: 8 | W48: GS | X48: 136.47
A49: 2011-05-16 | B49: 236440893 | C49: CLARA | D49: DONOSO INFANTE | E49: F | F49: CAO | G49: AS | H49: U16 | I49: SI | J49: 1 | K49: 117.08 | L49: 116.59 | M49: 134.47 | N49: 134.47 | O49: 157.23 | P49: 157.23 | Q49: RUT | R49: TRUE | S49: TRUE | T49: TRUE | U49: 116.59 | V49: 9 | W49: SL
A50: 2011-12-23 | B50: 238289130 | C50: TIAGO | D50: CARTES ATALAH | E50: M | F50: CAN | G50: AS | H50: U16 | I50: SI | J50: 1 | K50: 105.05 | L50: 105.05 | M50: 163.57 | N50: 163.57 | O50: 181.74 | P50: 169.01 | Q50: RUT | R50: TRUE | S50: TRUE | T50: TRUE | U50: 105.05 | V50: 9 | W50: SL
A51: 2012-07-18 | B51: 240114283 | C51: BLANCA | D51: PUIG GUTIERREZ | E51: F | F51: CAR | G51: AS | H51: U14 | I51: SI | J51: 2 | K51: 101.22 | L51: 101.22 | M51: 137.28 | N51: 137.28 | O51: 230.03 | P51: 230.03 | Q51: RUT | R51: TRUE | S51: TRUE | T51: TRUE | U51: 101.22 | V51: 9 | W51: SL
A52: 2012-08-29 | B52: 240505428 | C52: NICOLAS | D52: PEREZ CARDENAS | E52: M | F52: PAT | G52: AS | H52: U14 | I52: SI | J52: 2 | K52: 163.31 | L52: 163.31 | M52: 206.18 | N52: 206.18 | O52: 151.39 | P52: 151.39 | Q52: RUT | R52: TRUE | S52: TRUE | T52: TRUE | V52: 9 | W52: SG | Y52: 151.39
A53: 2013-01-17 | B53: 241893359 | C53: JUAN | D53: UNDURRAGA URIBE | E53: M | F53: CLP | G53: AS | H53: U14 | I53: SI | J53: 1 | K53: 999.99 | L53: 201.648 | M53: 999.99 | N53: 112.32 | O53: 999.99 | P53: 294.605 | Q53: RUT | R53: TRUE | S53: TRUE | T53: TRUE | V53: 9 | W53: GS | X53: 112.32
A54: 2013-03-06 | B54: 242213521 | C54: LUZ | D54: CASTRO GONZALEZ | E54: F | F54: ARS | G54: AS | H54: U14 | I54: SI | J54: 1 | K54: 999.99 | L54: 225.108 | M54: 999.99 | N54: 165.535 | O54: 999.99 | P54: 172.975 | Q54: RUT | R54: TRUE | S54: TRUE | T54: TRUE | V54: 9 | W54: SG | Y54: 172.975
A55: 2011-05-16 | B55: 236449246 | C55: MARTIN | D55: ROMENY WAEGER | E55: M | F55: CAO | G55: AS | H55: U16 | I55: SI | J55: 1 | K55: 170.62 | L55: 170.62 | M55: 125.1 | N55: 125.1 | O55: 161.83 | P55: 161.83 | Q55: RUT | R55: TRUE | S55: TRUE | T55: TRUE | V55: 10 | W55: GS | X55: 125.1
A56: 2012-06-12 | B56: 239800572 | C56: IÑAKI | D56: BASAURI GARDILCIC | E56: M | F56: CORR | G56: AS | H56: U14 | I56: SI | J56: 2 | K56: 110.68 | L56: 110.68 | M56: 181.78 | N56: 181.78 | O56: 223.15 | P56: 223.15 | Q56: RUT | R56: TRUE | S56: TRUE | T56: TRUE | U56: 110.68 | V56: 10 | W56: SL
A57: 2012-06-28 | B57: 240018462 | C57: PILAR | D57: CLARO IRARRAZAVAL | E57: F | F57: UC | G57: AS | H57: U14 | I57: SI | J57: 2 | K57: 199.69 | L57: 199.69 | M57: 164.91 | N57: 164.91 | O57: 186.39 | P57: 186.39 | Q57: RUT | R57: TRUE | S57: TRUE | T57: TRUE | V57: 10 | W57: SG | Y57: 186.39
A58: 2012-07-27 | B58: 240208881 | C58: FRANCISCA | D58: COSMELLI PIWONKA | E58: F | F58: UC | G58: AS | H58: U14 | I58: SI | J58: 2 | K58: 141.3 | L58: 111.99 | M58: 204.22 | N58: 204.22 | O58: 196.3 | P58: 196.3 | Q58: RUT | R58: TRUE | S58: TRUE | T58: TRUE | U58: 111.99 | V58: 10 | W58: SL
A59: 2013-02-17 | B59: 241972593 | C59: ALFONSO | D59: DIAZ GHIRARDELLI | E59: M | F59: UC | G59: AS | H59: U14 | I59: SI | J59: 1 | K59: 999.99 | L59: 136.272 | M59: 999.99 | N59: 119.005 | O59: 999.99 | P59: 185.955 | Q59: RUT | R59: TRUE | S59: TRUE | T59: TRUE | V59: 10 | W59: GS | X59: 119.005
A60: 2013-04-21 | B60: 242507606 | C60: MARÍA IGNACIA | D60: HADAD AGUIRRE | E60: F | F60: POR | G60: AS | H60: U14 | I60: SI | J60: 1 | K60: 999.99 | L60: 150.696 | M60: 999.99 | N60: 147.235 | O60: 999.99 | P60: 211.625 | Q60: RUT | R60: TRUE | S60: TRUE | T60: TRUE | V60: 10 | W60: GS | X60: 147.235
A61: 2010-11-06 | B61: 233480916 | C61: JUAN | D61: GARDILCIC SANTA CRUZ | E61: M | F61: CVN | G61: AS | H61: U16 | I61: SI | J61: 2 | K61: 211.51 | L61: 211.51 | M61: 136.88 | N61: 136.88 | O61: 151.31 | P61: 151.31 | Q61: RUT | R61: TRUE | S61: TRUE | T61: TRUE | V61: 11 | W61: SG | Y61: 151.31
A62: 2011-02-06 | B62: 235529300 | C62: ELBA | D62: HUBER SOLIS | E62: F | F62: LV | G62: AS | H62: U16 | I62: SI | J62: 1 | K62: 129.83 | L62: 129.83 | M62: 177.18 | N62: 177.18 | O62: 224.11 | P62: 224.11 | Q62: RUT | R62: TRUE | S62: TRUE | T62: TRUE | U62: 129.83 | V62: 11 | W62: SL
A63: 2012-12-04 | B63: 239225624 | C63: JUAN | D63: BRINKMANN UNDURRAGA | E63: M | F63: CVN | G63: AS | H63: U14 | I63: SI | J63: 2 | K63: 126 | L63: 126 | M63: 156.35 | N63: 140.545 | O63: 272.25 | P63: 162.07 | Q63: RUT | R63: TRUE | S63: TRUE | T63: TRUE | U63: 126 | V63: 11 | W63: SL
A64: 2012-05-03 | B64: 23954410K | C64: EMA | D64: MUYLLE ALLIENDE | E64: F | F64: UC | G64: AS | H64: U14 | I64: SI | J64: 2 | K64: 999.99 | L64: 140.095 | M64: 160.13 | N64: 151.28 | O64: 245.64 | P64: 230.78 | Q64: RUT | R64: TRUE | S64: TRUE | T64: TRUE | V64: 11 | W64: GS | X64: 151.28
A65: 2012-05-30 | B65: 239679838 | C65: OLGA | D65: KUBICK LESSER | E65: F | F65: CLP | G65: AS | H65: U14 | I65: SI | J65: 2 | K65: 155.09 | L65: 155.09 | M65: 158.13 | N65: 158.13 | O65: 210.97 | P65: 186.755 | Q65: RUT | R65: TRUE | S65: TRUE | T65: TRUE | V65: 11 | W65: SG | Y65: 186.755
A66: 2012-08-06 | B66: 240321343 | C66: EMA ANTONIA | D66: GARDA TIMMERMANN | E66: F | F66: CEC | G66: AS | H66: U14 | I66: SI | J66: 2 | K66: 123.4 | L66: 123.4 | M66: 302.92 | N66: 302.92 | O66: 226.84 | P66: 226.84 | Q66: RUT | R66: TRUE | S66: TRUE | T66: TRUE | U66: 123.4 | V66: 11 | W66: SL
A67: 2010-04-27 | B67: 233074896 | C67: SANTIAGO | D67: CAPO CORNEJO | E67: M | F67: UC | G67: AS | H67: U16 | I67: SI | J67: 2 | K67: 198.26 | L67: 198.26 | M67: 216.79 | N67: 216.79 | O67: 155.84 | P67: 155.84 | Q67: RUT | R67: TRUE | S67: TRUE | T67: TRUE | V67: 12 | W67: SG | Y67: 155.84
A68: 2011-09-14 | B68: 237461665 | C68: LAURA | D68: DEL CAMPO TRAUTMANN | E68: F | F68: CEC | G68: AS | H68: U16 | I68: SI | J68: 1 | K68: 130.99 | L68: 130.99 | M68: 171.94 | N68: 171.94 | O68: 167.56 | P68: 167.56 | Q68: RUT | R68: TRUE | S68: TRUE | T68: TRUE | U68: 130.99 | V68: 12 | W68: SL
A69: 2011-11-16 | B69: 237972236 | C69: AGUSTINA | D69: BANNURA DECEBAL-CUZA | E69: F | F69: UC | G69: AS | H69: U16 | I69: SI | J69: 1 | K69: 193.21 | L69: 192.195 | M69: 146.58 | N69: 146.58 | O69: 181.22 | P69: 181.22 | Q69: RUT | R69: TRUE | S69: TRUE | T69: TRUE | V69: 12 | W69: GS | X69: 146.58
A70: 2013-08-23 | B70: 244063179 | C70: MATILDE | D70: EULUFI BENAVIDES | E70: F | F70: ARS | G70: AS | H70: U14 | I70: SI | J70: 1 | K70: 999.99 | L70: 999.99 | M70: 999.99 | N70: 251.8 | O70: 999.99 | P70: 194.24 | Q70: RUT | R70: TRUE | S70: TRUE | T70: TRUE | V70: 12 | W70: SG | Y70: 194.24
A71: 2013-09-11 | B71: 244073166 | C71: MATILDA AMALIA | D71: TORRES RETI | E71: F | F71: CAN | G71: AS | H71: U14 | I71: SI | J71: 1 | K71: 999.99 | L71: 130.16 | M71: 999.99 | N71: 222.045 | O71: 999.99 | P71: 999.99 | Q71: RUT | R71: TRUE | S71: TRUE | T71: TRUE | U71: 130.16 | V71: 12 | W71: SL
B72: 23585550K | C72: BORJA | D72: LESSER DILL | E72: M | F72: CLP | G72: AS | H72: U16 | I72: SI | J72: 1 | K72: 141.73 | L72: 122.37 | M72: 147.61 | N72: 147.61 | O72: 236.76 | P72: 203.03 | Q72: RUT | R72: TRUE | S72: TRUE | T72: TRUE | U72: =L72 -> 122.37 | V72: 12 | W72: SL

Sheet Cupos y Derecho CNI
A1: Club | B1: U14 | C1: U16 | D1: Total U14+U16 | E1: Cupos 30% | F1: Derecho Propio | G1: Rend | H1: Org. | I1: Cupos CNI U14/U16
A2: ARS | B2: 8 | C2: 10 | D2: =B2+C2 -> 18 | E2: =IF(ROUNDDOWN(D2*0.3,0)<8, 8, ROUNDDOWN(D2*0.3,0)) -> 8 | F2: =COUNTIF('Seleccionados DP'!F:F,'Cupos y Derecho CNI'!A2) -> 3 | G2: 0 | H2: 0 | I2: =SUM(E2,F2,G2,H2) -> 11
A3: CAEC | B3: 0 | C3: 1 | D3: =B3+C3 -> 1 | E3: 1 | F3: =COUNTIF('Seleccionados DP'!F:F,'Cupos y Derecho CNI'!A3) -> 0 | G3: 0 | H3: 0 | I3: 1
A4: CAN | B4: 21 | C4: 13 | D4: 34 | E4: =IF(ROUNDDOWN(D4*0.3,0)<8, 8, ROUNDDOWN(D4*0.3,0)) -> 10 | F4: =COUNTIF('Seleccionados DP'!F:F,'Cupos y Derecho CNI'!A4) -> 10 | G4: 1 | H4: 1 | I4: 22
A5: CAO | B5: 12 | C5: 15 | D5: 27 | E5: 8 | F5: =COUNTIF('Seleccionados DP'!F:F,'Cupos y Derecho CNI'!A5) -> 8 | G5: 0 | H5: 0 | I5: 16
A6: CAPA | B6: 9 | C6: 2 | D6: 11 | E6: 8 | F6: =COUNTIF('Seleccionados DP'!F:F,'Cupos y Derecho CNI'!A6) -> 2 | G6: 0 | H6: 0 | I6: 10
A7: CAR | B7: 3 | C7: 3 | D7: 6 | E7: 6 | F7: =COUNTIF('Seleccionados DP'!F:F,'Cupos y Derecho CNI'!A7) -> 3 | G7: 0 | H7: 0 | I7: 9
A8: CEC | B8: 10 | C8: 9 | D8: 19 | E8: 8 | F8: =COUNTIF('Seleccionados DP'!F:F,'Cupos y Derecho CNI'!A8) -> 4 | G8: 0 | H8: 0 | I8: 12
A9: CLP | B9: 21 | C9: 18 | D9: 39 | E9: 11 | F9: =COUNTIF('Seleccionados DP'!F:F,'Cupos y Derecho CNI'!A9) -> 14 | G9: 3 | H9: 1 | I9: 29
A10: CORR | B10: 10 | C10: 5 | D10: 15 | E10: 8 | F10: =COUNTIF('Seleccionados DP'!F:F,'Cupos y Derecho CNI'!A10) -> 3 | G10: 0 | H10: 0 | I10: 11
A11: CSC | B11: 5 | C11: 2 | D11: 7 | E11: 7 | F11: =COUNTIF('Seleccionados DP'!F:F,'Cupos y Derecho CNI'!A11) -> 0 | G11: 0 | H11: 0 | I11: 7
A12: CVN | B12: 12 | C12: 13 | D12: 25 | E12: 8 | F12: =COUNTIF('Seleccionados DP'!F:F,'Cupos y Derecho CNI'!A12) -> 7 | G12: 0 | H12: 0 | I12: 15
A13: LV | B13: 9 | C13: 2 | D13: 11 | E13: 8 | F13: =COUNTIF('Seleccionados DP'!F:F,'Cupos y Derecho CNI'!A13) -> 2 | G13: 0 | H13: 0 | I13: 10
A14: PAT | B14: 3 | C14: 2 | D14: 5 | E14: 5 | F14: =COUNTIF('Seleccionados DP'!F:F,'Cupos y Derecho CNI'!A14) -> 1 | G14: 0 | H14: 0 | I14: 6
A15: POR | B15: 8 | C15: 2 | D15: 10 | E15: 8 | F15: =COUNTIF('Seleccionados DP'!F:F,'Cupos y Derecho CNI'!A15) -> 1 | G15: 1 | H15: 0 | I15: 10
A16: UC | B16: 25 | C16: 16 | D16: 41 | E16: 12 | F16: =COUNTIF('Seleccionados DP'!F:F,'Cupos y Derecho CNI'!A16) -> 13 | G16: 2 | H16: 1 | I16: 28
A17: TOTAL GENERAL | B17: =SUM(B2:B16) -> 156 | C17: 113 | D17: 269 | E17: 116 | F17: 71 | G17: 7 | H17: 3 | I17: 197
